Workbook

Sheet Input
A1: =ROW() -> 1
A2: =ROW() -> 2
A3: =ROW() -> 3
A4: =ROW() -> 4 | C4: SPS California Acquisition
A5: =ROW() -> 5
A6: =ROW() -> 6 | C6: Time | I6: =Merch!B1 -> Generation | O6: =CapEx!B1 -> CapEx | V6: =Tax!B1 -> Tax
A7: =ROW() -> 7 | L7: 130 | M7: Total MW | S7: $000 | X7: State | Y7: Fed
A8: =ROW() -> 8 | C8: COD | F8: 2012-05-01 | I8: Plant Nameplate MW | L8: 20 | M8: MW | V8: Income Tax | X8: 0.042 | Y8: 0.35
A9: =ROW() -> 9 | C9: Years of Operation | F9: 25 | I9: MW Ramp per Month | L9: 0 | M9: MW
A10: =ROW() -> 10 | V10: State NOL on/off | Y10: 1
A11: =ROW() -> 11 | E11: Months | F11: Years | V11: State NOL (year) | Y11: 2014
A12: =ROW() -> 12 | C12: Pre-COD Period | E12: 0 | F12: 3 | V12: State Tax Credit on/off | Y12: 0
A13: =ROW() -> 13 | I13: Yingli 50MW Generation Sensitivity : | L13: 0 | M13: on/off | O13: Capital Costs - | R13: $000 | S13: $/kW | V13: State Tax Credit (year) | Y13: 0
A14: =ROW() -> 14 | C14: Notes : | L14: % | O14: Land Costs | R14: =CapEx!W167 -> 0 | S14: =R14/$L$8 -> 0 | V14: State Tax Credit (year) | Y14: 0
A15: =ROW() -> 15 | C15: Minimum Pre-COD Period of 12 months is recommended | I15: Degradation - Solar | L15: 0.005 | O15: Development Costs | R15: =CapEx!W168 -> 884.7286371 | S15: =R15/$L$8 -> 44.23643186 | V15: Sales Tax Sens. (on/off) | Y15: 0
A16: =ROW() -> 16 | C16: to allow enough room for half-year tax depreciation | I16: Degradation - Yingli Sensitivity | L16: =L13 -> 0 | O16: Equipment | R16: =CapEx!W169 -> 53748.25032 | S16: =R16/$L$8 -> 2687.412516 | V16: State Basis Sens. (on/off) | Y16: 0
A17: =ROW() -> 17 | O17: Construction | R17: =CapEx!W170 -> 18172.32621 | S17: =R17/$L$8 -> 908.6163103
A18: =ROW() -> 18 | K18: % | O18: Transmission | R18: =CapEx!W172 -> 1857.543622 | S18: =R18/$L$8 -> 92.8771811 | V18: PTC on/off | Y18: 1
A19: =ROW() -> 19 | C19: Critical Date | I19: Outages - EFOR | K19: 0.013 | O19: Indirects | R19: =CapEx!W173 -> 1139.866733 | S19: 56.99333667 | V19: Regular PTC Rate | Y19: 0.15 | Z19: 2018
A20: =ROW() -> 20 | C20: Investment Term - Years | F20: 25 | I20: EPOF Availiability | K20: 1 | O20: Startup | R20: =CapEx!W174 -> 1034.83687 | S20: 51.7418435 | V20: Super PTC Rate | Y20: 0.2625 | Z20: 2016
A21: =ROW() -> 21 | F21: PPA Term | G21: Merchant | O21: Other | R21: =CapEx!W175 -> 2100.345785 | S21: 105.0172892
A22: =ROW() -> 22 | C22: PPA Term | F22: 25 | G22: =F20-F22 -> 0 | K22: % | O22: Contingency | R22: =CapEx!W176 -> 2477.240184 | S22: 123.8620092 | V22: Group NOL (on/off) | Y22: 1
A23: =ROW() -> 23 | C23: Commercial Operations Date | F23: =F8 -> 2012-05-01 | G23: =(DATE(YEAR(F23)+1,1,1)-F23)/365 -> 0.6712328767 | I23: Line Loss - Tx | K23: 0 | V23: Group NOL (year) | Y23: 2014
A24: =ROW() -> 24 | C24: Investment End Date | F24: =DATE(YEAR(F23)+F22,MONTH(F23),DAY(F23)-1) -> 2037-04-30 | G24: =(F24-DATE(YEAR(F24)-1,12,31))/365 -> 0.3287671233 | V24: PTC Deferral Case | Y24: 1
A25: =ROW() -> 25 | O25: Sensitivity | V25: PTC Deferral Calculation | Y25: 1
A26: =ROW() -> 26 | O26: CapEx Sensitivity as a % | S26: %
A27: =ROW() -> 27 | C27: Notes : | I27: Note: Delays are measured from COD | R27: $000 | S27: $/kW | V27: Price Alloc. To equipment - (on/off) | Y27: 0
A28: =ROW() -> 28 | C28: Minimum Pre-COD Period of 12 months is recommended | O28: Capital Costs ($000) | R28: =S28*L8 -> 76000 | S28: 3800 | V28: Price Alloc. To non-CITC - (on/off) | Y28: 0
A29: =ROW() -> 29 | C29: to allow enough room for half-year tax depreciation | O29: Notes : | V29: Notes :
A30: =ROW() -> 30 | O30: Input location for Property Tax & Sales Tax Basis CapEx Allocation | V30: Does not have FPL Group interest links in place yet
A31: =ROW() -> 31
A32: =ROW() -> 32
A33: =ROW() -> 33 | C33: Worksheets Requiring Input Adjustments | I33: =RF!B1 -> RF | O33: =[34]CapEx!$B$1 -> CapEx | Q33: Promote Calculation and Sensitivity | V33: =Scen!B5 -> Scen | X33: Project Characteristics | AB33: =Scen!B5 -> Scen | AD33: Operating Characteristics
A34: =ROW() -> 34
A35: =ROW() -> 35 | C35: =ToD!$B$1 -> TOD | D35: Sunfish, TOD Multipliers | L35: PPA | O35: CITC - $4M TRANSMISSION | V35: Disc Rate | Z35: 0.08 | AB35: Operating Cost Toggles
A36: =ROW() -> 36 | C36: =GA!B1 -> G&A | D36: FOM, VOM, MM, GA, Escalation Rates | I36: Start Date | L36: =F8 -> 2012-05-01 | AB36: Fuel | AE36: VOM | AF36: on/off : | AG36: 1
A37: =ROW() -> 37 | C37: =CapEx!B1 -> CapEx | D37: Capital Budget, Spending Curve | I37: Years | L37: 25 | O37: SPS Promote Calculation | S37: $000 | V37: Plant Nameplate MW | Z37: =L8 -> 20 | AB37: VOM | AE37: VOM | AF37: on/off : | AG37: 1
A38: =ROW() -> 38 | C38: =FS!B1 -> FS | D38: AR/AP Days | I38: Escalation | L38: 0.0008 | O38: Promote - CITC eligible (i.e. net of Tx) : | S38: 31198.39935 | V38: Total Project Bid | Z38: 130 | AB38: FOM - Labor | AE38: FOM | AF38: on/off : | AG38: 1
A39: =ROW() -> 39 | C39: =Alloc!B1 -> Alloc | D39: Depr Allocation - Book, Fed Tax, State Tax | I39: Price Pre-ToD | L39: 148 | O39: Promote - non-CITC (i.e. allocated to Tx) : | S39: 4000 | T39: Check | V39: % of Total Project | Z39: =Z37/Z38 -> 0.1538461538 | AB39: FOM - Other | AE39: FOM | AF39: on/off : | AG39: 1
A40: =ROW() -> 40 | C40: DA | D40: Use MW ramp for "In Svc" date (on/off switches) | O40: Total SPS Promote | S40: =S38+S39 -> 35198.39935 | T40: =(S40*Z$39)-S43 -> 0 | AB40: Major Maint | AE40: FOM | AF40: on/off : | AG40: 1
A41: =ROW() -> 41 | L41: Ramp | O41: 50MW Allocation to Solar : | R41: Solar : | S41: =S38*Z$39 -> 4799.753746 | AB41: Other Operating Costs | AE41: FOM | AF41: on/off : | AG41: 1
A42: =ROW() -> 42 | I42: Escalation | L42: 0 | O42: 50MW Allocation to Tx : | R42: Tx : | S42: =S39*Z$39 -> 615.3846154 | T42: Check | AB42: Property Taxes | AE42: GA | AF42: on/off : | AG42: 1
A43: =ROW() -> 43 | I43: Price Pre-ToD | L43: 148 | O43: Total 50MW Allocation : | R43: 20MW : | S43: =CapEx!V177 -> 5415.138362 | T43: =S43-(Z$39*S40) -> 0 | AB43: Insurance | AE43: GA | AF43: on/off : | AG43: 1
A44: =ROW() -> 44 | V44: Contract Price | Z44: 0 | AB44: Fees | AE44: GA | AF44: on/off : | AG44: 1
A45: =ROW() -> 45 | L45: SREC | O45: $/kW | P45: IRR | Q45: NPV | V45: Growth Factor | Z45: 0 | AB45: Land Royalty | AE45: GA | AF45: on/off : | AG45: 1
A46: =ROW() -> 46 | I46: Start Date | L46: =F8 -> 2012-05-01 | O46: =CapEx!Y5/L8 -> 4070.756918 | P46: =Ret!E37 -> 0.07999999821 | Q46: =Ret!BA32 -> -3.92076177e-05 | AB46: Performance Bond | AE46: GA | AF46: on/off : | AG46: 1
A47: =ROW() -> 47 | I47: Years | L47: 0 | O47: =CapEx!Y146/L8 -> 4113.984116 | V47: PPA Energy Revenue
A48: =ROW() -> 48 | I48: Escalation | L48: 0 | V48: Growth Factor | Z48: =AVERAGE(RF!O53:AL53) -> 0.02100402062
A49: =ROW() -> 49 | I49: Price Pre-ToD | L49: 0 | P49: Tx | V49: Effective Price - $/MWh | Z49: =122.9 -> 122.9 | AB49: Fuel Consumption - mmbtu | AE49: 0
A50: =ROW() -> 50 | O50: =S42 -> 615.3846154 | P50: =O50*4 -> 2461.538462 | Q50: 20MW : | R50: =S43 -> 5415.138362 | S50: =R50*4 -> 21660.55345 | Z50: =ToD!D237 -> 1.169609713
A51: =ROW() -> 51 | P51: =[34]Input!$S$44 -> 1538.461538 | Q51: 50MW : | S51: =[34]Input!$S$45 -> 17927.67796
A52: =ROW() -> 52 | P52: =SUM(P50:P51) -> 4000 | S52: =SUM(S50:S51) -> 39588.23141

Sheet Scen
L2: Input | M2: Base Case | N2: Target PPA | O2: Target PPA | P2: Target PPA | Q2: Target IRR | R2: Target IRR | S2: Target IRR | T2: Tax | U2: Tax | V2: Tax | W2: Tax | X2: Yingli
M3: Base Case | N3: 0.08 | O3: 0.085 | P3: 0.09 | Q3: 0.08 | R3: 0.085 | S3: 0.09 | T3: 100% Promote = CITC | U3: 100% promote = non-CITC and 15yr SL | V3: 100% of Equipment = taxable | W3: State tax basis reduced by 100% | X3: Yingli deg & gen
G4: Active | I4: Scenario | L4: =L106 -> 0 | M4: =M106 -> 0 | N4: =N106 -> 0 | O4: =O106 -> 0 | P4: 0 | Q4: =Q106 -> 0 | R4: =R106 -> 0 | S4: 0 | T4: =T106 -> 0 | U4: =U106 -> 0 | V4: =V106 -> 0 | W4: =W106 -> 0 | X4: =X106 -> 0
B5: Scen | G5: Scenario | I5: Comparison
G6: 0 | I6: 0 | J6: =OFFSET($L1,0,$I$7) -> 0 | L6: 0 | M6: 1 | N6: 2 | O6: 3 | P6: 4 | Q6: 5 | R6: 6 | S6: 7 | T6: 8 | U6: 9 | V6: 10 | W6: 11 | X6: 12
B8: Run Macros and/or Goalseek
B10: Run Macro | F10: Name | G10: =OFFSET($L10,0,$G$6) -> 0
B11: Link to Changing Cell | F11: Link | G11: =OFFSET($L11,0,$G$6) -> 0 | N11: =N51 -> 122.1232366 | O11: 128.1303181 | P11: 134.2589028 | Q11: =Q17 -> 0.08065547759 | R11: 0.08065547759 | S11: 0.08065547759 | T11: =T17 -> 0.08120830343 | U11: =U17 -> 0.0684365735 | V11: 0.07533128265 | W11: =W17 -> 0.08010020409 | X11: =X17 -> 0.07685776273
B12: Link to Goalseek Cell | F12: Link | G12: =OFFSET($L12,0,$G$6) -> 0 | N12: =$G109 -> -0.2194891166 | O12: -0.2194891166 | P12: -0.2194891166 | Q12: =$G109 -> -0.2194891166 | R12: -0.2194891166 | S12: -0.2194891166 | T12: =$G109 -> -0.2194891166 | U12: =$G109 -> -0.2194891166 | V12: -0.2194891166 | W12: =$G109 -> -0.2194891166 | X12: -0.2194891166
B13: Goalseek Value | F13: Value | G13: =OFFSET($L13,0,$G$6) -> 0 | L13: 0 | M13: 0 | N13: 0 | O13: 0 | P13: 0 | Q13: 0 | R13: 0 | S13: 0 | T13: 0 | U13: 0 | V13: 0 | W13: 0 | X13: 0
B15: INPUTS
B17: Disc Rate | F17: WACC : | G17: =OFFSET($L17,0,$G$6) -> 0.08 | I17: =OFFSET($L17,0,$I$6) -> 0.08 | J17: =G17-I17 -> 0 | L17: =Input!Z35 -> 0.08 | M17: =$L17 -> 0.08 | N17: 0.08 | O17: 0.085 | P17: 0.09 | Q17: 0.08065547759 | R17: 0.08065547759 | S17: 0.08065547759 | T17: 0.08120830343 | U17: 0.0684365735 | V17: 0.07533128265 | W17: 0.08010020409 | X17: 0.07685776273
B19: Federal Tax Inputs
B20: Group NOL | F20: year | G20: =OFFSET($L20,0,$G$6) -> 2014 | I20: =OFFSET($L20,0,$I$6) -> 2014 | J20: =G20-I20 -> 0 | L20: =Input!Y23 -> 2014 | M20: =$L20 -> 2014 | N20: 2014 | O20: 2014 | P20: 2014 | Q20: 2014 | R20: 2014 | S20: 2014 | T20: 2014 | U20: 2014 | V20: 2014 | W20: 2014 | X20: 2014
B21: Group NOL | F21: on/off : | G21: =OFFSET($L21,0,$G$6) -> 1 | I21: =OFFSET($L21,0,$I$6) -> 1 | J21: =G21-I21 -> 0 | L21: =Input!Y22 -> 1 | M21: =$L21 -> 1 | N21: =$L21 -> 1 | O21: 1 | P21: 1 | Q21: =$L21 -> 1 | R21: 1 | S21: 1 | T21: =$L21 -> 1 | U21: 1 | V21: 1 | W21: 1 | X21: =$L21 -> 1
B22: Federal Income Tax | G22: =OFFSET($L22,0,$G$6) -> 0.35 | I22: =OFFSET($L22,0,$I$6) -> 0.35 | J22: =G22-I22 -> 0 | L22: =Input!Y8 -> 0.35 | M22: =$L22 -> 0.35 | N22: =$L22 -> 0.35 | O22: 0.35 | P22: 0.35 | Q22: =$L22 -> 0.35 | R22: 0.35 | S22: 0.35 | T22: 0.35 | U22: 0.35 | V22: 0.35 | W22: 0.35 | X22: =$L22 -> 0.35
B24: State Tax
B25: State NOL | F25: year | G25: =OFFSET($L25,0,$G$6) -> 2014 | I25: =OFFSET($L25,0,$I$6) -> 2014 | J25: =G25-I25 -> 0 | L25: =Input!Y11 -> 2014 | M25: =$L25 -> 2014 | N25: 2014 | O25: 2014 | P25: 2014 | Q25: 2014 | R25: 2014 | S25: 2014 | T25: 2014 | U25: 2014 | V25: 2014 | W25: 2014 | X25: 2014
B26: State NOL | F26: on/off : | G26: =OFFSET($L26,0,$G$6) -> 1 | I26: =OFFSET($L26,0,$I$6) -> 1 | J26: =G26-I26 -> 0 | L26: =Input!Y10 -> 1 | M26: =$L26 -> 1 | N26: =$L26 -> 1 | O26: 1 | P26: 1 | Q26: =$L26 -> 1 | R26: 1 | S26: 1 | T26: =$L26 -> 1 | U26: =$L26 -> 1 | V26: =$L26 -> 1 | W26: =$L26 -> 1 | X26: =$L26 -> 1
B27: State Income Tax | G27: 0.042 | I27: 0.042 | J27: =G27-I27 -> 0 | L27: =Input!X8 -> 0.042 | M27: =$L27 -> 0.042 | N27: 0.042 | O27: 0.042 | P27: 0.042 | Q27: 0.042 | R27: 0.042 | S27: 0.042 | T27: 0.042 | U27: 0.042 | V27: 0.042 | W27: 0.042 | X27: 0.042
B28: State Tax Credit | F28: on/off : | G28: =OFFSET($L28,0,$G$6) -> 0 | I28: =OFFSET($L28,0,$I$6) -> 0 | J28: =G28-I28 -> 0 | L28: =Input!Y12 -> 0 | M28: =$L28 -> 0 | N28: =$L28 -> 0 | O28: 0 | P28: 0 | Q28: =$L28 -> 0 | R28: 0 | S28: 0 | T28: =$L28 -> 0 | U28: =$L28 -> 0 | V28: =$L28 -> 0 | W28: =$L28 -> 0 | X28: =$L28 -> 0
B29: State Tax Credit | F29: year: | G29: 0 | I29: 0 | J29: 0 | L29: =Input!Y13 -> 0 | M29: 0 | N29: 0 | O29: 0 | P29: 0 | Q29: 0 | R29: 0 | S29: 0 | T29: 0 | U29: 0 | V29: 0 | W29: 0 | X29: 0
B30: State Tax Rate | F30: Rate: | G30: 0 | I30: 0 | J30: 0 | L30: =Input!Y14 -> 0 | M30: 0 | N30: 0 | O30: 0 | P30: 0 | Q30: 0 | R30: 0 | S30: 0 | T30: 0 | U30: 0 | V30: 0 | W30: 0 | X30: 0
B31: Sales Tax Sensitivity | G31: 0 | I31: 0 | J31: 0 | L31: =Input!Y15 -> 0 | M31: 0 | N31: 0 | O31: 0 | P31: 0 | Q31: 0 | R31: 0 | S31: 0 | T31: 0 | U31: 0 | V31: 1 | W31: 0 | X31: 0
B32: State Basis Sens. (on/off) | G32: 0 | I32: 0 | J32: 0 | L32: =Input!Y16 -> 0 | M32: 0 | N32: 0 | O32: 0 | P32: 0 | Q32: 0 | R32: 0 | S32: 0 | T32: 0 | U32: 0 | V32: 0 | W32: 1 | X32: 0
B33: Purchase Price Allocation (equipment) Tax Sensitivity | G33: 0 | I33: 0 | J33: 0 | L33: =Input!Y27 -> 0 | M33: 0 | N33: 0 | O33: 0 | P33: 0 | Q33: 0 | R33: 0 | S33: 0 | T33: 1 | U33: 0 | V33: 0 | W33: 0 | X33: 0
B34: Purchase Price Allocation (non-CITC) Tax Sensitivity | G34: 0 | I34: 0 | J34: 0 | L34: =Input!Y28 -> 0 | M34: 0 | N34: 0 | O34: 0 | P34: 0 | Q34: 0 | R34: 0 | S34: 0 | T34: 0 | U34: 1 | V34: 0 | W34: 0 | X34: 0
B36: PTC
B37: PTC Deferral Case | F37: Case : | G37: =OFFSET($L37,0,$G$6) -> 1 | I37: =OFFSET($L37,0,$I$6) -> 1 | J37: =G37-I37 -> 0 | L37: =Input!Y24 -> 1 | M37: =$L37 -> 1 | N37: 1 | O37: 1 | P37: 1 | Q37: 1 | R37: 1 | S37: 1 | T37: 1 | U37: 1 | V37: 1 | W37: 1 | X37: 1
B38: =FS!C191 -> PTC Deferral Calculation | G38: =OFFSET($L38,0,$G$6) -> 1 | I38: =OFFSET($L38,0,$I$6) -> 1 | J38: =G38-I38 -> 0 | L38: =Input!Y25 -> 1 | M38: 1 | N38: 1 | O38: 1 | P38: 1 | Q38: 1 | R38: 1 | S38: 1 | T38: 1 | U38: 1 | V38: 1 | W38: 1 | X38: 1
B39: Regular PTC Rate | G39: =OFFSET($L39,0,$G$6) -> 0.15 | I39: =OFFSET($L39,0,$I$6) -> 0.15 | J39: =G39-I39 -> 0 | L39: =Input!Y19 -> 0.15 | M39: =$L39 -> 0.15 | N39: 0.15 | O39: 0.15 | P39: 0.15 | Q39: 0.15 | R39: 0.15 | S39: 0.15 | T39: 0.15 | U39: 0.15 | V39: 0.15 | W39: 0.15 | X39: 0.15
B40: Super PTC Rate | G40: 0.2625 | I40: 0.2625 | J40: 0 | L40: =Input!Y20 -> 0.2625 | M40: 0.2625 | N40: 0.2625 | O40: 0.2625 | P40: 0.2625 | Q40: 0.2625 | R40: 0.2625 | S40: 0.2625 | T40: 0.2625 | U40: 0.2625 | V40: 0.2625 | W40: 0.2625 | X40: 0.2625
B41: Regular PTC Year | G41: 2018 | I41: 2018 | J41: =G41-I41 -> 0 | L41: =Input!Z19 -> 2018 | M41: 2018 | N41: 2018 | O41: 2018 | P41: 2018 | Q41: 2018 | R41: 2018 | S41: 2018 | T41: 2018 | U41: 2018 | V41: 2018 | W41: 2018 | X41: 2018
B42: Super PTC Year | G42: 2016 | I42: 2016 | J42: 0 | L42: =Input!Z20 -> 2016 | M42: 2016 | N42: 2016 | O42: 2016 | P42: 2016 | Q42: 2016 | R42: 2016 | S42: 2016 | T42: 2016 | U42: 2016 | V42: 2016 | W42: 2016 | X42: 2016
B44: PPA Capacity Revenue
B45: Plant Nameplate MW | F45: MW : | G45: =OFFSET($L45,0,$G$6) -> 20 | I45: =OFFSET($L45,0,$I$6) -> 20 | J45: =G45-I45 -> 0 | L45: =Input!L8 -> 20 | M45: =$L45 -> 20 | N45: 20 | O45: 20 | P45: 20 | Q45: 20 | R45: 20 | S45: 20 | T45: 20 | U45: 20 | V45: 20 | W45: 20 | X45: 20
B46: Contract Price | F46: $/kWyr : | G46: =OFFSET($L46,0,$G$6) -> 0 | I46: =OFFSET($L46,0,$I$6) -> 0 | J46: =G46-I46 -> 0 | L46: =Input!Z44 -> 0 | M46: 0 | N46: 0 | O46: 0 | P46: 0 | Q46: 0 | R46: 0 | S46: 0 | T46: 0 | U46: 0 | V46: 0 | W46: 0 | X46: 0
B47: Growth Factor | F47: G : | G47: =OFFSET($L47,0,$G$6) -> 0 | I47: =OFFSET($L47,0,$I$6) -> 0 | J47: =G47-I47 -> 0 | L47: =Input!Z45 -> 0 | M47: 0 | N47: 0 | O47: 0 | P47: 0 | Q47: 0 | R47: 0 | S47: 0 | T47: 0 | U47: 0 | V47: 0 | W47: 0 | X47: 0
B49: PPA Energy Revenue | I49: =OFFSET($L49,0,$I$6) -> 0 | J49: =G49-I49 -> 0
B50: Growth Factor | F50: G : | G50: =OFFSET($L50,0,$G$6) -> 0.02100402062 | I50: =OFFSET($L50,0,$I$6) -> 0.02100402062 | J50: =G50-I50 -> 0 | L50: =Input!Z48 -> 0.02100402062 | M50: =$L50 -> 0.02100402062 | N50: 0.02100402062 | O50: 0.02100402062 | P50: 0.02100402062 | Q50: 0.02100402062 | R50: 0.02100402062 | S50: 0.02100402062 | T50: 0.02100402062 | U50: 0.02100402062 | V50: 0.02100402062 | W50: 0.02100402062 | X50: 0.02100402062
B51: Effective Price - $/MWh | F51: $/MWh : | G51: =OFFSET($L51,0,$G$6) -> 122.9 | I51: =OFFSET($L51,0,$I$6) -> 122.9 | J51: =G51-I51 -> 0 | L51: =Input!Z49 -> 122.9 | M51: 122.9 | N51: 122.1232366 | O51: 128.1303181 | P51: 134.2589028 | Q51: 122.9 | R51: 122.9 | S51: 122.9 | T51: 122.9 | U51: 122.9 | V51: 122.9 | W51: 122.9 | X51: 122.9
B52: TOD Adjustment Multiple | F52: TOD: | G52: =OFFSET($L52,0,$G$6) -> 1.169609713 | I52: =OFFSET($L52,0,$I$6) -> 1.169609713 | J52: =G52-I52 -> 0 | L52: =Input!Z50 -> 1.169609713 | M52: 1.169609713 | N52: 1.169609713 | O52: 1.169609713 | P52: 1.169609713 | Q52: 1.169609713 | R52: 1.169609713 | S52: 1.169609713 | T52: 1.169609713 | U52: 1.169609713 | V52: 1.169609713 | W52: 1.169609713 | X52: 1.169609713
B54: PPA Term | G54: =OFFSET($L54,0,$G$6) -> 25 | I54: =OFFSET($L54,0,$I$6) -> 25 | J54: =G54-I54 -> 0 | L54: =Input!F22 -> 25 | M54: 25 | N54: 25 | O54: 25 | P54: 25 | Q54: 25 | R54: 25 | S54: 25 | T54: 25 | U54: 25 | V54: 25 | W54: 25 | X54: 25
B55: Merchant Term | G55: =OFFSET($L55,0,$G$6) -> 0 | I55: =OFFSET($L55,0,$I$6) -> 0 | J55: =G55-I55 -> 0 | L55: =Input!G22 -> 0 | M55: 0 | N55: 0 | O55: 0 | P55: 0 | Q55: 0 | R55: 0 | S55: 0 | T55: 0 | U55: 0 | V55: 0 | W55: 0 | X55: 0
B56: Fuel Consumption - mmbtu | G56: =OFFSET($L56,0,$G$6) -> 0 | I56: =OFFSET($L56,0,$I$6) -> 0 | J56: =G56-I56 -> 0 | L56: =Input!AE49 -> 0 | M56: 0 | N56: 0 | O56: 0 | P56: 0 | Q56: 0 | R56: 0 | S56: 0 | T56: 0 | U56: 0 | V56: 0 | W56: 0 | X56: 0
B59: Promote
B60: Total Promote : | G60: =OFFSET($L60,0,$G$6) -> 31198.39935 | I60: =OFFSET($L60,0,$I$6) -> 31198.39935 | J60: =G60-I60 -> 0 | L60: =Input!S38 -> 31198.39935 | M60: =$L60 -> 31198.39935 | N60: 31198.39935 | O60: 31198.39935 | P60: 31198.39935 | Q60: 31198.39935 | R60: 31198.39935 | S60: 31198.39935 | T60: 31198.39935 | U60: 31198.39935 | V60: 31198.39935 | W60: 31198.39935 | X60: 31198.39935
B61: % of total allocated to a 20MW Project | G61: 4799.753746 | I61: 4799.753746 | J61: =G61-I61 -> 0 | L61: =Input!S41 -> 4799.753746 | M61: 4799.753746 | N61: 4799.753746 | O61: 4799.753746 | P61: 4799.753746 | Q61: 4799.753746 | R61: 4799.753746 | S61: 4799.753746 | T61: 4799.753746 | U61: 4799.753746 | V61: 4799.753746 | W61: 4799.753746 | X61: 4799.753746
B62: Total Allocated to Tx (i.e. no CITC) : | G62: 4000 | I62: 4000 | J62: 0 | L62: =Input!S39 -> 4000 | M62: 4000 | N62: 4000 | O62: 4000 | P62: 4000 | Q62: 4000 | R62: 4000 | S62: 4000 | T62: 4000 | U62: 4000 | V62: 4000 | W62: 4000 | X62: 4000
B63: % of Tx allocated to a 20MW Project | G63: 615.3846154 | I63: 615.3846154 | J63: 0 | L63: =Input!S42 -> 615.3846154 | M63: 615.3846154 | N63: 615.3846154 | O63: 615.3846154 | P63: 615.3846154 | Q63: 615.3846154 | R63: 615.3846154 | S63: 615.3846154 | T63: 615.3846154 | U63: 615.3846154 | V63: 615.3846154 | W63: 615.3846154 | X63: 615.3846154
B66: Capital Costs - | G66: =OFFSET($L66,0,$G$6) -> 0
B67: Land Costs | G67: 0 | I67: =OFFSET($L67,0,$I$6) -> 0 | J67: =G67-I67 -> 0 | L67: =Input!R14 -> 0 | M67: =$L67 -> 0 | N67: 0 | O67: 0 | P67: 0 | Q67: 0 | R67: 0 | S67: 0 | T67: 0 | U67: 0 | V67: 0 | W67: 0 | X67: 0
B68: Development Costs | G68: 884.7286371 | I68: 884.7286371 | J68: 0 | K68: waiting | L68: =Input!R15 -> 884.7286371 | M68: 884.7286371 | N68: 884.7286371 | O68: 884.7286371 | P68: 884.7286371 | Q68: 884.7286371 | R68: 884.7286371 | S68: 884.7286371 | T68: 884.7286371 | U68: 884.7286371 | V68: 884.7286371 | W68: 884.7286371 | X68: 884.7286371
B69: Equipment | G69: 53748.25032 | I69: 53748.25032 | J69: 0 | K69: for E&C | L69: =Input!R16 -> 53748.25032 | M69: 53748.25032 | N69: 53748.25032 | O69: 53748.25032 | P69: 53748.25032 | Q69: 53748.25032 | R69: 53748.25032 | S69: 53748.25032 | T69: 53748.25032 | U69: 53748.25032 | V69: 53748.25032 | W69: 53748.25032 | X69: 53748.25032
B70: Construction | G70: 18172.32621 | I70: 18172.32621 | J70: 0 | K70: data | L70: =Input!R17 -> 18172.32621 | M70: 18172.32621 | N70: 18172.32621 | O70: 18172.32621 | P70: 18172.32621 | Q70: 18172.32621 | R70: 18172.32621 | S70: 18172.32621 | T70: 18172.32621 | U70: 18172.32621 | V70: 18172.32621 | W70: 18172.32621 | X70: 18172.32621
B71: Transmission | G71: 1857.543622 | I71: 1857.543622 | J71: 0 | L71: =Input!R18 -> 1857.543622 | M71: 1857.543622 | N71: 1857.543622 | O71: 1857.543622 | P71: 1857.543622 | Q71: 1857.543622 | R71: 1857.543622 | S71: 1857.543622 | T71: 1857.543622 | U71: 1857.543622 | V71: 1857.543622 | W71: 1857.543622 | X71: 1857.543622
B72: Indirects | G72: 1139.866733 | I72: 1139.866733 | J72: 0 | L72: =Input!R19 -> 1139.866733 | M72: 1139.866733 | N72: 1139.866733 | O72: 1139.866733 | P72: 1139.866733 | Q72: 1139.866733 | R72: 1139.866733 | S72: 1139.866733 | T72: 1139.866733 | U72: 1139.866733 | V72: 1139.866733 | W72: 1139.866733 | X72: 1139.866733
B73: Startup | G73: 1034.83687 | I73: 1034.83687 | J73: 0 | L73: =Input!R20 -> 1034.83687 | M73: 1034.83687 | N73: 1034.83687 | O73: 1034.83687 | P73: 1034.83687 | Q73: 1034.83687 | R73: 1034.83687 | S73: 1034.83687 | T73: 1034.83687 | U73: 1034.83687 | V73: 1034.83687 | W73: 1034.83687 | X73: 1034.83687
B74: Other | G74: 2100.345785 | I74: 2100.345785 | J74: 0 | L74: =Input!R21 -> 2100.345785 | M74: 2100.345785 | N74: 2100.345785 | O74: 2100.345785 | P74: 2100.345785 | Q74: 2100.345785 | R74: 2100.345785 | S74: 2100.345785 | T74: 2100.345785 | U74: 2100.345785 | V74: 2100.345785 | W74: 2100.345785 | X74: 2100.345785
B75: Contingency | G75: 2477.240184 | I75: 2477.240184 | J75: 0 | L75: =Input!R22 -> 2477.240184 | M75: 2477.240184 | N75: 2477.240184 | O75: 2477.240184 | P75: 2477.240184 | Q75: 2477.240184 | R75: 2477.240184 | S75: 2477.240184 | T75: 2477.240184 | U75: 2477.240184 | V75: 2477.240184 | W75: 2477.240184 | X75: 2477.240184
B78: CapEx Sensitivity as a % | F78: Percent : | G78: =OFFSET($L78,0,$G$6) -> 0 | I78: 0 | J78: =G78-I78 -> 0 | L78: =Input!T30 -> 0 | M78: 0 | N78: 0 | O78: 0 | P78: 0 | Q78: 0 | R78: 0 | S78: 0 | T78: 0 | U78: 0 | V78: 0 | W78: 0 | X78: 0
B79: CapEx Sensitivity as $/KW | F79: $/kW : | G79: 3800 | I79: 3800 | J79: 0 | L79: =Input!S28 -> 3800 | M79: 3800 | N79: 3800 | O79: 3800 | P79: 3800 | Q79: 3800 | R79: 3800 | S79: 3800 | T79: 3800 | U79: 3800 | V79: 3800 | W79: 3800 | X79: 3800
B82: Operating Cost Toggles
B83: Fuel | E83: VOM | F83: on/off : | G83: =OFFSET($L83,0,$G$6) -> 1 | I83: =OFFSET($L83,0,$I$6) -> 1 | J83: =G83-I83 -> 0 | L83: =Input!AG36 -> 1 | M83: =$L83 -> 1 | N83: 1 | O83: 1 | P83: 1 | Q83: 1 | R83: 1 | S83: 1 | T83: 1 | U83: 1 | V83: 1 | W83: 1 | X83: 1
B84: VOM | E84: VOM | F84: on/off : | G84: =OFFSET($L84,0,$G$6) -> 1 | I84: =OFFSET($L84,0,$I$6) -> 1 | J84: =G84-I84 -> 0 | L84: =Input!AG37 -> 1 | M84: 1 | N84: 1 | O84: 1 | P84: 1 | Q84: 1 | R84: 1 | S84: 1 | T84: 1 | U84: 1 | V84: 1 | W84: 1 | X84: 1
B85: FOM - Labor | E85: FOM | F85: on/off : | G85: 1 | I85: =OFFSET($L85,0,$I$6) -> 1 | J85: =G85-I85 -> 0 | L85: =Input!AG38 -> 1 | M85: 1 | N85: 1 | O85: 1 | P85: 1 | Q85: 1 | R85: 1 | S85: 1 | T85: 1 | U85: 1 | V85: 1 | W85: 1 | X85: 1
B86: FOM - Other | E86: FOM | F86: on/off : | G86: 1 | I86: 1 | J86: 0 | L86: =Input!AG39 -> 1 | M86: 1 | N86: 1 | O86: 1 | P86: 1 | Q86: 1 | R86: 1 | S86: 1 | T86: 1 | U86: 1 | V86: 1 | W86: 1 | X86: 1
B87: Major Maint | E87: FOM | F87: on/off : | G87: 1 | I87: 1 | J87: 0 | L87: =Input!AG40 -> 1 | M87: 1 | N87: 1 | O87: 1 | P87: 1 | Q87: 1 | R87: 1 | S87: 1 | T87: 1 | U87: 1 | V87: 1 | W87: 1 | X87: 1
B88: Other Operating Costs | E88: FOM | F88: on/off : | G88: 1 | I88: 1 | J88: 0 | L88: =Input!AG41 -> 1 | M88: 1 | N88: 1 | O88: 1 | P88: 1 | Q88: 1 | R88: 1 | S88: 1 | T88: 1 | U88: 1 | V88: 1 | W88: 1 | X88: 1
B89: Property Taxes | E89: GA | F89: on/off : | G89: 1 | I89: 1 | J89: 0 | L89: =Input!AG42 -> 1 | M89: 1 | N89: 1 | O89: 1 | P89: 1 | Q89: 1 | R89: 1 | S89: 1 | T89: 1 | U89: 1 | V89: 1 | W89: 1 | X89: 1
B90: Insurance | E90: GA | F90: on/off : | G90: 1 | I90: 1 | J90: 0 | L90: =Input!AG43 -> 1 | M90: 1 | N90: 1 | O90: 1 | P90: 1 | Q90: 1 | R90: 1 | S90: 1 | T90: 1 | U90: 1 | V90: 1 | W90: 1 | X90: 1
B91: Fees | E91: GA | F91: on/off : | G91: 1 | I91: 1 | J91: 0 | L91: =Input!AG44 -> 1 | M91: 1 | N91: 1 | O91: 1 | P91: 1 | Q91: 1 | R91: 1 | S91: 1 | T91: 1 | U91: 1 | V91: 1 | W91: 1 | X91: 1
B92: Land Royalty | E92: GA | F92: on/off : | G92: 1 | I92: 1 | J92: 0 | L92: =Input!AG45 -> 1 | M92: 1 | N92: 1 | O92: 1 | P92: 1 | Q92: 1 | R92: 1 | S92: 1 | T92: 1 | U92: 1 | V92: 1 | W92: 1 | X92: 1
B93: Performance Bond | E93: GA | F93: on/off : | G93: 1 | I93: 1 | J93: 0 | L93: =Input!AG46 -> 1 | M93: 1 | N93: 1 | O93: 1 | P93: 1 | Q93: 1 | R93: 1 | S93: 1 | T93: 1 | U93: 1 | V93: 1 | W93: 1 | X93: 1
B95: Generation
B96: Degradation - Yingli Sensitivity | G96: =OFFSET($L96,0,$G$6) -> 0 | I96: 0 | J96: =G96-I96 -> 0 | L96: =Input!L16 -> 0 | M96: =$L96 -> 0 | N96: 0 | O96: 0 | P96: 0 | Q96: 0 | R96: 0 | S96: 0 | T96: 0 | U96: 0 | V96: 0 | W96: 0 | X96: 1
B97: Yingli 50MW Generation Sensitivity | G97: =OFFSET($L97,0,$G$6) -> 0 | I97: =OFFSET($L97,0,$I$6) -> 0 | J97: =G97-I97 -> 0 | L97: =Input!L13 -> 0 | M97: =$L97 -> 0 | N97: 0 | O97: 0 | P97: 0 | Q97: 0 | R97: 0 | S97: 0 | T97: 0 | U97: 0 | V97: 0 | W97: 0 | X97: 1
B98: Line Loss | G98: =OFFSET($L98,0,$G$6) -> 0 | I98: 0 | J98: =G98-I98 -> 0 | L98: =Input!K23 -> 0 | M98: 0 | N98: 0 | O98: 0 | P98: 0 | Q98: 0 | R98: 0 | S98: 0 | T98: 0 | U98: 0 | V98: 0 | W98: 0 | X98: 0
B99: EFOR | G99: 0.013 | I99: 0.013 | J99: =G99-I99 -> 0 | L99: =Input!K19 -> 0.013 | M99: 0.013 | N99: 0.013 | O99: 0.013 | P99: 0.013 | Q99: 0.013 | R99: 0.013 | S99: 0.013 | T99: 0.013 | U99: 0.013 | V99: 0.013 | W99: 0.013 | X99: 0.013
B100: EPOF | G100: 1 | I100: 1 | J100: =G100-I100 -> 0 | L100: =Input!K20 -> 1 | M100: 1 | N100: 1 | O100: 1 | P100: 1 | Q100: 1 | R100: 1 | S100: 1 | T100: 1 | U100: 1 | V100: 1 | W100: 1 | X100: 1
I102: 0 | J102: 0
I103: 0 | J103: 0
B106: RESULTS
B108: IRR | G108: =FS!$E$240 -> 0.07999999821 | I108: =OFFSET($L108,0,$I$6) -> 0.08135735095 | J108: =G108-I108 -> -0.001357352734 | L108: 0.08135735095 | M108: 0.08135735095 | N108: 0.080706653 | O108: 0.08567472398 | P108: 0.09064384997 | Q108: 0.08135735095 | R108: 0.08135735095 | S108: 0.08135735095 | T108: 0.08190592229 | U108: 0.0692173332 | V108: 0.07606717646 | W108: 0.08080759346 | X108: 0.07758440673
B109: NPV | F109: =FS!$F$233 -> 0.08 | G109: =FS!$F$239 -> -0.2194891166 | H109: ??? | I109: -2.564546742 | J109: 2.345057626 | L109: -2.564546742 | M109: -2.564546742 | N109: -1.159605745e-14 | O109: 7.844391803e-15 | P109: 1.250555215e-15 | Q109: -0.0001676031131 | R109: -0.0001676031131 | S109: -0.0001676031131 | T109: -0.000168011379 | U109: -0.0003643716045 | V109: -8.653665919e-05 | W109: -0.0001667381561 | X109: -0.0001628521864
B110: NCF | G110: =ToD!E73 -> 0.2347559225 | I110: 0.2347559225 | J110: 0 | L110: 0.2347559225 | M110: 0.2347559225 | N110: 0.2347559225 | O110: 0.2347559225 | P110: 0.2347559225 | Q110: 0.2347559225 | R110: 0.2347559225 | S110: 0.2347559225 | T110: 0.2347559225 | U110: 0.2347559225 | V110: 0.2347559225 | W110: 0.2347559225 | X110: 0.2271701987
I111: 0 | J111: 0
I112: 0 | J112: 0
B113: CapEx | F113: $M : | G113: =CapEx!Y146/1000 -> 82.27968233 | I113: 80.80877038 | J113: 1.470911948 | L113: 80.80877038 | M113: 80.80877038 | N113: 80.80877038 | O113: 80.80877038 | P113: 80.80877038 | Q113: 80.80877038 | R113: 80.80877038 | S113: 80.80877038 | T113: 80.77069346 | U113: 87.9968473 | V113: 85.7962113 | W113: 80.80877038 | X113: 80.80877038
B114: CapEx | F114: $/kW : | G114: =G113/G45*1000 -> 4113.984116 | I114: 4040.438519 | J114: 73.5455974 | L114: 4040.438519 | M114: 4040.438519 | N114: 4040.438519 | O114: 4040.438519 | P114: 4040.438519 | Q114: 4040.438519 | R114: 4040.438519 | S114: 4040.438519 | T114: 4038.534673 | U114: 4399.842365 | V114: 4289.810565 | W114: 4040.438519 | X114: 4040.438519
B115: Grant | F115: $M : | G115: =Alloc!R50/1000 -> 23.12847452 | I115: 23.21164599 | J115: -0.08317147028 | L115: 23.21164599 | M115: 23.21164599 | N115: 23.21164599 | O115: 23.21164599 | P115: 23.21164599 | Q115: 23.21164599 | R115: 23.21164599 | S115: 23.21164599 | T115: 23.39626138 | U115: 23.21164599 | V115: 24.70787827 | W115: 23.21164599 | X115: 23.21164599
I116: 0 | J116: 0

Sheet FS
B1: FS | H1: =H13 -> 0 | I1: 0 | J1: 0 | K1: 0 | L1: 0 | M1: 0 | N1: 0.6693989071 | O1: 1 | P1: 1 | Q1: 1 | R1: 1 | S1: 1 | T1: 1 | U1: 1 | V1: 1 | W1: 1 | X1: 1 | Y1: 1 | Z1: 1 | AA1: 1 | AB1: 1 | AC1: 1 | AD1: 1 | AE1: 1 | AF1: 1 | AG1: 1 | AH1: 1 | AI1: 1 | AJ1: 1 | AK1: 1 | AL1: 1 | AM1: 0.3306010929 | AN1: 0 | AO1: 0 | AP1: 0 | AQ1: 0 | AR1: 0 | AS1: 0 | AT1: 0 | AU1: 0 | AV1: 0 | AW1: 0 | AX1: 0 | AY1: 0 | AZ1: 0 | BA1: 0
H2: =H$11 -> 2007-06-30 | I2: 2008-06-30 | J2: 2009-06-30 | K2: 2010-06-30 | L2: 2011-10-01 | M2: 2012-05-01 | N2: 2012-09-01 | O2: 2013-08-15 | P2: 2014-08-15 | Q2: 2015-08-15 | R2: 2016-08-15 | S2: 2017-08-15 | T2: 2018-08-15 | U2: 2019-08-15 | V2: 2020-08-15 | W2: 2021-08-15 | X2: 2022-08-15 | Y2: 2023-08-15 | Z2: 2024-08-15 | AA2: 2025-08-15 | AB2: 2026-08-15 | AC2: 2027-08-15 | AD2: 2028-08-15 | AE2: 2029-08-15 | AF2: 2030-08-15 | AG2: 2031-08-15 | AH2: 2032-08-15 | AI2: 2033-08-15 | AJ2: 2034-08-15 | AK2: 2035-08-15 | AL2: 2036-08-15 | AM2: 2037-08-15 | AN2: 2038-08-15 | AO2: 2039-08-15 | AP2: 2040-08-15 | AQ2: 2041-08-15 | AR2: 2042-08-15 | AS2: 2043-08-15 | AT2: 2044-08-15 | AU2: 2045-08-15 | AV2: 2046-08-15 | AW2: 2047-08-15 | AX2: 2048-08-15 | AY2: 2049-08-15 | AZ2: 2050-08-15 | BA2: 2051-08-15
H3: =H$7 -> -5 | I3: -4 | J3: -3 | K3: -2 | L3: -1 | M3: 0 | N3: 1 | O3: 2 | P3: 3 | Q3: 4 | R3: 5 | S3: 6 | T3: 7 | U3: 8 | V3: 9 | W3: 10 | X3: 11 | Y3: 12 | Z3: 13 | AA3: 14 | AB3: 15 | AC3: 16 | AD3: 17 | AE3: 18 | AF3: 19 | AG3: 20 | AH3: 21 | AI3: 22 | AJ3: 23 | AK3: 24 | AL3: 25 | AM3: 26 | AN3: 27 | AO3: 28 | AP3: 29 | AQ3: 30 | AR3: 31 | AS3: 32 | AT3: 33 | AU3: 34 | AV3: 35 | AW3: 36 | AX3: 37 | AY3: 38 | AZ3: 39 | BA3: 40
H4: =H$8 -> 2007 | I4: 2008 | J4: 2009 | K4: 2010 | L4: 2011 | M4: 2012 | N4: 2012 | O4: 2013 | P4: 2014 | Q4: 2015 | R4: 2016 | S4: 2017 | T4: 2018 | U4: 2019 | V4: 2020 | W4: 2021 | X4: 2022 | Y4: 2023 | Z4: 2024 | AA4: 2025 | AB4: 2026 | AC4: 2027 | AD4: 2028 | AE4: 2029 | AF4: 2030 | AG4: 2031 | AH4: 2032 | AI4: 2033 | AJ4: 2034 | AK4: 2035 | AL4: 2036 | AM4: 2037 | AN4: 2038 | AO4: 2039 | AP4: 2040 | AQ4: 2041 | AR4: 2042 | AS4: 2043 | AT4: 2044 | AU4: 2045 | AV4: 2046 | AW4: 2047 | AX4: 2048 | AY4: 2049 | AZ4: 2050 | BA4: 2051
B5: PERIOD
E7: COD | G7: Period : | H7: =I7-1 -> -5 | I7: -4 | J7: -3 | K7: -2 | L7: -1 | M7: 0 | N7: =M7+1 -> 1 | O7: 2 | P7: 3 | Q7: 4 | R7: 5 | S7: 6 | T7: 7 | U7: 8 | V7: 9 | W7: 10 | X7: 11 | Y7: 12 | Z7: 13 | AA7: 14 | AB7: 15 | AC7: 16 | AD7: 17 | AE7: 18 | AF7: 19 | AG7: 20 | AH7: 21 | AI7: 22 | AJ7: 23 | AK7: 24 | AL7: 25 | AM7: 26 | AN7: 27 | AO7: 28 | AP7: 29 | AQ7: 30 | AR7: 31 | AS7: 32 | AT7: 33 | AU7: 34 | AV7: 35 | AW7: 36 | AX7: 37 | AY7: 38 | AZ7: 39 | BA7: 40
E8: =Input!F8 -> 2012-05-01 | G8: Year : | H8: 2007 | I8: 2008 | J8: 2009 | K8: 2010 | L8: 2011 | M8: =YEAR(E8) -> 2012 | N8: 2012 | O8: =N8+1 -> 2013 | P8: 2014 | Q8: 2015 | R8: 2016 | S8: 2017 | T8: 2018 | U8: 2019 | V8: 2020 | W8: 2021 | X8: 2022 | Y8: 2023 | Z8: 2024 | AA8: 2025 | AB8: 2026 | AC8: 2027 | AD8: 2028 | AE8: 2029 | AF8: 2030 | AG8: 2031 | AH8: 2032 | AI8: 2033 | AJ8: 2034 | AK8: 2035 | AL8: 2036 | AM8: 2037 | AN8: 2038 | AO8: 2039 | AP8: 2040 | AQ8: 2041 | AR8: 2042 | AS8: 2043 | AT8: 2044 | AU8: 2045 | AV8: 2046 | AW8: 2047 | AX8: 2048 | AY8: 2049 | AZ8: 2050 | BA8: 2051
G9: Month : | H9: 6 | I9: 6 | J9: 6 | K9: 6 | L9: 10 | M9: =MONTH(E8) -> 5 | N9: =M9+4 -> 9 | O9: 8 | P9: =O9 -> 8 | Q9: 8 | R9: 8 | S9: 8 | T9: 8 | U9: 8 | V9: 8 | W9: 8 | X9: 8 | Y9: 8 | Z9: 8 | AA9: 8 | AB9: 8 | AC9: 8 | AD9: 8 | AE9: 8 | AF9: 8 | AG9: 8 | AH9: 8 | AI9: 8 | AJ9: 8 | AK9: 8 | AL9: 8 | AM9: 8 | AN9: 8 | AO9: 8 | AP9: 8 | AQ9: 8 | AR9: 8 | AS9: 8 | AT9: 8 | AU9: 8 | AV9: 8 | AW9: 8 | AX9: 8 | AY9: 8 | AZ9: 8 | BA9: 8
G10: Day : | H10: 30 | I10: 30 | J10: 30 | K10: 30 | L10: 1 | M10: =DAY(E8) -> 1 | N10: =M10 -> 1 | O10: 15 | P10: =O10 -> 15 | Q10: 15 | R10: 15 | S10: 15 | T10: 15 | U10: 15 | V10: 15 | W10: 15 | X10: 15 | Y10: 15 | Z10: 15 | AA10: 15 | AB10: 15 | AC10: 15 | AD10: 15 | AE10: 15 | AF10: 15 | AG10: 15 | AH10: 15 | AI10: 15 | AJ10: 15 | AK10: 15 | AL10: 15 | AM10: 15 | AN10: 15 | AO10: 15 | AP10: 15 | AQ10: 15 | AR10: 15 | AS10: 15 | AT10: 15 | AU10: 15 | AV10: 15 | AW10: 15 | AX10: 15 | AY10: 15 | AZ10: 15 | BA10: 15
G11: Disc Date : | H11: =DATE(H8,H9,H10) -> 2007-06-30 | I11: 2008-06-30 | J11: 2009-06-30 | K11: 2010-06-30 | L11: 2011-10-01 | M11: 2012-05-01 | N11: 2012-09-01 | O11: 2013-08-15 | P11: 2014-08-15 | Q11: 2015-08-15 | R11: 2016-08-15 | S11: 2017-08-15 | T11: 2018-08-15 | U11: 2019-08-15 | V11: 2020-08-15 | W11: 2021-08-15 | X11: 2022-08-15 | Y11: 2023-08-15 | Z11: 2024-08-15 | AA11: 2025-08-15 | AB11: 2026-08-15 | AC11: 2027-08-15 | AD11: 2028-08-15 | AE11: 2029-08-15 | AF11: 2030-08-15 | AG11: 2031-08-15 | AH11: 2032-08-15 | AI11: 2033-08-15 | AJ11: 2034-08-15 | AK11: 2035-08-15 | AL11: 2036-08-15 | AM11: 2037-08-15 | AN11: 2038-08-15 | AO11: 2039-08-15 | AP11: 2040-08-15 | AQ11: 2041-08-15 | AR11: 2042-08-15 | AS11: 2043-08-15 | AT11: 2044-08-15 | AU11: 2045-08-15 | AV11: 2046-08-15 | AW11: 2047-08-15 | AX11: 2048-08-15 | AY11: 2049-08-15 | AZ11: 2050-08-15 | BA11: 2051-08-15
E12: COD | F12: Term | G12: Days : | H12: =DATE(H8,12,31)-DATE(H8,1,1)+1 -> 365 | I12: 366 | J12: 365 | K12: 365 | L12: 365 | M12: 366 | N12: 366 | O12: 365 | P12: 365 | Q12: 365 | R12: 366 | S12: 365 | T12: 365 | U12: 365 | V12: 366 | W12: 365 | X12: 365 | Y12: 365 | Z12: 366 | AA12: 365 | AB12: 365 | AC12: 365 | AD12: 366 | AE12: 365 | AF12: 365 | AG12: 365 | AH12: 366 | AI12: 365 | AJ12: 365 | AK12: 365 | AL12: 366 | AM12: 365 | AN12: 365 | AO12: 365 | AP12: 366 | AQ12: 365 | AR12: 365 | AS12: 365 | AT12: 366 | AU12: 365 | AV12: 365 | AW12: 365 | AX12: 366 | AY12: 365 | AZ12: 365 | BA12: 365
E13: =M11 -> 2012-05-01 | F13: =Input!L37 -> 25 | G13: Par Year : | H13: 0 | I13: =IF(YEAR($E13)>I8,0,IF(YEAR($E13)=I8,(DATE(I8,12,31)-$E13+1)/I12,MIN(1,$F13-SUM($H13:H13))))*(I$7>0) -> 0 | J13: =IF(YEAR($E13)>J8,0,IF(YEAR($E13)=J8,(DATE(J8,12,31)-$E13+1)/J12,MIN(1,$F13-SUM($H13:I13))))*(J$7>0) -> 0 | K13: =IF(YEAR($E13)>K8,0,IF(YEAR($E13)=K8,(DATE(K8,12,31)-$E13+1)/K12,MIN(1,$F13-SUM($H13:J13))))*(K$7>0) -> 0 | L13: =IF(YEAR($E13)>L8,0,IF(YEAR($E13)=L8,(DATE(L8,12,31)-$E13+1)/L12,MIN(1,$F13-SUM($H13:K13))))*(L$7>0) -> 0 | M13: =IF(YEAR($E13)>M8,0,IF(YEAR($E13)=M8,(DATE(M8,12,31)-$E13+1)/M12,MIN(1,$F13-SUM($H13:L13))))*(M$7>0) -> 0 | N13: =IF(YEAR($E13)>N8,0,IF(YEAR($E13)=N8,(DATE(N8,12,31)-$E13+1)/N12,MIN(1,$F13-SUM($H13:M13))))*(N$7>0) -> 0.6693989071 | O13: =IF(YEAR($E13)>O8,0,IF(YEAR($E13)=O8,(DATE(O8,12,31)-$E13+1)/O12,MIN(1,$F13-SUM($H13:N13))))*(O$7>0) -> 1 | P13: =IF(YEAR($E13)>P8,0,IF(YEAR($E13)=P8,(DATE(P8,12,31)-$E13+1)/P12,MIN(1,$F13-SUM($H13:O13))))*(P$7>0) -> 1 | Q13: =IF(YEAR($E13)>Q8,0,IF(YEAR($E13)=Q8,(DATE(Q8,12,31)-$E13+1)/Q12,MIN(1,$F13-SUM($H13:P13))))*(Q$7>0) -> 1 | R13: =IF(YEAR($E13)>R8,0,IF(YEAR($E13)=R8,(DATE(R8,12,31)-$E13+1)/R12,MIN(1,$F13-SUM($H13:Q13))))*(R$7>0) -> 1 | S13: =IF(YEAR($E13)>S8,0,IF(YEAR($E13)=S8,(DATE(S8,12,31)-$E13+1)/S12,MIN(1,$F13-SUM($H13:R13))))*(S$7>0) -> 1 | T13: =IF(YEAR($E13)>T8,0,IF(YEAR($E13)=T8,(DATE(T8,12,31)-$E13+1)/T12,MIN(1,$F13-SUM($H13:S13))))*(T$7>0) -> 1 | U13: =IF(YEAR($E13)>U8,0,IF(YEAR($E13)=U8,(DATE(U8,12,31)-$E13+1)/U12,MIN(1,$F13-SUM($H13:T13))))*(U$7>0) -> 1 | V13: =IF(YEAR($E13)>V8,0,IF(YEAR($E13)=V8,(DATE(V8,12,31)-$E13+1)/V12,MIN(1,$F13-SUM($H13:U13))))*(V$7>0) -> 1 | W13: =IF(YEAR($E13)>W8,0,IF(YEAR($E13)=W8,(DATE(W8,12,31)-$E13+1)/W12,MIN(1,$F13-SUM($H13:V13))))*(W$7>0) -> 1 | X13: =IF(YEAR($E13)>X8,0,IF(YEAR($E13)=X8,(DATE(X8,12,31)-$E13+1)/X12,MIN(1,$F13-SUM($H13:W13))))*(X$7>0) -> 1 | Y13: =IF(YEAR($E13)>Y8,0,IF(YEAR($E13)=Y8,(DATE(Y8,12,31)-$E13+1)/Y12,MIN(1,$F13-SUM($H13:X13))))*(Y$7>0) -> 1 | Z13: =IF(YEAR($E13)>Z8,0,IF(YEAR($E13)=Z8,(DATE(Z8,12,31)-$E13+1)/Z12,MIN(1,$F13-SUM($H13:Y13))))*(Z$7>0) -> 1 | AA13: =IF(YEAR($E13)>AA8,0,IF(YEAR($E13)=AA8,(DATE(AA8,12,31)-$E13+1)/AA12,MIN(1,$F13-SUM($H13:Z13))))*(AA$7>0) -> 1 | AB13: =IF(YEAR($E13)>AB8,0,IF(YEAR($E13)=AB8,(DATE(AB8,12,31)-$E13+1)/AB12,MIN(1,$F13-SUM($H13:AA13))))*(AB$7>0) -> 1 | AC13: =IF(YEAR($E13)>AC8,0,IF(YEAR($E13)=AC8,(DATE(AC8,12,31)-$E13+1)/AC12,MIN(1,$F13-SUM($H13:AB13))))*(AC$7>0) -> 1 | AD13: =IF(YEAR($E13)>AD8,0,IF(YEAR($E13)=AD8,(DATE(AD8,12,31)-$E13+1)/AD12,MIN(1,$F13-SUM($H13:AC13))))*(AD$7>0) -> 1 | AE13: =IF(YEAR($E13)>AE8,0,IF(YEAR($E13)=AE8,(DATE(AE8,12,31)-$E13+1)/AE12,MIN(1,$F13-SUM($H13:AD13))))*(AE$7>0) -> 1 | AF13: =IF(YEAR($E13)>AF8,0,IF(YEAR($E13)=AF8,(DATE(AF8,12,31)-$E13+1)/AF12,MIN(1,$F13-SUM($H13:AE13))))*(AF$7>0) -> 1 | AG13: =IF(YEAR($E13)>AG8,0,IF(YEAR($E13)=AG8,(DATE(AG8,12,31)-$E13+1)/AG12,MIN(1,$F13-SUM($H13:AF13))))*(AG$7>0) -> 1 | AH13: =IF(YEAR($E13)>AH8,0,IF(YEAR($E13)=AH8,(DATE(AH8,12,31)-$E13+1)/AH12,MIN(1,$F13-SUM($H13:AG13))))*(AH$7>0) -> 1 | AI13: =IF(YEAR($E13)>AI8,0,IF(YEAR($E13)=AI8,(DATE(AI8,12,31)-$E13+1)/AI12,MIN(1,$F13-SUM($H13:AH13))))*(AI$7>0) -> 1 | AJ13: =IF(YEAR($E13)>AJ8,0,IF(YEAR($E13)=AJ8,(DATE(AJ8,12,31)-$E13+1)/AJ12,MIN(1,$F13-SUM($H13:AI13))))*(AJ$7>0) -> 1 | AK13: =IF(YEAR($E13)>AK8,0,IF(YEAR($E13)=AK8,(DATE(AK8,12,31)-$E13+1)/AK12,MIN(1,$F13-SUM($H13:AJ13))))*(AK$7>0) -> 1 | AL13: =IF(YEAR($E13)>AL8,0,IF(YEAR($E13)=AL8,(DATE(AL8,12,31)-$E13+1)/AL12,MIN(1,$F13-SUM($H13:AK13))))*(AL$7>0) -> 1 | AM13: =IF(YEAR($E13)>AM8,0,IF(YEAR($E13)=AM8,(DATE(AM8,12,31)-$E13+1)/AM12,MIN(1,$F13-SUM($H13:AL13))))*(AM$7>0) -> 0.3306010929 | AN13: =IF(YEAR($E13)>AN8,0,IF(YEAR($E13)=AN8,(DATE(AN8,12,31)-$E13+1)/AN12,MIN(1,$F13-SUM($H13:AM13))))*(AN$7>0) -> 0 | AO13: =IF(YEAR($E13)>AO8,0,IF(YEAR($E13)=AO8,(DATE(AO8,12,31)-$E13+1)/AO12,MIN(1,$F13-SUM($H13:AN13))))*(AO$7>0) -> 0 | AP13: =IF(YEAR($E13)>AP8,0,IF(YEAR($E13)=AP8,(DATE(AP8,12,31)-$E13+1)/AP12,MIN(1,$F13-SUM($H13:AO13))))*(AP$7>0) -> 0 | AQ13: =IF(YEAR($E13)>AQ8,0,IF(YEAR($E13)=AQ8,(DATE(AQ8,12,31)-$E13+1)/AQ12,MIN(1,$F13-SUM($H13:AP13))))*(AQ$7>0) -> 0 | AR13: =IF(YEAR($E13)>AR8,0,IF(YEAR($E13)=AR8,(DATE(AR8,12,31)-$E13+1)/AR12,MIN(1,$F13-SUM($H13:AQ13))))*(AR$7>0) -> 0 | AS13: =IF(YEAR($E13)>AS8,0,IF(YEAR($E13)=AS8,(DATE(AS8,12,31)-$E13+1)/AS12,MIN(1,$F13-SUM($H13:AR13))))*(AS$7>0) -> 0 | AT13: =IF(YEAR($E13)>AT8,0,IF(YEAR($E13)=AT8,(DATE(AT8,12,31)-$E13+1)/AT12,MIN(1,$F13-SUM($H13:AS13))))*(AT$7>0) -> 0 | AU13: =IF(YEAR($E13)>AU8,0,IF(YEAR($E13)=AU8,(DATE(AU8,12,31)-$E13+1)/AU12,MIN(1,$F13-SUM($H13:AT13))))*(AU$7>0) -> 0 | AV13: =IF(YEAR($E13)>AV8,0,IF(YEAR($E13)=AV8,(DATE(AV8,12,31)-$E13+1)/AV12,MIN(1,$F13-SUM($H13:AU13))))*(AV$7>0) -> 0 | AW13: =IF(YEAR($E13)>AW8,0,IF(YEAR($E13)=AW8,(DATE(AW8,12,31)-$E13+1)/AW12,MIN(1,$F13-SUM($H13:AV13))))*(AW$7>0) -> 0 | AX13: =IF(YEAR($E13)>AX8,0,IF(YEAR($E13)=AX8,(DATE(AX8,12,31)-$E13+1)/AX12,MIN(1,$F13-SUM($H13:AW13))))*(AX$7>0) -> 0 | AY13: =IF(YEAR($E13)>AY8,0,IF(YEAR($E13)=AY8,(DATE(AY8,12,31)-$E13+1)/AY12,MIN(1,$F13-SUM($H13:AX13))))*(AY$7>0) -> 0 | AZ13: =IF(YEAR($E13)>AZ8,0,IF(YEAR($E13)=AZ8,(DATE(AZ8,12,31)-$E13+1)/AZ12,MIN(1,$F13-SUM($H13:AY13))))*(AZ$7>0) -> 0 | BA13: =IF(YEAR($E13)>BA8,0,IF(YEAR($E13)=BA8,(DATE(BA8,12,31)-$E13+1)/BA12,MIN(1,$F13-SUM($H13:AZ13))))*(BA$7>0) -> 0
B15: INCOME STATEMENT
B17: Revenue | E17: AR
B18: Contract - Capacity Payments | E18: 1 | H18: 0 | I18: 0 | J18: 0 | K18: 0 | L18: 0 | M18: 0 | N18: =RF!N8 -> 0 | O18: =RF!O8 -> 0 | P18: =RF!P8 -> 0 | Q18: =RF!Q8 -> 0 | R18: =RF!R8 -> 0 | S18: =RF!S8 -> 0 | T18: =RF!T8 -> 0 | U18: =RF!U8 -> 0 | V18: =RF!V8 -> 0 | W18: =RF!W8 -> 0 | X18: =RF!X8 -> 0 | Y18: =RF!Y8 -> 0 | Z18: =RF!Z8 -> 0 | AA18: =RF!AA8 -> 0 | AB18: =RF!AB8 -> 0 | AC18: =RF!AC8 -> 0 | AD18: =RF!AD8 -> 0 | AE18: =RF!AE8 -> 0 | AF18: =RF!AF8 -> 0 | AG18: =RF!AG8 -> 0 | AH18: =RF!AH8 -> 0 | AI18: =RF!AI8 -> 0 | AJ18: =RF!AJ8 -> 0 | AK18: =RF!AK8 -> 0 | AL18: =RF!AL8 -> 0 | AM18: =RF!AM8 -> 0 | AN18: =RF!AN8 -> 0 | AO18: =RF!AO8 -> 0 | AP18: =RF!AP8 -> 0 | AQ18: =RF!AQ8 -> 0 | AR18: =RF!AR8 -> 0 | AS18: =RF!AS8 -> 0 | AT18: =RF!AT8 -> 0 | AU18: =RF!AU8 -> 0 | AV18: =RF!AV8 -> 0 | AW18: =RF!AW8 -> 0 | AX18: =RF!AX8 -> 0 | AY18: =RF!AY8 -> 0 | AZ18: =RF!AZ8 -> 0 | BA18: =RF!BA8 -> 0
B19: Contract - Energy Payments | E19: 1 | H19: 0 | I19: 0 | J19: 0 | K19: 0 | L19: 0 | M19: 0 | N19: =RF!N9 -> 3906.120709 | O19: =RF!O9 -> 5892.580794 | P19: =RF!P9 -> 5984.87809 | Q19: =RF!Q9 -> 6077.710403 | R19: =RF!R9 -> 6173.085543 | S19: =RF!S9 -> 6267.937419 | T19: =RF!T9 -> 6360.006776 | U19: =RF!U9 -> 6453.83814 | V19: =RF!V9 -> 6550.802818 | W19: =RF!W9 -> 6651.010543 | X19: =RF!X9 -> 6752.211907 | Y19: =RF!Y9 -> 6855.022653 | Z19: =RF!Z9 -> 6957.803686 | AA19: =RF!AA9 -> 7061.919841 | AB19: =RF!AB9 -> 7168.98846 | AC19: =RF!AC9 -> 7286.819772 | AD19: =RF!AD9 -> 7404.722041 | AE19: =RF!AE9 -> 7524.351691 | AF19: =RF!AF9 -> 7645.674156 | AG19: =RF!AG9 -> 7767.053471 | AH19: =RF!AH9 -> 7889.816836 | AI19: =RF!AI9 -> 8012.595304 | AJ19: =RF!AJ9 -> 8138.092135 | AK19: =RF!AK9 -> 8266.253343 | AL19: =RF!AL9 -> 8396.910806 | AM19: =RF!AM9 -> 2781.297338 | AN19: =RF!AN9 -> 0 | AO19: =RF!AO9 -> 0 | AP19: =RF!AP9 -> 0 | AQ19: =RF!AQ9 -> 0 | AR19: =RF!AR9 -> 0 | AS19: =RF!AS9 -> 0 | AT19: =RF!AT9 -> 0 | AU19: =RF!AU9 -> 0 | AV19: =RF!AV9 -> 0 | AW19: =RF!AW9 -> 0 | AX19: =RF!AX9 -> 0 | AY19: =RF!AY9 -> 0 | AZ19: =RF!AZ9 -> 0 | BA19: =RF!BA9 -> 0
B20: Merchant - Capacity | E20: 1 | H20: 0 | I20: 0 | J20: 0 | K20: 0 | L20: 0 | M20: 0 | N20: =RF!N12 -> 0 | O20: =RF!O12 -> 0 | P20: =RF!P12 -> 0 | Q20: =RF!Q12 -> 0 | R20: =RF!R12 -> 0 | S20: =RF!S12 -> 0 | T20: =RF!T12 -> 0 | U20: =RF!U12 -> 0 | V20: =RF!V12 -> 0 | W20: =RF!W12 -> 0 | X20: =RF!X12 -> 0 | Y20: =RF!Y12 -> 0 | Z20: =RF!Z12 -> 0 | AA20: =RF!AA12 -> 0 | AB20: =RF!AB12 -> 0 | AC20: =RF!AC12 -> 0 | AD20: =RF!AD12 -> 0 | AE20: =RF!AE12 -> 0 | AF20: =RF!AF12 -> 0 | AG20: =RF!AG12 -> 0 | AH20: =RF!AH12 -> 0 | AI20: =RF!AI12 -> 0 | AJ20: =RF!AJ12 -> 0 | AK20: =RF!AK12 -> 0 | AL20: =RF!AL12 -> 0 | AM20: =RF!AM12 -> 0 | AN20: =RF!AN12 -> 0 | AO20: =RF!AO12 -> 0 | AP20: =RF!AP12 -> 0 | AQ20: =RF!AQ12 -> 0 | AR20: =RF!AR12 -> 0 | AS20: =RF!AS12 -> 0 | AT20: =RF!AT12 -> 0 | AU20: =RF!AU12 -> 0 | AV20: =RF!AV12 -> 0 | AW20: =RF!AW12 -> 0 | AX20: =RF!AX12 -> 0 | AY20: =RF!AY12 -> 0 | AZ20: =RF!AZ12 -> 0 | BA20: =RF!BA12 -> 0
B21: Merchant - Energy | E21: 1 | H21: 0 | I21: 0 | J21: 0 | K21: 0 | L21: 0 | M21: 0 | N21: =RF!N13 -> 0 | O21: =RF!O13 -> 0 | P21: =RF!P13 -> 0 | Q21: =RF!Q13 -> 0 | R21: =RF!R13 -> 0 | S21: =RF!S13 -> 0 | T21: =RF!T13 -> 0 | U21: =RF!U13 -> 0 | V21: =RF!V13 -> 0 | W21: =RF!W13 -> 0 | X21: =RF!X13 -> 0 | Y21: =RF!Y13 -> 0 | Z21: =RF!Z13 -> 0 | AA21: =RF!AA13 -> 0 | AB21: =RF!AB13 -> 0 | AC21: =RF!AC13 -> 0 | AD21: =RF!AD13 -> 0 | AE21: =RF!AE13 -> 0 | AF21: =RF!AF13 -> 0 | AG21: =RF!AG13 -> 0 | AH21: =RF!AH13 -> 0 | AI21: =RF!AI13 -> 0 | AJ21: =RF!AJ13 -> 0 | AK21: =RF!AK13 -> 0 | AL21: =RF!AL13 -> 0 | AM21: =RF!AM13 -> 0 | AN21: =RF!AN13 -> 0 | AO21: =RF!AO13 -> 0 | AP21: =RF!AP13 -> 0 | AQ21: =RF!AQ13 -> 0 | AR21: =RF!AR13 -> 0 | AS21: =RF!AS13 -> 0 | AT21: =RF!AT13 -> 0 | AU21: =RF!AU13 -> 0 | AV21: =RF!AV13 -> 0 | AW21: =RF!AW13 -> 0 | AX21: =RF!AX13 -> 0 | AY21: =RF!AY13 -> 0 | AZ21: =RF!AZ13 -> 0 | BA21: =RF!BA13 -> 0
B22: Merchant - REC Energy Prices | E22: 1 | H22: 0 | I22: 0 | J22: 0 | K22: 0 | L22: 0 | M22: 0 | N22: =RF!N14 -> 0 | O22: =RF!O14 -> 0 | P22: =RF!P14 -> 0 | Q22: =RF!Q14 -> 0 | R22: =RF!R14 -> 0 | S22: =RF!S14 -> 0 | T22: =RF!T14 -> 0 | U22: =RF!U14 -> 0 | V22: =RF!V14 -> 0 | W22: =RF!W14 -> 0 | X22: =RF!X14 -> 0 | Y22: =RF!Y14 -> 0 | Z22: =RF!Z14 -> 0 | AA22: =RF!AA14 -> 0 | AB22: =RF!AB14 -> 0 | AC22: =RF!AC14 -> 0 | AD22: =RF!AD14 -> 0 | AE22: =RF!AE14 -> 0 | AF22: =RF!AF14 -> 0 | AG22: =RF!AG14 -> 0 | AH22: =RF!AH14 -> 0 | AI22: =RF!AI14 -> 0 | AJ22: =RF!AJ14 -> 0 | AK22: =RF!AK14 -> 0 | AL22: =RF!AL14 -> 0 | AM22: =RF!AM14 -> 0 | AN22: =RF!AN14 -> 0 | AO22: =RF!AO14 -> 0 | AP22: =RF!AP14 -> 0 | AQ22: =RF!AQ14 -> 0 | AR22: =RF!AR14 -> 0 | AS22: =RF!AS14 -> 0 | AT22: =RF!AT14 -> 0 | AU22: =RF!AU14 -> 0 | AV22: =RF!AV14 -> 0 | AW22: =RF!AW14 -> 0 | AX22: =RF!AX14 -> 0 | AY22: =RF!AY14 -> 0 | AZ22: =RF!AZ14 -> 0 | BA22: =RF!BA14 -> 0
B23: Merchant - Other | E23: 1 | H23: 0 | I23: 0 | J23: 0 | K23: 0 | L23: 0 | M23: 0 | N23: =RF!N15 -> 0 | O23: =RF!O15 -> 0 | P23: =RF!P15 -> 0 | Q23: =RF!Q15 -> 0 | R23: =RF!R15 -> 0 | S23: =RF!S15 -> 0 | T23: =RF!T15 -> 0 | U23: =RF!U15 -> 0 | V23: =RF!V15 -> 0 | W23: =RF!W15 -> 0 | X23: =RF!X15 -> 0 | Y23: =RF!Y15 -> 0 | Z23: =RF!Z15 -> 0 | AA23: =RF!AA15 -> 0 | AB23: =RF!AB15 -> 0 | AC23: =RF!AC15 -> 0 | AD23: =RF!AD15 -> 0 | AE23: =RF!AE15 -> 0 | AF23: =RF!AF15 -> 0 | AG23: =RF!AG15 -> 0 | AH23: =RF!AH15 -> 0 | AI23: =RF!AI15 -> 0 | AJ23: =RF!AJ15 -> 0 | AK23: =RF!AK15 -> 0 | AL23: =RF!AL15 -> 0 | AM23: =RF!AM15 -> 0 | AN23: =RF!AN15 -> 0 | AO23: =RF!AO15 -> 0 | AP23: =RF!AP15 -> 0 | AQ23: =RF!AQ15 -> 0 | AR23: =RF!AR15 -> 0 | AS23: =RF!AS15 -> 0 | AT23: =RF!AT15 -> 0 | AU23: =RF!AU15 -> 0 | AV23: =RF!AV15 -> 0 | AW23: =RF!AW15 -> 0 | AX23: =RF!AX15 -> 0 | AY23: =RF!AY15 -> 0 | AZ23: =RF!AZ15 -> 0 | BA23: =RF!BA15 -> 0
B24: Other | E24: 1 | H24: 0 | I24: 0 | J24: 0 | K24: 0 | L24: 0 | M24: 0 | N24: 0 | O24: 0 | P24: 0 | Q24: 0 | R24: 0 | S24: 0 | T24: 0 | U24: 0 | V24: 0 | W24: 0 | X24: 0 | Y24: 0 | Z24: 0 | AA24: 0 | AB24: 0 | AC24: 0 | AD24: 0 | AE24: 0 | AF24: 0 | AG24: 0 | AH24: 0 | AI24: 0 | AJ24: 0 | AK24: 0 | AL24: 0 | AM24: 0 | AN24: 0 | AO24: 0 | AP24: 0 | AQ24: 0 | AR24: 0 | AS24: 0 | AT24: 0 | AU24: 0 | AV24: 0 | AW24: 0 | AX24: 0 | AY24: 0 | AZ24: 0 | BA24: 0
B25: Other | E25: 1 | H25: 0 | I25: 0 | J25: 0 | K25: 0 | L25: 0 | M25: 0 | N25: 0 | O25: 0 | P25: 0 | Q25: 0 | R25: 0 | S25: 0 | T25: 0 | U25: 0 | V25: 0 | W25: 0 | X25: 0 | Y25: 0 | Z25: 0 | AA25: 0 | AB25: 0 | AC25: 0 | AD25: 0 | AE25: 0 | AF25: 0 | AG25: 0 | AH25: 0 | AI25: 0 | AJ25: 0 | AK25: 0 | AL25: 0 | AM25: 0 | AN25: 0 | AO25: 0 | AP25: 0 | AQ25: 0 | AR25: 0 | AS25: 0 | AT25: 0 | AU25: 0 | AV25: 0 | AW25: 0 | AX25: 0 | AY25: 0 | AZ25: 0 | BA25: 0
B26: Total Revenue | H26: =SUM(H18:H25) -> 0 | I26: 0 | J26: 0 | K26: 0 | L26: 0 | M26: 0 | N26: 3906.120709 | O26: 5892.580794 | P26: 5984.87809 | Q26: 6077.710403 | R26: 6173.085543 | S26: 6267.937419 | T26: 6360.006776 | U26: 6453.83814 | V26: 6550.802818 | W26: 6651.010543 | X26: 6752.211907 | Y26: 6855.022653 | Z26: 6957.803686 | AA26: 7061.919841 | AB26: 7168.98846 | AC26: 7286.819772 | AD26: 7404.722041 | AE26: 7524.351691 | AF26: 7645.674156 | AG26: 7767.053471 | AH26: 7889.816836 | AI26: 8012.595304 | AJ26: 8138.092135 | AK26: 8266.253343 | AL26: 8396.910806 | AM26: 2781.297338 | AN26: 0 | AO26: 0 | AP26: 0 | AQ26: 0 | AR26: 0 | AS26: 0 | AT26: 0 | AU26: 0 | AV26: 0 | AW26: 0 | AX26: 0 | AY26: 0 | AZ26: 0 | BA26: 0
B28: Operating Costs | D28: on/off | E28: AP | F28: WC
B29: Fuel | D29: =Scen!G83 -> 1 | E29: 1 | F29: 0 | H29: 0 | I29: 0 | J29: 0 | K29: 0 | L29: 0 | M29: 0 | N29: =-RF!N93*$D29 -> 0 | O29: =-RF!O93*$D29 -> 0 | P29: =-RF!P93*$D29 -> 0 | Q29: =-RF!Q93*$D29 -> 0 | R29: =-RF!R93*$D29 -> 0 | S29: =-RF!S93*$D29 -> 0 | T29: =-RF!T93*$D29 -> 0 | U29: =-RF!U93*$D29 -> 0 | V29: =-RF!V93*$D29 -> 0 | W29: =-RF!W93*$D29 -> 0 | X29: =-RF!X93*$D29 -> 0 | Y29: =-RF!Y93*$D29 -> 0 | Z29: =-RF!Z93*$D29 -> 0 | AA29: =-RF!AA93*$D29 -> 0 | AB29: =-RF!AB93*$D29 -> 0 | AC29: =-RF!AC93*$D29 -> 0 | AD29: =-RF!AD93*$D29 -> 0 | AE29: =-RF!AE93*$D29 -> 0 | AF29: =-RF!AF93*$D29 -> 0 | AG29: =-RF!AG93*$D29 -> 0 | AH29: =-RF!AH93*$D29 -> 0 | AI29: =-RF!AI93*$D29 -> 0 | AJ29: =-RF!AJ93*$D29 -> 0 | AK29: =-RF!AK93*$D29 -> 0 | AL29: =-RF!AL93*$D29 -> 0 | AM29: =-RF!AM93*$D29 -> 0 | AN29: =-RF!AN93*$D29 -> 0 | AO29: =-RF!AO93*$D29 -> 0 | AP29: =-RF!AP93*$D29 -> 0 | AQ29: =-RF!AQ93*$D29 -> 0 | AR29: =-RF!AR93*$D29 -> 0 | AS29: =-RF!AS93*$D29 -> 0 | AT29: =-RF!AT93*$D29 -> 0 | AU29: =-RF!AU93*$D29 -> 0 | AV29: =-RF!AV93*$D29 -> 0 | AW29: =-RF!AW93*$D29 -> 0 | AX29: =-RF!AX93*$D29 -> 0 | AY29: =-RF!AY93*$D29 -> 0 | AZ29: =-RF!AZ93*$D29 -> 0 | BA29: =-RF!BA93*$D29 -> 0
B30: VOM | D30: =Scen!G84 -> 1 | E30: 1 | F30: 0 | H30: 0 | I30: 0 | J30: 0 | K30: 0 | L30: 0 | M30: 0 | N30: =-OM!N14*$D30 -> 0 | O30: =-OM!O14*$D30 -> 0 | P30: =-OM!P14*$D30 -> 0 | Q30: =-OM!Q14*$D30 -> 0 | R30: =-OM!R14*$D30 -> 0 | S30: =-OM!S14*$D30 -> 0 | T30: =-OM!T14*$D30 -> 0 | U30: =-OM!U14*$D30 -> 0 | V30: =-OM!V14*$D30 -> 0 | W30: =-OM!W14*$D30 -> 0 | X30: =-OM!X14*$D30 -> 0 | Y30: =-OM!Y14*$D30 -> 0 | Z30: =-OM!Z14*$D30 -> 0 | AA30: =-OM!AA14*$D30 -> 0 | AB30: =-OM!AB14*$D30 -> 0 | AC30: =-OM!AC14*$D30 -> 0 | AD30: =-OM!AD14*$D30 -> 0 | AE30: =-OM!AE14*$D30 -> 0 | AF30: =-OM!AF14*$D30 -> 0 | AG30: =-OM!AG14*$D30 -> 0 | AH30: =-OM!AH14*$D30 -> 0 | AI30: =-OM!AI14*$D30 -> 0 | AJ30: =-OM!AJ14*$D30 -> 0 | AK30: =-OM!AK14*$D30 -> 0 | AL30: =-OM!AL14*$D30 -> 0 | AM30: =-OM!AM14*$D30 -> 0 | AN30: =-OM!AN14*$D30 -> 0 | AO30: =-OM!AO14*$D30 -> 0 | AP30: =-OM!AP14*$D30 -> 0 | AQ30: =-OM!AQ14*$D30 -> 0 | AR30: =-OM!AR14*$D30 -> 0 | AS30: =-OM!AS14*$D30 -> 0 | AT30: =-OM!AT14*$D30 -> 0 | AU30: =-OM!AU14*$D30 -> 0 | AV30: =-OM!AV14*$D30 -> 0 | AW30: =-OM!AW14*$D30 -> 0 | AX30: =-OM!AX14*$D30 -> 0 | AY30: =-OM!AY14*$D30 -> 0 | AZ30: =-OM!AZ14*$D30 -> 0 | BA30: =-OM!BA14*$D30 -> 0
B31: FOM - Labor | D31: =Scen!G85 -> 1 | E31: 0 | F31: 1 | H31: 0 | I31: 0 | J31: 0 | K31: 0 | L31: 0 | M31: =-OM!M23*$D31 -> -39.39154478 | N31: =-OM!N23*$D31 -> -87.05326818 | O31: =-OM!O23*$D31 -> -134.5985654 | P31: =-OM!P23*$D31 -> -139.3095152 | Q31: =-OM!Q23*$D31 -> -144.1853482 | R31: =-OM!R23*$D31 -> -149.2318354 | S31: =-OM!S23*$D31 -> -154.4549496 | T31: =-OM!T23*$D31 -> -159.8608729 | U31: =-OM!U23*$D31 -> -165.4560034 | V31: =-OM!V23*$D31 -> -171.2469635 | W31: =-OM!W23*$D31 -> -177.2406073 | X31: =-OM!X23*$D31 -> -183.4440285 | Y31: =-OM!Y23*$D31 -> -189.8645695 | Z31: =-OM!Z23*$D31 -> -196.5098294 | AA31: =-OM!AA23*$D31 -> -203.3876735 | AB31: =-OM!AB23*$D31 -> -210.506242 | AC31: =-OM!AC23*$D31 -> -217.8739605 | AD31: =-OM!AD23*$D31 -> -225.4995491 | AE31: =-OM!AE23*$D31 -> -233.3920334 | AF31: =-OM!AF23*$D31 -> -241.5607545 | AG31: =-OM!AG23*$D31 -> -250.0153809 | AH31: =-OM!AH23*$D31 -> -258.7659193 | AI31: =-OM!AI23*$D31 -> -267.8227264 | AJ31: =-OM!AJ23*$D31 -> -277.1965219 | AK31: =-OM!AK23*$D31 -> -286.8984001 | AL31: =-OM!AL23*$D31 -> -296.9398441 | AM31: =-OM!AM23*$D31 -> -101.6045393 | AN31: =-OM!AN23*$D31 -> 0 | AO31: =-OM!AO23*$D31 -> 0 | AP31: =-OM!AP23*$D31 -> 0 | AQ31: =-OM!AQ23*$D31 -> 0 | AR31: =-OM!AR23*$D31 -> 0 | AS31: =-OM!AS23*$D31 -> 0 | AT31: =-OM!AT23*$D31 -> 0 | AU31: =-OM!AU23*$D31 -> 0 | AV31: =-OM!AV23*$D31 -> 0 | AW31: =-OM!AW23*$D31 -> 0 | AX31: =-OM!AX23*$D31 -> 0 | AY31: =-OM!AY23*$D31 -> 0 | AZ31: =-OM!AZ23*$D31 -> 0 | BA31: =-OM!BA23*$D31 -> 0
B32: FOM - Other | D32: =Scen!G86 -> 1 | E32: 1 | F32: 0 | H32: 0 | I32: 0 | J32: 0 | K32: 0 | L32: 0 | M32: 0 | N32: =-OM!N29*$D32 -> -42.09354346 | O32: =-OM!O29*$D32 -> -64.14025161 | P32: =-OM!P29*$D32 -> -65.42305664 | Q32: =-OM!Q29*$D32 -> -66.73151777 | R32: =-OM!R29*$D32 -> -68.06614813 | S32: =-OM!S29*$D32 -> -69.42747109 | T32: =-OM!T29*$D32 -> -70.81602051 | U32: =-OM!U29*$D32 -> -72.23234092 | V32: =-OM!V29*$D32 -> -73.67698774 | W32: =-OM!W29*$D32 -> -75.1505275 | X32: =-OM!X29*$D32 -> -76.65353805 | Y32: =-OM!Y29*$D32 -> -78.18660881 | Z32: =-OM!Z29*$D32 -> -79.75034098 | AA32: =-OM!AA29*$D32 -> -81.3453478 | AB32: =-OM!AB29*$D32 -> -82.97225476 | AC32: =-OM!AC29*$D32 -> -84.63169986 | AD32: =-OM!AD29*$D32 -> -86.32433385 | AE32: =-OM!AE29*$D32 -> -88.05082053 | AF32: =-OM!AF29*$D32 -> -89.81183694 | AG32: =-OM!AG29*$D32 -> -91.60807368 | AH32: =-OM!AH29*$D32 -> -93.44023515 | AI32: =-OM!AI29*$D32 -> -95.30903986 | AJ32: =-OM!AJ29*$D32 -> -97.21522065 | AK32: =-OM!AK29*$D32 -> -99.15952507 | AL32: =-OM!AL29*$D32 -> -101.1427156 | AM32: =-OM!AM29*$D32 -> -34.10665015 | AN32: =-OM!AN29*$D32 -> 0 | AO32: =-OM!AO29*$D32 -> 0 | AP32: =-OM!AP29*$D32 -> 0 | AQ32: =-OM!AQ29*$D32 -> 0 | AR32: =-OM!AR29*$D32 -> 0 | AS32: =-OM!AS29*$D32 -> 0 | AT32: =-OM!AT29*$D32 -> 0 | AU32: =-OM!AU29*$D32 -> 0 | AV32: =-OM!AV29*$D32 -> 0 | AW32: =-OM!AW29*$D32 -> 0 | AX32: =-OM!AX29*$D32 -> 0 | AY32: =-OM!AY29*$D32 -> 0 | AZ32: =-OM!AZ29*$D32 -> 0 | BA32: =-OM!BA29*$D32 -> 0
B33: Major Maint | D33: =Scen!G87 -> 1 | E33: 1 | F33: 0 | H33: 0 | I33: 0 | J33: 0 | K33: 0 | L33: 0 | M33: =-OM!M36*$D33 -> -150.4 | N33: =-OM!N36*$D33 -> -74.70502582 | O33: =-OM!O36*$D33 -> -165.5662657 | P33: =-OM!P36*$D33 -> -152.5357322 | Q33: =-OM!Q36*$D33 -> -127.4602162 | R33: =-OM!R36*$D33 -> -137.5165589 | S33: =-OM!S36*$D33 -> -189.5429934 | T33: =-OM!T36*$D33 -> -163.4192161 | U33: =-OM!U36*$D33 -> -204.416431 | V33: =-OM!V36*$D33 -> -217.6335949 | W33: =-OM!W36*$D33 -> -332.1492878 | X33: =-OM!X36*$D33 -> -240.5318756 | Y33: =-OM!Y36*$D33 -> -275.2351025 | Z33: =-OM!Z36*$D33 -> -309.5025287 | AA33: =-OM!AA36*$D33 -> -335.3168496 | AB33: =-OM!AB36*$D33 -> -328.9617209 | AC33: =-OM!AC36*$D33 -> -326.134316 | AD33: =-OM!AD36*$D33 -> -336.1186255 | AE33: =-OM!AE36*$D33 -> -442.2810811 | AF33: =-OM!AF36*$D33 -> -353.6790233 | AG33: =-OM!AG36*$D33 -> -471.5239562 | AH33: =-OM!AH36*$D33 -> -395.6458207 | AI33: =-OM!AI36*$D33 -> -440.9637594 | AJ33: =-OM!AJ36*$D33 -> -454.4947202 | AK33: =-OM!AK36*$D33 -> -461.5692918 | AL33: =-OM!AL36*$D33 -> -470.2299637 | AM33: =-OM!AM36*$D33 -> -185.8521406 | AN33: =-OM!AN36*$D33 -> 0 | AO33: =-OM!AO36*$D33 -> 0 | AP33: =-OM!AP36*$D33 -> 0 | AQ33: =-OM!AQ36*$D33 -> 0 | AR33: =-OM!AR36*$D33 -> 0 | AS33: =-OM!AS36*$D33 -> 0 | AT33: =-OM!AT36*$D33 -> 0 | AU33: =-OM!AU36*$D33 -> 0 | AV33: =-OM!AV36*$D33 -> 0 | AW33: =-OM!AW36*$D33 -> 0 | AX33: =-OM!AX36*$D33 -> 0 | AY33: =-OM!AY36*$D33 -> 0 | AZ33: =-OM!AZ36*$D33 -> 0 | BA33: =-OM!BA36*$D33 -> 0
B34: Other Oper Costs | D34: =Scen!G88 -> 1 | E34: 1 | F34: 0 | H34: 0 | I34: 0 | J34: 0 | K34: 0 | L34: 0 | M34: 0 | N34: =-OM!N38*$D34 -> -39.30307692 | O34: =-OM!O38*$D34 -> -39.30307692 | P34: =-OM!P38*$D34 -> -39.30307692 | Q34: =-OM!Q38*$D34 -> -39.30307692 | R34: =-OM!R38*$D34 -> -47.80307692 | S34: =-OM!S38*$D34 -> -39.30307692 | T34: =-OM!T38*$D34 -> -39.30307692 | U34: =-OM!U38*$D34 -> -39.30307692 | V34: =-OM!V38*$D34 -> -39.30307692 | W34: =-OM!W38*$D34 -> -47.80307692 | X34: =-OM!X38*$D34 -> -39.30307692 | Y34: =-OM!Y38*$D34 -> -39.30307692 | Z34: =-OM!Z38*$D34 -> -39.30307692 | AA34: =-OM!AA38*$D34 -> -39.30307692 | AB34: =-OM!AB38*$D34 -> -47.80307692 | AC34: =-OM!AC38*$D34 -> -39.30307692 | AD34: =-OM!AD38*$D34 -> -39.30307692 | AE34: =-OM!AE38*$D34 -> -39.30307692 | AF34: =-OM!AF38*$D34 -> -39.30307692 | AG34: =-OM!AG38*$D34 -> -47.80307692 | AH34: =-OM!AH38*$D34 -> -39.30307692 | AI34: =-OM!AI38*$D34 -> -39.30307692 | AJ34: =-OM!AJ38*$D34 -> -39.30307692 | AK34: =-OM!AK38*$D34 -> -39.30307692 | AL34: =-OM!AL38*$D34 -> -47.80307692 | AM34: =-OM!AM38*$D34 -> -39.30307692 | AN34: =-OM!AN38*$D34 -> 0 | AO34: =-OM!AO38*$D34 -> 0 | AP34: =-OM!AP38*$D34 -> 0 | AQ34: =-OM!AQ38*$D34 -> 0 | AR34: =-OM!AR38*$D34 -> 0 | AS34: =-OM!AS38*$D34 -> 0 | AT34: =-OM!AT38*$D34 -> 0 | AU34: =-OM!AU38*$D34 -> 0 | AV34: =-OM!AV38*$D34 -> 0 | AW34: =-OM!AW38*$D34 -> 0 | AX34: =-OM!AX38*$D34 -> 0 | AY34: =-OM!AY38*$D34 -> 0 | AZ34: =-OM!AZ38*$D34 -> 0 | BA34: =-OM!BA38*$D34 -> 0
B35: Property Taxes | D35: =Scen!G89 -> 1 | E35: 1 | F35: 0 | H35: 0 | I35: 0 | J35: 0 | K35: 0 | L35: 0 | M35: 0 | N35: =-GA!N12*$D35 -> -9.32394077 | O35: =-GA!O12*$D35 -> -13.34845806 | P35: =-GA!P12*$D35 -> -12.76809032 | Q35: =-GA!Q12*$D35 -> -12.18772258 | R35: =-GA!R12*$D35 -> -11.60735484 | S35: =-GA!S12*$D35 -> -11.02698709 | T35: =-GA!T12*$D35 -> -10.44661935 | U35: =-GA!U12*$D35 -> -9.866251611 | V35: =-GA!V12*$D35 -> -9.285883869 | W35: =-GA!W12*$D35 -> -8.705516127 | X35: =-GA!X12*$D35 -> -8.125148386 | Y35: =-GA!Y12*$D35 -> -7.544780644 | Z35: =-GA!Z12*$D35 -> -6.964412902 | AA35: =-GA!AA12*$D35 -> -6.38404516 | AB35: =-GA!AB12*$D35 -> -5.803677418 | AC35: =-GA!AC12*$D35 -> -5.223309676 | AD35: =-GA!AD12*$D35 -> -4.642941935 | AE35: =-GA!AE12*$D35 -> -4.352758064 | AF35: =-GA!AF12*$D35 -> -4.352758064 | AG35: =-GA!AG12*$D35 -> -4.352758064 | AH35: =-GA!AH12*$D35 -> -4.352758064 | AI35: =-GA!AI12*$D35 -> -4.352758064 | AJ35: =-GA!AJ12*$D35 -> -4.352758064 | AK35: =-GA!AK12*$D35 -> -4.352758064 | AL35: =-GA!AL12*$D35 -> -4.352758064 | AM35: =-GA!AM12*$D35 -> -1.439026573 | AN35: =-GA!AN12*$D35 -> 0 | AO35: =-GA!AO12*$D35 -> 0 | AP35: =-GA!AP12*$D35 -> 0 | AQ35: =-GA!AQ12*$D35 -> 0 | AR35: =-GA!AR12*$D35 -> 0 | AS35: =-GA!AS12*$D35 -> 0 | AT35: =-GA!AT12*$D35 -> 0 | AU35: =-GA!AU12*$D35 -> 0 | AV35: =-GA!AV12*$D35 -> 0 | AW35: =-GA!AW12*$D35 -> 0 | AX35: =-GA!AX12*$D35 -> 0 | AY35: =-GA!AY12*$D35 -> 0 | AZ35: =-GA!AZ12*$D35 -> 0 | BA35: =-GA!BA12*$D35 -> 0
B36: Insurance | D36: =Scen!G90 -> 1 | E36: 1 | F36: 0 | H36: 0 | I36: 0 | J36: 0 | K36: 0 | L36: 0 | M36: 0 | N36: =-GA!N21*$D36 -> -15.78637181 | O36: =-GA!O21*$D36 -> -34.43730012 | P36: =-GA!P21*$D36 -> -33.59882672 | Q36: =-GA!Q21*$D36 -> -32.71303947 | R36: =-GA!R21*$D36 -> -31.7783812 | S36: =-GA!S21*$D36 -> -30.79325139 | T36: =-GA!T21*$D36 -> -29.75600502 | U36: =-GA!U21*$D36 -> -28.66495151 | V36: =-GA!V21*$D36 -> -27.51835344 | W36: =-GA!W21*$D36 -> -26.31442548 | X36: =-GA!X21*$D36 -> -25.05133306 | Y36: =-GA!Y21*$D36 -> -23.72719117 | Z36: =-GA!Z21*$D36 -> -22.34006307 | AA36: =-GA!AA21*$D36 -> -20.88795897 | AB36: =-GA!AB21*$D36 -> -19.36883468 | AC36: =-GA!AC21*$D36 -> -17.78059024 | AD36: =-GA!AD21*$D36 -> -16.12106848 | AE36: =-GA!AE21*$D36 -> -15.41577174 | AF36: =-GA!AF21*$D36 -> -15.72408717 | AG36: =-GA!AG21*$D36 -> -16.03856891 | AH36: =-GA!AH21*$D36 -> -16.35934029 | AI36: =-GA!AI21*$D36 -> -16.6865271 | AJ36: =-GA!AJ21*$D36 -> -17.02025764 | AK36: =-GA!AK21*$D36 -> -17.36066279 | AL36: =-GA!AL21*$D36 -> -17.70787605 | AM36: =-GA!AM21*$D36 -> -1.974127575 | AN36: =-GA!AN21*$D36 -> 0 | AO36: =-GA!AO21*$D36 -> 0 | AP36: =-GA!AP21*$D36 -> 0 | AQ36: =-GA!AQ21*$D36 -> 0 | AR36: =-GA!AR21*$D36 -> 0 | AS36: =-GA!AS21*$D36 -> 0 | AT36: =-GA!AT21*$D36 -> 0 | AU36: =-GA!AU21*$D36 -> 0 | AV36: =-GA!AV21*$D36 -> 0 | AW36: =-GA!AW21*$D36 -> 0 | AX36: =-GA!AX21*$D36 -> 0 | AY36: =-GA!AY21*$D36 -> 0 | AZ36: =-GA!AZ21*$D36 -> 0 | BA36: =-GA!BA21*$D36 -> 0
B37: Fees | D37: =Scen!G91 -> 1 | E37: 1 | F37: 0 | H37: 0 | I37: 0 | J37: 0 | K37: 0 | L37: 0 | M37: 0 | N37: =-GA!N32*$D37 -> 0 | O37: =-GA!O32*$D37 -> 0 | P37: =-GA!P32*$D37 -> 0 | Q37: =-GA!Q32*$D37 -> 0 | R37: =-GA!R32*$D37 -> 0 | S37: =-GA!S32*$D37 -> 0 | T37: =-GA!T32*$D37 -> 0 | U37: =-GA!U32*$D37 -> 0 | V37: =-GA!V32*$D37 -> 0 | W37: =-GA!W32*$D37 -> 0 | X37: =-GA!X32*$D37 -> 0 | Y37: =-GA!Y32*$D37 -> 0 | Z37: =-GA!Z32*$D37 -> 0 | AA37: =-GA!AA32*$D37 -> 0 | AB37: =-GA!AB32*$D37 -> 0 | AC37: =-GA!AC32*$D37 -> 0 | AD37: =-GA!AD32*$D37 -> 0 | AE37: =-GA!AE32*$D37 -> 0 | AF37: =-GA!AF32*$D37 -> 0 | AG37: =-GA!AG32*$D37 -> 0 | AH37: =-GA!AH32*$D37 -> 0 | AI37: =-GA!AI32*$D37 -> 0 | AJ37: =-GA!AJ32*$D37 -> 0 | AK37: =-GA!AK32*$D37 -> 0 | AL37: =-GA!AL32*$D37 -> 0 | AM37: =-GA!AM32*$D37 -> 0 | AN37: =-GA!AN32*$D37 -> 0 | AO37: =-GA!AO32*$D37 -> 0 | AP37: =-GA!AP32*$D37 -> 0 | AQ37: =-GA!AQ32*$D37 -> 0 | AR37: =-GA!AR32*$D37 -> 0 | AS37: =-GA!AS32*$D37 -> 0 | AT37: =-GA!AT32*$D37 -> 0 | AU37: =-GA!AU32*$D37 -> 0 | AV37: =-GA!AV32*$D37 -> 0 | AW37: =-GA!AW32*$D37 -> 0 | AX37: =-GA!AX32*$D37 -> 0 | AY37: =-GA!AY32*$D37 -> 0 | AZ37: =-GA!AZ32*$D37 -> 0 | BA37: =-GA!BA32*$D37 -> 0
B38: Land Royalty | D38: =Scen!G92 -> 1 | E38: 1 | F38: 0 | H38: 0 | I38: 0 | J38: 0 | K38: 0 | L38: 0 | M38: 0 | N38: =-GA!N39*$D38 -> 0 | O38: =-GA!O39*$D38 -> 0 | P38: =-GA!P39*$D38 -> 0 | Q38: =-GA!Q39*$D38 -> 0 | R38: =-GA!R39*$D38 -> 0 | S38: =-GA!S39*$D38 -> 0 | T38: =-GA!T39*$D38 -> 0 | U38: =-GA!U39*$D38 -> 0 | V38: =-GA!V39*$D38 -> 0 | W38: =-GA!W39*$D38 -> 0 | X38: =-GA!X39*$D38 -> 0 | Y38: =-GA!Y39*$D38 -> 0 | Z38: =-GA!Z39*$D38 -> 0 | AA38: =-GA!AA39*$D38 -> 0 | AB38: =-GA!AB39*$D38 -> 0 | AC38: =-GA!AC39*$D38 -> 0 | AD38: =-GA!AD39*$D38 -> 0 | AE38: =-GA!AE39*$D38 -> 0 | AF38: =-GA!AF39*$D38 -> 0 | AG38: =-GA!AG39*$D38 -> 0 | AH38: =-GA!AH39*$D38 -> 0 | AI38: =-GA!AI39*$D38 -> 0 | AJ38: =-GA!AJ39*$D38 -> 0 | AK38: =-GA!AK39*$D38 -> 0 | AL38: =-GA!AL39*$D38 -> 0 | AM38: =-GA!AM39*$D38 -> 0 | AN38: =-GA!AN39*$D38 -> 0 | AO38: =-GA!AO39*$D38 -> 0 | AP38: =-GA!AP39*$D38 -> 0 | AQ38: =-GA!AQ39*$D38 -> 0 | AR38: =-GA!AR39*$D38 -> 0 | AS38: =-GA!AS39*$D38 -> 0 | AT38: =-GA!AT39*$D38 -> 0 | AU38: =-GA!AU39*$D38 -> 0 | AV38: =-GA!AV39*$D38 -> 0 | AW38: =-GA!AW39*$D38 -> 0 | AX38: =-GA!AX39*$D38 -> 0 | AY38: =-GA!AY39*$D38 -> 0 | AZ38: =-GA!AZ39*$D38 -> 0 | BA38: =-GA!BA39*$D38 -> 0
B39: Performance Bond | D39: =Scen!G93 -> 1 | E39: 1 | F39: 0 | H39: 0 | I39: 0 | J39: 0 | K39: 0 | L39: 0 | M39: 0 | N39: =-GA!N51*$D39 -> -68.27868852 | O39: =-GA!O51*$D39 -> -104.04 | P39: =-GA!P51*$D39 -> -106.1208 | Q39: =-GA!Q51*$D39 -> -108.243216 | R39: =-GA!R51*$D39 -> -110.4080803 | S39: =-GA!S51*$D39 -> -112.6162419 | T39: =-GA!T51*$D39 -> -114.8685668 | U39: =-GA!U51*$D39 -> -117.1659381 | V39: =-GA!V51*$D39 -> -119.5092569 | W39: =-GA!W51*$D39 -> -121.899442 | X39: =-GA!X51*$D39 -> -124.3374308 | Y39: =-GA!Y51*$D39 -> -126.8241795 | Z39: =-GA!Z51*$D39 -> -129.360663 | AA39: =-GA!AA51*$D39 -> -131.9478763 | AB39: =-GA!AB51*$D39 -> -134.5868338 | AC39: =-GA!AC51*$D39 -> -137.2785705 | AD39: =-GA!AD51*$D39 -> -140.0241419 | AE39: =-GA!AE51*$D39 -> -142.8246248 | AF39: =-GA!AF51*$D39 -> -145.6811173 | AG39: =-GA!AG51*$D39 -> -148.5947396 | AH39: =-GA!AH51*$D39 -> -151.5666344 | AI39: =-GA!AI51*$D39 -> -154.5979671 | AJ39: =-GA!AJ51*$D39 -> -157.6899264 | AK39: =-GA!AK51*$D39 -> -160.8437249 | AL39: =-GA!AL51*$D39 -> -164.0605994 | AM39: =-GA!AM51*$D39 -> -55.32338575 | AN39: =-GA!AN51*$D39 -> 0 | AO39: =-GA!AO51*$D39 -> 0 | AP39: =-GA!AP51*$D39 -> 0 | AQ39: =-GA!AQ51*$D39 -> 0 | AR39: =-GA!AR51*$D39 -> 0 | AS39: =-GA!AS51*$D39 -> 0 | AT39: =-GA!AT51*$D39 -> 0 | AU39: =-GA!AU51*$D39 -> 0 | AV39: =-GA!AV51*$D39 -> 0 | AW39: =-GA!AW51*$D39 -> 0 | AX39: =-GA!AX51*$D39 -> 0 | AY39: =-GA!AY51*$D39 -> 0 | AZ39: =-GA!AZ51*$D39 -> 0 | BA39: =-GA!BA51*$D39 -> 0
B40: Land Lease | E40: 1 | F40: 0 | H40: 0 | I40: 0 | J40: 0 | K40: 0 | L40: 0 | M40: 0 | N40: =OM!N47 -> 57.75 | O40: =OM!O47 -> 58.905 | P40: =OM!P47 -> 60.0831 | Q40: =OM!Q47 -> 61.284762 | R40: =OM!R47 -> 62.51045724 | S40: =OM!S47 -> 91.08666626 | T40: =OM!T47 -> 92.90839959 | U40: =OM!U47 -> 94.76656758 | V40: =OM!V47 -> 96.66189893 | W40: =OM!W47 -> 98.59513691 | X40: =OM!X47 -> 100.5670396 | Y40: =OM!Y47 -> 104.568401 | Z40: =OM!Z47 -> 108.7289686 | AA40: =OM!AA47 -> 113.0550768 | AB40: =OM!AB47 -> 117.5533122 | AC40: =OM!AC47 -> 122.2305233 | AD40: =OM!AD47 -> 127.0938314 | AE40: =OM!AE47 -> 132.1506408 | AF40: =OM!AF47 -> 137.4086505 | AG40: =OM!AG47 -> 142.8758658 | AH40: =OM!AH47 -> 148.5606108 | AI40: =OM!AI47 -> 154.4715404 | AJ40: =OM!AJ47 -> 160.617654 | AK40: =OM!AK47 -> 167.0083092 | AL40: =OM!AL47 -> 173.6532359 | AM40: =OM!AM47 -> 180.5625508 | AN40: =OM!AN47 -> 0 | AO40: =OM!AO47 -> 0 | AP40: =OM!AP47 -> 0 | AQ40: =OM!AQ47 -> 0 | AR40: =OM!AR47 -> 0 | AS40: =OM!AS47 -> 0 | AT40: =OM!AT47 -> 0 | AU40: =OM!AU47 -> 0 | AV40: =OM!AV47 -> 0 | AW40: =OM!AW47 -> 0 | AX40: =OM!AX47 -> 0 | AY40: =OM!AY47 -> 0 | AZ40: =OM!AZ47 -> 0 | BA40: =OM!BA47 -> 0
B41: Other | E41: 1 | F41: 0 | H41: 0 | I41: 0 | J41: 0 | K41: 0 | L41: 0 | M41: 0 | N41: 0 | O41: 0 | P41: 0 | Q41: 0 | R41: 0 | S41: 0 | T41: 0 | U41: 0 | V41: 0 | W41: 0 | X41: 0 | Y41: 0 | Z41: 0 | AA41: 0 | AB41: 0 | AC41: 0 | AD41: 0 | AE41: 0 | AF41: 0 | AG41: 0 | AH41: 0 | AI41: 0 | AJ41: 0 | AK41: 0 | AL41: 0 | AM41: 0 | AN41: 0 | AO41: 0 | AP41: 0 | AQ41: 0 | AR41: 0 | AS41: 0 | AT41: 0 | AU41: 0 | AV41: 0 | AW41: 0 | AX41: 0 | AY41: 0 | AZ41: 0 | BA41: 0
B42: Other | E42: 1 | F42: 0 | H42: 0 | I42: 0 | J42: 0 | K42: 0 | L42: 0 | M42: 0 | N42: 0 | O42: 0 | P42: 0 | Q42: 0 | R42: 0 | S42: 0 | T42: 0 | U42: 0 | V42: 0 | W42: 0 | X42: 0 | Y42: 0 | Z42: 0 | AA42: 0 | AB42: 0 | AC42: 0 | AD42: 0 | AE42: 0 | AF42: 0 | AG42: 0 | AH42: 0 | AI42: 0 | AJ42: 0 | AK42: 0 | AL42: 0 | AM42: 0 | AN42: 0 | AO42: 0 | AP42: 0 | AQ42: 0 | AR42: 0 | AS42: 0 | AT42: 0 | AU42: 0 | AV42: 0 | AW42: 0 | AX42: 0 | AY42: 0 | AZ42: 0 | BA42: 0
B43: Sub-total | H43: =SUM(H29:H42) -> 0 | I43: 0 | J43: 0 | K43: 0 | L43: 0 | M43: -189.7915448 | N43: -278.7939155 | O43: -496.5289178 | P43: -488.975998 | Q43: -469.5393751 | R43: -493.9009785 | S43: -516.0783052 | T43: -495.5619779 | U43: -542.3384259 | V43: -561.5122184 | W43: -690.6677462 | X43: -596.8793917 | Y43: -636.117108 | Z43: -675.0019465 | AA43: -705.5177515 | AB43: -712.4493284 | AC43: -705.9950004 | AD43: -720.9399063 | AE43: -833.4695257 | AF43: -752.7040037 | AG43: -887.0606885 | AH43: -810.8731739 | AI43: -864.5643144 | AJ43: -886.6548277 | AK43: -902.4791304 | AL43: -928.583598 | AM43: -239.0403961 | AN43: 0 | AO43: 0 | AP43: 0 | AQ43: 0 | AR43: 0 | AS43: 0 | AT43: 0 | AU43: 0 | AV43: 0 | AW43: 0 | AX43: 0 | AY43: 0 | AZ43: 0 | BA43: 0
B45: EBITDA | H45: =H26+H43 -> 0 | I45: 0 | J45: 0 | K45: 0 | L45: 0 | M45: -189.7915448 | N45: 3627.326793 | O45: 5396.051876 | P45: 5495.902092 | Q45: 5608.171028 | R45: 5679.184564 | S45: 5751.859114 | T45: 5864.444798 | U45: 5911.499714 | V45: 5989.2906 | W45: 5960.342797 | X45: 6155.332516 | Y45: 6218.905545 | Z45: 6282.801739 | AA45: 6356.402089 | AB45: 6456.539131 | AC45: 6580.824772 | AD45: 6683.782135 | AE45: 6690.882166 | AF45: 6892.970153 | AG45: 6879.992782 | AH45: 7078.943662 | AI45: 7148.030989 | AJ45: 7251.437307 | AK45: 7363.774212 | AL45: 7468.327208 | AM45: 2542.256941 | AN45: 0 | AO45: 0 | AP45: 0 | AQ45: 0 | AR45: 0 | AS45: 0 | AT45: 0 | AU45: 0 | AV45: 0 | AW45: 0 | AX45: 0 | AY45: 0 | AZ45: 0 | BA45: 0
B46: Depreciation | H46: 0 | I46: 0 | J46: 0 | K46: 0 | L46: 0 | M46: =-Depr!M10 -> 0 | N46: =-Depr!N10 -> -1828.4375 | O46: =-Depr!O10 -> -2742.6563 | P46: =-Depr!P10 -> -2742.6563 | Q46: =-Depr!Q10 -> -2742.6563 | R46: =-Depr!R10 -> -2742.6563 | S46: =-Depr!S10 -> -2742.6563 | T46: =-Depr!T10 -> -2742.6563 | U46: =-Depr!U10 -> -2742.6563 | V46: =-Depr!V10 -> -2742.6563 | W46: =-Depr!W10 -> -2742.6563 | X46: =-Depr!X10 -> -2742.6563 | Y46: =-Depr!Y10 -> -2742.6563 | Z46: =-Depr!Z10 -> -2742.6563 | AA46: =-Depr!AA10 -> -2742.6563 | AB46: =-Depr!AB10 -> -2742.6563 | AC46: =-Depr!AC10 -> -2742.6563 | AD46: =-Depr!AD10 -> -2742.6563 | AE46: =-Depr!AE10 -> -2742.6563 | AF46: =-Depr!AF10 -> -2742.6563 | AG46: =-Depr!AG10 -> -2742.6563 | AH46: =-Depr!AH10 -> -2742.6563 | AI46: =-Depr!AI10 -> -2742.6563 | AJ46: =-Depr!AJ10 -> -2742.6563 | AK46: =-Depr!AK10 -> -2742.6563 | AL46: =-Depr!AL10 -> -17370.1552 | AM46: =-Depr!AM10 -> 0 | AN46: =-Depr!AN10 -> 0 | AO46: =-Depr!AO10 -> 0 | AP46: =-Depr!AP10 -> 0 | AQ46: =-Depr!AQ10 -> 0 | AR46: =-Depr!AR10 -> 0 | AS46: =-Depr!AS10 -> 0 | AT46: =-Depr!AT10 -> 0 | AU46: =-Depr!AU10 -> 0 | AV46: =-Depr!AV10 -> 0 | AW46: =-Depr!AW10 -> 0 | AX46: =-Depr!AX10 -> 0 | AY46: =-Depr!AY10 -> 0 | AZ46: =-Depr!AZ10 -> 0 | BA46: =-Depr!BA10 -> 0
B47: Pre-Tax Income | H47: =H45+H46 -> 0 | I47: 0 | J47: 0 | K47: 0 | L47: 0 | M47: -189.7915448 | N47: 1798.889293 | O47: 2653.395576 | P47: 2753.245792 | Q47: 2865.514728 | R47: 2936.528264 | S47: 3009.202814 | T47: 3121.788498 | U47: 3168.843414 | V47: 3246.6343 | W47: 3217.686497 | X47: 3412.676216 | Y47: 3476.249245 | Z47: 3540.145439 | AA47: 3613.745789 | AB47: 3713.882831 | AC47: 3838.168472 | AD47: 3941.125835 | AE47: 3948.225866 | AF47: 4150.313853 | AG47: 4137.336482 | AH47: 4336.287362 | AI47: 4405.374689 | AJ47: 4508.781007 | AK47: 4621.117912 | AL47: -9901.827992 | AM47: 2542.256941 | AN47: 0 | AO47: 0 | AP47: 0 | AQ47: 0 | AR47: 0 | AS47: 0 | AT47: 0 | AU47: 0 | AV47: 0 | AW47: 0 | AX47: 0 | AY47: 0 | AZ47: 0 | BA47: 0
B50: BALANCE SHEET
B52: Cash | E52: Days | H52: =H104 -> 0 | I52: 0 | J52: 0 | K52: 0 | L52: 0 | M52: 0 | N52: 5.531447893 | O52: 5.725048569 | P52: 5.925425269 | Q52: 6.132815153 | R52: 6.347463683 | S52: 6.569624912 | T52: 6.799561784 | U52: 7.037546447 | V52: 7.283860572 | W52: 7.538795692 | X52: 7.802653542 | Y52: 8.075746416 | Z52: 8.35839754 | AA52: 8.650941454 | AB52: 8.953724405 | AC52: 9.267104759 | AD52: 9.591453426 | AE52: 9.927154296 | AF52: 10.2746047 | AG52: 10.63421586 | AH52: 11.00641342 | AI52: 11.39163788 | AJ52: 11.79034521 | AK52: 12.20300729 | AL52: 12.63011255 | AM52: 0 | AN52: 0 | AO52: 0 | AP52: 0 | AQ52: 0 | AR52: 0 | AS52: 0 | AT52: 0 | AU52: 0 | AV52: 0 | AW52: 0 | AX52: 0 | AY52: 0 | AZ52: 0 | BA52: 0
B53: Accounts Receivable | E53: 30 | H53: 0 | I53: 0 | J53: 0 | K53: 0 | L53: 0 | M53: 0 | N53: =IF(O$13=0,0,SUMPRODUCT($E$18:$E$25,N$18:N$25)*($E53/(365*N$13))) -> 479.6109073 | O53: 484.3217091 | P53: 491.9077882 | Q53: 499.5378414 | R53: 507.3768939 | S53: 515.1729385 | T53: 522.740283 | U53: 530.4524498 | V53: 538.4221494 | W53: 546.6584008 | X53: 554.9763212 | Y53: 563.4265194 | Z53: 571.8742756 | AA53: 580.4317677 | AB53: 589.2319282 | AC53: 598.9166936 | AD53: 608.6072911 | AE53: 618.439865 | AF53: 628.4115745 | AG53: 638.3879565 | AH53: 648.4780961 | AI53: 658.569477 | AJ53: 668.8842851 | AK53: 679.418083 | AL53: 690.1570525 | AM53: 0 | AN53: 0 | AO53: 0 | AP53: 0 | AQ53: 0 | AR53: 0 | AS53: 0 | AT53: 0 | AU53: 0 | AV53: 0 | AW53: 0 | AX53: 0 | AY53: 0 | AZ53: 0 | BA53: 0
B54: Other | H54: 0 | I54: 0 | J54: 0 | K54: 0 | L54: 0 | M54: 0 | N54: 0 | O54: 0 | P54: 0 | Q54: 0 | R54: 0 | S54: 0 | T54: 0 | U54: 0 | V54: 0 | W54: 0 | X54: 0 | Y54: 0 | Z54: 0 | AA54: 0 | AB54: 0 | AC54: 0 | AD54: 0 | AE54: 0 | AF54: 0 | AG54: 0 | AH54: 0 | AI54: 0 | AJ54: 0 | AK54: 0 | AL54: 0 | AM54: 0 | AN54: 0 | AO54: 0 | AP54: 0 | AQ54: 0 | AR54: 0 | AS54: 0 | AT54: 0 | AU54: 0 | AV54: 0 | AW54: 0 | AX54: 0 | AY54: 0 | AZ54: 0 | BA54: 0
B55: Other | H55: 0 | I55: 0 | J55: 0 | K55: 0 | L55: 0 | M55: 0 | N55: 0 | O55: 0 | P55: 0 | Q55: 0 | R55: 0 | S55: 0 | T55: 0 | U55: 0 | V55: 0 | W55: 0 | X55: 0 | Y55: 0 | Z55: 0 | AA55: 0 | AB55: 0 | AC55: 0 | AD55: 0 | AE55: 0 | AF55: 0 | AG55: 0 | AH55: 0 | AI55: 0 | AJ55: 0 | AK55: 0 | AL55: 0 | AM55: 0 | AN55: 0 | AO55: 0 | AP55: 0 | AQ55: 0 | AR55: 0 | AS55: 0 | AT55: 0 | AU55: 0 | AV55: 0 | AW55: 0 | AX55: 0 | AY55: 0 | AZ55: 0 | BA55: 0
B56: Sub-total | H56: =SUM(H52:H55) -> 0 | I56: 0 | J56: 0 | K56: 0 | L56: 0 | M56: 0 | N56: 485.1423552 | O56: 490.0467576 | P56: 497.8332135 | Q56: 505.6706565 | R56: 513.7243576 | S56: 521.7425635 | T56: 529.5398447 | U56: 537.4899963 | V56: 545.70601 | W56: 554.1971965 | X56: 562.7789747 | Y56: 571.5022658 | Z56: 580.2326731 | AA56: 589.0827092 | AB56: 598.1856526 | AC56: 608.1837984 | AD56: 618.1987445 | AE56: 628.3670193 | AF56: 638.6861792 | AG56: 649.0221724 | AH56: 659.4845095 | AI56: 669.9611149 | AJ56: 680.6746303 | AK56: 691.6210903 | AL56: 702.7871651 | AM56: 0 | AN56: 0 | AO56: 0 | AP56: 0 | AQ56: 0 | AR56: 0 | AS56: 0 | AT56: 0 | AU56: 0 | AV56: 0 | AW56: 0 | AX56: 0 | AY56: 0 | AZ56: 0 | BA56: 0
B58: Property, Plant & Equipment | H58: =F58-H91 -> 1e-08 | I58: =G58-I91 -> 0 | J58: =I58-J91 -> 0 | K58: 0 | L58: 41249.42745 | M58: 82279.68233 | N58: 82279.68233 | O58: 82279.68233 | P58: 82279.68233 | Q58: 82279.68233 | R58: 82279.68233 | S58: 82279.68233 | T58: 82279.68233 | U58: 82279.68233 | V58: 82279.68233 | W58: 82279.68233 | X58: 82279.68233 | Y58: 82279.68233 | Z58: 82279.68233 | AA58: 82279.68233 | AB58: 82279.68233 | AC58: 82279.68233 | AD58: 82279.68233 | AE58: 82279.68233 | AF58: 82279.68233 | AG58: 82279.68233 | AH58: 82279.68233 | AI58: 82279.68233 | AJ58: 82279.68233 | AK58: 82279.68233 | AL58: 82279.68233 | AM58: 82279.68233 | AN58: 82279.68233 | AO58: 82279.68233 | AP58: 82279.68233 | AQ58: 82279.68233 | AR58: 82279.68233 | AS58: 82279.68233 | AT58: 82279.68233 | AU58: 82279.68233 | AV58: 82279.68233 | AW58: 82279.68233 | AX58: 82279.68233 | AY58: 82279.68233 | AZ58: 82279.68233 | BA58: 82279.68233
B59: Accumulated Depreciation | H59: =F59+H46 -> 0 | I59: =G59+I46 -> 0 | J59: =I59+J46 -> 0 | K59: 0 | L59: 0 | M59: =L59+M46 -> 0 | N59: -1828.4375 | O59: -4571.0938 | P59: -7313.7501 | Q59: -10056.4064 | R59: -12799.0627 | S59: -15541.719 | T59: -18284.3753 | U59: -21027.0316 | V59: -23769.6879 | W59: -26512.3442 | X59: -29255.0005 | Y59: -31997.6568 | Z59: -34740.3131 | AA59: -37482.9694 | AB59: -40225.6257 | AC59: -42968.282 | AD59: -45710.9383 | AE59: -48453.5946 | AF59: -51196.2509 | AG59: -53938.9072 | AH59: -56681.5635 | AI59: -59424.2198 | AJ59: -62166.8761 | AK59: -64909.5324 | AL59: -82279.6876 | AM59: -82279.6876 | AN59: -82279.6876 | AO59: -82279.6876 | AP59: -82279.6876 | AQ59: -82279.6876 | AR59: -82279.6876 | AS59: -82279.6876 | AT59: -82279.6876 | AU59: -82279.6876 | AV59: -82279.6876 | AW59: -82279.6876 | AX59: -82279.6876 | AY59: -82279.6876 | AZ59: -82279.6876 | BA59: -82279.6876
B60: Net PP&E | H60: =SUM(H58:H59) -> 1e-08 | I60: 0 | J60: 0 | K60: 0 | L60: 41249.42745 | M60: 82279.68233 | N60: 80451.24483 | O60: 77708.58853 | P60: 74965.93223 | Q60: 72223.27593 | R60: 69480.61963 | S60: 66737.96333 | T60: 63995.30703 | U60: 61252.65073 | V60: 58509.99443 | W60: 55767.33813 | X60: 53024.68183 | Y60: 50282.02553 | Z60: 47539.36923 | AA60: 44796.71293 | AB60: 42054.05663 | AC60: 39311.40033 | AD60: 36568.74403 | AE60: 33826.08773 | AF60: 31083.43143 | AG60: 28340.77513 | AH60: 25598.11883 | AI60: 22855.46253 | AJ60: 20112.80623 | AK60: 17370.14993 | AL60: -0.005270816517 | AM60: -0.005270816517 | AN60: -0.005270816517 | AO60: -0.005270816517 | AP60: -0.005270816517 | AQ60: -0.005270816517 | AR60: -0.005270816517 | AS60: -0.005270816517 | AT60: -0.005270816517 | AU60: -0.005270816517 | AV60: -0.005270816517 | AW60: -0.005270816517 | AX60: -0.005270816517 | AY60: -0.005270816517 | AZ60: -0.005270816517 | BA60: -0.005270816517
B62: Total Assets | H62: =H56+H60 -> 1e-08 | I62: 0 | J62: 0 | K62: 0 | L62: 41249.42745 | M62: 82279.68233 | N62: 80936.38718 | O62: 78198.63529 | P62: 75463.76544 | Q62: 72728.94659 | R62: 69994.34399 | S62: 67259.70589 | T62: 64524.84687 | U62: 61790.14073 | V62: 59055.70044 | W62: 56321.53533 | X62: 53587.4608 | Y62: 50853.52779 | Z62: 48119.6019 | AA62: 45385.79564 | AB62: 42652.24228 | AC62: 39919.58413 | AD62: 37186.94277 | AE62: 34454.45475 | AF62: 31722.11761 | AG62: 28989.7973 | AH62: 26257.60334 | AI62: 23525.42364 | AJ62: 20793.48086 | AK62: 18061.77102 | AL62: 702.7818942 | AM62: -0.005270816517 | AN62: -0.005270816517 | AO62: -0.005270816517 | AP62: -0.005270816517 | AQ62: -0.005270816517 | AR62: -0.005270816517 | AS62: -0.005270816517 | AT62: -0.005270816517 | AU62: -0.005270816517 | AV62: -0.005270816517 | AW62: -0.005270816517 | AX62: -0.005270816517 | AY62: -0.005270816517 | AZ62: -0.005270816517 | BA62: -0.005270816517
E64: Days
B65: Accounts Payable | E65: 30 | H65: 0 | I65: 0 | J65: 0 | K65: 0 | L65: 0 | M65: 0 | N65: =IF(O$13=0,0,SUMPRODUCT($E$29:$E$42,-N$29:N$42)*($E65/(365*N$13))) -> 23.54277112 | O65: 29.7477002 | P65: 28.73971092 | Q65: 26.74142687 | R65: 28.32897066 | S65: 29.72246758 | T65: 27.59187165 | U65: 30.97663746 | V65: 32.07659629 | W65: 42.19949087 | X65: 33.98098876 | Y65: 36.67829083 | Z65: 39.32811921 | AA65: 41.27096532 | AB65: 41.25559614 | AC65: 40.11953752 | AD65: 40.72112525 | AE65: 49.32143773 | AF65: 42.01177391 | AG65: 52.35988829 | AH65: 45.37867847 | AI65: 49.04725381 | AJ65: 50.09246349 | AK65: 50.59567646 | AL65: 51.91592498 | AM65: 0 | AN65: 0 | AO65: 0 | AP65: 0 | AQ65: 0 | AR65: 0 | AS65: 0 | AT65: 0 | AU65: 0 | AV65: 0 | AW65: 0 | AX65: 0 | AY65: 0 | AZ65: 0 | BA65: 0
B66: Other | H66: 0 | I66: 0 | J66: 0 | K66: 0 | L66: 0 | M66: 0 | N66: 0 | O66: 0 | P66: 0 | Q66: 0 | R66: 0 | S66: 0 | T66: 0 | U66: 0 | V66: 0 | W66: 0 | X66: 0 | Y66: 0 | Z66: 0 | AA66: 0 | AB66: 0 | AC66: 0 | AD66: 0 | AE66: 0 | AF66: 0 | AG66: 0 | AH66: 0 | AI66: 0 | AJ66: 0 | AK66: 0 | AL66: 0 | AM66: 0 | AN66: 0 | AO66: 0 | AP66: 0 | AQ66: 0 | AR66: 0 | AS66: 0 | AT66: 0 | AU66: 0 | AV66: 0 | AW66: 0 | AX66: 0 | AY66: 0 | AZ66: 0 | BA66: 0
B67: Sub-total | H67: =SUM(H65:H66) -> 0 | I67: 0 | J67: 0 | K67: 0 | L67: 0 | M67: 0 | N67: 23.54277112 | O67: 29.7477002 | P67: 28.73971092 | Q67: 26.74142687 | R67: 28.32897066 | S67: 29.72246758 | T67: 27.59187165 | U67: 30.97663746 | V67: 32.07659629 | W67: 42.19949087 | X67: 33.98098876 | Y67: 36.67829083 | Z67: 39.32811921 | AA67: 41.27096532 | AB67: 41.25559614 | AC67: 40.11953752 | AD67: 40.72112525 | AE67: 49.32143773 | AF67: 42.01177391 | AG67: 52.35988829 | AH67: 45.37867847 | AI67: 49.04725381 | AJ67: 50.09246349 | AK67: 50.59567646 | AL67: 51.91592498 | AM67: 0 | AN67: 0 | AO67: 0 | AP67: 0 | AQ67: 0 | AR67: 0 | AS67: 0 | AT67: 0 | AU67: 0 | AV67: 0 | AW67: 0 | AX67: 0 | AY67: 0 | AZ67: 0 | BA67: 0
B69: Initial Investment | H69: =-SUM($H91:H91) -> 1e-08 | I69: =-SUM($H91:I91) -> 1e-08 | J69: =-SUM($H91:J91) -> 1e-08 | K69: =-SUM($H91:K91) -> 1e-08 | L69: =-SUM($H91:L91) -> 41249.42745 | M69: =-SUM($H91:M91) -> 82279.68233 | N69: =-SUM($H91:N91) -> 82279.68233 | O69: =-SUM($H91:O91) -> 82279.68233 | P69: =-SUM($H91:P91) -> 82279.68233 | Q69: =-SUM($H91:Q91) -> 82279.68233 | R69: =-SUM($H91:R91) -> 82279.68233 | S69: =-SUM($H91:S91) -> 82279.68233 | T69: =-SUM($H91:T91) -> 82279.68233 | U69: =-SUM($H91:U91) -> 82279.68233 | V69: =-SUM($H91:V91) -> 82279.68233 | W69: =-SUM($H91:W91) -> 82279.68233 | X69: =-SUM($H91:X91) -> 82279.68233 | Y69: =-SUM($H91:Y91) -> 82279.68233 | Z69: =-SUM($H91:Z91) -> 82279.68233 | AA69: =-SUM($H91:AA91) -> 82279.68233 | AB69: =-SUM($H91:AB91) -> 82279.68233 | AC69: =-SUM($H91:AC91) -> 82279.68233 | AD69: =-SUM($H91:AD91) -> 82279.68233 | AE69: =-SUM($H91:AE91) -> 82279.68233 | AF69: =-SUM($H91:AF91) -> 82279.68233 | AG69: =-SUM($H91:AG91) -> 82279.68233 | AH69: =-SUM($H91:AH91) -> 82279.68233 | AI69: =-SUM($H91:AI91) -> 82279.68233 | AJ69: =-SUM($H91:AJ91) -> 82279.68233 | AK69: =-SUM($H91:AK91) -> 82279.68233 | AL69: =-SUM($H91:AL91) -> 82279.68233 | AM69: =-SUM($H91:AM91) -> 82279.68233 | AN69: =-SUM($H91:AN91) -> 82279.68233 | AO69: =-SUM($H91:AO91) -> 82279.68233 | AP69: =-SUM($H91:AP91) -> 82279.68233 | AQ69: =-SUM($H91:AQ91) -> 82279.68233 | AR69: =-SUM($H91:AR91) -> 82279.68233 | AS69: =-SUM($H91:AS91) -> 82279.68233 | AT69: =-SUM($H91:AT91) -> 82279.68233 | AU69: =-SUM($H91:AU91) -> 82279.68233 | AV69: =-SUM($H91:AV91) -> 82279.68233 | AW69: =-SUM($H91:AW91) -> 82279.68233 | AX69: =-SUM($H91:AX91) -> 82279.68233 | AY69: =-SUM($H91:AY91) -> 82279.68233 | AZ69: =-SUM($H91:AZ91) -> 82279.68233 | BA69: =-SUM($H91:BA91) -> 82279.68233
B70: Accumulated Earnings | H70: =F70+H47 -> 0 | I70: =G70+I47 -> 0 | J70: =I70+J47 -> 0 | K70: 0 | L70: 0 | M70: -189.7915448 | N70: 1609.097749 | O70: 4262.493324 | P70: 7015.739116 | Q70: 9881.253845 | R70: 12817.78211 | S70: 15826.98492 | T70: 18948.77342 | U70: 22117.61683 | V70: 25364.25113 | W70: 28581.93763 | X70: 31994.61385 | Y70: 35470.86309 | Z70: 39011.00853 | AA70: 42624.75432 | AB70: 46338.63715 | AC70: 50176.80562 | AD70: 54117.93146 | AE70: 58066.15732 | AF70: 62216.47118 | AG70: 66353.80766 | AH70: 70690.09502 | AI70: 75095.46971 | AJ70: 79604.25072 | AK70: 84225.36863 | AL70: 74323.54064 | AM70: 76865.79758 | AN70: 76865.79758 | AO70: 76865.79758 | AP70: 76865.79758 | AQ70: 76865.79758 | AR70: 76865.79758 | AS70: 76865.79758 | AT70: 76865.79758 | AU70: 76865.79758 | AV70: 76865.79758 | AW70: 76865.79758 | AX70: 76865.79758 | AY70: 76865.79758 | AZ70: 76865.79758 | BA70: 76865.79758
B71: Accumulated Distributions | H71: =F71+H97 -> 0 | I71: =G71+I97 -> 0 | J71: =I71+J97 -> 0 | K71: 0 | L71: 0 | M71: 189.7915448 | N71: -2975.935665 | O71: -8373.288067 | P71: -13860.39571 | Q71: -19458.73102 | R71: -25131.44942 | S71: -30876.68383 | T71: -36731.20075 | U71: -42638.13508 | V71: -48620.30962 | W71: -54582.28413 | X71: -60720.81636 | Y71: -66933.69592 | Z71: -73210.41708 | AA71: -79559.91198 | AB71: -86007.33279 | AC71: -92577.02336 | AD71: -99251.39214 | AE71: -105940.7063 | AF71: -112816.0477 | AG71: -119696.0526 | AH71: -126757.5527 | AI71: -133898.7756 | AJ71: -141140.5447 | AK71: -148493.8756 | AL71: -155952.357 | AM71: -159145.4852 | AN71: -159145.4852 | AO71: -159145.4852 | AP71: -159145.4852 | AQ71: -159145.4852 | AR71: -159145.4852 | AS71: -159145.4852 | AT71: -159145.4852 | AU71: -159145.4852 | AV71: -159145.4852 | AW71: -159145.4852 | AX71: -159145.4852 | AY71: -159145.4852 | AZ71: -159145.4852 | BA71: -159145.4852
B72: Sub-total | H72: =SUM(H69:H71) -> 1e-08 | I72: 1e-08 | J72: 1e-08 | K72: 1e-08 | L72: 41249.42745 | M72: 82279.68233 | N72: 80912.84441 | O72: 78168.88759 | P72: 75435.02573 | Q72: 72702.20516 | R72: 69966.01502 | S72: 67229.98343 | T72: 64497.255 | U72: 61759.16409 | V72: 59023.62384 | W72: 56279.33583 | X72: 53553.47982 | Y72: 50816.8495 | Z72: 48080.27378 | AA72: 45344.52467 | AB72: 42610.98669 | AC72: 39879.46459 | AD72: 37146.22165 | AE72: 34405.13331 | AF72: 31680.10583 | AG72: 28937.43741 | AH72: 26212.22466 | AI72: 23476.37639 | AJ72: 20743.3884 | AK72: 18011.17534 | AL72: 650.8659693 | AM72: -0.00527080652 | AN72: -0.00527080652 | AO72: -0.00527080652 | AP72: -0.00527080652 | AQ72: -0.00527080652 | AR72: -0.00527080652 | AS72: -0.00527080652 | AT72: -0.00527080652 | AU72: -0.00527080652 | AV72: -0.00527080652 | AW72: -0.00527080652 | AX72: -0.00527080652 | AY72: -0.00527080652 | AZ72: -0.00527080652 | BA72: -0.00527080652
B74: Total Liabilities and Equity | H74: =H67+H72 -> 1e-08 | I74: 1e-08 | J74: 1e-08 | K74: 1e-08 | L74: 41249.42745 | M74: 82279.68233 | N74: 80936.38718 | O74: 78198.63529 | P74: 75463.76544 | Q74: 72728.94659 | R74: 69994.34399 | S74: 67259.70589 | T74: 64524.84687 | U74: 61790.14073 | V74: 59055.70044 | W74: 56321.53533 | X74: 53587.4608 | Y74: 50853.52779 | Z74: 48119.6019 | AA74: 45385.79564 | AB74: 42652.24228 | AC74: 39919.58413 | AD74: 37186.94277 | AE74: 34454.45475 | AF74: 31722.11761 | AG74: 28989.7973 | AH74: 26257.60334 | AI74: 23525.42364 | AJ74: 20793.48086 | AK74: 18061.77102 | AL74: 702.7818943 | AM74: -0.00527080652 | AN74: -0.00527080652 | AO74: -0.00527080652 | AP74: -0.00527080652 | AQ74: -0.00527080652 | AR74: -0.00527080652 | AS74: -0.00527080652 | AT74: -0.00527080652 | AU74: -0.00527080652 | AV74: -0.00527080652 | AW74: -0.00527080652 | AX74: -0.00527080652 | AY74: -0.00527080652 | AZ74: -0.00527080652 | BA74: -0.00527080652
E75: Zero Check
B76: Check Total | E76: =SUM(M76:BA76) -> 0 | H76: =ROUND(H62-H74,2) -> 0 | I76: =ROUND(I62-I74,2) -> 0 | J76: 0 | K76: 0 | L76: 0 | M76: 0 | N76: 0 | O76: 0 | P76: 0 | Q76: 0 | R76: 0 | S76: 0 | T76: 0 | U76: 0 | V76: 0 | W76: 0 | X76: 0 | Y76: 0 | Z76: 0 | AA76: 0 | AB76: 0 | AC76: 0 | AD76: 0 | AE76: 0 | AF76: 0 | AG76: 0 | AH76: 0 | AI76: 0 | AJ76: 0 | AK76: 0 | AL76: 0 | AM76: 0 | AN76: 0 | AO76: 0 | AP76: 0 | AQ76: 0 | AR76: 0 | AS76: 0 | AT76: 0 | AU76: 0 | AV76: 0 | AW76: 0 | AX76: 0 | AY76: 0 | AZ76: 0 | BA76: 0
B79: CASH FLOW STATEMENT
B81: Pre-Tax Income | H81: =H47 -> 0 | I81: 0 | J81: 0 | K81: 0 | L81: 0 | M81: =M47 -> -189.7915448 | N81: 1798.889293 | O81: 2653.395576 | P81: 2753.245792 | Q81: 2865.514728 | R81: 2936.528264 | S81: 3009.202814 | T81: 3121.788498 | U81: 3168.843414 | V81: 3246.6343 | W81: 3217.686497 | X81: 3412.676216 | Y81: 3476.249245 | Z81: 3540.145439 | AA81: 3613.745789 | AB81: 3713.882831 | AC81: 3838.168472 | AD81: 3941.125835 | AE81: 3948.225866 | AF81: 4150.313853 | AG81: 4137.336482 | AH81: 4336.287362 | AI81: 4405.374689 | AJ81: 4508.781007 | AK81: 4621.117912 | AL81: -9901.827992 | AM81: 2542.256941 | AN81: 0 | AO81: 0 | AP81: 0 | AQ81: 0 | AR81: 0 | AS81: 0 | AT81: 0 | AU81: 0 | AV81: 0 | AW81: 0 | AX81: 0 | AY81: 0 | AZ81: 0 | BA81: 0
B82: Addback Depreciation | H82: =-H46 -> 0 | I82: 0 | J82: 0 | K82: 0 | L82: 0 | M82: 0 | N82: 1828.4375 | O82: 2742.6563 | P82: 2742.6563 | Q82: 2742.6563 | R82: 2742.6563 | S82: 2742.6563 | T82: 2742.6563 | U82: 2742.6563 | V82: 2742.6563 | W82: 2742.6563 | X82: 2742.6563 | Y82: 2742.6563 | Z82: 2742.6563 | AA82: 2742.6563 | AB82: 2742.6563 | AC82: 2742.6563 | AD82: 2742.6563 | AE82: 2742.6563 | AF82: 2742.6563 | AG82: 2742.6563 | AH82: 2742.6563 | AI82: 2742.6563 | AJ82: 2742.6563 | AK82: 2742.6563 | AL82: 17370.1552 | AM82: 0 | AN82: 0 | AO82: 0 | AP82: 0 | AQ82: 0 | AR82: 0 | AS82: 0 | AT82: 0 | AU82: 0 | AV82: 0 | AW82: 0 | AX82: 0 | AY82: 0 | AZ82: 0 | BA82: 0
B83: Changes in Working Capital | E83: Zero Check
B84: Accounts Receivable | E84: =SUM(M84:BA84) -> 0 | H84: =F53-H53 -> 0 | I84: =G53-I53 -> 0 | J84: =I53-J53 -> 0 | K84: 0 | L84: 0 | M84: 0 | N84: -479.6109073 | O84: -4.710801778 | P84: -7.586079174 | Q84: -7.63005314 | R84: -7.839052539 | S84: -7.796044636 | T84: -7.567344409 | U84: -7.712166885 | V84: -7.969699584 | W84: -8.236251384 | X84: -8.317920349 | Y84: -8.450198235 | Z84: -8.447756163 | AA84: -8.557492188 | AB84: -8.800160456 | AC84: -9.684765418 | AD84: -9.690597438 | AE84: -9.83257398 | AF84: -9.971709457 | AG84: -9.976382003 | AH84: -10.09013962 | AI84: -10.0913809 | AJ84: -10.31480805 | AK84: -10.53379791 | AL84: -10.73896954 | AM84: 690.1570525 | AN84: 0 | AO84: 0 | AP84: 0 | AQ84: 0 | AR84: 0 | AS84: 0 | AT84: 0 | AU84: 0 | AV84: 0 | AW84: 0 | AX84: 0 | AY84: 0 | AZ84: 0 | BA84: 0
B85: Other Assets | E85: =SUM(M85:BA85) -> 0 | H85: =F55-H55 -> 0 | I85: =G55-I55 -> 0 | J85: =I55-J55 -> 0 | K85: 0 | L85: 0 | M85: 0 | N85: 0 | O85: 0 | P85: 0 | Q85: 0 | R85: 0 | S85: 0 | T85: 0 | U85: 0 | V85: 0 | W85: 0 | X85: 0 | Y85: 0 | Z85: 0 | AA85: 0 | AB85: 0 | AC85: 0 | AD85: 0 | AE85: 0 | AF85: 0 | AG85: 0 | AH85: 0 | AI85: 0 | AJ85: 0 | AK85: 0 | AL85: 0 | AM85: 0 | AN85: 0 | AO85: 0 | AP85: 0 | AQ85: 0 | AR85: 0 | AS85: 0 | AT85: 0 | AU85: 0 | AV85: 0 | AW85: 0 | AX85: 0 | AY85: 0 | AZ85: 0 | BA85: 0
B86: Accounts Payable | E86: =SUM(M86:BA86) -> 0 | H86: =H65-F65 -> 0 | I86: =I65-G65 -> 0 | J86: =J65-I65 -> 0 | K86: 0 | L86: 0 | M86: 0 | N86: 23.54277112 | O86: 6.204929077 | P86: -1.007989282 | Q86: -1.998284047 | R86: 1.587543794 | S86: 1.39349692 | T86: -2.130595934 | U86: 3.384765815 | V86: 1.099958825 | W86: 10.12289458 | X86: -8.218502115 | Y86: 2.697302073 | Z86: 2.649828376 | AA86: 1.942846109 | AB86: -0.01536918154 | AC86: -1.136058611 | AD86: 0.601587721 | AE86: 8.60031248 | AF86: -7.309663818 | AG86: 10.34811439 | AH86: -6.981209826 | AI86: 3.668575341 | AJ86: 1.045209685 | AK86: 0.5032129723 | AL86: 1.320248511 | AM86: -51.91592498 | AN86: 0 | AO86: 0 | AP86: 0 | AQ86: 0 | AR86: 0 | AS86: 0 | AT86: 0 | AU86: 0 | AV86: 0 | AW86: 0 | AX86: 0 | AY86: 0 | AZ86: 0 | BA86: 0
B87: Other Liabilities | E87: =SUM(M87:BA87) -> 0 | H87: =H66-F66 -> 0 | I87: =I66-G66 -> 0 | J87: =J66-I66 -> 0 | K87: 0 | L87: 0 | M87: 0 | N87: 0 | O87: 0 | P87: 0 | Q87: 0 | R87: 0 | S87: 0 | T87: 0 | U87: 0 | V87: 0 | W87: 0 | X87: 0 | Y87: 0 | Z87: 0 | AA87: 0 | AB87: 0 | AC87: 0 | AD87: 0 | AE87: 0 | AF87: 0 | AG87: 0 | AH87: 0 | AI87: 0 | AJ87: 0 | AK87: 0 | AL87: 0 | AM87: 0 | AN87: 0 | AO87: 0 | AP87: 0 | AQ87: 0 | AR87: 0 | AS87: 0 | AT87: 0 | AU87: 0 | AV87: 0 | AW87: 0 | AX87: 0 | AY87: 0 | AZ87: 0 | BA87: 0
B88: Other | E88: =SUM(M88:BA88) -> 0 | H88: 0 | I88: 0 | J88: 0 | K88: 0 | L88: 0 | M88: 0 | N88: 0 | O88: 0 | P88: 0 | Q88: 0 | R88: 0 | S88: 0 | T88: 0 | U88: 0 | V88: 0 | W88: 0 | X88: 0 | Y88: 0 | Z88: 0 | AA88: 0 | AB88: 0 | AC88: 0 | AD88: 0 | AE88: 0 | AF88: 0 | AG88: 0 | AH88: 0 | AI88: 0 | AJ88: 0 | AK88: 0 | AL88: 0 | AM88: 0 | AN88: 0 | AO88: 0 | AP88: 0 | AQ88: 0 | AR88: 0 | AS88: 0 | AT88: 0 | AU88: 0 | AV88: 0 | AW88: 0 | AX88: 0 | AY88: 0 | AZ88: 0 | BA88: 0
B89: Cash Flow from Operations | H89: =SUM(H81:H88) -> 0 | I89: 0 | J89: 0 | K89: 0 | L89: 0 | M89: -189.7915448 | N89: 3171.258657 | O89: 5397.546003 | P89: 5487.308024 | Q89: 5598.542691 | R89: 5672.933055 | S89: 5745.456566 | T89: 5854.746858 | U89: 5907.172313 | V89: 5982.420859 | W89: 5962.22944 | X89: 6138.796093 | Y89: 6213.152648 | Z89: 6277.003812 | AA89: 6349.787443 | AB89: 6447.723602 | AC89: 6570.003948 | AD89: 6674.693125 | AE89: 6689.649904 | AF89: 6875.688779 | AG89: 6880.364515 | AH89: 7061.872313 | AI89: 7141.608184 | AJ89: 7242.167709 | AK89: 7353.743627 | AL89: 7458.908487 | AM89: 3180.498069 | AN89: 0 | AO89: 0 | AP89: 0 | AQ89: 0 | AR89: 0 | AS89: 0 | AT89: 0 | AU89: 0 | AV89: 0 | AW89: 0 | AX89: 0 | AY89: 0 | AZ89: 0 | BA89: 0
B91: Capital Additions | H91: -1e-08 | I91: =-CapEx!E165 -> 0 | J91: =-CapEx!F165 -> 0 | K91: =-CapEx!G165 -> 0 | L91: =-CapEx!H165 -> -41249.42745 | M91: =-CapEx!I165 -> -41030.25487 | N91: 0 | O91: 0 | P91: 0 | Q91: 0 | R91: 0 | S91: 0 | T91: 0 | U91: 0 | V91: 0 | W91: 0 | X91: 0 | Y91: 0 | Z91: 0 | AA91: 0 | AB91: 0 | AC91: 0 | AD91: 0 | AE91: 0 | AF91: 0 | AG91: 0 | AH91: 0 | AI91: 0 | AJ91: 0 | AK91: 0 | AL91: 0 | AM91: 0 | AN91: 0 | AO91: 0 | AP91: 0 | AQ91: 0 | AR91: 0 | AS91: 0 | AT91: 0 | AU91: 0 | AV91: 0 | AW91: 0 | AX91: 0 | AY91: 0 | AZ91: 0 | BA91: 0
B92: Other | H92: 0 | I92: 0 | J92: 0 | K92: 0 | L92: 0 | M92: 0 | N92: 0 | O92: 0 | P92: 0 | Q92: 0 | R92: 0 | S92: 0 | T92: 0 | U92: 0 | V92: 0 | W92: 0 | X92: 0 | Y92: 0 | Z92: 0 | AA92: 0 | AB92: 0 | AC92: 0 | AD92: 0 | AE92: 0 | AF92: 0 | AG92: 0 | AH92: 0 | AI92: 0 | AJ92: 0 | AK92: 0 | AL92: 0 | AM92: 0 | AN92: 0 | AO92: 0 | AP92: 0 | AQ92: 0 | AR92: 0 | AS92: 0 | AT92: 0 | AU92: 0 | AV92: 0 | AW92: 0 | AX92: 0 | AY92: 0 | AZ92: 0 | BA92: 0
B93: Other | H93: 0 | I93: 0 | J93: 0 | K93: 0 | L93: 0 | M93: 0 | N93: 0 | O93: 0 | P93: 0 | Q93: 0 | R93: 0 | S93: 0 | T93: 0 | U93: 0 | V93: 0 | W93: 0 | X93: 0 | Y93: 0 | Z93: 0 | AA93: 0 | AB93: 0 | AC93: 0 | AD93: 0 | AE93: 0 | AF93: 0 | AG93: 0 | AH93: 0 | AI93: 0 | AJ93: 0 | AK93: 0 | AL93: 0 | AM93: 0 | AN93: 0 | AO93: 0 | AP93: 0 | AQ93: 0 | AR93: 0 | AS93: 0 | AT93: 0 | AU93: 0 | AV93: 0 | AW93: 0 | AX93: 0 | AY93: 0 | AZ93: 0 | BA93: 0
B94: Cash Flows from Investment | H94: =SUM(H91:H93) -> -1e-08 | I94: 0 | J94: 0 | K94: 0 | L94: -41249.42745 | M94: -41030.25487 | N94: 0 | O94: 0 | P94: 0 | Q94: 0 | R94: 0 | S94: 0 | T94: 0 | U94: 0 | V94: 0 | W94: 0 | X94: 0 | Y94: 0 | Z94: 0 | AA94: 0 | AB94: 0 | AC94: 0 | AD94: 0 | AE94: 0 | AF94: 0 | AG94: 0 | AH94: 0 | AI94: 0 | AJ94: 0 | AK94: 0 | AL94: 0 | AM94: 0 | AN94: 0 | AO94: 0 | AP94: 0 | AQ94: 0 | AR94: 0 | AS94: 0 | AT94: 0 | AU94: 0 | AV94: 0 | AW94: 0 | AX94: 0 | AY94: 0 | AZ94: 0 | BA94: 0
B96: Contributions | H96: =-H91 -> 1e-08 | I96: 0 | J96: 0 | K96: 0 | L96: 41249.42745 | M96: 41030.25487 | N96: 0 | O96: 0 | P96: 0 | Q96: 0 | R96: 0 | S96: 0 | T96: 0 | U96: 0 | V96: 0 | W96: 0 | X96: 0 | Y96: 0 | Z96: 0 | AA96: 0 | AB96: 0 | AC96: 0 | AD96: 0 | AE96: 0 | AF96: 0 | AG96: 0 | AH96: 0 | AI96: 0 | AJ96: 0 | AK96: 0 | AL96: 0 | AM96: 0 | AN96: 0 | AO96: 0 | AP96: 0 | AQ96: 0 | AR96: 0 | AS96: 0 | AT96: 0 | AU96: 0 | AV96: 0 | AW96: 0 | AX96: 0 | AY96: 0 | AZ96: 0 | BA96: 0
B97: Distributions | H97: =-H106-H96 -> 0 | I97: 0 | J97: 0 | K97: 0 | L97: 0 | M97: 189.7915448 | N97: -3165.727209 | O97: -5397.352402 | P97: -5487.107647 | Q97: -5598.335301 | R97: -5672.718407 | S97: -5745.234405 | T97: -5854.516921 | U97: -5906.934328 | V97: -5982.174545 | W97: -5961.974505 | X97: -6138.532235 | Y97: -6212.879556 | Z97: -6276.721161 | AA97: -6349.494899 | AB97: -6447.420819 | AC97: -6569.690568 | AD97: -6674.368776 | AE97: -6689.314203 | AF97: -6875.341329 | AG97: -6880.004903 | AH97: -7061.500115 | AI97: -7141.222959 | AJ97: -7241.769002 | AK97: -7353.330965 | AL97: -7458.481381 | AM97: -3193.128182 | AN97: 0 | AO97: 0 | AP97: 0 | AQ97: 0 | AR97: 0 | AS97: 0 | AT97: 0 | AU97: 0 | AV97: 0 | AW97: 0 | AX97: 0 | AY97: 0 | AZ97: 0 | BA97: 0
B98: Cash Flows from Financing | H98: =SUM(H96:H97) -> 1e-08 | I98: 0 | J98: 0 | K98: 0 | L98: 41249.42745 | M98: 41220.04642 | N98: -3165.727209 | O98: -5397.352402 | P98: -5487.107647 | Q98: -5598.335301 | R98: -5672.718407 | S98: -5745.234405 | T98: -5854.516921 | U98: -5906.934328 | V98: -5982.174545 | W98: -5961.974505 | X98: -6138.532235 | Y98: -6212.879556 | Z98: -6276.721161 | AA98: -6349.494899 | AB98: -6447.420819 | AC98: -6569.690568 | AD98: -6674.368776 | AE98: -6689.314203 | AF98: -6875.341329 | AG98: -6880.004903 | AH98: -7061.500115 | AI98: -7141.222959 | AJ98: -7241.769002 | AK98: -7353.330965 | AL98: -7458.481381 | AM98: -3193.128182 | AN98: 0 | AO98: 0 | AP98: 0 | AQ98: 0 | AR98: 0 | AS98: 0 | AT98: 0 | AU98: 0 | AV98: 0 | AW98: 0 | AX98: 0 | AY98: 0 | AZ98: 0 | BA98: 0
B100: Beginning Cash Balance | H100: 0 | I100: =G102 -> 0 | J100: =I102 -> 0 | K100: 0 | L100: 0 | M100: 0 | N100: 0 | O100: 5.531447893 | P100: 5.725048569 | Q100: 5.925425269 | R100: 6.132815153 | S100: 6.347463683 | T100: 6.569624912 | U100: 6.799561784 | V100: 7.037546447 | W100: 7.283860572 | X100: 7.538795692 | Y100: 7.802653542 | Z100: 8.075746416 | AA100: 8.35839754 | AB100: 8.650941454 | AC100: 8.953724405 | AD100: 9.267104759 | AE100: 9.591453426 | AF100: 9.927154296 | AG100: 10.2746047 | AH100: 10.63421586 | AI100: 11.00641342 | AJ100: 11.39163788 | AK100: 11.79034521 | AL100: 12.20300729 | AM100: 12.63011255 | AN100: 0 | AO100: 0 | AP100: 0 | AQ100: 0 | AR100: 0 | AS100: 0 | AT100: 0 | AU100: 0 | AV100: 0 | AW100: 0 | AX100: 0 | AY100: 0 | AZ100: 0 | BA100: 0
B101: Net Change in Cash | H101: =H89+H94+H98 -> 0 | I101: 0 | J101: 0 | K101: 0 | L101: 0 | M101: 0 | N101: 5.531447893 | O101: 0.1936006762 | P101: 0.2003766999 | Q101: 0.2073898844 | R101: 0.2146485304 | S101: 0.2221612289 | T101: 0.2299368719 | U101: 0.2379846624 | V101: 0.2463141256 | W101: 0.25493512 | X101: 0.2638578492 | Y101: 0.273092874 | Z101: 0.2826511245 | AA101: 0.2925439139 | AB101: 0.3027829509 | AC101: 0.3133803542 | AD101: 0.3243486666 | AE101: 0.3357008699 | AF101: 0.3474504003 | AG101: 0.3596111644 | AH101: 0.3721975551 | AI101: 0.3852244695 | AJ101: 0.398707326 | AK101: 0.4126620824 | AL101: 0.4271052553 | AM101: -12.63011255 | AN101: 0 | AO101: 0 | AP101: 0 | AQ101: 0 | AR101: 0 | AS101: 0 | AT101: 0 | AU101: 0 | AV101: 0 | AW101: 0 | AX101: 0 | AY101: 0 | AZ101: 0 | BA101: 0
B102: Ending Cash Balance | H102: =SUM(H100:H101) -> 0 | I102: 0 | J102: 0 | K102: 0 | L102: 0 | M102: 0 | N102: 5.531447893 | O102: 5.725048569 | P102: 5.925425269 | Q102: 6.132815153 | R102: 6.347463683 | S102: 6.569624912 | T102: 6.799561784 | U102: 7.037546447 | V102: 7.283860572 | W102: 7.538795692 | X102: 7.802653542 | Y102: 8.075746416 | Z102: 8.35839754 | AA102: 8.650941454 | AB102: 8.953724405 | AC102: 9.267104759 | AD102: 9.591453426 | AE102: 9.927154296 | AF102: 10.2746047 | AG102: 10.63421586 | AH102: 11.00641342 | AI102: 11.39163788 | AJ102: 11.79034521 | AK102: 12.20300729 | AL102: 12.63011255 | AM102: 0 | AN102: 0 | AO102: 0 | AP102: 0 | AQ102: 0 | AR102: 0 | AS102: 0 | AT102: 0 | AU102: 0 | AV102: 0 | AW102: 0 | AX102: 0 | AY102: 0 | AZ102: 0 | BA102: 0
E103: Days | F103: $000's
B104: Target Working Capital | E104: 15 | F104: 0 | H104: 0 | I104: 0 | J104: 0 | K104: 0 | L104: 0 | M104: 0 | N104: =IF(O$13=0,0,SUMPRODUCT($F$29:$F$42,-O$29:O$42)*($E104/(365*O$13)))+$F104 -> 5.531447893 | O104: 5.725048569 | P104: 5.925425269 | Q104: 6.132815153 | R104: 6.347463683 | S104: 6.569624912 | T104: 6.799561784 | U104: 7.037546447 | V104: 7.283860572 | W104: 7.538795692 | X104: 7.802653542 | Y104: 8.075746416 | Z104: 8.35839754 | AA104: 8.650941454 | AB104: 8.953724405 | AC104: 9.267104759 | AD104: 9.591453426 | AE104: 9.927154296 | AF104: 10.2746047 | AG104: 10.63421586 | AH104: 11.00641342 | AI104: 11.39163788 | AJ104: 11.79034521 | AK104: 12.20300729 | AL104: 12.63011255 | AM104: 0 | AN104: 0 | AO104: 0 | AP104: 0 | AQ104: 0 | AR104: 0 | AS104: 0 | AT104: 0 | AU104: 0 | AV104: 0 | AW104: 0 | AX104: 0 | AY104: 0 | AZ104: 0 | BA104: 0
B106: Pre-Tax Cash Available / (Required) | H106: =H89+H94+H100-H104 -> -1e-08 | I106: 0 | J106: 0 | K106: 0 | L106: -41249.42745 | M106: -41220.04642 | N106: 3165.727209 | O106: 5397.352402 | P106: 5487.107647 | Q106: 5598.335301 | R106: 5672.718407 | S106: 5745.234405 | T106: 5854.516921 | U106: 5906.934328 | V106: 5982.174545 | W106: 5961.974505 | X106: 6138.532235 | Y106: 6212.879556 | Z106: 6276.721161 | AA106: 6349.494899 | AB106: 6447.420819 | AC106: 6569.690568 | AD106: 6674.368776 | AE106: 6689.314203 | AF106: 6875.341329 | AG106: 6880.004903 | AH106: 7061.500115 | AI106: 7141.222959 | AJ106: 7241.769002 | AK106: 7353.330965 | AL106: 7458.481381 | AM106: 3193.128182 | AN106: 0 | AO106: 0 | AP106: 0 | AQ106: 0 | AR106: 0 | AS106: 0 | AT106: 0 | AU106: 0 | AV106: 0 | AW106: 0 | AX106: 0 | AY106: 0 | AZ106: 0 | BA106: 0
B109: INCOME TAX
D111: Fed | E111: State | F111: Eff
B112: Effective Tax Rate | D112: 0.35 | E112: 0.042 | F112: =D112+E112*(1-D112) -> 0.3773 | H112: =$F112 -> 0.3773 | I112: 0.3773 | J112: 0.3773 | K112: 0.3773 | L112: 0.3773 | M112: 0.3773 | N112: 0.3773 | O112: 0.3773 | P112: 0.3773 | Q112: 0.3773 | R112: 0.3773 | S112: 0.3773 | T112: 0.3773 | U112: 0.3773 | V112: 0.3773 | W112: 0.3773 | X112: 0.3773 | Y112: 0.3773 | Z112: 0.3773 | AA112: 0.3773 | AB112: 0.3773 | AC112: 0.3773 | AD112: 0.3773 | AE112: 0.3773 | AF112: 0.3773 | AG112: 0.3773 | AH112: 0.3773 | AI112: 0.3773 | AJ112: 0.3773 | AK112: 0.3773 | AL112: 0.3773 | AM112: 0.3773 | AN112: 0.3773 | AO112: 0.3773 | AP112: 0.3773 | AQ112: 0.3773 | AR112: 0.3773 | AS112: 0.3773 | AT112: 0.3773 | AU112: 0.3773 | AV112: 0.3773 | AW112: 0.3773 | AX112: 0.3773 | AY112: 0.3773 | AZ112: 0.3773 | BA112: 0.3773
E113: (unitary)
B114: State
B115: Pre-Tax Income | H115: =H$81 -> 0 | I115: 0 | J115: 0 | K115: 0 | L115: 0 | M115: -189.7915448 | N115: 1798.889293 | O115: 2653.395576 | P115: 2753.245792 | Q115: 2865.514728 | R115: 2936.528264 | S115: 3009.202814 | T115: 3121.788498 | U115: 3168.843414 | V115: 3246.6343 | W115: 3217.686497 | X115: 3412.676216 | Y115: 3476.249245 | Z115: 3540.145439 | AA115: 3613.745789 | AB115: 3713.882831 | AC115: 3838.168472 | AD115: 3941.125835 | AE115: 3948.225866 | AF115: 4150.313853 | AG115: 4137.336482 | AH115: 4336.287362 | AI115: 4405.374689 | AJ115: 4508.781007 | AK115: 4621.117912 | AL115: -9901.827992 | AM115: 2542.256941 | AN115: 0 | AO115: 0 | AP115: 0 | AQ115: 0 | AR115: 0 | AS115: 0 | AT115: 0 | AU115: 0 | AV115: 0 | AW115: 0 | AX115: 0 | AY115: 0 | AZ115: 0 | BA115: 0
B116: Addback: Book Depreciation | H116: =-H$46 -> 0 | I116: 0 | J116: 0 | K116: 0 | L116: 0 | M116: 0 | N116: 1828.4375 | O116: 2742.6563 | P116: 2742.6563 | Q116: 2742.6563 | R116: 2742.6563 | S116: 2742.6563 | T116: 2742.6563 | U116: 2742.6563 | V116: 2742.6563 | W116: 2742.6563 | X116: 2742.6563 | Y116: 2742.6563 | Z116: 2742.6563 | AA116: 2742.6563 | AB116: 2742.6563 | AC116: 2742.6563 | AD116: 2742.6563 | AE116: 2742.6563 | AF116: 2742.6563 | AG116: 2742.6563 | AH116: 2742.6563 | AI116: 2742.6563 | AJ116: 2742.6563 | AK116: 2742.6563 | AL116: 17370.1552 | AM116: 0 | AN116: 0 | AO116: 0 | AP116: 0 | AQ116: 0 | AR116: 0 | AS116: 0 | AT116: 0 | AU116: 0 | AV116: 0 | AW116: 0 | AX116: 0 | AY116: 0 | AZ116: 0 | BA116: 0
B117: Deduct: Tax Depreciation - State | H117: 0 | I117: 0 | J117: 0 | K117: 0 | L117: 0 | M117: =-Depr!M9 -> 0 | N117: =-Depr!N9 -> -35112.5646 | O117: =-Depr!O9 -> -4403.5137 | P117: =-Depr!P9 -> -3857.7591 | Q117: =-Depr!Q9 -> -3379.7554 | R117: =-Depr!R9 -> -2961.0806 | S117: =-Depr!S9 -> -2759.1216 | T117: =-Depr!T9 -> -2752.651 | U117: =-Depr!U9 -> -2752.651 | V117: =-Depr!V9 -> -2752.651 | W117: =-Depr!W9 -> -2752.651 | X117: =-Depr!X9 -> -2752.651 | Y117: =-Depr!Y9 -> -2752.651 | Z117: =-Depr!Z9 -> -1434.562 | AA117: =-Depr!AA9 -> -116.473 | AB117: =-Depr!AB9 -> -116.473 | AC117: =-Depr!AC9 -> -58.2364 | AD117: =-Depr!AD9 -> 0 | AE117: =-Depr!AE9 -> 0 | AF117: =-Depr!AF9 -> 0 | AG117: =-Depr!AG9 -> 0 | AH117: =-Depr!AH9 -> 0 | AI117: =-Depr!AI9 -> 0 | AJ117: =-Depr!AJ9 -> 0 | AK117: =-Depr!AK9 -> 0 | AL117: =-Depr!AL9 -> 0 | AM117: =-Depr!AM9 -> 0 | AN117: =-Depr!AN9 -> 0 | AO117: =-Depr!AO9 -> 0 | AP117: =-Depr!AP9 -> 0 | AQ117: =-Depr!AQ9 -> 0 | AR117: =-Depr!AR9 -> 0 | AS117: =-Depr!AS9 -> 0 | AT117: =-Depr!AT9 -> 0 | AU117: =-Depr!AU9 -> 0 | AV117: =-Depr!AV9 -> 0 | AW117: =-Depr!AW9 -> 0 | AX117: =-Depr!AX9 -> 0 | AY117: =-Depr!AY9 -> 0 | AZ117: =-Depr!AZ9 -> 0 | BA117: =-Depr!BA9 -> 0
B118: State Taxable Income | H118: =SUM(H115:H117) -> 0 | I118: 0 | J118: 0 | K118: 0 | L118: 0 | M118: -189.7915448 | N118: -31485.23781 | O118: 992.5381757 | P118: 1638.142992 | Q118: 2228.415628 | R118: 2718.103964 | S118: 2992.737514 | T118: 3111.793798 | U118: 3158.848714 | V118: 3236.6396 | W118: 3207.691797 | X118: 3402.681516 | Y118: 3466.254545 | Z118: 4848.239739 | AA118: 6239.929089 | AB118: 6340.066131 | AC118: 6522.588372 | AD118: 6683.782135 | AE118: 6690.882166 | AF118: 6892.970153 | AG118: 6879.992782 | AH118: 7078.943662 | AI118: 7148.030989 | AJ118: 7251.437307 | AK118: 7363.774212 | AL118: 7468.327208 | AM118: 2542.256941 | AN118: 0 | AO118: 0 | AP118: 0 | AQ118: 0 | AR118: 0 | AS118: 0 | AT118: 0 | AU118: 0 | AV118: 0 | AW118: 0 | AX118: 0 | AY118: 0 | AZ118: 0 | BA118: 0
B120: NOL - Roll Forward
B121: Beg Balance | E121: on/off | F121: Roll Off | G121: Beg : | H121: 0 | I121: =H125 -> 0 | J121: 0 | K121: 0 | L121: 0 | M121: 0 | N121: 189.7915448 | O121: 31675.02936 | P121: 30682.49118 | Q121: 0 | R121: 0 | S121: 0 | T121: 0 | U121: 0 | V121: 0 | W121: 0 | X121: 0 | Y121: 0 | Z121: 0 | AA121: 0 | AB121: 0 | AC121: 0 | AD121: 0 | AE121: 0 | AF121: 0 | AG121: 0 | AH121: 0 | AI121: 0 | AJ121: 0 | AK121: 0 | AL121: 0 | AM121: 0 | AN121: 0 | AO121: 0 | AP121: 0 | AQ121: 0 | AR121: 0 | AS121: 0 | AT121: 0 | AU121: 0 | AV121: 0 | AW121: 0 | AX121: 0 | AY121: 0 | AZ121: 0 | BA121: 0
B122: Additions | E122: =Scen!G21 -> 1 | F122: 2014 | G122: Addn's : | H122: =-MIN(H118,0)*($F122>H$4)*$E122 -> 0 | I122: 0 | J122: 0 | K122: 0 | L122: 0 | M122: 189.7915448 | N122: 31485.23781 | O122: 0 | P122: 0 | Q122: 0 | R122: 0 | S122: 0 | T122: 0 | U122: 0 | V122: 0 | W122: 0 | X122: 0 | Y122: 0 | Z122: 0 | AA122: 0 | AB122: 0 | AC122: 0 | AD122: 0 | AE122: 0 | AF122: 0 | AG122: 0 | AH122: 0 | AI122: 0 | AJ122: 0 | AK122: 0 | AL122: 0 | AM122: 0 | AN122: 0 | AO122: 0 | AP122: 0 | AQ122: 0 | AR122: 0 | AS122: 0 | AT122: 0 | AU122: 0 | AV122: 0 | AW122: 0 | AX122: 0 | AY122: 0 | AZ122: 0 | BA122: 0
B123: Utilization Group | E123: =E122 -> 1 | F123: =F122 -> 2014 | G123: Util : | H123: =($F123=H$4)*-(H121+H122) -> 0 | I123: 0 | J123: 0 | K123: 0 | L123: 0 | M123: 0 | N123: 0 | O123: 0 | P123: -30682.49118 | Q123: 0 | R123: 0 | S123: 0 | T123: 0 | U123: 0 | V123: 0 | W123: 0 | X123: 0 | Y123: 0 | Z123: 0 | AA123: 0 | AB123: 0 | AC123: 0 | AD123: 0 | AE123: 0 | AF123: 0 | AG123: 0 | AH123: 0 | AI123: 0 | AJ123: 0 | AK123: 0 | AL123: 0 | AM123: 0 | AN123: 0 | AO123: 0 | AP123: 0 | AQ123: 0 | AR123: 0 | AS123: 0 | AT123: 0 | AU123: 0 | AV123: 0 | AW123: 0 | AX123: 0 | AY123: 0 | AZ123: 0 | BA123: 0
B124: Utilization | G124: Util : | H124: =-MIN(MAX(H118,0),SUM(H121:H123)) -> 0 | I124: 0 | J124: 0 | K124: 0 | L124: 0 | M124: 0 | N124: 0 | O124: -992.5381757 | P124: 0 | Q124: 0 | R124: 0 | S124: 0 | T124: 0 | U124: 0 | V124: 0 | W124: 0 | X124: 0 | Y124: 0 | Z124: 0 | AA124: 0 | AB124: 0 | AC124: 0 | AD124: 0 | AE124: 0 | AF124: 0 | AG124: 0 | AH124: 0 | AI124: 0 | AJ124: 0 | AK124: 0 | AL124: 0 | AM124: 0 | AN124: 0 | AO124: 0 | AP124: 0 | AQ124: 0 | AR124: 0 | AS124: 0 | AT124: 0 | AU124: 0 | AV124: 0 | AW124: 0 | AX124: 0 | AY124: 0 | AZ124: 0 | BA124: 0
B125: Ending Balance | G125: End : | H125: =SUM(H121:H124) -> 0 | I125: 0 | J125: 0 | K125: 0 | L125: 0 | M125: 189.7915448 | N125: 31675.02936 | O125: 30682.49118 | P125: 0 | Q125: 0 | R125: 0 | S125: 0 | T125: 0 | U125: 0 | V125: 0 | W125: 0 | X125: 0 | Y125: 0 | Z125: 0 | AA125: 0 | AB125: 0 | AC125: 0 | AD125: 0 | AE125: 0 | AF125: 0 | AG125: 0 | AH125: 0 | AI125: 0 | AJ125: 0 | AK125: 0 | AL125: 0 | AM125: 0 | AN125: 0 | AO125: 0 | AP125: 0 | AQ125: 0 | AR125: 0 | AS125: 0 | AT125: 0 | AU125: 0 | AV125: 0 | AW125: 0 | AX125: 0 | AY125: 0 | AZ125: 0 | BA125: 0
B127: NOL Adjusted State Taxable Income | E127: State | H127: =H118+SUM(H122:H124) -> 0 | I127: 0 | J127: 0 | K127: 0 | L127: 0 | M127: 0 | N127: 0 | O127: 0 | P127: -29044.34819 | Q127: 2228.415628 | R127: 2718.103964 | S127: 2992.737514 | T127: 3111.793798 | U127: 3158.848714 | V127: 3236.6396 | W127: 3207.691797 | X127: 3402.681516 | Y127: 3466.254545 | Z127: 4848.239739 | AA127: 6239.929089 | AB127: 6340.066131 | AC127: 6522.588372 | AD127: 6683.782135 | AE127: 6690.882166 | AF127: 6892.970153 | AG127: 6879.992782 | AH127: 7078.943662 | AI127: 7148.030989 | AJ127: 7251.437307 | AK127: 7363.774212 | AL127: 7468.327208 | AM127: 2542.256941 | AN127: 0 | AO127: 0 | AP127: 0 | AQ127: 0 | AR127: 0 | AS127: 0 | AT127: 0 | AU127: 0 | AV127: 0 | AW127: 0 | AX127: 0 | AY127: 0 | AZ127: 0 | BA127: 0
B128: State Tax Benefit / (Payment) | E128: =E112 -> 0.042 | H128: =-H127*$E128 -> 0 | I128: 0 | J128: 0 | K128: 0 | L128: 0 | M128: 0 | N128: 0 | O128: 0 | P128: 1219.862624 | Q128: -93.59345639 | R128: -114.1603665 | S128: -125.6949756 | T128: -130.6953395 | U128: -132.671646 | V128: -135.9388632 | W128: -134.7230555 | X128: -142.9126237 | Y128: -145.5826909 | Z128: -203.6260691 | AA128: -262.0770218 | AB128: -266.2827775 | AC128: -273.9487116 | AD128: -280.7188497 | AE128: -281.017051 | AF128: -289.5047464 | AG128: -288.9596969 | AH128: -297.3156338 | AI128: -300.2173015 | AJ128: -304.5603669 | AK128: -309.2785169 | AL128: -313.6697427 | AM128: -106.7747915 | AN128: 0 | AO128: 0 | AP128: 0 | AQ128: 0 | AR128: 0 | AS128: 0 | AT128: 0 | AU128: 0 | AV128: 0 | AW128: 0 | AX128: 0 | AY128: 0 | AZ128: 0 | BA128: 0
B130: State Investment Tax Credit | E130: on/off | F130: Thru
B131: Qualified State Tax Income | E131: 0 | F131: 2022 | H131: =MAX(H118,0)*($F131>=H$4)*$E131 -> 0 | I131: 0 | J131: 0 | K131: 0 | L131: 0 | M131: 0 | N131: 0 | O131: 0 | P131: 0 | Q131: 0 | R131: 0 | S131: 0 | T131: 0 | U131: 0 | V131: 0 | W131: 0 | X131: 0 | Y131: 0 | Z131: 0 | AA131: 0 | AB131: 0 | AC131: 0 | AD131: 0 | AE131: 0 | AF131: 0 | AG131: 0 | AH131: 0 | AI131: 0 | AJ131: 0 | AK131: 0 | AL131: 0 | AM131: 0 | AN131: 0 | AO131: 0 | AP131: 0 | AQ131: 0 | AR131: 0 | AS131: 0 | AT131: 0 | AU131: 0 | AV131: 0 | AW131: 0 | AX131: 0 | AY131: 0 | AZ131: 0 | BA131: 0
B132: State State Tax Rate | E132: 0.07 | H132: =$E132 -> 0.07 | I132: 0.07 | J132: 0.07 | K132: 0.07 | L132: 0.07 | M132: 0.07 | N132: 0.07 | O132: 0.07 | P132: 0.07 | Q132: 0.07 | R132: 0.07 | S132: 0.07 | T132: 0.07 | U132: 0.07 | V132: 0.07 | W132: 0.07 | X132: 0.07 | Y132: 0.07 | Z132: 0.07 | AA132: 0.07 | AB132: 0.07 | AC132: 0.07 | AD132: 0.07 | AE132: 0.07 | AF132: 0.07 | AG132: 0.07 | AH132: 0.07 | AI132: 0.07 | AJ132: 0.07 | AK132: 0.07 | AL132: 0.07 | AM132: 0.07 | AN132: 0.07 | AO132: 0.07 | AP132: 0.07 | AQ132: 0.07 | AR132: 0.07 | AS132: 0.07 | AT132: 0.07 | AU132: 0.07 | AV132: 0.07 | AW132: 0.07 | AX132: 0.07 | AY132: 0.07 | AZ132: 0.07 | BA132: 0.07
B133: State Tax Credit Adjustment | H133: =H131*H132 -> 0 | I133: 0 | J133: 0 | K133: 0 | L133: 0 | M133: 0 | N133: 0 | O133: 0 | P133: 0 | Q133: 0 | R133: 0 | S133: 0 | T133: 0 | U133: 0 | V133: 0 | W133: 0 | X133: 0 | Y133: 0 | Z133: 0 | AA133: 0 | AB133: 0 | AC133: 0 | AD133: 0 | AE133: 0 | AF133: 0 | AG133: 0 | AH133: 0 | AI133: 0 | AJ133: 0 | AK133: 0 | AL133: 0 | AM133: 0 | AN133: 0 | AO133: 0 | AP133: 0 | AQ133: 0 | AR133: 0 | AS133: 0 | AT133: 0 | AU133: 0 | AV133: 0 | AW133: 0 | AX133: 0 | AY133: 0 | AZ133: 0 | BA133: 0
B135: Kansas Investment Tax Credit - Roll Forward
B136: Beg Balance | H136: 0 | I136: =H139 -> 0 | J136: 0 | K136: 0 | L136: 0 | M136: 0 | N136: 0 | O136: 0 | P136: 0 | Q136: 0 | R136: 0 | S136: 0 | T136: 0 | U136: 0 | V136: 0 | W136: 0 | X136: 0 | Y136: 0 | Z136: 0 | AA136: 0 | AB136: 0 | AC136: 0 | AD136: 0 | AE136: 0 | AF136: 0 | AG136: 0 | AH136: 0 | AI136: 0 | AJ136: 0 | AK136: 0 | AL136: 0 | AM136: 0 | AN136: 0 | AO136: 0 | AP136: 0 | AQ136: 0 | AR136: 0 | AS136: 0 | AT136: 0 | AU136: 0 | AV136: 0 | AW136: 0 | AX136: 0 | AY136: 0 | AZ136: 0 | BA136: 0
B137: Additions | H137: =H133 -> 0 | I137: 0 | J137: 0 | K137: 0 | L137: 0 | M137: 0 | N137: 0 | O137: 0 | P137: 0 | Q137: 0 | R137: 0 | S137: 0 | T137: 0 | U137: 0 | V137: 0 | W137: 0 | X137: 0 | Y137: 0 | Z137: 0 | AA137: 0 | AB137: 0 | AC137: 0 | AD137: 0 | AE137: 0 | AF137: 0 | AG137: 0 | AH137: 0 | AI137: 0 | AJ137: 0 | AK137: 0 | AL137: 0 | AM137: 0 | AN137: 0 | AO137: 0 | AP137: 0 | AQ137: 0 | AR137: 0 | AS137: 0 | AT137: 0 | AU137: 0 | AV137: 0 | AW137: 0 | AX137: 0 | AY137: 0 | AZ137: 0 | BA137: 0
B138: Utilization | H138: =IF(SUM(H136:H137)>-H128, MIN(H128,0),-SUM(H136:H137)) -> 0 | I138: 0 | J138: 0 | K138: 0 | L138: 0 | M138: 0 | N138: 0 | O138: 0 | P138: 0 | Q138: 0 | R138: 0 | S138: 0 | T138: 0 | U138: 0 | V138: 0 | W138: 0 | X138: 0 | Y138: 0 | Z138: 0 | AA138: 0 | AB138: 0 | AC138: 0 | AD138: 0 | AE138: 0 | AF138: 0 | AG138: 0 | AH138: 0 | AI138: 0 | AJ138: 0 | AK138: 0 | AL138: 0 | AM138: 0 | AN138: 0 | AO138: 0 | AP138: 0 | AQ138: 0 | AR138: 0 | AS138: 0 | AT138: 0 | AU138: 0 | AV138: 0 | AW138: 0 | AX138: 0 | AY138: 0 | AZ138: 0 | BA138: 0
B139: Ending Balance | H139: =SUM(H136:H138) -> 0 | I139: 0 | J139: 0 | K139: 0 | L139: 0 | M139: 0 | N139: 0 | O139: 0 | P139: 0 | Q139: 0 | R139: 0 | S139: 0 | T139: 0 | U139: 0 | V139: 0 | W139: 0 | X139: 0 | Y139: 0 | Z139: 0 | AA139: 0 | AB139: 0 | AC139: 0 | AD139: 0 | AE139: 0 | AF139: 0 | AG139: 0 | AH139: 0 | AI139: 0 | AJ139: 0 | AK139: 0 | AL139: 0 | AM139: 0 | AN139: 0 | AO139: 0 | AP139: 0 | AQ139: 0 | AR139: 0 | AS139: 0 | AT139: 0 | AU139: 0 | AV139: 0 | AW139: 0 | AX139: 0 | AY139: 0 | AZ139: 0 | BA139: 0
B141: State Tax Benefit / (Payment) | H141: =H128+H133 -> 0 | I141: 0 | J141: 0 | K141: 0 | L141: 0 | M141: 0 | N141: 0 | O141: 0 | P141: 1219.862624 | Q141: -93.59345639 | R141: -114.1603665 | S141: -125.6949756 | T141: -130.6953395 | U141: -132.671646 | V141: -135.9388632 | W141: -134.7230555 | X141: -142.9126237 | Y141: -145.5826909 | Z141: -203.6260691 | AA141: -262.0770218 | AB141: -266.2827775 | AC141: -273.9487116 | AD141: -280.7188497 | AE141: -281.017051 | AF141: -289.5047464 | AG141: -288.9596969 | AH141: -297.3156338 | AI141: -300.2173015 | AJ141: -304.5603669 | AK141: -309.2785169 | AL141: -313.6697427 | AM141: -106.7747915 | AN141: 0 | AO141: 0 | AP141: 0 | AQ141: 0 | AR141: 0 | AS141: 0 | AT141: 0 | AU141: 0 | AV141: 0 | AW141: 0 | AX141: 0 | AY141: 0 | AZ141: 0 | BA141: 0
B145: Federal
B146: Pre-Tax Income | H146: =H$81 -> 0 | I146: 0 | J146: 0 | K146: 0 | L146: 0 | M146: -189.7915448 | N146: 1798.889293 | O146: 2653.395576 | P146: 2753.245792 | Q146: 2865.514728 | R146: 2936.528264 | S146: 3009.202814 | T146: 3121.788498 | U146: 3168.843414 | V146: 3246.6343 | W146: 3217.686497 | X146: 3412.676216 | Y146: 3476.249245 | Z146: 3540.145439 | AA146: 3613.745789 | AB146: 3713.882831 | AC146: 3838.168472 | AD146: 3941.125835 | AE146: 3948.225866 | AF146: 4150.313853 | AG146: 4137.336482 | AH146: 4336.287362 | AI146: 4405.374689 | AJ146: 4508.781007 | AK146: 4621.117912 | AL146: -9901.827992 | AM146: 2542.256941 | AN146: 0 | AO146: 0 | AP146: 0 | AQ146: 0 | AR146: 0 | AS146: 0 | AT146: 0 | AU146: 0 | AV146: 0 | AW146: 0 | AX146: 0 | AY146: 0 | AZ146: 0 | BA146: 0
B147: Addback: Book Depreciation | H147: =-H$46 -> 0 | I147: 0 | J147: 0 | K147: 0 | L147: 0 | M147: 0 | N147: 1828.4375 | O147: 2742.6563 | P147: 2742.6563 | Q147: 2742.6563 | R147: 2742.6563 | S147: 2742.6563 | T147: 2742.6563 | U147: 2742.6563 | V147: 2742.6563 | W147: 2742.6563 | X147: 2742.6563 | Y147: 2742.6563 | Z147: 2742.6563 | AA147: 2742.6563 | AB147: 2742.6563 | AC147: 2742.6563 | AD147: 2742.6563 | AE147: 2742.6563 | AF147: 2742.6563 | AG147: 2742.6563 | AH147: 2742.6563 | AI147: 2742.6563 | AJ147: 2742.6563 | AK147: 2742.6563 | AL147: 17370.1552 | AM147: 0 | AN147: 0 | AO147: 0 | AP147: 0 | AQ147: 0 | AR147: 0 | AS147: 0 | AT147: 0 | AU147: 0 | AV147: 0 | AW147: 0 | AX147: 0 | AY147: 0 | AZ147: 0 | BA147: 0
B148: Deduct: State Tax Benefit / (Payment) | H148: =H141 -> 0 | I148: 0 | J148: 0 | K148: 0 | L148: 0 | M148: 0 | N148: 0 | O148: 0 | P148: 1219.862624 | Q148: -93.59345639 | R148: -114.1603665 | S148: -125.6949756 | T148: -130.6953395 | U148: -132.671646 | V148: -135.9388632 | W148: -134.7230555 | X148: -142.9126237 | Y148: -145.5826909 | Z148: -203.6260691 | AA148: -262.0770218 | AB148: -266.2827775 | AC148: -273.9487116 | AD148: -280.7188497 | AE148: -281.017051 | AF148: -289.5047464 | AG148: -288.9596969 | AH148: -297.3156338 | AI148: -300.2173015 | AJ148: -304.5603669 | AK148: -309.2785169 | AL148: -313.6697427 | AM148: -106.7747915 | AN148: 0 | AO148: 0 | AP148: 0 | AQ148: 0 | AR148: 0 | AS148: 0 | AT148: 0 | AU148: 0 | AV148: 0 | AW148: 0 | AX148: 0 | AY148: 0 | AZ148: 0 | BA148: 0
B149: Deduct: Tax Depreciation - Federal | H149: 0 | I149: 0 | J149: 0 | K149: 0 | L149: 0 | M149: =-Depr!M8 -> 0 | N149: =-Depr!N8 -> -40059.4883 | O149: =-Depr!O8 -> -11700.2261 | P149: =-Depr!P8 -> -7076.3514 | Q149: =-Depr!Q8 -> -4296.4049 | R149: =-Depr!R8 -> -4281.2267 | S149: =-Depr!S8 -> -2195.2549 | T149: =-Depr!T8 -> -116.473 | U149: =-Depr!U8 -> -116.473 | V149: =-Depr!V8 -> -116.473 | W149: =-Depr!W8 -> -116.473 | X149: =-Depr!X8 -> -116.473 | Y149: =-Depr!Y8 -> -116.473 | Z149: =-Depr!Z8 -> -116.473 | AA149: =-Depr!AA8 -> -116.473 | AB149: =-Depr!AB8 -> -116.473 | AC149: =-Depr!AC8 -> -58.2364 | AD149: =-Depr!AD8 -> 0 | AE149: =-Depr!AE8 -> 0 | AF149: =-Depr!AF8 -> 0 | AG149: =-Depr!AG8 -> 0 | AH149: =-Depr!AH8 -> 0 | AI149: =-Depr!AI8 -> 0 | AJ149: =-Depr!AJ8 -> 0 | AK149: =-Depr!AK8 -> 0 | AL149: =-Depr!AL8 -> 0 | AM149: =-Depr!AM8 -> 0 | AN149: =-Depr!AN8 -> 0 | AO149: =-Depr!AO8 -> 0 | AP149: =-Depr!AP8 -> 0 | AQ149: =-Depr!AQ8 -> 0 | AR149: =-Depr!AR8 -> 0 | AS149: =-Depr!AS8 -> 0 | AT149: =-Depr!AT8 -> 0 | AU149: =-Depr!AU8 -> 0 | AV149: =-Depr!AV8 -> 0 | AW149: =-Depr!AW8 -> 0 | AX149: =-Depr!AX8 -> 0 | AY149: =-Depr!AY8 -> 0 | AZ149: =-Depr!AZ8 -> 0 | BA149: =-Depr!BA8 -> 0
B150: Fed Taxable Income | E150: Fed | H150: =SUM(H146:H149) -> 0 | I150: 0 | J150: 0 | K150: 0 | L150: 0 | M150: -189.7915448 | N150: -36432.16151 | O150: -6304.174224 | P150: -360.586684 | Q150: 1218.172672 | R150: 1283.797498 | S150: 3430.909238 | T150: 5617.276458 | U150: 5662.355068 | V150: 5736.878736 | W150: 5709.146741 | X150: 5895.946892 | Y150: 5956.849854 | Z150: 5962.70267 | AA150: 5977.852068 | AB150: 6073.783354 | AC150: 6248.63966 | AD150: 6403.063285 | AE150: 6409.865115 | AF150: 6603.465406 | AG150: 6591.033085 | AH150: 6781.628028 | AI150: 6847.813688 | AJ150: 6946.87694 | AK150: 7054.495696 | AL150: 7154.657465 | AM150: 2435.48215 | AN150: 0 | AO150: 0 | AP150: 0 | AQ150: 0 | AR150: 0 | AS150: 0 | AT150: 0 | AU150: 0 | AV150: 0 | AW150: 0 | AX150: 0 | AY150: 0 | AZ150: 0 | BA150: 0
B152: Beg NOL Balance | E152: on/off | F152: Roll Off | G152: Beg : | H152: 0 | I152: =H156 -> 0 | J152: 0 | K152: 0 | L152: 0 | M152: 0 | N152: 189.7915448 | O152: 36621.95306 | P152: 42926.12728 | Q152: 0 | R152: 0 | S152: 0 | T152: 0 | U152: 0 | V152: 0 | W152: 0 | X152: 0 | Y152: 0 | Z152: 0 | AA152: 0 | AB152: 0 | AC152: 0 | AD152: 0 | AE152: 0 | AF152: 0 | AG152: 0 | AH152: 0 | AI152: 0 | AJ152: 0 | AK152: 0 | AL152: 0 | AM152: 0 | AN152: 0 | AO152: 0 | AP152: 0 | AQ152: 0 | AR152: 0 | AS152: 0 | AT152: 0 | AU152: 0 | AV152: 0 | AW152: 0 | AX152: 0 | AY152: 0 | AZ152: 0 | BA152: 0
B153: NOL Additions | E153: =E122 -> 1 | F153: =F122 -> 2014 | G153: Addn's : | H153: =-MIN(H150,0)*($F153>H$4)*$E153 -> 0 | I153: 0 | J153: 0 | K153: 0 | L153: 0 | M153: 189.7915448 | N153: 36432.16151 | O153: 6304.174224 | P153: 0 | Q153: 0 | R153: 0 | S153: 0 | T153: 0 | U153: 0 | V153: 0 | W153: 0 | X153: 0 | Y153: 0 | Z153: 0 | AA153: 0 | AB153: 0 | AC153: 0 | AD153: 0 | AE153: 0 | AF153: 0 | AG153: 0 | AH153: 0 | AI153: 0 | AJ153: 0 | AK153: 0 | AL153: 0 | AM153: 0 | AN153: 0 | AO153: 0 | AP153: 0 | AQ153: 0 | AR153: 0 | AS153: 0 | AT153: 0 | AU153: 0 | AV153: 0 | AW153: 0 | AX153: 0 | AY153: 0 | AZ153: 0 | BA153: 0
B154: NOL Utilization Group | E154: =E153 -> 1 | F154: =F153 -> 2014 | G154: Util : | H154: =($F154=H$4)*-(H152+H153) -> 0 | I154: 0 | J154: 0 | K154: 0 | L154: 0 | M154: 0 | N154: 0 | O154: 0 | P154: -42926.12728 | Q154: 0 | R154: 0 | S154: 0 | T154: 0 | U154: 0 | V154: 0 | W154: 0 | X154: 0 | Y154: 0 | Z154: 0 | AA154: 0 | AB154: 0 | AC154: 0 | AD154: 0 | AE154: 0 | AF154: 0 | AG154: 0 | AH154: 0 | AI154: 0 | AJ154: 0 | AK154: 0 | AL154: 0 | AM154: 0 | AN154: 0 | AO154: 0 | AP154: 0 | AQ154: 0 | AR154: 0 | AS154: 0 | AT154: 0 | AU154: 0 | AV154: 0 | AW154: 0 | AX154: 0 | AY154: 0 | AZ154: 0 | BA154: 0
B155: NOL Utilization | G155: Util : | H155: =-MIN(MAX(H150,0),SUM(H152:H154)) -> 0 | I155: 0 | J155: 0 | K155: 0 | L155: 0 | M155: 0 | N155: 0 | O155: 0 | P155: 0 | Q155: 0 | R155: 0 | S155: 0 | T155: 0 | U155: 0 | V155: 0 | W155: 0 | X155: 0 | Y155: 0 | Z155: 0 | AA155: 0 | AB155: 0 | AC155: 0 | AD155: 0 | AE155: 0 | AF155: 0 | AG155: 0 | AH155: 0 | AI155: 0 | AJ155: 0 | AK155: 0 | AL155: 0 | AM155: 0 | AN155: 0 | AO155: 0 | AP155: 0 | AQ155: 0 | AR155: 0 | AS155: 0 | AT155: 0 | AU155: 0 | AV155: 0 | AW155: 0 | AX155: 0 | AY155: 0 | AZ155: 0 | BA155: 0
B156: Ending NOL Balance | G156: End : | H156: =SUM(H152:H155) -> 0 | I156: 0 | J156: 0 | K156: 0 | L156: 0 | M156: 189.7915448 | N156: 36621.95306 | O156: 42926.12728 | P156: 0 | Q156: 0 | R156: 0 | S156: 0 | T156: 0 | U156: 0 | V156: 0 | W156: 0 | X156: 0 | Y156: 0 | Z156: 0 | AA156: 0 | AB156: 0 | AC156: 0 | AD156: 0 | AE156: 0 | AF156: 0 | AG156: 0 | AH156: 0 | AI156: 0 | AJ156: 0 | AK156: 0 | AL156: 0 | AM156: 0 | AN156: 0 | AO156: 0 | AP156: 0 | AQ156: 0 | AR156: 0 | AS156: 0 | AT156: 0 | AU156: 0 | AV156: 0 | AW156: 0 | AX156: 0 | AY156: 0 | AZ156: 0 | BA156: 0
B158: NOL Adjusted Federal Taxable Income | F158: Fed | H158: =H150+SUM(H153:H155) -> 0 | I158: 0 | J158: 0 | K158: 0 | L158: 0 | M158: 0 | N158: 0 | O158: 0 | P158: -43286.71396 | Q158: 1218.172672 | R158: 1283.797498 | S158: 3430.909238 | T158: 5617.276458 | U158: 5662.355068 | V158: 5736.878736 | W158: 5709.146741 | X158: 5895.946892 | Y158: 5956.849854 | Z158: 5962.70267 | AA158: 5977.852068 | AB158: 6073.783354 | AC158: 6248.63966 | AD158: 6403.063285 | AE158: 6409.865115 | AF158: 6603.465406 | AG158: 6591.033085 | AH158: 6781.628028 | AI158: 6847.813688 | AJ158: 6946.87694 | AK158: 7054.495696 | AL158: 7154.657465 | AM158: 2435.48215 | AN158: 0 | AO158: 0 | AP158: 0 | AQ158: 0 | AR158: 0 | AS158: 0 | AT158: 0 | AU158: 0 | AV158: 0 | AW158: 0 | AX158: 0 | AY158: 0 | AZ158: 0 | BA158: 0
B159: Fed Tax Benefit / (Payment) | F159: =D112 -> 0.35 | H159: =-H158*$F159 -> 0 | I159: 0 | J159: 0 | K159: 0 | L159: 0 | M159: 0 | N159: 0 | O159: 0 | P159: 15150.34989 | Q159: -426.3604351 | R159: -449.3291242 | S159: -1200.818233 | T159: -1966.04676 | U159: -1981.824274 | V159: -2007.907558 | W159: -1998.20136 | X159: -2063.581412 | Y159: -2084.897449 | Z159: -2086.945935 | AA159: -2092.248224 | AB159: -2125.824174 | AC159: -2187.023881 | AD159: -2241.07215 | AE159: -2243.45279 | AF159: -2311.212892 | AG159: -2306.86158 | AH159: -2373.56981 | AI159: -2396.734791 | AJ159: -2431.406929 | AK159: -2469.073493 | AL159: -2504.130113 | AM159: -852.4187525 | AN159: 0 | AO159: 0 | AP159: 0 | AQ159: 0 | AR159: 0 | AS159: 0 | AT159: 0 | AU159: 0 | AV159: 0 | AW159: 0 | AX159: 0 | AY159: 0 | AZ159: 0 | BA159: 0
B161: Tax Benefit / (Payment) | H161: =H141+H159 -> 0 | I161: 0 | J161: 0 | K161: 0 | L161: 0 | M161: 0 | N161: 0 | O161: 0 | P161: =P141+P159 -> 16370.21251 | Q161: -519.9538915 | R161: -563.4894907 | S161: -1326.513209 | T161: -2096.7421 | U161: -2114.49592 | V161: -2143.846421 | W161: -2132.924415 | X161: -2206.494036 | Y161: -2230.48014 | Z161: -2290.572004 | AA161: -2354.325245 | AB161: -2392.106951 | AC161: -2460.972593 | AD161: -2521.790999 | AE161: -2524.469841 | AF161: -2600.717639 | AG161: -2595.821277 | AH161: -2670.885444 | AI161: -2696.952092 | AJ161: -2735.967296 | AK161: -2778.35201 | AL161: -2817.799855 | AM161: -959.193544 | AN161: 0 | AO161: 0 | AP161: 0 | AQ161: 0 | AR161: 0 | AS161: 0 | AT161: 0 | AU161: 0 | AV161: 0 | AW161: 0 | AX161: 0 | AY161: 0 | AZ161: 0 | BA161: 0
B164: PTC/ITC Deferral Penalty
F166: Check
B167: PTC Utilization Profile | F167: =SUM(H167:BA167) -> 1 | G167: Percent : | H167: 1 | I167: 0 | J167: 0 | K167: 0 | L167: 0 | M167: 0 | N167: 0 | O167: 0 | P167: 0 | Q167: 0 | R167: 0 | S167: 0 | T167: 0 | U167: 0 | V167: 0 | W167: 0 | X167: 0 | Y167: 0 | Z167: 0 | AA167: 0 | AB167: 0 | AC167: 0 | AD167: 0 | AE167: 0 | AF167: 0 | AG167: 0 | AH167: 0 | AI167: 0 | AJ167: 0 | AK167: 0 | AL167: 0 | AM167: 0 | AN167: 0 | AO167: 0 | AP167: 0 | AQ167: 0 | AR167: 0 | AS167: 0 | AT167: 0 | AU167: 0 | AV167: 0 | AW167: 0 | AX167: 0 | AY167: 0 | AZ167: 0 | BA167: 0
E169: Rate | F169: Roll Off
B170: Super PTC Deferral Logic | E170: 0.2625 | F170: 2016 | G170: Pct Def : | H170: =$E170 * (H$4<$F170) -> 0.2625 | I170: 0.2625 | J170: 0.2625 | K170: 0.2625 | L170: 0.2625 | M170: 0.2625 | N170: 0.2625 | O170: 0.2625 | P170: 0.2625 | Q170: 0.2625 | R170: 0 | S170: 0 | T170: 0 | U170: 0 | V170: 0 | W170: 0 | X170: 0 | Y170: 0 | Z170: 0 | AA170: 0 | AB170: 0 | AC170: 0 | AD170: 0 | AE170: 0 | AF170: 0 | AG170: 0 | AH170: 0 | AI170: 0 | AJ170: 0 | AK170: 0 | AL170: 0 | AM170: 0 | AN170: 0 | AO170: 0 | AP170: 0 | AQ170: 0 | AR170: 0 | AS170: 0 | AT170: 0 | AU170: 0 | AV170: 0 | AW170: 0 | AX170: 0 | AY170: 0 | AZ170: 0 | BA170: 0
G171: Income : | H171: =H$158*H170 -> 0 | I171: 0 | J171: 0 | K171: 0 | L171: 0 | M171: 0 | N171: 0 | O171: 0 | P171: -11362.76242 | Q171: 319.7703264 | R171: 0 | S171: 0 | T171: 0 | U171: 0 | V171: 0 | W171: 0 | X171: 0 | Y171: 0 | Z171: 0 | AA171: 0 | AB171: 0 | AC171: 0 | AD171: 0 | AE171: 0 | AF171: 0 | AG171: 0 | AH171: 0 | AI171: 0 | AJ171: 0 | AK171: 0 | AL171: 0 | AM171: 0 | AN171: 0 | AO171: 0 | AP171: 0 | AQ171: 0 | AR171: 0 | AS171: 0 | AT171: 0 | AU171: 0 | AV171: 0 | AW171: 0 | AX171: 0 | AY171: 0 | AZ171: 0 | BA171: 0
G172: Logic : | H172: =--(H170=0) -> 0 | I172: 0 | J172: 0 | K172: 0 | L172: 0 | M172: 0 | N172: 0 | O172: 0 | P172: 0 | Q172: 0 | R172: 1 | S172: 1 | T172: 1 | U172: 1 | V172: 1 | W172: 1 | X172: 1 | Y172: 1 | Z172: 1 | AA172: 1 | AB172: 1 | AC172: 1 | AD172: 1 | AE172: 1 | AF172: 1 | AG172: 1 | AH172: 1 | AI172: 1 | AJ172: 1 | AK172: 1 | AL172: 1 | AM172: 1 | AN172: 1 | AO172: 1 | AP172: 1 | AQ172: 1 | AR172: 1 | AS172: 1 | AT172: 1 | AU172: 1 | AV172: 1 | AW172: 1 | AX172: 1 | AY172: 1 | AZ172: 1 | BA172: 1
G173: Logic : | H173: =SUM($H172:H172) -> 0 | I173: =SUM($H172:I172) -> 0 | J173: =SUM($H172:J172) -> 0 | K173: =SUM($H172:K172) -> 0 | L173: =SUM($H172:L172) -> 0 | M173: =SUM($H172:M172) -> 0 | N173: =SUM($H172:N172) -> 0 | O173: =SUM($H172:O172) -> 0 | P173: =SUM($H172:P172) -> 0 | Q173: =SUM($H172:Q172) -> 0 | R173: =SUM($H172:R172) -> 1 | S173: =SUM($H172:S172) -> 2 | T173: =SUM($H172:T172) -> 3 | U173: =SUM($H172:U172) -> 4 | V173: =SUM($H172:V172) -> 5 | W173: =SUM($H172:W172) -> 6 | X173: =SUM($H172:X172) -> 7 | Y173: =SUM($H172:Y172) -> 8 | Z173: =SUM($H172:Z172) -> 9 | AA173: =SUM($H172:AA172) -> 10 | AB173: =SUM($H172:AB172) -> 11 | AC173: =SUM($H172:AC172) -> 12 | AD173: =SUM($H172:AD172) -> 13 | AE173: =SUM($H172:AE172) -> 14 | AF173: =SUM($H172:AF172) -> 15 | AG173: =SUM($H172:AG172) -> 16 | AH173: =SUM($H172:AH172) -> 17 | AI173: =SUM($H172:AI172) -> 18 | AJ173: =SUM($H172:AJ172) -> 19 | AK173: =SUM($H172:AK172) -> 20 | AL173: =SUM($H172:AL172) -> 21 | AM173: =SUM($H172:AM172) -> 22 | AN173: =SUM($H172:AN172) -> 23 | AO173: =SUM($H172:AO172) -> 24 | AP173: =SUM($H172:AP172) -> 25 | AQ173: =SUM($H172:AQ172) -> 26 | AR173: =SUM($H172:AR172) -> 27 | AS173: =SUM($H172:AS172) -> 28 | AT173: =SUM($H172:AT172) -> 29 | AU173: =SUM($H172:AU172) -> 30 | AV173: =SUM($H172:AV172) -> 31 | AW173: =SUM($H172:AW172) -> 32 | AX173: =SUM($H172:AX172) -> 33 | AY173: =SUM($H172:AY172) -> 34 | AZ173: =SUM($H172:AZ172) -> 35 | BA173: =SUM($H172:BA172) -> 36
G174: Pct Util : | H174: =IF(H173>0, OFFSET($H$167,0,H173-1),0) -> 0 | I174: 0 | J174: 0 | K174: 0 | L174: 0 | M174: 0 | N174: 0 | O174: 0 | P174: 0 | Q174: 0 | R174: 1 | S174: 0 | T174: 0 | U174: 0 | V174: 0 | W174: 0 | X174: 0 | Y174: 0 | Z174: 0 | AA174: 0 | AB174: 0 | AC174: 0 | AD174: 0 | AE174: 0 | AF174: 0 | AG174: 0 | AH174: 0 | AI174: 0 | AJ174: 0 | AK174: 0 | AL174: 0 | AM174: 0 | AN174: 0 | AO174: 0 | AP174: 0 | AQ174: 0 | AR174: 0 | AS174: 0 | AT174: 0 | AU174: 0 | AV174: 0 | AW174: 0 | AX174: 0 | AY174: 0 | AZ174: 0 | BA174: 0
F175: Check | G175: Util : | H175: =-SUM($H171:H171)*H174 -> 0 | I175: =-SUM($H171:I171)*I174 -> 0 | J175: =-SUM($H171:J171)*J174 -> 0 | K175: =-SUM($H171:K171)*K174 -> 0 | L175: =-SUM($H171:L171)*L174 -> 0 | M175: =-SUM($H171:M171)*M174 -> 0 | N175: =-SUM($H171:N171)*N174 -> 0 | O175: =-SUM($H171:O171)*O174 -> 0 | P175: =-SUM($H171:P171)*P174 -> 0 | Q175: =-SUM($H171:Q171)*Q174 -> 0 | R175: =-SUM($H171:R171)*R174 -> 11042.99209 | S175: =-SUM($H171:S171)*S174 -> 0 | T175: =-SUM($H171:T171)*T174 -> 0 | U175: =-SUM($H171:U171)*U174 -> 0 | V175: =-SUM($H171:V171)*V174 -> 0 | W175: =-SUM($H171:W171)*W174 -> 0 | X175: =-SUM($H171:X171)*X174 -> 0 | Y175: =-SUM($H171:Y171)*Y174 -> 0 | Z175: =-SUM($H171:Z171)*Z174 -> 0 | AA175: =-SUM($H171:AA171)*AA174 -> 0 | AB175: =-SUM($H171:AB171)*AB174 -> 0 | AC175: =-SUM($H171:AC171)*AC174 -> 0 | AD175: =-SUM($H171:AD171)*AD174 -> 0 | AE175: =-SUM($H171:AE171)*AE174 -> 0 | AF175: =-SUM($H171:AF171)*AF174 -> 0 | AG175: =-SUM($H171:AG171)*AG174 -> 0 | AH175: =-SUM($H171:AH171)*AH174 -> 0 | AI175: =-SUM($H171:AI171)*AI174 -> 0 | AJ175: =-SUM($H171:AJ171)*AJ174 -> 0 | AK175: =-SUM($H171:AK171)*AK174 -> 0 | AL175: =-SUM($H171:AL171)*AL174 -> 0 | AM175: =-SUM($H171:AM171)*AM174 -> 0 | AN175: =-SUM($H171:AN171)*AN174 -> 0 | AO175: =-SUM($H171:AO171)*AO174 -> 0 | AP175: =-SUM($H171:AP171)*AP174 -> 0 | AQ175: =-SUM($H171:AQ171)*AQ174 -> 0 | AR175: =-SUM($H171:AR171)*AR174 -> 0 | AS175: =-SUM($H171:AS171)*AS174 -> 0 | AT175: =-SUM($H171:AT171)*AT174 -> 0 | AU175: =-SUM($H171:AU171)*AU174 -> 0 | AV175: =-SUM($H171:AV171)*AV174 -> 0 | AW175: =-SUM($H171:AW171)*AW174 -> 0 | AX175: =-SUM($H171:AX171)*AX174 -> 0 | AY175: =-SUM($H171:AY171)*AY174 -> 0 | AZ175: =-SUM($H171:AZ171)*AZ174 -> 0 | BA175: =-SUM($H171:BA171)*BA174 -> 0
F176: =SUM(H176:BA176) -> 0 | G176: Mk Wh : | H176: =H171+H175 -> 0 | I176: 0 | J176: 0 | K176: 0 | L176: 0 | M176: 0 | N176: 0 | O176: 0 | P176: -11362.76242 | Q176: 319.7703264 | R176: 11042.99209 | S176: 0 | T176: 0 | U176: 0 | V176: 0 | W176: 0 | X176: 0 | Y176: 0 | Z176: 0 | AA176: 0 | AB176: 0 | AC176: 0 | AD176: 0 | AE176: 0 | AF176: 0 | AG176: 0 | AH176: 0 | AI176: 0 | AJ176: 0 | AK176: 0 | AL176: 0 | AM176: 0 | AN176: 0 | AO176: 0 | AP176: 0 | AQ176: 0 | AR176: 0 | AS176: 0 | AT176: 0 | AU176: 0 | AV176: 0 | AW176: 0 | AX176: 0 | AY176: 0 | AZ176: 0 | BA176: 0
E178: Rate | F178: Roll Off
B179: Regular PTC Deferral Logic | E179: 0.15 | F179: 2018 | G179: Pct Def : | H179: =$E179 * (H$4<$F179)* (H170=0) -> 0 | I179: 0 | J179: 0 | K179: 0 | L179: 0 | M179: 0 | N179: 0 | O179: 0 | P179: 0 | Q179: 0 | R179: 0.15 | S179: 0.15 | T179: 0 | U179: 0 | V179: 0 | W179: 0 | X179: 0 | Y179: 0 | Z179: 0 | AA179: 0 | AB179: 0 | AC179: 0 | AD179: 0 | AE179: 0 | AF179: 0 | AG179: 0 | AH179: 0 | AI179: 0 | AJ179: 0 | AK179: 0 | AL179: 0 | AM179: 0 | AN179: 0 | AO179: 0 | AP179: 0 | AQ179: 0 | AR179: 0 | AS179: 0 | AT179: 0 | AU179: 0 | AV179: 0 | AW179: 0 | AX179: 0 | AY179: 0 | AZ179: 0 | BA179: 0
G180: Income : | H180: =H$158*H179 -> 0 | I180: 0 | J180: 0 | K180: 0 | L180: 0 | M180: 0 | N180: 0 | O180: 0 | P180: 0 | Q180: 0 | R180: 192.5696246 | S180: 514.6363857 | T180: 0 | U180: 0 | V180: 0 | W180: 0 | X180: 0 | Y180: 0 | Z180: 0 | AA180: 0 | AB180: 0 | AC180: 0 | AD180: 0 | AE180: 0 | AF180: 0 | AG180: 0 | AH180: 0 | AI180: 0 | AJ180: 0 | AK180: 0 | AL180: 0 | AM180: 0 | AN180: 0 | AO180: 0 | AP180: 0 | AQ180: 0 | AR180: 0 | AS180: 0 | AT180: 0 | AU180: 0 | AV180: 0 | AW180: 0 | AX180: 0 | AY180: 0 | AZ180: 0 | BA180: 0
G181: Logic : | H181: =--((H179+H170)=0) -> 0 | I181: 0 | J181: 0 | K181: 0 | L181: 0 | M181: 0 | N181: 0 | O181: 0 | P181: 0 | Q181: 0 | R181: 0 | S181: 0 | T181: 1 | U181: 1 | V181: 1 | W181: 1 | X181: 1 | Y181: 1 | Z181: 1 | AA181: 1 | AB181: 1 | AC181: 1 | AD181: 1 | AE181: 1 | AF181: 1 | AG181: 1 | AH181: 1 | AI181: 1 | AJ181: 1 | AK181: 1 | AL181: 1 | AM181: 1 | AN181: 1 | AO181: 1 | AP181: 1 | AQ181: 1 | AR181: 1 | AS181: 1 | AT181: 1 | AU181: 1 | AV181: 1 | AW181: 1 | AX181: 1 | AY181: 1 | AZ181: 1 | BA181: 1
G182: Logic : | H182: =SUM($H181:H181) -> 0 | I182: =SUM($H181:I181) -> 0 | J182: =SUM($H181:J181) -> 0 | K182: =SUM($H181:K181) -> 0 | L182: =SUM($H181:L181) -> 0 | M182: =SUM($H181:M181) -> 0 | N182: =SUM($H181:N181) -> 0 | O182: =SUM($H181:O181) -> 0 | P182: =SUM($H181:P181) -> 0 | Q182: =SUM($H181:Q181) -> 0 | R182: =SUM($H181:R181) -> 0 | S182: =SUM($H181:S181) -> 0 | T182: =SUM($H181:T181) -> 1 | U182: =SUM($H181:U181) -> 2 | V182: =SUM($H181:V181) -> 3 | W182: =SUM($H181:W181) -> 4 | X182: =SUM($H181:X181) -> 5 | Y182: =SUM($H181:Y181) -> 6 | Z182: =SUM($H181:Z181) -> 7 | AA182: =SUM($H181:AA181) -> 8 | AB182: =SUM($H181:AB181) -> 9 | AC182: =SUM($H181:AC181) -> 10 | AD182: =SUM($H181:AD181) -> 11 | AE182: =SUM($H181:AE181) -> 12 | AF182: =SUM($H181:AF181) -> 13 | AG182: =SUM($H181:AG181) -> 14 | AH182: =SUM($H181:AH181) -> 15 | AI182: =SUM($H181:AI181) -> 16 | AJ182: =SUM($H181:AJ181) -> 17 | AK182: =SUM($H181:AK181) -> 18 | AL182: =SUM($H181:AL181) -> 19 | AM182: =SUM($H181:AM181) -> 20 | AN182: =SUM($H181:AN181) -> 21 | AO182: =SUM($H181:AO181) -> 22 | AP182: =SUM($H181:AP181) -> 23 | AQ182: =SUM($H181:AQ181) -> 24 | AR182: =SUM($H181:AR181) -> 25 | AS182: =SUM($H181:AS181) -> 26 | AT182: =SUM($H181:AT181) -> 27 | AU182: =SUM($H181:AU181) -> 28 | AV182: =SUM($H181:AV181) -> 29 | AW182: =SUM($H181:AW181) -> 30 | AX182: =SUM($H181:AX181) -> 31 | AY182: =SUM($H181:AY181) -> 32 | AZ182: =SUM($H181:AZ181) -> 33 | BA182: =SUM($H181:BA181) -> 34
G183: Pct Util : | H183: =IF(H182>0, OFFSET($H$167,0,H182-1),0) -> 0 | I183: 0 | J183: 0 | K183: 0 | L183: 0 | M183: 0 | N183: 0 | O183: 0 | P183: 0 | Q183: 0 | R183: 0 | S183: 0 | T183: 1 | U183: 0 | V183: 0 | W183: 0 | X183: 0 | Y183: 0 | Z183: 0 | AA183: 0 | AB183: 0 | AC183: 0 | AD183: 0 | AE183: 0 | AF183: 0 | AG183: 0 | AH183: 0 | AI183: 0 | AJ183: 0 | AK183: 0 | AL183: 0 | AM183: 0 | AN183: 0 | AO183: 0 | AP183: 0 | AQ183: 0 | AR183: 0 | AS183: 0 | AT183: 0 | AU183: 0 | AV183: 0 | AW183: 0 | AX183: 0 | AY183: 0 | AZ183: 0 | BA183: 0
F184: Check | G184: Util : | H184: =-SUM($H180:H180)*H183 -> 0 | I184: =-SUM($H180:I180)*I183 -> 0 | J184: =-SUM($H180:J180)*J183 -> 0 | K184: =-SUM($H180:K180)*K183 -> 0 | L184: =-SUM($H180:L180)*L183 -> 0 | M184: =-SUM($H180:M180)*M183 -> 0 | N184: =-SUM($H180:N180)*N183 -> 0 | O184: =-SUM($H180:O180)*O183 -> 0 | P184: =-SUM($H180:P180)*P183 -> 0 | Q184: =-SUM($H180:Q180)*Q183 -> 0 | R184: =-SUM($H180:R180)*R183 -> 0 | S184: =-SUM($H180:S180)*S183 -> 0 | T184: =-SUM($H180:T180)*T183 -> -707.2060104 | U184: =-SUM($H180:U180)*U183 -> 0 | V184: =-SUM($H180:V180)*V183 -> 0 | W184: =-SUM($H180:W180)*W183 -> 0 | X184: =-SUM($H180:X180)*X183 -> 0 | Y184: =-SUM($H180:Y180)*Y183 -> 0 | Z184: =-SUM($H180:Z180)*Z183 -> 0 | AA184: =-SUM($H180:AA180)*AA183 -> 0 | AB184: =-SUM($H180:AB180)*AB183 -> 0 | AC184: =-SUM($H180:AC180)*AC183 -> 0 | AD184: =-SUM($H180:AD180)*AD183 -> 0 | AE184: =-SUM($H180:AE180)*AE183 -> 0 | AF184: =-SUM($H180:AF180)*AF183 -> 0 | AG184: =-SUM($H180:AG180)*AG183 -> 0 | AH184: =-SUM($H180:AH180)*AH183 -> 0 | AI184: =-SUM($H180:AI180)*AI183 -> 0 | AJ184: =-SUM($H180:AJ180)*AJ183 -> 0 | AK184: =-SUM($H180:AK180)*AK183 -> 0 | AL184: =-SUM($H180:AL180)*AL183 -> 0 | AM184: =-SUM($H180:AM180)*AM183 -> 0 | AN184: =-SUM($H180:AN180)*AN183 -> 0 | AO184: =-SUM($H180:AO180)*AO183 -> 0 | AP184: =-SUM($H180:AP180)*AP183 -> 0 | AQ184: =-SUM($H180:AQ180)*AQ183 -> 0 | AR184: =-SUM($H180:AR180)*AR183 -> 0 | AS184: =-SUM($H180:AS180)*AS183 -> 0 | AT184: =-SUM($H180:AT180)*AT183 -> 0 | AU184: =-SUM($H180:AU180)*AU183 -> 0 | AV184: =-SUM($H180:AV180)*AV183 -> 0 | AW184: =-SUM($H180:AW180)*AW183 -> 0 | AX184: =-SUM($H180:AX180)*AX183 -> 0 | AY184: =-SUM($H180:AY180)*AY183 -> 0 | AZ184: =-SUM($H180:AZ180)*AZ183 -> 0 | BA184: =-SUM($H180:BA180)*BA183 -> 0
F185: =SUM(H185:BA185) -> 0 | G185: Mk Wh : | H185: =H180+H184 -> 0 | I185: 0 | J185: 0 | K185: 0 | L185: 0 | M185: 0 | N185: 0 | O185: 0 | P185: 0 | Q185: 0 | R185: 192.5696246 | S185: 514.6363857 | T185: -707.2060104 | U185: 0 | V185: 0 | W185: 0 | X185: 0 | Y185: 0 | Z185: 0 | AA185: 0 | AB185: 0 | AC185: 0 | AD185: 0 | AE185: 0 | AF185: 0 | AG185: 0 | AH185: 0 | AI185: 0 | AJ185: 0 | AK185: 0 | AL185: 0 | AM185: 0 | AN185: 0 | AO185: 0 | AP185: 0 | AQ185: 0 | AR185: 0 | AS185: 0 | AT185: 0 | AU185: 0 | AV185: 0 | AW185: 0 | AX185: 0 | AY185: 0 | AZ185: 0 | BA185: 0
B187: Total PTC Make Whole | G187: Mk Wh : | H187: =H176+H185 -> 0 | I187: 0 | J187: 0 | K187: 0 | L187: 0 | M187: 0 | N187: 0 | O187: 0 | P187: -11362.76242 | Q187: 319.7703264 | R187: 11235.56171 | S187: 514.6363857 | T187: -707.2060104 | U187: 0 | V187: 0 | W187: 0 | X187: 0 | Y187: 0 | Z187: 0 | AA187: 0 | AB187: 0 | AC187: 0 | AD187: 0 | AE187: 0 | AF187: 0 | AG187: 0 | AH187: 0 | AI187: 0 | AJ187: 0 | AK187: 0 | AL187: 0 | AM187: 0 | AN187: 0 | AO187: 0 | AP187: 0 | AQ187: 0 | AR187: 0 | AS187: 0 | AT187: 0 | AU187: 0 | AV187: 0 | AW187: 0 | AX187: 0 | AY187: 0 | AZ187: 0 | BA187: 0
B189: PTC Deferral Penalty
B190: Active
B191: =Scen!$G$37 -> 1 | C191: =OFFSET(C192,$B191,0) -> PTC Deferral Calculation | H191: =OFFSET(H192,$B191,0) -> 0 | I191: 0 | J191: 0 | K191: 0 | L191: 0 | M191: 0 | N191: 0 | O191: 0 | P191: -11362.76242 | Q191: 319.7703264 | R191: 11235.56171 | S191: 514.6363857 | T191: -707.2060104 | U191: 0 | V191: 0 | W191: 0 | X191: 0 | Y191: 0 | Z191: 0 | AA191: 0 | AB191: 0 | AC191: 0 | AD191: 0 | AE191: 0 | AF191: 0 | AG191: 0 | AH191: 0 | AI191: 0 | AJ191: 0 | AK191: 0 | AL191: 0 | AM191: 0 | AN191: 0 | AO191: 0 | AP191: 0 | AQ191: 0 | AR191: 0 | AS191: 0 | AT191: 0 | AU191: 0 | AV191: 0 | AW191: 0 | AX191: 0 | AY191: 0 | AZ191: 0 | BA191: 0
B192: 0 | C192: No Penalty | H192: 0 | I192: 0 | J192: 0 | K192: 0 | L192: 0 | M192: 0 | N192: 0 | O192: 0 | P192: 0 | Q192: 0 | R192: 0 | S192: 0 | T192: 0 | U192: 0 | V192: 0 | W192: 0 | X192: 0 | Y192: 0 | Z192: 0 | AA192: 0 | AB192: 0 | AC192: 0 | AD192: 0 | AE192: 0 | AF192: 0 | AG192: 0 | AH192: 0 | AI192: 0 | AJ192: 0 | AK192: 0 | AL192: 0 | AM192: 0 | AN192: 0 | AO192: 0 | AP192: 0 | AQ192: 0 | AR192: 0 | AS192: 0 | AT192: 0 | AU192: 0 | AV192: 0 | AW192: 0 | AX192: 0 | AY192: 0 | AZ192: 0 | BA192: 0
B193: 1 | C193: PTC Deferral Calculation | H193: =H187 -> 0 | I193: 0 | J193: 0 | K193: 0 | L193: 0 | M193: 0 | N193: 0 | O193: 0 | P193: -11362.76242 | Q193: 319.7703264 | R193: 11235.56171 | S193: 514.6363857 | T193: -707.2060104 | U193: 0 | V193: 0 | W193: 0 | X193: 0 | Y193: 0 | Z193: 0 | AA193: 0 | AB193: 0 | AC193: 0 | AD193: 0 | AE193: 0 | AF193: 0 | AG193: 0 | AH193: 0 | AI193: 0 | AJ193: 0 | AK193: 0 | AL193: 0 | AM193: 0 | AN193: 0 | AO193: 0 | AP193: 0 | AQ193: 0 | AR193: 0 | AS193: 0 | AT193: 0 | AU193: 0 | AV193: 0 | AW193: 0 | AX193: 0 | AY193: 0 | AZ193: 0 | BA193: 0
B194: 2 | C194: Building Wind Assets thru 2012 | H194: 0 | I194: 0 | J194: 0 | K194: 0 | L194: 0 | M194: 0 | N194: 0 | O194: 0 | P194: 0 | Q194: 0 | R194: 0 | S194: 0 | T194: 0 | U194: 0 | V194: 0 | W194: 0 | X194: 0 | Y194: 0 | Z194: 0 | AA194: 0 | AB194: 0 | AC194: 0 | AD194: 0 | AE194: 0 | AF194: 0 | AG194: 0 | AH194: 0 | AI194: 0 | AJ194: 0 | AK194: 0 | AL194: 0 | AM194: 0 | AN194: 0 | AO194: 0 | AP194: 0 | AQ194: 0 | AR194: 0 | AS194: 0 | AT194: 0 | AU194: 0 | AV194: 0 | AW194: 0 | AX194: 0 | AY194: 0 | AZ194: 0 | BA194: 0
B196: ITC Deferral Penalty
B197: Active
B198: 0 | C198: =OFFSET(C199,$B198,0) -> No Penalty | H198: =OFFSET(H199,$B198,0) -> 0 | I198: 0 | J198: 0 | K198: 0 | L198: 0 | M198: 0 | N198: 0 | O198: 0 | P198: 0 | Q198: 0 | R198: 0 | S198: 0 | T198: 0 | U198: 0 | V198: 0 | W198: 0 | X198: 0 | Y198: 0 | Z198: 0 | AA198: 0 | AB198: 0 | AC198: 0 | AD198: 0 | AE198: 0 | AF198: 0 | AG198: 0 | AH198: 0 | AI198: 0 | AJ198: 0 | AK198: 0 | AL198: 0 | AM198: 0 | AN198: 0 | AO198: 0 | AP198: 0 | AQ198: 0 | AR198: 0 | AS198: 0 | AT198: 0 | AU198: 0 | AV198: 0 | AW198: 0 | AX198: 0 | AY198: 0 | AZ198: 0 | BA198: 0
B199: 0 | C199: No Penalty | H199: 0 | I199: 0 | J199: 0 | K199: 0 | L199: 0 | M199: 0 | N199: 0 | O199: 0 | P199: 0 | Q199: 0 | R199: 0 | S199: 0 | T199: 0 | U199: 0 | V199: 0 | W199: 0 | X199: 0 | Y199: 0 | Z199: 0 | AA199: 0 | AB199: 0 | AC199: 0 | AD199: 0 | AE199: 0 | AF199: 0 | AG199: 0 | AH199: 0 | AI199: 0 | AJ199: 0 | AK199: 0 | AL199: 0 | AM199: 0 | AN199: 0 | AO199: 0 | AP199: 0 | AQ199: 0 | AR199: 0 | AS199: 0 | AT199: 0 | AU199: 0 | AV199: 0 | AW199: 0 | AX199: 0 | AY199: 0 | AZ199: 0 | BA199: 0
B200: 1 | C200: No Penalty | H200: 0 | I200: 0 | J200: 0 | K200: 0 | L200: 0 | M200: 0 | N200: 0 | O200: 0 | P200: 0 | Q200: 0 | R200: 0 | S200: 0 | T200: 0 | U200: 0 | V200: 0 | W200: 0 | X200: 0 | Y200: 0 | Z200: 0 | AA200: 0 | AB200: 0 | AC200: 0 | AD200: 0 | AE200: 0 | AF200: 0 | AG200: 0 | AH200: 0 | AI200: 0 | AJ200: 0 | AK200: 0 | AL200: 0 | AM200: 0 | AN200: 0 | AO200: 0 | AP200: 0 | AQ200: 0 | AR200: 0 | AS200: 0 | AT200: 0 | AU200: 0 | AV200: 0 | AW200: 0 | AX200: 0 | AY200: 0 | AZ200: 0 | BA200: 0
B201: 2 | C201: No Penalty | H201: 0 | I201: 0 | J201: 0 | K201: 0 | L201: 0 | M201: 0 | N201: 0 | O201: 0 | P201: 0 | Q201: 0 | R201: 0 | S201: 0 | T201: 0 | U201: 0 | V201: 0 | W201: 0 | X201: 0 | Y201: 0 | Z201: 0 | AA201: 0 | AB201: 0 | AC201: 0 | AD201: 0 | AE201: 0 | AF201: 0 | AG201: 0 | AH201: 0 | AI201: 0 | AJ201: 0 | AK201: 0 | AL201: 0 | AM201: 0 | AN201: 0 | AO201: 0 | AP201: 0 | AQ201: 0 | AR201: 0 | AS201: 0 | AT201: 0 | AU201: 0 | AV201: 0 | AW201: 0 | AX201: 0 | AY201: 0 | AZ201: 0 | BA201: 0
B204: Total PTC/ITC Deferral Penalty | H204: =H191+H198 -> 0 | I204: 0 | J204: 0 | K204: 0 | L204: 0 | M204: 0 | N204: 0 | O204: 0 | P204: -11362.76242 | Q204: 319.7703264 | R204: 11235.56171 | S204: 514.6363857 | T204: -707.2060104 | U204: 0 | V204: 0 | W204: 0 | X204: 0 | Y204: 0 | Z204: 0 | AA204: 0 | AB204: 0 | AC204: 0 | AD204: 0 | AE204: 0 | AF204: 0 | AG204: 0 | AH204: 0 | AI204: 0 | AJ204: 0 | AK204: 0 | AL204: 0 | AM204: 0 | AN204: 0 | AO204: 0 | AP204: 0 | AQ204: 0 | AR204: 0 | AS204: 0 | AT204: 0 | AU204: 0 | AV204: 0 | AW204: 0 | AX204: 0 | AY204: 0 | AZ204: 0 | BA204: 0
B208: PROJECT RETURN - Unlevered
B210: Project Cash Flow
B211: Capital Investment | H211: =-H96 -> -1e-08 | I211: 0 | J211: 0 | K211: 0 | L211: -41249.42745 | M211: -41030.25487 | N211: 0 | O211: 0 | P211: 0 | Q211: 0 | R211: 0 | S211: 0 | T211: 0 | U211: 0 | V211: 0 | W211: 0 | X211: 0 | Y211: 0 | Z211: 0 | AA211: 0 | AB211: 0 | AC211: 0 | AD211: 0 | AE211: 0 | AF211: 0 | AG211: 0 | AH211: 0 | AI211: 0 | AJ211: 0 | AK211: 0 | AL211: 0 | AM211: 0 | AN211: 0 | AO211: 0 | AP211: 0 | AQ211: 0 | AR211: 0 | AS211: 0 | AT211: 0 | AU211: 0 | AV211: 0 | AW211: 0 | AX211: 0 | AY211: 0 | AZ211: 0 | BA211: 0
B212: Pre-Tax Distributions | H212: =H106-H211 -> 0 | I212: 0 | J212: 0 | K212: 0 | L212: 0 | M212: -189.7915448 | N212: 3165.727209 | O212: 5397.352402 | P212: 5487.107647 | Q212: 5598.335301 | R212: 5672.718407 | S212: 5745.234405 | T212: 5854.516921 | U212: 5906.934328 | V212: 5982.174545 | W212: 5961.974505 | X212: 6138.532235 | Y212: 6212.879556 | Z212: 6276.721161 | AA212: 6349.494899 | AB212: 6447.420819 | AC212: 6569.690568 | AD212: 6674.368776 | AE212: 6689.314203 | AF212: 6875.341329 | AG212: 6880.004903 | AH212: 7061.500115 | AI212: 7141.222959 | AJ212: 7241.769002 | AK212: 7353.330965 | AL212: 7458.481381 | AM212: 3193.128182 | AN212: 0 | AO212: 0 | AP212: 0 | AQ212: 0 | AR212: 0 | AS212: 0 | AT212: 0 | AU212: 0 | AV212: 0 | AW212: 0 | AX212: 0 | AY212: 0 | AZ212: 0 | BA212: 0
B213: Tax Benefit / (Payment) | F213: ITC/CITC | H213: =H161 -> 0 | I213: 0 | J213: 0 | K213: 0 | L213: 0 | M213: 0 | N213: 0 | O213: 0 | P213: 16370.21251 | Q213: -519.9538915 | R213: -563.4894907 | S213: -1326.513209 | T213: -2096.7421 | U213: -2114.49592 | V213: -2143.846421 | W213: -2132.924415 | X213: -2206.494036 | Y213: -2230.48014 | Z213: -2290.572004 | AA213: -2354.325245 | AB213: -2392.106951 | AC213: -2460.972593 | AD213: -2521.790999 | AE213: -2524.469841 | AF213: -2600.717639 | AG213: -2595.821277 | AH213: -2670.885444 | AI213: -2696.952092 | AJ213: -2735.967296 | AK213: -2778.35201 | AL213: -2817.799855 | AM213: -959.193544 | AN213: 0 | AO213: 0 | AP213: 0 | AQ213: 0 | AR213: 0 | AS213: 0 | AT213: 0 | AU213: 0 | AV213: 0 | AW213: 0 | AX213: 0 | AY213: 0 | AZ213: 0 | BA213: 0
B214: ITC/CITC | F214: =Alloc!R50 -> 23128.47452 | H214: =$F214*(H3=1) -> 0 | I214: 0 | J214: 0 | K214: 0 | L214: 0 | M214: 0 | N214: 23128.47452 | O214: 0 | P214: 0 | Q214: 0 | R214: 0 | S214: 0 | T214: 0 | U214: 0 | V214: 0 | W214: 0 | X214: 0 | Y214: 0 | Z214: 0 | AA214: 0 | AB214: 0 | AC214: 0 | AD214: 0 | AE214: 0 | AF214: 0 | AG214: 0 | AH214: 0 | AI214: 0 | AJ214: 0 | AK214: 0 | AL214: 0 | AM214: 0 | AN214: 0 | AO214: 0 | AP214: 0 | AQ214: 0 | AR214: 0 | AS214: 0 | AT214: 0 | AU214: 0 | AV214: 0 | AW214: 0 | AX214: 0 | AY214: 0 | AZ214: 0 | BA214: 0
B215: PTC/ITC Deferral Penalty | H215: =H204 -> 0 | I215: 0 | J215: 0 | K215: 0 | L215: 0 | M215: 0 | N215: 0 | O215: 0 | P215: -11362.76242 | Q215: 319.7703264 | R215: 11235.56171 | S215: 514.6363857 | T215: -707.2060104 | U215: 0 | V215: 0 | W215: 0 | X215: 0 | Y215: 0 | Z215: 0 | AA215: 0 | AB215: 0 | AC215: 0 | AD215: 0 | AE215: 0 | AF215: 0 | AG215: 0 | AH215: 0 | AI215: 0 | AJ215: 0 | AK215: 0 | AL215: 0 | AM215: 0 | AN215: 0 | AO215: 0 | AP215: 0 | AQ215: 0 | AR215: 0 | AS215: 0 | AT215: 0 | AU215: 0 | AV215: 0 | AW215: 0 | AX215: 0 | AY215: 0 | AZ215: 0 | BA215: 0
B216: After-Tax Cash Flow | H216: =SUM(H211:H215) -> -1e-08 | I216: 0 | J216: 0 | K216: 0 | L216: -41249.42745 | M216: -41220.04642 | N216: 26294.20173 | O216: 5397.352402 | P216: 10494.55774 | Q216: 5398.151736 | R216: 16344.79063 | S216: 4933.357582 | T216: 3050.56881 | U216: 3792.438408 | V216: 3838.328124 | W216: 3829.05009 | X216: 3932.038199 | Y216: 3982.399416 | Z216: 3986.149157 | AA216: 3995.169654 | AB216: 4055.313867 | AC216: 4108.717975 | AD216: 4152.577777 | AE216: 4164.844362 | AF216: 4274.62369 | AG216: 4284.183627 | AH216: 4390.614671 | AI216: 4444.270867 | AJ216: 4505.801706 | AK216: 4574.978955 | AL216: 4640.681526 | AM216: 2233.934638 | AN216: 0 | AO216: 0 | AP216: 0 | AQ216: 0 | AR216: 0 | AS216: 0 | AT216: 0 | AU216: 0 | AV216: 0 | AW216: 0 | AX216: 0 | AY216: 0 | AZ216: 0 | BA216: 0
B219: Weighted Average Discount Date (WADD)
D220: COD | E220: Days | F220: Receipt
B221: Grant Funding | D221: =FS!E13 -> 2012-05-01 | E221: 90 | F221: =D221+E221 -> 2012-07-30 | G221: Disc Date : | H221: =IF(H214>0,$F221,H2) -> 2007-06-30 | I221: 2008-06-30 | J221: 2009-06-30 | K221: 2010-06-30 | L221: 2011-10-01 | M221: 2012-05-01 | N221: 2012-07-30 | O221: 2013-08-15 | P221: 2014-08-15 | Q221: 2015-08-15 | R221: 2016-08-15 | S221: 2017-08-15 | T221: 2018-08-15 | U221: 2019-08-15 | V221: 2020-08-15 | W221: 2021-08-15 | X221: 2022-08-15 | Y221: 2023-08-15 | Z221: 2024-08-15 | AA221: 2025-08-15 | AB221: 2026-08-15 | AC221: 2027-08-15 | AD221: 2028-08-15 | AE221: 2029-08-15 | AF221: 2030-08-15 | AG221: 2031-08-15 | AH221: 2032-08-15 | AI221: 2033-08-15 | AJ221: 2034-08-15 | AK221: 2035-08-15 | AL221: 2036-08-15 | AM221: 2037-08-15 | AN221: 2038-08-15 | AO221: 2039-08-15 | AP221: 2040-08-15 | AQ221: 2041-08-15 | AR221: 2042-08-15 | AS221: 2043-08-15 | AT221: 2044-08-15 | AU221: 2045-08-15 | AV221: 2046-08-15 | AW221: 2047-08-15 | AX221: 2048-08-15 | AY221: 2049-08-15 | AZ221: 2050-08-15 | BA221: 2051-08-15
B222: Investment / Ops | G222: Disc Date : | H222: =H2 -> 2007-06-30 | I222: 2008-06-30 | J222: 2009-06-30 | K222: 2010-06-30 | L222: 2011-10-01 | M222: 2012-05-01 | N222: 2012-09-01 | O222: 2013-08-15 | P222: 2014-08-15 | Q222: 2015-08-15 | R222: 2016-08-15 | S222: 2017-08-15 | T222: 2018-08-15 | U222: 2019-08-15 | V222: 2020-08-15 | W222: 2021-08-15 | X222: 2022-08-15 | Y222: 2023-08-15 | Z222: 2024-08-15 | AA222: 2025-08-15 | AB222: 2026-08-15 | AC222: 2027-08-15 | AD222: 2028-08-15 | AE222: 2029-08-15 | AF222: 2030-08-15 | AG222: 2031-08-15 | AH222: 2032-08-15 | AI222: 2033-08-15 | AJ222: 2034-08-15 | AK222: 2035-08-15 | AL222: 2036-08-15 | AM222: 2037-08-15 | AN222: 2038-08-15 | AO222: 2039-08-15 | AP222: 2040-08-15 | AQ222: 2041-08-15 | AR222: 2042-08-15 | AS222: 2043-08-15 | AT222: 2044-08-15 | AU222: 2045-08-15 | AV222: 2046-08-15 | AW222: 2047-08-15 | AX222: 2048-08-15 | AY222: 2049-08-15 | AZ222: 2050-08-15 | BA222: 2051-08-15
B224: Grant Funding | G224: Abs $000's : | H224: =ABS(H214) -> 0 | I224: 0 | J224: 0 | K224: 0 | L224: 0 | M224: 0 | N224: 23128.47452 | O224: 0 | P224: 0 | Q224: 0 | R224: 0 | S224: 0 | T224: 0 | U224: 0 | V224: 0 | W224: 0 | X224: 0 | Y224: 0 | Z224: 0 | AA224: 0 | AB224: 0 | AC224: 0 | AD224: 0 | AE224: 0 | AF224: 0 | AG224: 0 | AH224: 0 | AI224: 0 | AJ224: 0 | AK224: 0 | AL224: 0 | AM224: 0 | AN224: 0 | AO224: 0 | AP224: 0 | AQ224: 0 | AR224: 0 | AS224: 0 | AT224: 0 | AU224: 0 | AV224: 0 | AW224: 0 | AX224: 0 | AY224: 0 | AZ224: 0 | BA224: 0
B225: Investment | G225: Abs $000's : | H225: =ABS(H211) -> 1e-08 | I225: 0 | J225: 0 | K225: 0 | L225: 41249.42745 | M225: 41030.25487 | N225: 0 | O225: 0 | P225: 0 | Q225: 0 | R225: 0 | S225: 0 | T225: 0 | U225: 0 | V225: 0 | W225: 0 | X225: 0 | Y225: 0 | Z225: 0 | AA225: 0 | AB225: 0 | AC225: 0 | AD225: 0 | AE225: 0 | AF225: 0 | AG225: 0 | AH225: 0 | AI225: 0 | AJ225: 0 | AK225: 0 | AL225: 0 | AM225: 0 | AN225: 0 | AO225: 0 | AP225: 0 | AQ225: 0 | AR225: 0 | AS225: 0 | AT225: 0 | AU225: 0 | AV225: 0 | AW225: 0 | AX225: 0 | AY225: 0 | AZ225: 0 | BA225: 0
B226: Operations | G226: Abs $000's : | H226: =ABS(SUM(H212:H213,H215)) -> 0 | I226: 0 | J226: 0 | K226: 0 | L226: 0 | M226: 189.7915448 | N226: 3165.727209 | O226: 5397.352402 | P226: 10494.55774 | Q226: 5398.151736 | R226: 16344.79063 | S226: 4933.357582 | T226: 3050.56881 | U226: 3792.438408 | V226: 3838.328124 | W226: 3829.05009 | X226: 3932.038199 | Y226: 3982.399416 | Z226: 3986.149157 | AA226: 3995.169654 | AB226: 4055.313867 | AC226: 4108.717975 | AD226: 4152.577777 | AE226: 4164.844362 | AF226: 4274.62369 | AG226: 4284.183627 | AH226: 4390.614671 | AI226: 4444.270867 | AJ226: 4505.801706 | AK226: 4574.978955 | AL226: 4640.681526 | AM226: 2233.934638 | AN226: 0 | AO226: 0 | AP226: 0 | AQ226: 0 | AR226: 0 | AS226: 0 | AT226: 0 | AU226: 0 | AV226: 0 | AW226: 0 | AX226: 0 | AY226: 0 | AZ226: 0 | BA226: 0
H227: =SUM(H224:H226) -> 1e-08 | I227: 0 | J227: 0 | K227: 0 | L227: 41249.42745 | M227: 41220.04642 | N227: 26294.20173 | O227: 5397.352402 | P227: 10494.55774 | Q227: 5398.151736 | R227: 16344.79063 | S227: 4933.357582 | T227: 3050.56881 | U227: 3792.438408 | V227: 3838.328124 | W227: 3829.05009 | X227: 3932.038199 | Y227: 3982.399416 | Z227: 3986.149157 | AA227: 3995.169654 | AB227: 4055.313867 | AC227: 4108.717975 | AD227: 4152.577777 | AE227: 4164.844362 | AF227: 4274.62369 | AG227: 4284.183627 | AH227: 4390.614671 | AI227: 4444.270867 | AJ227: 4505.801706 | AK227: 4574.978955 | AL227: 4640.681526 | AM227: 2233.934638 | AN227: 0 | AO227: 0 | AP227: 0 | AQ227: 0 | AR227: 0 | AS227: 0 | AT227: 0 | AU227: 0 | AV227: 0 | AW227: 0 | AX227: 0 | AY227: 0 | AZ227: 0 | BA227: 0
B229: Grant Funding | G229: Wt Factors : | H229: =IF(H227=0,0,H224/H227) -> 0 | I229: 0 | J229: 0 | K229: 0 | L229: 0 | M229: 0 | N229: 0.8796036008 | O229: 0 | P229: 0 | Q229: 0 | R229: 0 | S229: 0 | T229: 0 | U229: 0 | V229: 0 | W229: 0 | X229: 0 | Y229: 0 | Z229: 0 | AA229: 0 | AB229: 0 | AC229: 0 | AD229: 0 | AE229: 0 | AF229: 0 | AG229: 0 | AH229: 0 | AI229: 0 | AJ229: 0 | AK229: 0 | AL229: 0 | AM229: 0 | AN229: 0 | AO229: 0 | AP229: 0 | AQ229: 0 | AR229: 0 | AS229: 0 | AT229: 0 | AU229: 0 | AV229: 0 | AW229: 0 | AX229: 0 | AY229: 0 | AZ229: 0 | BA229: 0
B230: Investment / Ops | G230: Wt Factors : | H230: =1-H229 -> 1 | I230: 1 | J230: 1 | K230: 1 | L230: 1 | M230: 1 | N230: 0.1203963992 | O230: 1 | P230: 1 | Q230: 1 | R230: 1 | S230: 1 | T230: 1 | U230: 1 | V230: 1 | W230: 1 | X230: 1 | Y230: 1 | Z230: 1 | AA230: 1 | AB230: 1 | AC230: 1 | AD230: 1 | AE230: 1 | AF230: 1 | AG230: 1 | AH230: 1 | AI230: 1 | AJ230: 1 | AK230: 1 | AL230: 1 | AM230: 1 | AN230: 1 | AO230: 1 | AP230: 1 | AQ230: 1 | AR230: 1 | AS230: 1 | AT230: 1 | AU230: 1 | AV230: 1 | AW230: 1 | AX230: 1 | AY230: 1 | AZ230: 1 | BA230: 1
F232: Disc Rate
F233: =Scen!G17 -> 0.08 | G233: WADD : | H233: =SUMPRODUCT(H221:H222,H229:H230) -> 2007-06-30 | I233: 2008-06-30 | J233: 2009-06-30 | K233: 2010-06-30 | L233: 2011-10-01 | M233: 2012-05-01 | N233: 2012-08-02T23:21:14.214 | O233: 2013-08-15 | P233: 2014-08-15 | Q233: 2015-08-15 | R233: 2016-08-15 | S233: 2017-08-15 | T233: 2018-08-15 | U233: 2019-08-15 | V233: 2020-08-15 | W233: 2021-08-15 | X233: 2022-08-15 | Y233: 2023-08-15 | Z233: 2024-08-15 | AA233: 2025-08-15 | AB233: 2026-08-15 | AC233: 2027-08-15 | AD233: 2028-08-15 | AE233: 2029-08-15 | AF233: 2030-08-15 | AG233: 2031-08-15 | AH233: 2032-08-15 | AI233: 2033-08-15 | AJ233: 2034-08-15 | AK233: 2035-08-15 | AL233: 2036-08-15 | AM233: 2037-08-15 | AN233: 2038-08-15 | AO233: 2039-08-15 | AP233: 2040-08-15 | AQ233: 2041-08-15 | AR233: 2042-08-15 | AS233: 2043-08-15 | AT233: 2044-08-15 | AU233: 2045-08-15 | AV233: 2046-08-15 | AW233: 2047-08-15 | AX233: 2048-08-15 | AY233: 2049-08-15 | AZ233: 2050-08-15 | BA233: 2051-08-15
D234: Year | E234: xIRR | F234: xNPV | G234: xIRR : | H234: 0 | I234: 0 | J234: 0 | K234: 0 | L234: 0 | M234: 0 | N234: =XIRR($H216:N216,$H233:N233) -> 2.980232239e-09 | O234: =XIRR($H216:O216,$H233:O233) -> 2.980232239e-09 | P234: =XIRR($H216:P216,$H233:P233) -> 2.980232239e-09 | Q234: =XIRR($H216:Q216,$H233:Q233) -> 2.980232239e-09 | R234: =XIRR($H216:R216,$H233:R233) -> 2.980232239e-09 | S234: =XIRR($H216:S216,$H233:S233) -> 2.980232239e-09 | T234: =XIRR($H216:T216,$H233:T233) -> 2.980232239e-09 | U234: =XIRR($H216:U216,$H233:U233) -> 2.980232239e-09 | V234: =XIRR($H216:V216,$H233:V233) -> 2.980232239e-09 | W234: =XIRR($H216:W216,$H233:W233) -> 0.003143367171 | X234: =XIRR($H216:X216,$H233:X233) -> 0.0153827399 | Y234: =XIRR($H216:Y216,$H233:Y233) -> 0.02572003901 | Z234: =XIRR($H216:Z216,$H233:Z233) -> 0.03438142836 | AA234: =XIRR($H216:AA216,$H233:AA233) -> 0.04168779552 | AB234: =XIRR($H216:AB216,$H233:AB233) -> 0.04795892537 | AC234: =XIRR($H216:AC216,$H233:AC233) -> 0.05335353911 | AD234: =XIRR($H216:AD216,$H233:AD233) -> 0.05800229013 | AE234: =XIRR($H216:AE216,$H233:AE233) -> 0.06199700534 | AF234: =XIRR($H216:AF216,$H233:AF233) -> 0.06552315056 | AG234: =XIRR($H216:AG216,$H233:AG233) -> 0.0685734421 | AH234: =XIRR($H216:AH216,$H233:AH233) -> 0.07128065526 | AI234: =XIRR($H216:AI216,$H233:AI233) -> 0.07366116345 | AJ234: =XIRR($H216:AJ216,$H233:AJ233) -> 0.07576437891 | AK234: =XIRR($H216:AK216,$H233:AK233) -> 0.07763067782 | AL234: =XIRR($H216:AL216,$H233:AL233) -> 0.07928918302 | AM234: =XIRR($H216:AM216,$H233:AM233) -> 0.07999999821 | AN234: =XIRR($H216:AN216,$H233:AN233) -> 0.07999999821 | AO234: =XIRR($H216:AO216,$H233:AO233) -> 0.07999999821 | AP234: =XIRR($H216:AP216,$H233:AP233) -> 0.07999999821 | AQ234: =XIRR($H216:AQ216,$H233:AQ233) -> 0.07999999821 | AR234: =XIRR($H216:AR216,$H233:AR233) -> 0.07999999821 | AS234: =XIRR($H216:AS216,$H233:AS233) -> 0.07999999821 | AT234: =XIRR($H216:AT216,$H233:AT233) -> 0.07999999821 | AU234: =XIRR($H216:AU216,$H233:AU233) -> 0.07999999821 | AV234: =XIRR($H216:AV216,$H233:AV233) -> 0.07999999821 | AW234: =XIRR($H216:AW216,$H233:AW233) -> 0.07999999821 | AX234: =XIRR($H216:AX216,$H233:AX233) -> 0.07999999821 | AY234: =XIRR($H216:AY216,$H233:AY233) -> 0.07999999821 | AZ234: =XIRR($H216:AZ216,$H233:AZ233) -> 0.07999999821 | BA234: =XIRR($H216:BA216,$H233:BA233) -> 0.07999999821
D235: 5 | E235: =OFFSET($M$234,0,$D235) -> 2.980232239e-09 | F235: =OFFSET($M$235,0,$D235)/1000 -> -19.95126846 | G235: xNPV : | H235: =XNPV($F$233,$H216:H216,$H233:H233) -> -1e-08 | I235: =XNPV($F$233,$H216:I216,$H233:I233) -> -1e-08 | J235: =XNPV($F$233,$H216:J216,$H233:J233) -> -1e-08 | K235: =XNPV($F$233,$H216:K216,$H233:K233) -> -1e-08 | L235: =XNPV($F$233,$H216:L216,$H233:L233) -> -29724.53992 | M235: =XNPV($F$233,$H216:M216,$H233:M233) -> -58123.39759 | N235: =XNPV($F$233,$H216:N216,$H233:N233) -> -40359.58448 | O235: =XNPV($F$233,$H216:O216,$H233:O233) -> -36992.58702 | P235: =XNPV($F$233,$H216:P216,$H233:P233) -> -30930.77589 | Q235: =XNPV($F$233,$H216:Q216,$H233:Q233) -> -28043.69076 | R235: =XNPV($F$233,$H216:R216,$H233:R233) -> -19951.26846 | S235: =XNPV($F$233,$H216:S216,$H233:S233) -> -17689.6569 | T235: =XNPV($F$233,$H216:T216,$H233:T233) -> -16394.76805 | U235: =XNPV($F$233,$H216:U216,$H233:U233) -> -14904.21841 | V235: =XNPV($F$233,$H216:V216,$H233:V233) -> -13507.67423 | W235: =XNPV($F$233,$H216:W216,$H233:W233) -> -12217.70344 | X235: =XNPV($F$233,$H216:X216,$H233:X233) -> -10991.16038 | Y235: =XNPV($F$233,$H216:Y216,$H233:Y233) -> -9840.926567 | Z235: =XNPV($F$233,$H216:Z216,$H233:Z233) -> -8775.117198 | AA235: =XNPV($F$233,$H216:AA216,$H233:AA233) -> -7786.023445 | AB235: =XNPV($F$233,$H216:AB216,$H233:AB233) -> -6856.408815 | AC235: =XNPV($F$233,$H216:AC216,$H233:AC233) -> -5984.319322 | AD235: =XNPV($F$233,$H216:AD216,$H233:AD233) -> -5168.381303 | AE235: =XNPV($F$233,$H216:AE216,$H233:AE233) -> -4410.65142 | AF235: =XNPV($F$233,$H216:AF216,$H233:AF233) -> -3690.556459 | AG235: =XNPV($F$233,$H216:AG216,$H233:AG233) -> -3022.31071 | AH235: =XNPV($F$233,$H216:AH216,$H233:AH233) -> -2388.326962 | AI235: =XNPV($F$233,$H216:AI216,$H233:AI233) -> -1794.13118 | AJ235: =XNPV($F$233,$H216:AJ216,$H233:AJ233) -> -1236.332651 | AK235: =XNPV($F$233,$H216:AK216,$H233:AK233) -> -711.9230494 | AL235: =XNPV($F$233,$H216:AL216,$H233:AL233) -> -219.4891166 | AM235: =XNPV($F$233,$H216:AM216,$H233:AM233) -> -3.92076177e-05 | AN235: =XNPV($F$233,$H216:AN216,$H233:AN233) -> -3.92076177e-05 | AO235: =XNPV($F$233,$H216:AO216,$H233:AO233) -> -3.92076177e-05 | AP235: =XNPV($F$233,$H216:AP216,$H233:AP233) -> -3.92076177e-05 | AQ235: =XNPV($F$233,$H216:AQ216,$H233:AQ233) -> -3.92076177e-05 | AR235: =XNPV($F$233,$H216:AR216,$H233:AR233) -> -3.92076177e-05 | AS235: =XNPV($F$233,$H216:AS216,$H233:AS233) -> -3.92076177e-05 | AT235: =XNPV($F$233,$H216:AT216,$H233:AT233) -> -3.92076177e-05 | AU235: =XNPV($F$233,$H216:AU216,$H233:AU233) -> -3.92076177e-05 | AV235: =XNPV($F$233,$H216:AV216,$H233:AV233) -> -3.92076177e-05 | AW235: =XNPV($F$233,$H216:AW216,$H233:AW233) -> -3.92076177e-05 | AX235: =XNPV($F$233,$H216:AX216,$H233:AX233) -> -3.92076177e-05 | AY235: =XNPV($F$233,$H216:AY216,$H233:AY233) -> -3.92076177e-05 | AZ235: =XNPV($F$233,$H216:AZ216,$H233:AZ233) -> -3.92076177e-05 | BA235: =XNPV($F$233,$H216:BA216,$H233:BA233) -> -3.92076177e-05
D236: 10 | E236: 0.003143367171 | F236: -12.21770344
D237: 15 | E237: 0.04795892537 | F237: -6.856408815
D238: 20 | E238: 0.0685734421 | F238: -3.02231071
D239: 25 | E239: 0.07928918302 | F239: -0.2194891166
D240: 31 | E240: 0.07999999821 | F240: -3.92076177e-08
B243: Basic Impairment Test
B245: EBITDA | H245: =H45 -> 0 | I245: 0 | J245: 0 | K245: 0 | L245: 0 | M245: -189.7915448 | N245: 3627.326793 | O245: 5396.051876 | P245: 5495.902092 | Q245: 5608.171028 | R245: 5679.184564 | S245: 5751.859114 | T245: 5864.444798 | U245: 5911.499714 | V245: 5989.2906 | W245: 5960.342797 | X245: 6155.332516 | Y245: 6218.905545 | Z245: 6282.801739 | AA245: 6356.402089 | AB245: 6456.539131 | AC245: 6580.824772 | AD245: 6683.782135 | AE245: 6690.882166 | AF245: 6892.970153 | AG245: 6879.992782 | AH245: 7078.943662 | AI245: 7148.030989 | AJ245: 7251.437307 | AK245: 7363.774212 | AL245: 7468.327208 | AM245: 2542.256941 | AN245: 0 | AO245: 0 | AP245: 0 | AQ245: 0 | AR245: 0 | AS245: 0 | AT245: 0 | AU245: 0 | AV245: 0 | AW245: 0 | AX245: 0 | AY245: 0 | AZ245: 0 | BA245: 0
B246: Total Remaining EBITDA - Nominal | H246: =SUM(H245:$BA245) -> 159145.4852 | I246: =SUM(I245:$BA245) -> 159145.4852 | J246: =SUM(J245:$BA245) -> 159145.4852 | K246: =SUM(K245:$BA245) -> 159145.4852 | L246: =SUM(L245:$BA245) -> 159145.4852 | M246: =SUM(M245:$BA245) -> 159145.4852 | N246: =SUM(N245:$BA245) -> 159335.2767 | O246: =SUM(O245:$BA245) -> 155707.9499 | P246: =SUM(P245:$BA245) -> 150311.8981 | Q246: =SUM(Q245:$BA245) -> 144815.996 | R246: =SUM(R245:$BA245) -> 139207.8249 | S246: =SUM(S245:$BA245) -> 133528.6404 | T246: =SUM(T245:$BA245) -> 127776.7813 | U246: =SUM(U245:$BA245) -> 121912.3365 | V246: =SUM(V245:$BA245) -> 116000.8367 | W246: =SUM(W245:$BA245) -> 110011.5461 | X246: =SUM(X245:$BA245) -> 104051.2033 | Y246: =SUM(Y245:$BA245) -> 97895.87083 | Z246: =SUM(Z245:$BA245) -> 91676.96529 | AA246: =SUM(AA245:$BA245) -> 85394.16355 | AB246: =SUM(AB245:$BA245) -> 79037.76146 | AC246: =SUM(AC245:$BA245) -> 72581.22233 | AD246: =SUM(AD245:$BA245) -> 66000.39756 | AE246: =SUM(AE245:$BA245) -> 59316.61542 | AF246: =SUM(AF245:$BA245) -> 52625.73325 | AG246: =SUM(AG245:$BA245) -> 45732.7631 | AH246: =SUM(AH245:$BA245) -> 38852.77032 | AI246: =SUM(AI245:$BA245) -> 31773.82666 | AJ246: =SUM(AJ245:$BA245) -> 24625.79567 | AK246: =SUM(AK245:$BA245) -> 17374.35836 | AL246: =SUM(AL245:$BA245) -> 10010.58415 | AM246: =SUM(AM245:$BA245) -> 2542.256941 | AN246: =SUM(AN245:$BA245) -> 0 | AO246: =SUM(AO245:$BA245) -> 0 | AP246: =SUM(AP245:$BA245) -> 0 | AQ246: =SUM(AQ245:$BA245) -> 0 | AR246: =SUM(AR245:$BA245) -> 0 | AS246: =SUM(AS245:$BA245) -> 0 | AT246: =SUM(AT245:$BA245) -> 0 | AU246: =SUM(AU245:$BA245) -> 0 | AV246: =SUM(AV245:$BA245) -> 0 | AW246: =SUM(AW245:$BA245) -> 0 | AX246: =SUM(AX245:$BA245) -> 0 | AY246: =SUM(AY245:$BA245) -> 0 | AZ246: =SUM(AZ245:$BA245) -> 0 | BA246: =SUM(BA245:$BA245) -> 0
B247: Remaining Book Basis - Beginning | F247: Max Impairment | H247: =H60-H46 -> 1e-08 | I247: 0 | J247: 0 | K247: 0 | L247: 41249.42745 | M247: 82279.68233 | N247: 82279.68233 | O247: 80451.24483 | P247: 77708.58853 | Q247: 74965.93223 | R247: 72223.27593 | S247: 69480.61963 | T247: 66737.96333 | U247: 63995.30703 | V247: 61252.65073 | W247: 58509.99443 | X247: 55767.33813 | Y247: 53024.68183 | Z247: 50282.02553 | AA247: 47539.36923 | AB247: 44796.71293 | AC247: 42054.05663 | AD247: 39311.40033 | AE247: 36568.74403 | AF247: 33826.08773 | AG247: 31083.43143 | AH247: 28340.77513 | AI247: 25598.11883 | AJ247: 22855.46253 | AK247: 20112.80623 | AL247: 17370.14993 | AM247: -0.005270816517 | AN247: -0.005270816517 | AO247: -0.005270816517 | AP247: -0.005270816517 | AQ247: -0.005270816517 | AR247: -0.005270816517 | AS247: -0.005270816517 | AT247: -0.005270816517 | AU247: -0.005270816517 | AV247: -0.005270816517 | AW247: -0.005270816517 | AX247: -0.005270816517 | AY247: -0.005270816517 | AZ247: -0.005270816517 | BA247: -0.005270816517
F248: =MIN(H248:BA248) -> -7359.56578 | H248: =H246-H247 -> 159145.4852 | I248: 159145.4852 | J248: 159145.4852 | K248: 159145.4852 | L248: 117896.0577 | M248: 76865.80285 | N248: 77055.59439 | O248: 75256.7051 | P248: 72603.30952 | Q248: 69850.06373 | R248: 66984.549 | S248: 64048.02074 | T248: 61038.81793 | U248: 57917.02943 | V248: 54748.18601 | W248: 51501.55172 | X248: 48283.86522 | Y248: 44871.189 | Z248: 41394.93976 | AA248: 37854.79432 | AB248: 34241.04853 | AC248: 30527.1657 | AD248: 26688.99723 | AE248: 22747.87139 | AF248: 18799.64553 | AG248: 14649.33167 | AH248: 10511.99519 | AI248: 6175.707829 | AJ248: 1770.33314 | AK248: -2738.447868 | AL248: -7359.56578 | AM248: 2542.262212 | AN248: 0.005270816517 | AO248: 0.005270816517 | AP248: 0.005270816517 | AQ248: 0.005270816517 | AR248: 0.005270816517 | AS248: 0.005270816517 | AT248: 0.005270816517 | AU248: 0.005270816517 | AV248: 0.005270816517 | AW248: 0.005270816517 | AX248: 0.005270816517 | AY248: 0.005270816517 | AZ248: 0.005270816517 | BA248: 0.005270816517
B250: Impaired (1=Impaired, 0=OK) | F250: =--(SUM(H250:BA250)>0) -> 1 | H250: =--(ROUND(H248,0)<0) -> 0 | I250: 0 | J250: 0 | K250: 0 | L250: 0 | M250: 0 | N250: 0 | O250: 0 | P250: 0 | Q250: 0 | R250: 0 | S250: 0 | T250: 0 | U250: 0 | V250: 0 | W250: 0 | X250: 0 | Y250: 0 | Z250: 0 | AA250: 0 | AB250: 0 | AC250: 0 | AD250: 0 | AE250: 0 | AF250: 0 | AG250: 0 | AH250: 0 | AI250: 0 | AJ250: 0 | AK250: 1 | AL250: 1 | AM250: 0 | AN250: 0 | AO250: 0 | AP250: 0 | AQ250: 0 | AR250: 0 | AS250: 0 | AT250: 0 | AU250: 0 | AV250: 0 | AW250: 0 | AX250: 0 | AY250: 0 | AZ250: 0 | BA250: 0

Sheet Ret
H1: =FS!H1 -> 0 | I1: =FS!I1 -> 0 | J1: =FS!J1 -> 0 | K1: =FS!K1 -> 0 | L1: =FS!L1 -> 0 | M1: =FS!M1 -> 0 | N1: =FS!N1 -> 0.6693989071 | O1: =FS!O1 -> 1 | P1: =FS!P1 -> 1 | Q1: =FS!Q1 -> 1 | R1: =FS!R1 -> 1 | S1: =FS!S1 -> 1 | T1: =FS!T1 -> 1 | U1: =FS!U1 -> 1 | V1: =FS!V1 -> 1 | W1: =FS!W1 -> 1 | X1: =FS!X1 -> 1 | Y1: =FS!Y1 -> 1 | Z1: =FS!Z1 -> 1 | AA1: =FS!AA1 -> 1 | AB1: =FS!AB1 -> 1 | AC1: =FS!AC1 -> 1 | AD1: =FS!AD1 -> 1 | AE1: =FS!AE1 -> 1 | AF1: =FS!AF1 -> 1 | AG1: =FS!AG1 -> 1 | AH1: =FS!AH1 -> 1 | AI1: =FS!AI1 -> 1 | AJ1: =FS!AJ1 -> 1 | AK1: =FS!AK1 -> 1 | AL1: =FS!AL1 -> 1 | AM1: =FS!AM1 -> 0.3306010929 | AN1: =FS!AN1 -> 0 | AO1: =FS!AO1 -> 0 | AP1: =FS!AP1 -> 0 | AQ1: =FS!AQ1 -> 0 | AR1: =FS!AR1 -> 0 | AS1: =FS!AS1 -> 0 | AT1: =FS!AT1 -> 0 | AU1: =FS!AU1 -> 0 | AV1: =FS!AV1 -> 0 | AW1: =FS!AW1 -> 0 | AX1: =FS!AX1 -> 0 | AY1: =FS!AY1 -> 0 | AZ1: =FS!AZ1 -> 0 | BA1: =FS!BA1 -> 0
H2: =FS!H2 -> 2007-06-30 | I2: =FS!I2 -> 2008-06-30 | J2: =FS!J2 -> 2009-06-30 | K2: =FS!K2 -> 2010-06-30 | L2: =FS!L2 -> 2011-10-01 | M2: =FS!M2 -> 2012-05-01 | N2: =FS!N2 -> 2012-09-01 | O2: =FS!O2 -> 2013-08-15 | P2: =FS!P2 -> 2014-08-15 | Q2: =FS!Q2 -> 2015-08-15 | R2: =FS!R2 -> 2016-08-15 | S2: =FS!S2 -> 2017-08-15 | T2: =FS!T2 -> 2018-08-15 | U2: =FS!U2 -> 2019-08-15 | V2: =FS!V2 -> 2020-08-15 | W2: =FS!W2 -> 2021-08-15 | X2: =FS!X2 -> 2022-08-15 | Y2: =FS!Y2 -> 2023-08-15 | Z2: =FS!Z2 -> 2024-08-15 | AA2: =FS!AA2 -> 2025-08-15 | AB2: =FS!AB2 -> 2026-08-15 | AC2: =FS!AC2 -> 2027-08-15 | AD2: =FS!AD2 -> 2028-08-15 | AE2: =FS!AE2 -> 2029-08-15 | AF2: =FS!AF2 -> 2030-08-15 | AG2: =FS!AG2 -> 2031-08-15 | AH2: =FS!AH2 -> 2032-08-15 | AI2: =FS!AI2 -> 2033-08-15 | AJ2: =FS!AJ2 -> 2034-08-15 | AK2: =FS!AK2 -> 2035-08-15 | AL2: =FS!AL2 -> 2036-08-15 | AM2: =FS!AM2 -> 2037-08-15 | AN2: =FS!AN2 -> 2038-08-15 | AO2: =FS!AO2 -> 2039-08-15 | AP2: =FS!AP2 -> 2040-08-15 | AQ2: =FS!AQ2 -> 2041-08-15 | AR2: =FS!AR2 -> 2042-08-15 | AS2: =FS!AS2 -> 2043-08-15 | AT2: =FS!AT2 -> 2044-08-15 | AU2: =FS!AU2 -> 2045-08-15 | AV2: =FS!AV2 -> 2046-08-15 | AW2: =FS!AW2 -> 2047-08-15 | AX2: =FS!AX2 -> 2048-08-15 | AY2: =FS!AY2 -> 2049-08-15 | AZ2: =FS!AZ2 -> 2050-08-15 | BA2: =FS!BA2 -> 2051-08-15
H3: =FS!H3 -> -5 | I3: =FS!I3 -> -4 | J3: =FS!J3 -> -3 | K3: =FS!K3 -> -2 | L3: =FS!L3 -> -1 | M3: =FS!M3 -> 0 | N3: =FS!N3 -> 1 | O3: =FS!O3 -> 2 | P3: =FS!P3 -> 3 | Q3: =FS!Q3 -> 4 | R3: =FS!R3 -> 5 | S3: =FS!S3 -> 6 | T3: =FS!T3 -> 7 | U3: =FS!U3 -> 8 | V3: =FS!V3 -> 9 | W3: =FS!W3 -> 10 | X3: =FS!X3 -> 11 | Y3: =FS!Y3 -> 12 | Z3: =FS!Z3 -> 13 | AA3: =FS!AA3 -> 14 | AB3: =FS!AB3 -> 15 | AC3: =FS!AC3 -> 16 | AD3: =FS!AD3 -> 17 | AE3: =FS!AE3 -> 18 | AF3: =FS!AF3 -> 19 | AG3: =FS!AG3 -> 20 | AH3: =FS!AH3 -> 21 | AI3: =FS!AI3 -> 22 | AJ3: =FS!AJ3 -> 23 | AK3: =FS!AK3 -> 24 | AL3: =FS!AL3 -> 25 | AM3: =FS!AM3 -> 26 | AN3: =FS!AN3 -> 27 | AO3: =FS!AO3 -> 28 | AP3: =FS!AP3 -> 29 | AQ3: =FS!AQ3 -> 30 | AR3: =FS!AR3 -> 31 | AS3: =FS!AS3 -> 32 | AT3: =FS!AT3 -> 33 | AU3: =FS!AU3 -> 34 | AV3: =FS!AV3 -> 35 | AW3: =FS!AW3 -> 36 | AX3: =FS!AX3 -> 37 | AY3: =FS!AY3 -> 38 | AZ3: =FS!AZ3 -> 39 | BA3: =FS!BA3 -> 40
H4: =FS!H4 -> 2007 | I4: =FS!I4 -> 2008 | J4: =FS!J4 -> 2009 | K4: =FS!K4 -> 2010 | L4: =FS!L4 -> 2011 | M4: =FS!M4 -> 2012 | N4: =FS!N4 -> 2012 | O4: =FS!O4 -> 2013 | P4: =FS!P4 -> 2014 | Q4: =FS!Q4 -> 2015 | R4: =FS!R4 -> 2016 | S4: =FS!S4 -> 2017 | T4: =FS!T4 -> 2018 | U4: =FS!U4 -> 2019 | V4: =FS!V4 -> 2020 | W4: =FS!W4 -> 2021 | X4: =FS!X4 -> 2022 | Y4: =FS!Y4 -> 2023 | Z4: =FS!Z4 -> 2024 | AA4: =FS!AA4 -> 2025 | AB4: =FS!AB4 -> 2026 | AC4: =FS!AC4 -> 2027 | AD4: =FS!AD4 -> 2028 | AE4: =FS!AE4 -> 2029 | AF4: =FS!AF4 -> 2030 | AG4: =FS!AG4 -> 2031 | AH4: =FS!AH4 -> 2032 | AI4: =FS!AI4 -> 2033 | AJ4: =FS!AJ4 -> 2034 | AK4: =FS!AK4 -> 2035 | AL4: =FS!AL4 -> 2036 | AM4: =FS!AM4 -> 2037 | AN4: =FS!AN4 -> 2038 | AO4: =FS!AO4 -> 2039 | AP4: =FS!AP4 -> 2040 | AQ4: =FS!AQ4 -> 2041 | AR4: =FS!AR4 -> 2042 | AS4: =FS!AS4 -> 2043 | AT4: =FS!AT4 -> 2044 | AU4: =FS!AU4 -> 2045 | AV4: =FS!AV4 -> 2046 | AW4: =FS!AW4 -> 2047 | AX4: =FS!AX4 -> 2048 | AY4: =FS!AY4 -> 2049 | AZ4: =FS!AZ4 -> 2050 | BA4: =FS!BA4 -> 2051
B5: PROJECT RETURN - Unlevered
B7: Project Cash Flow
B8: Capital Investment | H8: =-FS!H96 -> -1e-08 | I8: =-FS!I96 -> 0 | J8: =-FS!J96 -> 0 | K8: =-FS!K96 -> 0 | L8: =-FS!L96 -> -41249.42745 | M8: =-FS!M96 -> -41030.25487 | N8: =-FS!N96 -> 0 | O8: =-FS!O96 -> 0 | P8: =-FS!P96 -> 0 | Q8: =-FS!Q96 -> 0 | R8: =-FS!R96 -> 0 | S8: =-FS!S96 -> 0 | T8: =-FS!T96 -> 0 | U8: =-FS!U96 -> 0 | V8: =-FS!V96 -> 0 | W8: =-FS!W96 -> 0 | X8: =-FS!X96 -> 0 | Y8: =-FS!Y96 -> 0 | Z8: =-FS!Z96 -> 0 | AA8: =-FS!AA96 -> 0 | AB8: =-FS!AB96 -> 0 | AC8: =-FS!AC96 -> 0 | AD8: =-FS!AD96 -> 0 | AE8: =-FS!AE96 -> 0 | AF8: =-FS!AF96 -> 0 | AG8: =-FS!AG96 -> 0 | AH8: =-FS!AH96 -> 0 | AI8: =-FS!AI96 -> 0 | AJ8: =-FS!AJ96 -> 0 | AK8: =-FS!AK96 -> 0 | AL8: =-FS!AL96 -> 0 | AM8: =-FS!AM96 -> 0 | AN8: =-FS!AN96 -> 0 | AO8: =-FS!AO96 -> 0 | AP8: =-FS!AP96 -> 0 | AQ8: =-FS!AQ96 -> 0 | AR8: =-FS!AR96 -> 0 | AS8: =-FS!AS96 -> 0 | AT8: =-FS!AT96 -> 0 | AU8: =-FS!AU96 -> 0 | AV8: =-FS!AV96 -> 0 | AW8: =-FS!AW96 -> 0 | AX8: =-FS!AX96 -> 0 | AY8: =-FS!AY96 -> 0 | AZ8: =-FS!AZ96 -> 0 | BA8: =-FS!BA96 -> 0
B9: Pre-Tax Distributions | H9: =FS!H106-H8 -> 0 | I9: =FS!I106-I8 -> 0 | J9: =FS!J106-J8 -> 0 | K9: =FS!K106-K8 -> 0 | L9: =FS!L106-L8 -> 0 | M9: =FS!M106-M8 -> -189.7915448 | N9: =FS!N106-N8 -> 3165.727209 | O9: =FS!O106-O8 -> 5397.352402 | P9: =FS!P106-P8 -> 5487.107647 | Q9: =FS!Q106-Q8 -> 5598.335301 | R9: =FS!R106-R8 -> 5672.718407 | S9: =FS!S106-S8 -> 5745.234405 | T9: =FS!T106-T8 -> 5854.516921 | U9: =FS!U106-U8 -> 5906.934328 | V9: =FS!V106-V8 -> 5982.174545 | W9: =FS!W106-W8 -> 5961.974505 | X9: =FS!X106-X8 -> 6138.532235 | Y9: =FS!Y106-Y8 -> 6212.879556 | Z9: =FS!Z106-Z8 -> 6276.721161 | AA9: =FS!AA106-AA8 -> 6349.494899 | AB9: =FS!AB106-AB8 -> 6447.420819 | AC9: =FS!AC106-AC8 -> 6569.690568 | AD9: =FS!AD106-AD8 -> 6674.368776 | AE9: =FS!AE106-AE8 -> 6689.314203 | AF9: =FS!AF106-AF8 -> 6875.341329 | AG9: =FS!AG106-AG8 -> 6880.004903 | AH9: =FS!AH106-AH8 -> 7061.500115 | AI9: =FS!AI106-AI8 -> 7141.222959 | AJ9: =FS!AJ106-AJ8 -> 7241.769002 | AK9: =FS!AK106-AK8 -> 7353.330965 | AL9: =FS!AL106-AL8 -> 7458.481381 | AM9: =FS!AM106-AM8 -> 3193.128182 | AN9: =FS!AN106-AN8 -> 0 | AO9: =FS!AO106-AO8 -> 0 | AP9: =FS!AP106-AP8 -> 0 | AQ9: =FS!AQ106-AQ8 -> 0 | AR9: =FS!AR106-AR8 -> 0 | AS9: =FS!AS106-AS8 -> 0 | AT9: =FS!AT106-AT8 -> 0 | AU9: =FS!AU106-AU8 -> 0 | AV9: =FS!AV106-AV8 -> 0 | AW9: =FS!AW106-AW8 -> 0 | AX9: =FS!AX106-AX8 -> 0 | AY9: =FS!AY106-AY8 -> 0 | AZ9: =FS!AZ106-AZ8 -> 0 | BA9: =FS!BA106-BA8 -> 0
B10: Tax Benefit / (Payment) | F10: ITC/CITC | H10: =Tax!H57 -> 0 | I10: =Tax!I57 -> 0 | J10: =Tax!J57 -> 0 | K10: =Tax!K57 -> 0 | L10: =Tax!L57 -> 0 | M10: =Tax!M57 -> 0 | N10: =Tax!N57 -> 0 | O10: =Tax!O57 -> 0 | P10: =Tax!P57 -> 16370.21251 | Q10: =Tax!Q57 -> -519.9538915 | R10: =Tax!R57 -> -563.4894907 | S10: =Tax!S57 -> -1326.513209 | T10: =Tax!T57 -> -2096.7421 | U10: =Tax!U57 -> -2114.49592 | V10: =Tax!V57 -> -2143.846421 | W10: =Tax!W57 -> -2132.924415 | X10: =Tax!X57 -> -2206.494036 | Y10: =Tax!Y57 -> -2230.48014 | Z10: =Tax!Z57 -> -2290.572004 | AA10: =Tax!AA57 -> -2354.325245 | AB10: =Tax!AB57 -> -2392.106951 | AC10: =Tax!AC57 -> -2460.972593 | AD10: =Tax!AD57 -> -2521.790999 | AE10: =Tax!AE57 -> -2524.469841 | AF10: =Tax!AF57 -> -2600.717639 | AG10: =Tax!AG57 -> -2595.821277 | AH10: =Tax!AH57 -> -2670.885444 | AI10: =Tax!AI57 -> -2696.952092 | AJ10: =Tax!AJ57 -> -2735.967296 | AK10: =Tax!AK57 -> -2778.35201 | AL10: =Tax!AL57 -> -2817.799855 | AM10: =Tax!AM57 -> -959.193544 | AN10: =Tax!AN57 -> 0 | AO10: =Tax!AO57 -> 0 | AP10: =Tax!AP57 -> 0 | AQ10: =Tax!AQ57 -> 0 | AR10: =Tax!AR57 -> 0 | AS10: =Tax!AS57 -> 0 | AT10: =Tax!AT57 -> 0 | AU10: =Tax!AU57 -> 0 | AV10: =Tax!AV57 -> 0 | AW10: =Tax!AW57 -> 0 | AX10: =Tax!AX57 -> 0 | AY10: =Tax!AY57 -> 0 | AZ10: =Tax!AZ57 -> 0 | BA10: =Tax!BA57 -> 0
B11: ITC/CITC | F11: =Alloc!R50 -> 23128.47452 | H11: =$F11*(H3=1) -> 0 | I11: 0 | J11: 0 | K11: 0 | L11: 0 | M11: 0 | N11: =$F11*(N3=1) -> 23128.47452 | O11: 0 | P11: 0 | Q11: 0 | R11: 0 | S11: 0 | T11: 0 | U11: 0 | V11: 0 | W11: 0 | X11: 0 | Y11: 0 | Z11: 0 | AA11: 0 | AB11: 0 | AC11: 0 | AD11: 0 | AE11: 0 | AF11: 0 | AG11: 0 | AH11: 0 | AI11: 0 | AJ11: 0 | AK11: 0 | AL11: 0 | AM11: 0 | AN11: 0 | AO11: 0 | AP11: 0 | AQ11: 0 | AR11: 0 | AS11: 0 | AT11: 0 | AU11: 0 | AV11: 0 | AW11: 0 | AX11: 0 | AY11: 0 | AZ11: 0 | BA11: 0
B12: PTC/ITC Deferral Penalty | H12: =Tax!H100 -> 0 | I12: =Tax!I100 -> 0 | J12: =Tax!J100 -> 0 | K12: =Tax!K100 -> 0 | L12: =Tax!L100 -> 0 | M12: =Tax!M100 -> 0 | N12: =Tax!N100 -> 0 | O12: =Tax!O100 -> 0 | P12: =Tax!P100 -> -11362.76242 | Q12: =Tax!Q100 -> 319.7703264 | R12: =Tax!R100 -> 11235.56171 | S12: =Tax!S100 -> 514.6363857 | T12: =Tax!T100 -> -707.2060104 | U12: =Tax!U100 -> 0 | V12: =Tax!V100 -> 0 | W12: =Tax!W100 -> 0 | X12: =Tax!X100 -> 0 | Y12: =Tax!Y100 -> 0 | Z12: =Tax!Z100 -> 0 | AA12: =Tax!AA100 -> 0 | AB12: =Tax!AB100 -> 0 | AC12: =Tax!AC100 -> 0 | AD12: =Tax!AD100 -> 0 | AE12: =Tax!AE100 -> 0 | AF12: =Tax!AF100 -> 0 | AG12: =Tax!AG100 -> 0 | AH12: =Tax!AH100 -> 0 | AI12: =Tax!AI100 -> 0 | AJ12: =Tax!AJ100 -> 0 | AK12: =Tax!AK100 -> 0 | AL12: =Tax!AL100 -> 0 | AM12: =Tax!AM100 -> 0 | AN12: =Tax!AN100 -> 0 | AO12: =Tax!AO100 -> 0 | AP12: =Tax!AP100 -> 0 | AQ12: =Tax!AQ100 -> 0 | AR12: =Tax!AR100 -> 0 | AS12: =Tax!AS100 -> 0 | AT12: =Tax!AT100 -> 0 | AU12: =Tax!AU100 -> 0 | AV12: =Tax!AV100 -> 0 | AW12: =Tax!AW100 -> 0 | AX12: =Tax!AX100 -> 0 | AY12: =Tax!AY100 -> 0 | AZ12: =Tax!AZ100 -> 0 | BA12: =Tax!BA100 -> 0
B13: After-Tax Cash Flow | H13: =SUM(H8:H12) -> -1e-08 | I13: 0 | J13: 0 | K13: 0 | L13: -41249.42745 | M13: -41220.04642 | N13: 26294.20173 | O13: 5397.352402 | P13: 10494.55774 | Q13: 5398.151736 | R13: 16344.79063 | S13: 4933.357582 | T13: 3050.56881 | U13: 3792.438408 | V13: 3838.328124 | W13: 3829.05009 | X13: 3932.038199 | Y13: 3982.399416 | Z13: 3986.149157 | AA13: 3995.169654 | AB13: 4055.313867 | AC13: 4108.717975 | AD13: 4152.577777 | AE13: 4164.844362 | AF13: 4274.62369 | AG13: 4284.183627 | AH13: 4390.614671 | AI13: 4444.270867 | AJ13: 4505.801706 | AK13: 4574.978955 | AL13: 4640.681526 | AM13: 2233.934638 | AN13: 0 | AO13: 0 | AP13: 0 | AQ13: 0 | AR13: 0 | AS13: 0 | AT13: 0 | AU13: 0 | AV13: 0 | AW13: 0 | AX13: 0 | AY13: 0 | AZ13: 0 | BA13: 0
B16: Weighted Average Discount Date (WADD)
D17: COD | E17: Days | F17: Receipt
B18: Grant Funding | D18: =FS!E13 -> 2012-05-01 | E18: 90 | F18: =D18+E18 -> 2012-07-30 | G18: Disc Date : | H18: =IF(H11>0,$F18,H2) -> 2007-06-30 | I18: 2008-06-30 | J18: 2009-06-30 | K18: 2010-06-30 | L18: 2011-10-01 | M18: 2012-05-01 | N18: 2012-07-30 | O18: 2013-08-15 | P18: 2014-08-15 | Q18: 2015-08-15 | R18: 2016-08-15 | S18: 2017-08-15 | T18: 2018-08-15 | U18: 2019-08-15 | V18: 2020-08-15 | W18: 2021-08-15 | X18: 2022-08-15 | Y18: 2023-08-15 | Z18: 2024-08-15 | AA18: 2025-08-15 | AB18: 2026-08-15 | AC18: 2027-08-15 | AD18: 2028-08-15 | AE18: 2029-08-15 | AF18: 2030-08-15 | AG18: 2031-08-15 | AH18: 2032-08-15 | AI18: 2033-08-15 | AJ18: 2034-08-15 | AK18: 2035-08-15 | AL18: 2036-08-15 | AM18: 2037-08-15 | AN18: 2038-08-15 | AO18: 2039-08-15 | AP18: 2040-08-15 | AQ18: 2041-08-15 | AR18: 2042-08-15 | AS18: 2043-08-15 | AT18: 2044-08-15 | AU18: 2045-08-15 | AV18: 2046-08-15 | AW18: 2047-08-15 | AX18: 2048-08-15 | AY18: 2049-08-15 | AZ18: 2050-08-15 | BA18: 2051-08-15
B19: Investment / Ops | G19: Disc Date : | H19: =H2 -> 2007-06-30 | I19: 2008-06-30 | J19: 2009-06-30 | K19: 2010-06-30 | L19: 2011-10-01 | M19: 2012-05-01 | N19: 2012-09-01 | O19: 2013-08-15 | P19: 2014-08-15 | Q19: 2015-08-15 | R19: 2016-08-15 | S19: 2017-08-15 | T19: 2018-08-15 | U19: 2019-08-15 | V19: 2020-08-15 | W19: 2021-08-15 | X19: 2022-08-15 | Y19: 2023-08-15 | Z19: 2024-08-15 | AA19: 2025-08-15 | AB19: 2026-08-15 | AC19: 2027-08-15 | AD19: 2028-08-15 | AE19: 2029-08-15 | AF19: 2030-08-15 | AG19: 2031-08-15 | AH19: 2032-08-15 | AI19: 2033-08-15 | AJ19: 2034-08-15 | AK19: 2035-08-15 | AL19: 2036-08-15 | AM19: 2037-08-15 | AN19: 2038-08-15 | AO19: 2039-08-15 | AP19: 2040-08-15 | AQ19: 2041-08-15 | AR19: 2042-08-15 | AS19: 2043-08-15 | AT19: 2044-08-15 | AU19: 2045-08-15 | AV19: 2046-08-15 | AW19: 2047-08-15 | AX19: 2048-08-15 | AY19: 2049-08-15 | AZ19: 2050-08-15 | BA19: 2051-08-15
B21: Grant Funding | G21: Abs $000's : | H21: =ABS(H11) -> 0 | I21: 0 | J21: 0 | K21: 0 | L21: 0 | M21: 0 | N21: 23128.47452 | O21: 0 | P21: 0 | Q21: 0 | R21: 0 | S21: 0 | T21: 0 | U21: 0 | V21: 0 | W21: 0 | X21: 0 | Y21: 0 | Z21: 0 | AA21: 0 | AB21: 0 | AC21: 0 | AD21: 0 | AE21: 0 | AF21: 0 | AG21: 0 | AH21: 0 | AI21: 0 | AJ21: 0 | AK21: 0 | AL21: 0 | AM21: 0 | AN21: 0 | AO21: 0 | AP21: 0 | AQ21: 0 | AR21: 0 | AS21: 0 | AT21: 0 | AU21: 0 | AV21: 0 | AW21: 0 | AX21: 0 | AY21: 0 | AZ21: 0 | BA21: 0
B22: Investment | G22: Abs $000's : | H22: =ABS(H8) -> 1e-08 | I22: 0 | J22: 0 | K22: 0 | L22: 41249.42745 | M22: 41030.25487 | N22: 0 | O22: 0 | P22: 0 | Q22: 0 | R22: 0 | S22: 0 | T22: 0 | U22: 0 | V22: 0 | W22: 0 | X22: 0 | Y22: 0 | Z22: 0 | AA22: 0 | AB22: 0 | AC22: 0 | AD22: 0 | AE22: 0 | AF22: 0 | AG22: 0 | AH22: 0 | AI22: 0 | AJ22: 0 | AK22: 0 | AL22: 0 | AM22: 0 | AN22: 0 | AO22: 0 | AP22: 0 | AQ22: 0 | AR22: 0 | AS22: 0 | AT22: 0 | AU22: 0 | AV22: 0 | AW22: 0 | AX22: 0 | AY22: 0 | AZ22: 0 | BA22: 0
B23: Operations | G23: Abs $000's : | H23: =ABS(SUM(H9:H10,H12)) -> 0 | I23: 0 | J23: 0 | K23: 0 | L23: 0 | M23: 189.7915448 | N23: 3165.727209 | O23: 5397.352402 | P23: 10494.55774 | Q23: 5398.151736 | R23: 16344.79063 | S23: 4933.357582 | T23: 3050.56881 | U23: 3792.438408 | V23: 3838.328124 | W23: 3829.05009 | X23: 3932.038199 | Y23: 3982.399416 | Z23: 3986.149157 | AA23: 3995.169654 | AB23: 4055.313867 | AC23: 4108.717975 | AD23: 4152.577777 | AE23: 4164.844362 | AF23: 4274.62369 | AG23: 4284.183627 | AH23: 4390.614671 | AI23: 4444.270867 | AJ23: 4505.801706 | AK23: 4574.978955 | AL23: 4640.681526 | AM23: 2233.934638 | AN23: 0 | AO23: 0 | AP23: 0 | AQ23: 0 | AR23: 0 | AS23: 0 | AT23: 0 | AU23: 0 | AV23: 0 | AW23: 0 | AX23: 0 | AY23: 0 | AZ23: 0 | BA23: 0
H24: =SUM(H21:H23) -> 1e-08 | I24: 0 | J24: 0 | K24: 0 | L24: 41249.42745 | M24: 41220.04642 | N24: 26294.20173 | O24: 5397.352402 | P24: 10494.55774 | Q24: 5398.151736 | R24: 16344.79063 | S24: 4933.357582 | T24: 3050.56881 | U24: 3792.438408 | V24: 3838.328124 | W24: 3829.05009 | X24: 3932.038199 | Y24: 3982.399416 | Z24: 3986.149157 | AA24: 3995.169654 | AB24: 4055.313867 | AC24: 4108.717975 | AD24: 4152.577777 | AE24: 4164.844362 | AF24: 4274.62369 | AG24: 4284.183627 | AH24: 4390.614671 | AI24: 4444.270867 | AJ24: 4505.801706 | AK24: 4574.978955 | AL24: 4640.681526 | AM24: 2233.934638 | AN24: 0 | AO24: 0 | AP24: 0 | AQ24: 0 | AR24: 0 | AS24: 0 | AT24: 0 | AU24: 0 | AV24: 0 | AW24: 0 | AX24: 0 | AY24: 0 | AZ24: 0 | BA24: 0
B26: Grant Funding | G26: Wt Factors : | H26: =IF(H24=0,0,H21/H24) -> 0 | I26: 0 | J26: 0 | K26: 0 | L26: 0 | M26: 0 | N26: 0.8796036008 | O26: 0 | P26: 0 | Q26: 0 | R26: 0 | S26: 0 | T26: 0 | U26: 0 | V26: 0 | W26: 0 | X26: 0 | Y26: 0 | Z26: 0 | AA26: 0 | AB26: 0 | AC26: 0 | AD26: 0 | AE26: 0 | AF26: 0 | AG26: 0 | AH26: 0 | AI26: 0 | AJ26: 0 | AK26: 0 | AL26: 0 | AM26: 0 | AN26: 0 | AO26: 0 | AP26: 0 | AQ26: 0 | AR26: 0 | AS26: 0 | AT26: 0 | AU26: 0 | AV26: 0 | AW26: 0 | AX26: 0 | AY26: 0 | AZ26: 0 | BA26: 0
B27: Investment / Ops | G27: Wt Factors : | H27: =1-H26 -> 1 | I27: 1 | J27: 1 | K27: 1 | L27: 1 | M27: 1 | N27: 0.1203963992 | O27: 1 | P27: 1 | Q27: 1 | R27: 1 | S27: 1 | T27: 1 | U27: 1 | V27: 1 | W27: 1 | X27: 1 | Y27: 1 | Z27: 1 | AA27: 1 | AB27: 1 | AC27: 1 | AD27: 1 | AE27: 1 | AF27: 1 | AG27: 1 | AH27: 1 | AI27: 1 | AJ27: 1 | AK27: 1 | AL27: 1 | AM27: 1 | AN27: 1 | AO27: 1 | AP27: 1 | AQ27: 1 | AR27: 1 | AS27: 1 | AT27: 1 | AU27: 1 | AV27: 1 | AW27: 1 | AX27: 1 | AY27: 1 | AZ27: 1 | BA27: 1
F29: Disc Rate
F30: =Scen!G17 -> 0.08 | G30: WADD : | H30: =SUMPRODUCT(H18:H19,H26:H27) -> 2007-06-30 | I30: 2008-06-30 | J30: 2009-06-30 | K30: 2010-06-30 | L30: 2011-10-01 | M30: 2012-05-01 | N30: 2012-08-02T23:21:14.214 | O30: 2013-08-15 | P30: 2014-08-15 | Q30: 2015-08-15 | R30: 2016-08-15 | S30: 2017-08-15 | T30: 2018-08-15 | U30: 2019-08-15 | V30: 2020-08-15 | W30: 2021-08-15 | X30: 2022-08-15 | Y30: 2023-08-15 | Z30: 2024-08-15 | AA30: 2025-08-15 | AB30: 2026-08-15 | AC30: 2027-08-15 | AD30: 2028-08-15 | AE30: 2029-08-15 | AF30: 2030-08-15 | AG30: 2031-08-15 | AH30: 2032-08-15 | AI30: 2033-08-15 | AJ30: 2034-08-15 | AK30: 2035-08-15 | AL30: 2036-08-15 | AM30: 2037-08-15 | AN30: 2038-08-15 | AO30: 2039-08-15 | AP30: 2040-08-15 | AQ30: 2041-08-15 | AR30: 2042-08-15 | AS30: 2043-08-15 | AT30: 2044-08-15 | AU30: 2045-08-15 | AV30: 2046-08-15 | AW30: 2047-08-15 | AX30: 2048-08-15 | AY30: 2049-08-15 | AZ30: 2050-08-15 | BA30: 2051-08-15
D31: Year | E31: xIRR | F31: xNPV | G31: xIRR : | H31: 0 | I31: 0 | J31: 0 | K31: 0 | L31: 0 | M31: 0 | N31: =XIRR($H13:N13,$H30:N30) -> 2.980232239e-09 | O31: =XIRR($H13:O13,$H30:O30) -> 2.980232239e-09 | P31: =XIRR($H13:P13,$H30:P30) -> 2.980232239e-09 | Q31: =XIRR($H13:Q13,$H30:Q30) -> 2.980232239e-09 | R31: =XIRR($H13:R13,$H30:R30) -> 2.980232239e-09 | S31: =XIRR($H13:S13,$H30:S30) -> 2.980232239e-09 | T31: =XIRR($H13:T13,$H30:T30) -> 2.980232239e-09 | U31: =XIRR($H13:U13,$H30:U30) -> 2.980232239e-09 | V31: =XIRR($H13:V13,$H30:V30) -> 2.980232239e-09 | W31: =XIRR($H13:W13,$H30:W30) -> 0.003143367171 | X31: =XIRR($H13:X13,$H30:X30) -> 0.0153827399 | Y31: =XIRR($H13:Y13,$H30:Y30) -> 0.02572003901 | Z31: =XIRR($H13:Z13,$H30:Z30) -> 0.03438142836 | AA31: =XIRR($H13:AA13,$H30:AA30) -> 0.04168779552 | AB31: =XIRR($H13:AB13,$H30:AB30) -> 0.04795892537 | AC31: =XIRR($H13:AC13,$H30:AC30) -> 0.05335353911 | AD31: =XIRR($H13:AD13,$H30:AD30) -> 0.05800229013 | AE31: =XIRR($H13:AE13,$H30:AE30) -> 0.06199700534 | AF31: =XIRR($H13:AF13,$H30:AF30) -> 0.06552315056 | AG31: =XIRR($H13:AG13,$H30:AG30) -> 0.0685734421 | AH31: =XIRR($H13:AH13,$H30:AH30) -> 0.07128065526 | AI31: =XIRR($H13:AI13,$H30:AI30) -> 0.07366116345 | AJ31: =XIRR($H13:AJ13,$H30:AJ30) -> 0.07576437891 | AK31: =XIRR($H13:AK13,$H30:AK30) -> 0.07763067782 | AL31: =XIRR($H13:AL13,$H30:AL30) -> 0.07928918302 | AM31: =XIRR($H13:AM13,$H30:AM30) -> 0.07999999821 | AN31: =XIRR($H13:AN13,$H30:AN30) -> 0.07999999821 | AO31: =XIRR($H13:AO13,$H30:AO30) -> 0.07999999821 | AP31: =XIRR($H13:AP13,$H30:AP30) -> 0.07999999821 | AQ31: =XIRR($H13:AQ13,$H30:AQ30) -> 0.07999999821 | AR31: =XIRR($H13:AR13,$H30:AR30) -> 0.07999999821 | AS31: =XIRR($H13:AS13,$H30:AS30) -> 0.07999999821 | AT31: =XIRR($H13:AT13,$H30:AT30) -> 0.07999999821 | AU31: =XIRR($H13:AU13,$H30:AU30) -> 0.07999999821 | AV31: =XIRR($H13:AV13,$H30:AV30) -> 0.07999999821 | AW31: =XIRR($H13:AW13,$H30:AW30) -> 0.07999999821 | AX31: =XIRR($H13:AX13,$H30:AX30) -> 0.07999999821 | AY31: =XIRR($H13:AY13,$H30:AY30) -> 0.07999999821 | AZ31: =XIRR($H13:AZ13,$H30:AZ30) -> 0.07999999821 | BA31: =XIRR($H13:BA13,$H30:BA30) -> 0.07999999821
D32: 5 | E32: =OFFSET($M$31,0,$D32) -> 2.980232239e-09 | F32: =OFFSET($M$32,0,$D32)/1000 -> -19.95126846 | G32: xNPV : | H32: =XNPV($F$30,$H13:H13,$H30:H30) -> -1e-08 | I32: =XNPV($F$30,$H13:I13,$H30:I30) -> -1e-08 | J32: =XNPV($F$30,$H13:J13,$H30:J30) -> -1e-08 | K32: =XNPV($F$30,$H13:K13,$H30:K30) -> -1e-08 | L32: =XNPV($F$30,$H13:L13,$H30:L30) -> -29724.53992 | M32: =XNPV($F$30,$H13:M13,$H30:M30) -> -58123.39759 | N32: =XNPV($F$30,$H13:N13,$H30:N30) -> -40359.58448 | O32: =XNPV($F$30,$H13:O13,$H30:O30) -> -36992.58702 | P32: =XNPV($F$30,$H13:P13,$H30:P30) -> -30930.77589 | Q32: =XNPV($F$30,$H13:Q13,$H30:Q30) -> -28043.69076 | R32: =XNPV($F$30,$H13:R13,$H30:R30) -> -19951.26846 | S32: =XNPV($F$30,$H13:S13,$H30:S30) -> -17689.6569 | T32: =XNPV($F$30,$H13:T13,$H30:T30) -> -16394.76805 | U32: =XNPV($F$30,$H13:U13,$H30:U30) -> -14904.21841 | V32: =XNPV($F$30,$H13:V13,$H30:V30) -> -13507.67423 | W32: =XNPV($F$30,$H13:W13,$H30:W30) -> -12217.70344 | X32: =XNPV($F$30,$H13:X13,$H30:X30) -> -10991.16038 | Y32: =XNPV($F$30,$H13:Y13,$H30:Y30) -> -9840.926567 | Z32: =XNPV($F$30,$H13:Z13,$H30:Z30) -> -8775.117198 | AA32: =XNPV($F$30,$H13:AA13,$H30:AA30) -> -7786.023445 | AB32: =XNPV($F$30,$H13:AB13,$H30:AB30) -> -6856.408815 | AC32: =XNPV($F$30,$H13:AC13,$H30:AC30) -> -5984.319322 | AD32: =XNPV($F$30,$H13:AD13,$H30:AD30) -> -5168.381303 | AE32: =XNPV($F$30,$H13:AE13,$H30:AE30) -> -4410.65142 | AF32: =XNPV($F$30,$H13:AF13,$H30:AF30) -> -3690.556459 | AG32: =XNPV($F$30,$H13:AG13,$H30:AG30) -> -3022.31071 | AH32: =XNPV($F$30,$H13:AH13,$H30:AH30) -> -2388.326962 | AI32: =XNPV($F$30,$H13:AI13,$H30:AI30) -> -1794.13118 | AJ32: =XNPV($F$30,$H13:AJ13,$H30:AJ30) -> -1236.332651 | AK32: =XNPV($F$30,$H13:AK13,$H30:AK30) -> -711.9230494 | AL32: =XNPV($F$30,$H13:AL13,$H30:AL30) -> -219.4891166 | AM32: =XNPV($F$30,$H13:AM13,$H30:AM30) -> -3.92076177e-05 | AN32: =XNPV($F$30,$H13:AN13,$H30:AN30) -> -3.92076177e-05 | AO32: =XNPV($F$30,$H13:AO13,$H30:AO30) -> -3.92076177e-05 | AP32: =XNPV($F$30,$H13:AP13,$H30:AP30) -> -3.92076177e-05 | AQ32: =XNPV($F$30,$H13:AQ13,$H30:AQ30) -> -3.92076177e-05 | AR32: =XNPV($F$30,$H13:AR13,$H30:AR30) -> -3.92076177e-05 | AS32: =XNPV($F$30,$H13:AS13,$H30:AS30) -> -3.92076177e-05 | AT32: =XNPV($F$30,$H13:AT13,$H30:AT30) -> -3.92076177e-05 | AU32: =XNPV($F$30,$H13:AU13,$H30:AU30) -> -3.92076177e-05 | AV32: =XNPV($F$30,$H13:AV13,$H30:AV30) -> -3.92076177e-05 | AW32: =XNPV($F$30,$H13:AW13,$H30:AW30) -> -3.92076177e-05 | AX32: =XNPV($F$30,$H13:AX13,$H30:AX30) -> -3.92076177e-05 | AY32: =XNPV($F$30,$H13:AY13,$H30:AY30) -> -3.92076177e-05 | AZ32: =XNPV($F$30,$H13:AZ13,$H30:AZ30) -> -3.92076177e-05 | BA32: =XNPV($F$30,$H13:BA13,$H30:BA30) -> -3.92076177e-05
D33: 10 | E33: 0.003143367171 | F33: -12.21770344
D34: 15 | E34: 0.04795892537 | F34: -6.856408815
D35: 20 | E35: 0.0685734421 | F35: -3.02231071
D36: 25 | E36: 0.07928918302 | F36: -0.2194891166
D37: 31 | E37: 0.07999999821 | F37: -3.92076177e-08

Sheet RF
B1: RF | L1: Par Yr : | M1: =FS!M1 -> 0 | N1: =FS!N1 -> 0.6693989071 | O1: =FS!O1 -> 1 | P1: =FS!P1 -> 1 | Q1: =FS!Q1 -> 1 | R1: =FS!R1 -> 1 | S1: =FS!S1 -> 1 | T1: =FS!T1 -> 1 | U1: =FS!U1 -> 1 | V1: =FS!V1 -> 1 | W1: =FS!W1 -> 1 | X1: =FS!X1 -> 1 | Y1: =FS!Y1 -> 1 | Z1: =FS!Z1 -> 1 | AA1: =FS!AA1 -> 1 | AB1: =FS!AB1 -> 1 | AC1: =FS!AC1 -> 1 | AD1: =FS!AD1 -> 1 | AE1: =FS!AE1 -> 1 | AF1: =FS!AF1 -> 1 | AG1: =FS!AG1 -> 1 | AH1: =FS!AH1 -> 1 | AI1: =FS!AI1 -> 1 | AJ1: =FS!AJ1 -> 1 | AK1: =FS!AK1 -> 1 | AL1: =FS!AL1 -> 1 | AM1: =FS!AM1 -> 0.3306010929 | AN1: =FS!AN1 -> 0 | AO1: =FS!AO1 -> 0 | AP1: =FS!AP1 -> 0 | AQ1: =FS!AQ1 -> 0 | AR1: =FS!AR1 -> 0 | AS1: =FS!AS1 -> 0 | AT1: =FS!AT1 -> 0 | AU1: =FS!AU1 -> 0 | AV1: =FS!AV1 -> 0 | AW1: =FS!AW1 -> 0 | AX1: =FS!AX1 -> 0 | AY1: =FS!AY1 -> 0 | AZ1: =FS!AZ1 -> 0 | BA1: =FS!BA1 -> 0
L2: Disc Date : | M2: =FS!M2 -> 2012-05-01 | N2: =FS!N2 -> 2012-09-01 | O2: =FS!O2 -> 2013-08-15 | P2: =FS!P2 -> 2014-08-15 | Q2: =FS!Q2 -> 2015-08-15 | R2: =FS!R2 -> 2016-08-15 | S2: =FS!S2 -> 2017-08-15 | T2: =FS!T2 -> 2018-08-15 | U2: =FS!U2 -> 2019-08-15 | V2: =FS!V2 -> 2020-08-15 | W2: =FS!W2 -> 2021-08-15 | X2: =FS!X2 -> 2022-08-15 | Y2: =FS!Y2 -> 2023-08-15 | Z2: =FS!Z2 -> 2024-08-15 | AA2: =FS!AA2 -> 2025-08-15 | AB2: =FS!AB2 -> 2026-08-15 | AC2: =FS!AC2 -> 2027-08-15 | AD2: =FS!AD2 -> 2028-08-15 | AE2: =FS!AE2 -> 2029-08-15 | AF2: =FS!AF2 -> 2030-08-15 | AG2: =FS!AG2 -> 2031-08-15 | AH2: =FS!AH2 -> 2032-08-15 | AI2: =FS!AI2 -> 2033-08-15 | AJ2: =FS!AJ2 -> 2034-08-15 | AK2: =FS!AK2 -> 2035-08-15 | AL2: =FS!AL2 -> 2036-08-15 | AM2: =FS!AM2 -> 2037-08-15 | AN2: =FS!AN2 -> 2038-08-15 | AO2: =FS!AO2 -> 2039-08-15 | AP2: =FS!AP2 -> 2040-08-15 | AQ2: =FS!AQ2 -> 2041-08-15 | AR2: =FS!AR2 -> 2042-08-15 | AS2: =FS!AS2 -> 2043-08-15 | AT2: =FS!AT2 -> 2044-08-15 | AU2: =FS!AU2 -> 2045-08-15 | AV2: =FS!AV2 -> 2046-08-15 | AW2: =FS!AW2 -> 2047-08-15 | AX2: =FS!AX2 -> 2048-08-15 | AY2: =FS!AY2 -> 2049-08-15 | AZ2: =FS!AZ2 -> 2050-08-15 | BA2: =FS!BA2 -> 2051-08-15
B3: REVENUES & FUEL COST | L3: Period : | M3: =FS!M3 -> 0 | N3: =FS!N3 -> 1 | O3: =FS!O3 -> 2 | P3: =FS!P3 -> 3 | Q3: =FS!Q3 -> 4 | R3: =FS!R3 -> 5 | S3: =FS!S3 -> 6 | T3: =FS!T3 -> 7 | U3: =FS!U3 -> 8 | V3: =FS!V3 -> 9 | W3: =FS!W3 -> 10 | X3: =FS!X3 -> 11 | Y3: =FS!Y3 -> 12 | Z3: =FS!Z3 -> 13 | AA3: =FS!AA3 -> 14 | AB3: =FS!AB3 -> 15 | AC3: =FS!AC3 -> 16 | AD3: =FS!AD3 -> 17 | AE3: =FS!AE3 -> 18 | AF3: =FS!AF3 -> 19 | AG3: =FS!AG3 -> 20 | AH3: =FS!AH3 -> 21 | AI3: =FS!AI3 -> 22 | AJ3: =FS!AJ3 -> 23 | AK3: =FS!AK3 -> 24 | AL3: =FS!AL3 -> 25 | AM3: =FS!AM3 -> 26 | AN3: =FS!AN3 -> 27 | AO3: =FS!AO3 -> 28 | AP3: =FS!AP3 -> 29 | AQ3: =FS!AQ3 -> 30 | AR3: =FS!AR3 -> 31 | AS3: =FS!AS3 -> 32 | AT3: =FS!AT3 -> 33 | AU3: =FS!AU3 -> 34 | AV3: =FS!AV3 -> 35 | AW3: =FS!AW3 -> 36 | AX3: =FS!AX3 -> 37 | AY3: =FS!AY3 -> 38 | AZ3: =FS!AZ3 -> 39 | BA3: =FS!BA3 -> 40
L4: Year : | M4: =FS!M4 -> 2012 | N4: =FS!N4 -> 2012 | O4: =FS!O4 -> 2013 | P4: =FS!P4 -> 2014 | Q4: =FS!Q4 -> 2015 | R4: =FS!R4 -> 2016 | S4: =FS!S4 -> 2017 | T4: =FS!T4 -> 2018 | U4: =FS!U4 -> 2019 | V4: =FS!V4 -> 2020 | W4: =FS!W4 -> 2021 | X4: =FS!X4 -> 2022 | Y4: =FS!Y4 -> 2023 | Z4: =FS!Z4 -> 2024 | AA4: =FS!AA4 -> 2025 | AB4: =FS!AB4 -> 2026 | AC4: =FS!AC4 -> 2027 | AD4: =FS!AD4 -> 2028 | AE4: =FS!AE4 -> 2029 | AF4: =FS!AF4 -> 2030 | AG4: =FS!AG4 -> 2031 | AH4: =FS!AH4 -> 2032 | AI4: =FS!AI4 -> 2033 | AJ4: =FS!AJ4 -> 2034 | AK4: =FS!AK4 -> 2035 | AL4: =FS!AL4 -> 2036 | AM4: =FS!AM4 -> 2037 | AN4: =FS!AN4 -> 2038 | AO4: =FS!AO4 -> 2039 | AP4: =FS!AP4 -> 2040 | AQ4: =FS!AQ4 -> 2041 | AR4: =FS!AR4 -> 2042 | AS4: =FS!AS4 -> 2043 | AT4: =FS!AT4 -> 2044 | AU4: =FS!AU4 -> 2045 | AV4: =FS!AV4 -> 2046 | AW4: =FS!AW4 -> 2047 | AX4: =FS!AX4 -> 2048 | AY4: =FS!AY4 -> 2049 | AZ4: =FS!AZ4 -> 2050 | BA4: =FS!BA4 -> 2051
B5: SUMMARY
B7: Contract
B8: =B51 -> Capacity Revenue - $000s | N8: =N51 -> 0 | O8: 0 | P8: 0 | Q8: 0 | R8: 0 | S8: 0 | T8: 0 | U8: 0 | V8: 0 | W8: 0 | X8: 0 | Y8: 0 | Z8: 0 | AA8: 0 | AB8: 0 | AC8: 0 | AD8: 0 | AE8: 0 | AF8: 0 | AG8: 0 | AH8: 0 | AI8: 0 | AJ8: 0 | AK8: 0 | AL8: 0 | AM8: 0 | AN8: 0 | AO8: 0 | AP8: 0 | AQ8: 0 | AR8: 0 | AS8: 0 | AT8: =AT51 -> 0 | AU8: 0 | AV8: 0 | AW8: 0 | AX8: 0 | AY8: 0 | AZ8: 0 | BA8: 0
B9: =B60 -> Energy Revenues - $000s | N9: =N60 -> 3906.120709 | O9: 5892.580794 | P9: 5984.87809 | Q9: 6077.710403 | R9: 6173.085543 | S9: 6267.937419 | T9: 6360.006776 | U9: 6453.83814 | V9: 6550.802818 | W9: 6651.010543 | X9: 6752.211907 | Y9: 6855.022653 | Z9: 6957.803686 | AA9: 7061.919841 | AB9: 7168.98846 | AC9: 7286.819772 | AD9: 7404.722041 | AE9: 7524.351691 | AF9: 7645.674156 | AG9: 7767.053471 | AH9: 7889.816836 | AI9: 8012.595304 | AJ9: 8138.092135 | AK9: 8266.253343 | AL9: 8396.910806 | AM9: 2781.297338 | AN9: 0 | AO9: 0 | AP9: 0 | AQ9: 0 | AR9: 0 | AS9: 0 | AT9: =AT60 -> 0 | AU9: 0 | AV9: 0 | AW9: 0 | AX9: 0 | AY9: 0 | AZ9: 0 | BA9: 0
N10: =SUM(N8:N9) -> 3906.120709 | O10: 5892.580794 | P10: 5984.87809 | Q10: 6077.710403 | R10: 6173.085543 | S10: 6267.937419 | T10: 6360.006776 | U10: 6453.83814 | V10: 6550.802818 | W10: 6651.010543 | X10: 6752.211907 | Y10: 6855.022653 | Z10: 6957.803686 | AA10: 7061.919841 | AB10: 7168.98846 | AC10: 7286.819772 | AD10: 7404.722041 | AE10: 7524.351691 | AF10: 7645.674156 | AG10: 7767.053471 | AH10: 7889.816836 | AI10: 8012.595304 | AJ10: 8138.092135 | AK10: 8266.253343 | AL10: 8396.910806 | AM10: 2781.297338 | AN10: 0 | AO10: 0 | AP10: 0 | AQ10: 0 | AR10: 0 | AS10: 0 | AT10: =SUM(AT8:AT9) -> 0 | AU10: 0 | AV10: 0 | AW10: 0 | AX10: 0 | AY10: 0 | AZ10: 0 | BA10: 0
B11: Merchant
B12: =B72 -> Adjusted Merchant Capacity Revenue - $000s | N12: =N72 -> 0 | O12: 0 | P12: 0 | Q12: 0 | R12: 0 | S12: 0 | T12: 0 | U12: 0 | V12: 0 | W12: 0 | X12: 0 | Y12: 0 | Z12: 0 | AA12: 0 | AB12: 0 | AC12: 0 | AD12: 0 | AE12: 0 | AF12: 0 | AG12: 0 | AH12: 0 | AI12: 0 | AJ12: 0 | AK12: 0 | AL12: 0 | AM12: 0 | AN12: 0 | AO12: 0 | AP12: 0 | AQ12: 0 | AR12: 0 | AS12: 0 | AT12: =AT72 -> 0 | AU12: 0 | AV12: 0 | AW12: 0 | AX12: 0 | AY12: 0 | AZ12: 0 | BA12: 0
B13: =B77 -> Adjusted Energy Revenue - $000s | N13: =N77 -> 0 | O13: 0 | P13: 0 | Q13: 0 | R13: 0 | S13: 0 | T13: 0 | U13: 0 | V13: 0 | W13: 0 | X13: 0 | Y13: 0 | Z13: 0 | AA13: 0 | AB13: 0 | AC13: 0 | AD13: 0 | AE13: 0 | AF13: 0 | AG13: 0 | AH13: 0 | AI13: 0 | AJ13: 0 | AK13: 0 | AL13: 0 | AM13: 0 | AN13: 0 | AO13: 0 | AP13: 0 | AQ13: 0 | AR13: 0 | AS13: 0 | AT13: =AT77 -> 0 | AU13: 0 | AV13: 0 | AW13: 0 | AX13: 0 | AY13: 0 | AZ13: 0 | BA13: 0
B14: =B82 -> Adjusted REC Energy Revenue - $000s | N14: =N82 -> 0 | O14: 0 | P14: 0 | Q14: 0 | R14: 0 | S14: 0 | T14: 0 | U14: 0 | V14: 0 | W14: 0 | X14: 0 | Y14: 0 | Z14: 0 | AA14: 0 | AB14: 0 | AC14: 0 | AD14: 0 | AE14: 0 | AF14: 0 | AG14: 0 | AH14: 0 | AI14: 0 | AJ14: 0 | AK14: 0 | AL14: 0 | AM14: 0 | AN14: 0 | AO14: 0 | AP14: 0 | AQ14: 0 | AR14: 0 | AS14: 0 | AT14: =AT82 -> 0 | AU14: 0 | AV14: 0 | AW14: 0 | AX14: 0 | AY14: 0 | AZ14: 0 | BA14: 0
B15: =B85 -> Merchant Revenue $000s | N15: =N85 -> 0 | O15: 0 | P15: 0 | Q15: 0 | R15: 0 | S15: 0 | T15: 0 | U15: 0 | V15: 0 | W15: 0 | X15: 0 | Y15: 0 | Z15: 0 | AA15: 0 | AB15: 0 | AC15: 0 | AD15: 0 | AE15: 0 | AF15: 0 | AG15: 0 | AH15: 0 | AI15: 0 | AJ15: 0 | AK15: 0 | AL15: 0 | AM15: 0 | AN15: 0 | AO15: 0 | AP15: 0 | AQ15: 0 | AR15: 0 | AS15: 0 | AT15: =AT85 -> 0 | AU15: 0 | AV15: 0 | AW15: 0 | AX15: 0 | AY15: 0 | AZ15: 0 | BA15: 0
N16: =SUM(N12:N15) -> 0 | O16: 0 | P16: 0 | Q16: 0 | R16: 0 | S16: 0 | T16: 0 | U16: 0 | V16: 0 | W16: 0 | X16: 0 | Y16: 0 | Z16: 0 | AA16: 0 | AB16: 0 | AC16: 0 | AD16: 0 | AE16: 0 | AF16: 0 | AG16: 0 | AH16: 0 | AI16: 0 | AJ16: 0 | AK16: 0 | AL16: 0 | AM16: 0 | AN16: 0 | AO16: 0 | AP16: 0 | AQ16: 0 | AR16: 0 | AS16: 0 | AT16: 0 | AU16: 0 | AV16: 0 | AW16: 0 | AX16: 0 | AY16: 0 | AZ16: 0 | BA16: 0
B18: Total Revenue | N18: =N10+N16 -> 3906.120709 | O18: =O10+O16 -> 5892.580794 | P18: 5984.87809 | Q18: 6077.710403 | R18: 6173.085543 | S18: 6267.937419 | T18: 6360.006776 | U18: 6453.83814 | V18: 6550.802818 | W18: 6651.010543 | X18: 6752.211907 | Y18: 6855.022653 | Z18: 6957.803686 | AA18: 7061.919841 | AB18: 7168.98846 | AC18: 7286.819772 | AD18: 7404.722041 | AE18: 7524.351691 | AF18: 7645.674156 | AG18: 7767.053471 | AH18: 7889.816836 | AI18: 8012.595304 | AJ18: 8138.092135 | AK18: 8266.253343 | AL18: 8396.910806 | AM18: 2781.297338 | AN18: 0 | AO18: 0 | AP18: 0 | AQ18: 0 | AR18: 0 | AS18: 0 | AT18: 0 | AU18: 0 | AV18: 0 | AW18: 0 | AX18: 0 | AY18: 0 | AZ18: 0 | BA18: 0
B21: PLANT PERFORMANCE
B23: Design Output | I23: MW : | J23: =Scen!G45 -> 20 | N23: =$J23 -> 20 | O23: 20 | P23: 20 | Q23: 20 | R23: 20 | S23: 20 | T23: 20 | U23: 20 | V23: 20 | W23: 20 | X23: =$J23 -> 20 | Y23: 20 | Z23: 20 | AA23: 20 | AB23: 20 | AC23: 20 | AD23: 20 | AE23: 20 | AF23: 20 | AG23: 20 | AH23: =$J23 -> 20 | AI23: 20 | AJ23: 20 | AK23: 20 | AL23: 20 | AM23: 20 | AN23: 20 | AO23: 20 | AP23: 20 | AQ23: 20 | AR23: =$J23 -> 20 | AS23: 20 | AT23: 20 | AU23: 20 | AV23: 20 | AW23: 20 | AX23: 20 | AY23: 20 | AZ23: 20 | BA23: 20
B24: EFOR Strip from PGD | N24: 0.01326179699 | O24: 0.01279109224 | P24: 0.0129079065 | Q24: 0.01327405992 | R24: 0.01378109759 | S24: 0.01443362754 | T24: 0.01532608833 | U24: 0.01621854911 | V24: 0.01711100989 | W24: 0.01800347067 | X24: 0.01876049448 | Y24: 0.0195175183 | Z24: 0.02027454211 | AA24: 0.02107505703 | AB24: 0.02187557194 | AC24: 0.02159716516 | AD24: 0.02131875838 | AE24: 0.0210403516 | AF24: 0.02093548935 | AG24: 0.02083062709 | AH24: 0.02072576484 | AI24: 0.02098938817 | AJ24: 0.02125301151 | AK24: 0.02151663484 | AL24: 0.02178025818 | AM24: 0.02178025818 | AN24: 0 | AO24: 0 | AP24: 0 | AQ24: 0 | AR24: 0 | AS24: 0 | AT24: 0 | AU24: 0 | AV24: 0 | AW24: 0 | AX24: 0 | AY24: 0 | AZ24: 0 | BA24: 0
B25: EFOR Strip Adjusted for Percentage Change | N25: 0.01 | O25: =((O24-N24)/N24) -> -0.03549328554 | P25: =((P24-O24)/O24) -> 0.009132469362 | Q25: 0.0283665999 | R25: 0.03819763319 | S25: 0.04734963628 | T25: 0.06183205007 | U25: 0.05823147839 | V25: 0.05502716521 | W25: 0.05215710744 | X25: 0.04204877093 | Y25: 0.04035201816 | Z25: 0.03878688892 | AA25: 0.03948374825 | AB25: 0.03798399765 | AC25: -0.01272683434 | AD25: -0.01289089462 | AE25: -0.0130592399 | AF25: -0.004983864216 | AG25: -0.005008827532 | AH25: -0.005034042181 | AI25: 0.01271959502 | AJ25: 0.01255983896 | AK25: 0.01240404614 | AL25: 0.01225207089 | AM25: 0 | AN25: 0 | AO25: 0 | AP25: 0 | AQ25: 0 | AR25: 0 | AS25: 0 | AT25: 0 | AU25: 0 | AV25: 0 | AW25: 0 | AX25: 0 | AY25: 0 | AZ25: 0 | BA25: 0
B26: EFOR Strip Adjusted for Partial Year | J26: =Scen!G99 -> 0.013 | N26: =J26 -> 0.013 | O26: =N26*(1+O25) -> 0.01253858729 | P26: =O26*(1+P25) -> 0.01265309555 | Q26: 0.01301202085 | R26: 0.01350904925 | S26: 0.01414869782 | T26: 0.01502354081 | U26: 0.0158983838 | V26: 0.0167732268 | W26: 0.01764806979 | X26: 0.01839014943 | Y26: 0.01913222908 | Z26: 0.01987430872 | AA26: 0.02065902092 | AB26: 0.02144373312 | AC26: 0.02117082228 | AD26: 0.02089791145 | AE26: 0.02062500061 | AF26: 0.0205222084 | AG26: 0.0204194162 | AH26: 0.020316624 | AI26: 0.02057504323 | AJ26: 0.02083346246 | AK26: 0.02109188169 | AL26: 0.02135030092 | AM26: 0.02135030092 | AN26: 0 | AO26: 0 | AP26: 0 | AQ26: 0 | AR26: 0 | AS26: 0 | AT26: 0 | AU26: 0 | AV26: 0 | AW26: 0 | AX26: 0 | AY26: 0 | AZ26: 0 | BA26: 0
B27: Availability | I27: EPOF Avail % : | J27: =Scen!G100 -> 1 | N27: 1 | O27: 1 | P27: 1 | Q27: 1 | R27: 1 | S27: 1 | T27: 1 | U27: 1 | V27: 1 | W27: 1 | X27: 1 | Y27: 1 | Z27: 1 | AA27: 1 | AB27: 1 | AC27: 1 | AD27: 1 | AE27: 1 | AF27: 1 | AG27: 1 | AH27: 1 | AI27: 1 | AJ27: 1 | AK27: 1 | AL27: 1 | AM27: 1 | AN27: 1 | AO27: 1 | AP27: 1 | AQ27: 1 | AR27: 1 | AS27: 1 | AT27: 1 | AU27: 1 | AV27: 1 | AW27: 1 | AX27: 1 | AY27: 1 | AZ27: 1 | BA27: 1
B28: Output (Net of Availability and EFOR) | N28: =N23*(1-N26)*N27 -> 19.74 | O28: 19.74922825 | P28: 19.74693809 | Q28: 19.73975958 | R28: 19.72981901 | S28: 19.71702604 | T28: 19.69952918 | U28: 19.68203232 | V28: 19.66453546 | W28: 19.6470386 | X28: 19.63219701 | Y28: 19.61735542 | Z28: 19.60251383 | AA28: 19.58681958 | AB28: 19.57112534 | AC28: 19.57658355 | AD28: 19.58204177 | AE28: 19.58749999 | AF28: 19.58955583 | AG28: 19.59161168 | AH28: 19.59366752 | AI28: 19.58849914 | AJ28: 19.58333075 | AK28: 19.57816237 | AL28: 19.57299398 | AM28: 19.57299398 | AN28: 20 | AO28: 20 | AP28: 20 | AQ28: 20 | AR28: 20 | AS28: 20 | AT28: 20 | AU28: 20 | AV28: 20 | AW28: 20 | AX28: 20 | AY28: 20 | AZ28: 20 | BA28: 20
B30: Capacity Factor | I30: CF : | J30: =ToD!E73 -> 0.2347559225 | N30: =$J30 -> 0.2347559225 | O30: 0.2347559225 | P30: 0.2347559225 | Q30: 0.2347559225 | R30: 0.2347559225 | S30: 0.2347559225 | T30: 0.2347559225 | U30: 0.2347559225 | V30: 0.2347559225 | W30: 0.2347559225 | X30: 0.2347559225 | Y30: 0.2347559225 | Z30: 0.2347559225 | AA30: 0.2347559225 | AB30: 0.2347559225 | AC30: 0.2347559225 | AD30: 0.2347559225 | AE30: 0.2347559225 | AF30: 0.2347559225 | AG30: 0.2347559225 | AH30: 0.2347559225 | AI30: 0.2347559225 | AJ30: 0.2347559225 | AK30: 0.2347559225 | AL30: 0.2347559225 | AM30: 0.2347559225 | AN30: 0.2347559225 | AO30: 0.2347559225 | AP30: 0.2347559225 | AQ30: 0.2347559225 | AR30: 0.2347559225 | AS30: 0.2347559225 | AT30: =$J30 -> 0.2347559225 | AU30: 0.2347559225 | AV30: 0.2347559225 | AW30: 0.2347559225 | AX30: 0.2347559225 | AY30: 0.2347559225 | AZ30: 0.2347559225 | BA30: 0.2347559225
B31: Gross Annual Generation - GWh | N31: =N28*8.76*N30 -> 40.59455752 | O31: =O28*8.76*O30 -> 40.61353508 | P31: 40.60882544 | Q31: 40.59406312 | R31: 40.57362072 | S31: 40.54731246 | T31: 40.51133083 | U31: 40.47534921 | V31: 40.43936758 | W31: 40.40338596 | X31: 40.37286479 | Y31: 40.34234362 | Z31: 40.31182245 | AA31: 40.27954783 | AB31: 40.24727322 | AC31: 40.25849783 | AD31: 40.26972245 | AE31: 40.28094706 | AF31: 40.28517483 | AG31: 40.28940259 | AH31: 40.29363036 | AI31: 40.28300177 | AJ31: 40.27237319 | AK31: 40.2617446 | AL31: 40.25111601 | AM31: 40.25111601 | AN31: 41.12923761 | AO31: 41.12923761 | AP31: 41.12923761 | AQ31: 41.12923761 | AR31: 41.12923761 | AS31: 41.12923761 | AT31: 41.12923761 | AU31: 41.12923761 | AV31: 41.12923761 | AW31: 41.12923761 | AX31: 41.12923761 | AY31: 41.12923761 | AZ31: 41.12923761 | BA31: 41.12923761
B32: Less: Line Losses | I32: LL : | J32: =Scen!G98 -> 0 | N32: =-N31*$J32 -> 0 | O32: 0 | P32: 0 | Q32: 0 | R32: 0 | S32: 0 | T32: 0 | U32: 0 | V32: 0 | W32: 0 | X32: 0 | Y32: 0 | Z32: 0 | AA32: 0 | AB32: 0 | AC32: 0 | AD32: 0 | AE32: 0 | AF32: 0 | AG32: 0 | AH32: 0 | AI32: 0 | AJ32: 0 | AK32: 0 | AL32: 0 | AM32: 0 | AN32: 0 | AO32: 0 | AP32: 0 | AQ32: 0 | AR32: 0 | AS32: 0 | AT32: =-AT31*$J32 -> 0 | AU32: 0 | AV32: 0 | AW32: 0 | AX32: 0 | AY32: 0 | AZ32: 0 | BA32: 0
N33: =SUM(N31:N32) -> 40.59455752 | O33: =SUM(O31:O32) -> 40.61353508 | P33: 40.60882544 | Q33: 40.59406312 | R33: 40.57362072 | S33: 40.54731246 | T33: 40.51133083 | U33: 40.47534921 | V33: 40.43936758 | W33: 40.40338596 | X33: 40.37286479 | Y33: 40.34234362 | Z33: 40.31182245 | AA33: 40.27954783 | AB33: 40.24727322 | AC33: 40.25849783 | AD33: 40.26972245 | AE33: 40.28094706 | AF33: 40.28517483 | AG33: 40.28940259 | AH33: 40.29363036 | AI33: 40.28300177 | AJ33: 40.27237319 | AK33: 40.2617446 | AL33: 40.25111601 | AM33: 40.25111601 | AN33: 41.12923761 | AO33: 41.12923761 | AP33: 41.12923761 | AQ33: 41.12923761 | AR33: 41.12923761 | AS33: 41.12923761 | AT33: 41.12923761 | AU33: 41.12923761 | AV33: 41.12923761 | AW33: 41.12923761 | AX33: 41.12923761 | AY33: 41.12923761 | AZ33: 41.12923761 | BA33: 41.12923761
B35: Degradation - Base Case as a Percent | I35: Degrad % : | J35: 0.005 | N35: =$J35 -> 0.005 | O35: 0.005 | P35: 0.005 | Q35: 0.005 | R35: 0.005 | S35: 0.005 | T35: 0.005 | U35: 0.005 | V35: 0.005 | W35: 0.005 | X35: 0.005 | Y35: 0.005 | Z35: 0.005 | AA35: 0.005 | AB35: 0.005 | AC35: 0.005 | AD35: 0.005 | AE35: 0.005 | AF35: 0.005 | AG35: 0.005 | AH35: 0.005 | AI35: 0.005 | AJ35: 0.005 | AK35: 0.005 | AL35: 0.005 | AM35: 0.005 | AN35: 0.005 | AO35: 0.005 | AP35: 0.005 | AQ35: 0.005 | AR35: 0.005 | AS35: 0.005 | AT35: 0.005 | AU35: 0.005 | AV35: 0.005 | AW35: 0.005 | AX35: 0.005 | AY35: 0.005 | AZ35: 0.005 | BA35: 0.005
B36: Degradation - Yingli Sensitivity | I36: Manual Overrride : | J36: =Scen!G96 -> 0 | N36: 0.019 | O36: 0.009 | P36: 0.009 | Q36: 0.009 | R36: 0.009 | S36: 0.009 | T36: 0.009 | U36: 0.009 | V36: 0.009 | W36: 0.009 | X36: 0.005 | Y36: 0.005 | Z36: 0.005 | AA36: 0.005 | AB36: 0.005 | AC36: 0.005 | AD36: 0.005 | AE36: 0.005 | AF36: 0.005 | AG36: 0.005 | AH36: 0.01 | AI36: 0.01 | AJ36: 0.01 | AK36: 0.01 | AL36: 0.01 | AM36: 0 | AN36: 0 | AO36: 0 | AP36: 0 | AQ36: 0 | AR36: 0 | AS36: 0 | AT36: 0 | AU36: 0 | AV36: 0 | AW36: 0 | AX36: 0 | AY36: 0 | AZ36: 0 | BA36: 0
B37: Degradation | I37: Check : | J37: =IF(Input!F22>25,"ERROR",0) -> 0 | N37: =IF(J37=1,N36,N35) -> 0.005 | O37: =IF(K37=1,O36,O35) -> 0.005 | P37: =IF(L37=1,P36,P35) -> 0.005 | Q37: 0.005 | R37: 0.005 | S37: 0.005 | T37: 0.005 | U37: 0.005 | V37: 0.005 | W37: 0.005 | X37: 0.005 | Y37: 0.005 | Z37: 0.005 | AA37: 0.005 | AB37: 0.005 | AC37: 0.005 | AD37: 0.005 | AE37: 0.005 | AF37: 0.005 | AG37: 0.005 | AH37: 0.005 | AI37: 0.005 | AJ37: 0.005 | AK37: 0.005 | AL37: 0.005 | AM37: 0.005 | AN37: 0.005 | AO37: 0.005 | AP37: 0.005 | AQ37: 0.005 | AR37: 0.005 | AS37: 0.005 | AT37: 0.005 | AU37: 0.005 | AV37: 0.005 | AW37: 0.005 | AX37: 0.005 | AY37: 0.005 | AZ37: 0.005 | BA37: 0.005
B38: Degradation Factor | I38: Base : | J38: =N2 -> 2012-09-01 | N38: =(1+N37)^((OM!N2-$J38)/365*-1) -> 1 | O38: =(1+O37)^((OM!O2-$J38)/365*-1) -> 0.9952560432 | P38: =(1+P37)^((OM!P2-$J38)/365*-1) -> 0.9903045206 | Q38: =(1+Q37)^((OM!Q2-$J38)/365*-1) -> 0.9853776325 | R38: =(1+R37)^((OM!R2-$J38)/365*-1) -> 0.9804618586 | S38: =(1+S37)^((OM!S2-$J38)/365*-1) -> 0.9755839389 | T38: =(1+T37)^((OM!T2-$J38)/365*-1) -> 0.9707302874 | U38: =(1+U37)^((OM!U2-$J38)/365*-1) -> 0.9659007835 | V38: =(1+V37)^((OM!V2-$J38)/365*-1) -> 0.9610821742 | W38: =(1+W37)^((OM!W2-$J38)/365*-1) -> 0.9563006708 | X38: =(1+X37)^((OM!X2-$J38)/365*-1) -> 0.9515429561 | Y38: =(1+Y37)^((OM!Y2-$J38)/365*-1) -> 0.9468089115 | Z38: =(1+Z37)^((OM!Z2-$J38)/365*-1) -> 0.9420855462 | AA38: =(1+AA37)^((OM!AA2-$J38)/365*-1) -> 0.9373985534 | AB38: =(1+AB37)^((OM!AB2-$J38)/365*-1) -> 0.932734879 | AC38: =(1+AC37)^((OM!AC2-$J38)/365*-1) -> 0.928094407 | AD38: =(1+AD37)^((OM!AD2-$J38)/365*-1) -> 0.9234644031 | AE38: =(1+AE37)^((OM!AE2-$J38)/365*-1) -> 0.9188700529 | AF38: =(1+AF37)^((OM!AF2-$J38)/365*-1) -> 0.91429856 | AG38: =(1+AG37)^((OM!AG2-$J38)/365*-1) -> 0.909749811 | AH38: =(1+AH37)^((OM!AH2-$J38)/365*-1) -> 0.9052113232 | AI38: =(1+AI37)^((OM!AI2-$J38)/365*-1) -> 0.9007077843 | AJ38: =(1+AJ37)^((OM!AJ2-$J38)/365*-1) -> 0.896226651 | AK38: =(1+AK37)^((OM!AK2-$J38)/365*-1) -> 0.891767812 | AL38: =(1+AL37)^((OM!AL2-$J38)/365*-1) -> 0.8873190313 | AM38: =(1+AM37)^((OM!AM2-$J38)/365*-1) -> 0.8829045088 | AN38: =(1+AN37)^((OM!AN2-$J38)/365*-1) -> 0.878511949 | AO38: =(1+AO37)^((OM!AO2-$J38)/365*-1) -> 0.8741412428 | AP38: =(1+AP37)^((OM!AP2-$J38)/365*-1) -> 0.8697803962 | AQ38: =(1+AQ37)^((OM!AQ2-$J38)/365*-1) -> 0.8654531306 | AR38: =(1+AR37)^((OM!AR2-$J38)/365*-1) -> 0.8611473936 | AS38: =(1+AS37)^((OM!AS2-$J38)/365*-1) -> 0.8568630782 | AT38: =(1+AT37)^((OM!AT2-$J38)/365*-1) -> 0.8525884275 | AU38: =(1+AU37)^((OM!AU2-$J38)/365*-1) -> 0.8483466941 | AV38: =(1+AV37)^((OM!AV2-$J38)/365*-1) -> 0.8441260638 | AW38: =(1+AW37)^((OM!AW2-$J38)/365*-1) -> 0.8399264316 | AX38: =(1+AX37)^((OM!AX2-$J38)/365*-1) -> 0.8357362731 | AY38: =(1+AY37)^((OM!AY2-$J38)/365*-1) -> 0.8315783812 | AZ38: =(1+AZ37)^((OM!AZ2-$J38)/365*-1) -> 0.8274411754 | BA38: =(1+BA37)^((OM!BA2-$J38)/365*-1) -> 0.8233245526
B40: Annual Net Annual Generation - GWh | N40: =N33*N38 -> 40.59455752 | O40: =O33*O38 -> 40.42086622 | P40: 40.21510341 | Q40: 40.00048181 | R40: 39.78088758 | S40: 39.5573068 | T40: 39.32557582 | U40: 39.09517151 | V40: 38.86555532 | W40: 38.6377851 | X40: 38.4165151 | Y40: 38.19649045 | Z40: 37.97718527 | AA40: 37.75798987 | AB40: 37.54003552 | AC40: 37.36368667 | AD40: 37.1876552 | AE40: 37.01295596 | AF40: 36.83267734 | AG40: 36.65327639 | AH40: 36.47425045 | AI40: 36.28321327 | AJ40: 36.09317415 | AK40: 35.90412789 | AL40: 35.71558127 | AM40: 35.53789181 | AN40: 36.1325267 | AO40: 35.95276288 | AP40: 35.77340459 | AQ40: 35.59542745 | AR40: 35.41833577 | AS40: 35.24212515 | AT40: 35.06631202 | AU40: 34.89185276 | AV40: 34.71826145 | AW40: 34.54553378 | AX40: 34.37319576 | AY40: 34.20218484 | AZ40: 34.03202471 | BA40: 33.86271116
B43: CONTRACT REVENUE
K44: Check
B45: Contract Period | I45: Years : | J45: =Scen!G54 -> 25 | K45: =SUM(N45:BA45)-J45 -> 0 | M45: 0 | N45: =(N$3<=$J45)*N$1 + (N$3>$J45)* ($J45-SUM($M45:M45)) -> 0.6693989071 | O45: =(O$3<=$J45)*O$1 + (O$3>$J45)* ($J45-SUM($M45:N45)) -> 1 | P45: =(P$3<=$J45)*P$1 + (P$3>$J45)* ($J45-SUM($M45:O45)) -> 1 | Q45: =(Q$3<=$J45)*Q$1 + (Q$3>$J45)* ($J45-SUM($M45:P45)) -> 1 | R45: =(R$3<=$J45)*R$1 + (R$3>$J45)* ($J45-SUM($M45:Q45)) -> 1 | S45: =(S$3<=$J45)*S$1 + (S$3>$J45)* ($J45-SUM($M45:R45)) -> 1 | T45: =(T$3<=$J45)*T$1 + (T$3>$J45)* ($J45-SUM($M45:S45)) -> 1 | U45: =(U$3<=$J45)*U$1 + (U$3>$J45)* ($J45-SUM($M45:T45)) -> 1 | V45: =(V$3<=$J45)*V$1 + (V$3>$J45)* ($J45-SUM($M45:U45)) -> 1 | W45: =(W$3<=$J45)*W$1 + (W$3>$J45)* ($J45-SUM($M45:V45)) -> 1 | X45: =(X$3<=$J45)*X$1 + (X$3>$J45)* ($J45-SUM($M45:W45)) -> 1 | Y45: =(Y$3<=$J45)*Y$1 + (Y$3>$J45)* ($J45-SUM($M45:X45)) -> 1 | Z45: =(Z$3<=$J45)*Z$1 + (Z$3>$J45)* ($J45-SUM($M45:Y45)) -> 1 | AA45: =(AA$3<=$J45)*AA$1 + (AA$3>$J45)* ($J45-SUM($M45:Z45)) -> 1 | AB45: =(AB$3<=$J45)*AB$1 + (AB$3>$J45)* ($J45-SUM($M45:AA45)) -> 1 | AC45: =(AC$3<=$J45)*AC$1 + (AC$3>$J45)* ($J45-SUM($M45:AB45)) -> 1 | AD45: =(AD$3<=$J45)*AD$1 + (AD$3>$J45)* ($J45-SUM($M45:AC45)) -> 1 | AE45: =(AE$3<=$J45)*AE$1 + (AE$3>$J45)* ($J45-SUM($M45:AD45)) -> 1 | AF45: =(AF$3<=$J45)*AF$1 + (AF$3>$J45)* ($J45-SUM($M45:AE45)) -> 1 | AG45: =(AG$3<=$J45)*AG$1 + (AG$3>$J45)* ($J45-SUM($M45:AF45)) -> 1 | AH45: =(AH$3<=$J45)*AH$1 + (AH$3>$J45)* ($J45-SUM($M45:AG45)) -> 1 | AI45: =(AI$3<=$J45)*AI$1 + (AI$3>$J45)* ($J45-SUM($M45:AH45)) -> 1 | AJ45: =(AJ$3<=$J45)*AJ$1 + (AJ$3>$J45)* ($J45-SUM($M45:AI45)) -> 1 | AK45: =(AK$3<=$J45)*AK$1 + (AK$3>$J45)* ($J45-SUM($M45:AJ45)) -> 1 | AL45: =(AL$3<=$J45)*AL$1 + (AL$3>$J45)* ($J45-SUM($M45:AK45)) -> 1 | AM45: =(AM$3<=$J45)*AM$1 + (AM$3>$J45)* ($J45-SUM($M45:AL45)) -> 0.3306010929 | AN45: =(AN$3<=$J45)*AN$1 + (AN$3>$J45)* ($J45-SUM($M45:AM45)) -> 0 | AO45: =(AO$3<=$J45)*AO$1 + (AO$3>$J45)* ($J45-SUM($M45:AN45)) -> 0 | AP45: =(AP$3<=$J45)*AP$1 + (AP$3>$J45)* ($J45-SUM($M45:AO45)) -> 0 | AQ45: =(AQ$3<=$J45)*AQ$1 + (AQ$3>$J45)* ($J45-SUM($M45:AP45)) -> 0 | AR45: =(AR$3<=$J45)*AR$1 + (AR$3>$J45)* ($J45-SUM($M45:AQ45)) -> 0 | AS45: =(AS$3<=$J45)*AS$1 + (AS$3>$J45)* ($J45-SUM($M45:AR45)) -> 0 | AT45: =(AT$3<=$J45)*AT$1 + (AT$3>$J45)* ($J45-SUM($M45:AS45)) -> 0 | AU45: =(AU$3<=$J45)*AU$1 + (AU$3>$J45)* ($J45-SUM($M45:AT45)) -> 0 | AV45: =(AV$3<=$J45)*AV$1 + (AV$3>$J45)* ($J45-SUM($M45:AU45)) -> 0 | AW45: =(AW$3<=$J45)*AW$1 + (AW$3>$J45)* ($J45-SUM($M45:AV45)) -> 0 | AX45: =(AX$3<=$J45)*AX$1 + (AX$3>$J45)* ($J45-SUM($M45:AW45)) -> 0 | AY45: =(AY$3<=$J45)*AY$1 + (AY$3>$J45)* ($J45-SUM($M45:AX45)) -> 0 | AZ45: =(AZ$3<=$J45)*AZ$1 + (AZ$3>$J45)* ($J45-SUM($M45:AY45)) -> 0 | BA45: =(BA$3<=$J45)*BA$1 + (BA$3>$J45)* ($J45-SUM($M45:AZ45)) -> 0
B47: PPA Capacity Revenue
B48: Available Output | I48: MW : | J48: =J23 -> 20 | N48: =$J48 -> 20 | O48: 20 | P48: 20 | Q48: 20 | R48: 20 | S48: 20 | T48: 20 | U48: 20 | V48: 20 | W48: 20 | X48: =$J48 -> 20 | Y48: 20 | Z48: 20 | AA48: 20 | AB48: 20 | AC48: 20 | AD48: 20 | AE48: 20 | AF48: 20 | AG48: 20 | AH48: =$J48 -> 20 | AI48: 20 | AJ48: 20 | AK48: 20 | AL48: 20 | AM48: 20 | AN48: 20 | AO48: 20 | AP48: 20 | AQ48: 20 | AR48: =$J48 -> 20 | AS48: 20 | AT48: 20 | AU48: 20 | AV48: 20 | AW48: 20 | AX48: 20 | AY48: 20 | AZ48: 20 | BA48: 20
B49: Contract Price | I49: $/kWyr : | J49: =Scen!G46 -> 0 | N49: 0 | O49: 0 | P49: 0 | Q49: 0 | R49: 0 | S49: 0 | T49: 0 | U49: 0 | V49: 0 | W49: 0 | X49: 0 | Y49: 0 | Z49: 0 | AA49: 0 | AB49: 0 | AC49: 0 | AD49: 0 | AE49: 0 | AF49: 0 | AG49: 0 | AH49: 0 | AI49: 0 | AJ49: 0 | AK49: 0 | AL49: 0 | AM49: 0 | AN49: 0 | AO49: 0 | AP49: 0 | AQ49: 0 | AR49: 0 | AS49: 0 | AT49: 0 | AU49: 0 | AV49: 0 | AW49: 0 | AX49: 0 | AY49: 0 | AZ49: 0 | BA49: 0
B50: Growth Factor | I50: G : | J50: =Scen!G47 -> 0 | N50: =(1+$J50)^SUM($M$1:M$1) -> 1 | O50: =(1+$J50)^SUM($M$1:N$1) -> 1 | P50: =(1+$J50)^SUM($M$1:O$1) -> 1 | Q50: =(1+$J50)^SUM($M$1:P$1) -> 1 | R50: =(1+$J50)^SUM($M$1:Q$1) -> 1 | S50: =(1+$J50)^SUM($M$1:R$1) -> 1 | T50: =(1+$J50)^SUM($M$1:S$1) -> 1 | U50: =(1+$J50)^SUM($M$1:T$1) -> 1 | V50: =(1+$J50)^SUM($M$1:U$1) -> 1 | W50: =(1+$J50)^SUM($M$1:V$1) -> 1 | X50: =(1+$J50)^SUM($M$1:W$1) -> 1 | Y50: =(1+$J50)^SUM($M$1:X$1) -> 1 | Z50: =(1+$J50)^SUM($M$1:Y$1) -> 1 | AA50: =(1+$J50)^SUM($M$1:Z$1) -> 1 | AB50: =(1+$J50)^SUM($M$1:AA$1) -> 1 | AC50: =(1+$J50)^SUM($M$1:AB$1) -> 1 | AD50: =(1+$J50)^SUM($M$1:AC$1) -> 1 | AE50: =(1+$J50)^SUM($M$1:AD$1) -> 1 | AF50: =(1+$J50)^SUM($M$1:AE$1) -> 1 | AG50: =(1+$J50)^SUM($M$1:AF$1) -> 1 | AH50: =(1+$J50)^SUM($M$1:AG$1) -> 1 | AI50: =(1+$J50)^SUM($M$1:AH$1) -> 1 | AJ50: =(1+$J50)^SUM($M$1:AI$1) -> 1 | AK50: =(1+$J50)^SUM($M$1:AJ$1) -> 1 | AL50: =(1+$J50)^SUM($M$1:AK$1) -> 1 | AM50: =(1+$J50)^SUM($M$1:AL$1) -> 1 | AN50: =(1+$J50)^SUM($M$1:AM$1) -> 1 | AO50: =(1+$J50)^SUM($M$1:AN$1) -> 1 | AP50: =(1+$J50)^SUM($M$1:AO$1) -> 1 | AQ50: =(1+$J50)^SUM($M$1:AP$1) -> 1 | AR50: =(1+$J50)^SUM($M$1:AQ$1) -> 1 | AS50: =(1+$J50)^SUM($M$1:AR$1) -> 1 | AT50: =(1+$J50)^SUM($M$1:AS$1) -> 1 | AU50: =(1+$J50)^SUM($M$1:AT$1) -> 1 | AV50: =(1+$J50)^SUM($M$1:AU$1) -> 1 | AW50: =(1+$J50)^SUM($M$1:AV$1) -> 1 | AX50: =(1+$J50)^SUM($M$1:AW$1) -> 1 | AY50: =(1+$J50)^SUM($M$1:AX$1) -> 1 | AZ50: =(1+$J50)^SUM($M$1:AY$1) -> 1 | BA50: =(1+$J50)^SUM($M$1:AZ$1) -> 1
B51: Capacity Revenue - $000s | N51: =N48*N49*N50*N45 -> 0 | O51: =O48*O49*O50*O45 -> 0 | P51: 0 | Q51: 0 | R51: 0 | S51: 0 | T51: 0 | U51: 0 | V51: 0 | W51: 0 | X51: 0 | Y51: 0 | Z51: 0 | AA51: 0 | AB51: 0 | AC51: 0 | AD51: 0 | AE51: 0 | AF51: 0 | AG51: 0 | AH51: 0 | AI51: 0 | AJ51: 0 | AK51: 0 | AL51: 0 | AM51: 0 | AN51: 0 | AO51: 0 | AP51: 0 | AQ51: 0 | AR51: 0 | AS51: 0 | AT51: 0 | AU51: 0 | AV51: 0 | AW51: 0 | AX51: 0 | AY51: 0 | AZ51: 0 | BA51: 0
O52: =((O54-N54)/N54)-O53 -> 0 | P52: 0
O53: 0.0211554109 | P53: 0.02071713147 | Q53: 0.02107728337 | R53: 0.02140672783 | S53: 0.02095808383 | T53: 0.02052785924 | U53: 0.02083333333 | V53: 0.02111189303 | W53: 0.02136457615 | X53: 0.02091767881 | Y53: 0.02115003305 | Z53: 0.02071197411 | AA53: 0.0209258085 | AB53: 0.02111801242 | AC53: 0.02128953771 | AD53: 0.02084574151 | AE53: 0.02100350058 | AF53: 0.02114285714 | AG53: 0.02070509233 | AH53: 0.02083333333 | AI53: 0.02094522019 | AJ53: 0.02104155708 | AK53: 0.02112313241 | AL53: 0.02119071645 | AM53: 0
B54: PPA Energy Revenue | N54: =J56 -> 122.9 | O54: =N54*(1+O53) -> 125.5 | P54: =O54*(1+P53) -> 128.1 | Q54: =P54*(1+Q53) -> 130.8 | R54: =Q54*(1+R53) -> 133.6 | S54: 136.4 | T54: 139.2 | U54: 142.1 | V54: 145.1 | W54: 148.2 | X54: 151.3 | Y54: 154.5 | Z54: 157.7 | AA54: 161 | AB54: 164.4 | AC54: 167.9 | AD54: 171.4 | AE54: 175 | AF54: 178.7 | AG54: 182.4 | AH54: 186.2 | AI54: 190.1 | AJ54: 194.1 | AK54: 198.2 | AL54: 202.4 | AM54: 202.4
B55: Growth Factor | I55: G : | J55: 0 | N55: =(1+$J55)^SUM($M$1:M$1) -> 1 | O55: =(1+$J55)^SUM($M$1:N$1) -> 1 | P55: =(1+$J55)^SUM($M$1:O$1) -> 1 | Q55: =(1+$J55)^SUM($M$1:P$1) -> 1 | R55: =(1+$J55)^SUM($M$1:Q$1) -> 1 | S55: =(1+$J55)^SUM($M$1:R$1) -> 1 | T55: =(1+$J55)^SUM($M$1:S$1) -> 1 | U55: =(1+$J55)^SUM($M$1:T$1) -> 1 | V55: =(1+$J55)^SUM($M$1:U$1) -> 1 | W55: =(1+$J55)^SUM($M$1:V$1) -> 1 | X55: =(1+$J55)^SUM($M$1:W$1) -> 1 | Y55: =(1+$J55)^SUM($M$1:X$1) -> 1 | Z55: =(1+$J55)^SUM($M$1:Y$1) -> 1 | AA55: =(1+$J55)^SUM($M$1:Z$1) -> 1 | AB55: =(1+$J55)^SUM($M$1:AA$1) -> 1 | AC55: =(1+$J55)^SUM($M$1:AB$1) -> 1 | AD55: =(1+$J55)^SUM($M$1:AC$1) -> 1 | AE55: =(1+$J55)^SUM($M$1:AD$1) -> 1 | AF55: =(1+$J55)^SUM($M$1:AE$1) -> 1 | AG55: =(1+$J55)^SUM($M$1:AF$1) -> 1 | AH55: =(1+$J55)^SUM($M$1:AG$1) -> 1 | AI55: =(1+$J55)^SUM($M$1:AH$1) -> 1 | AJ55: =(1+$J55)^SUM($M$1:AI$1) -> 1 | AK55: =(1+$J55)^SUM($M$1:AJ$1) -> 1 | AL55: =(1+$J55)^SUM($M$1:AK$1) -> 1 | AM55: =(1+$J55)^SUM($M$1:AL$1) -> 1 | AN55: =(1+$J55)^SUM($M$1:AM$1) -> 1 | AO55: =(1+$J55)^SUM($M$1:AN$1) -> 1 | AP55: =(1+$J55)^SUM($M$1:AO$1) -> 1 | AQ55: =(1+$J55)^SUM($M$1:AP$1) -> 1 | AR55: =(1+$J55)^SUM($M$1:AQ$1) -> 1 | AS55: =(1+$J55)^SUM($M$1:AR$1) -> 1 | AT55: =(1+$J55)^SUM($M$1:AS$1) -> 1 | AU55: =(1+$J55)^SUM($M$1:AT$1) -> 1 | AV55: =(1+$J55)^SUM($M$1:AU$1) -> 1 | AW55: =(1+$J55)^SUM($M$1:AV$1) -> 1 | AX55: =(1+$J55)^SUM($M$1:AW$1) -> 1 | AY55: =(1+$J55)^SUM($M$1:AX$1) -> 1 | AZ55: =(1+$J55)^SUM($M$1:AY$1) -> 1 | BA55: =(1+$J55)^SUM($M$1:AZ$1) -> 1
B56: Effective Price - $/MWh | I56: $/MWh : | J56: =Scen!G51 -> 122.9 | N56: =N54 -> 122.9 | O56: =O54*$N1+N54*(1-$N1) -> 124.6404372 | P56: 127.2404372 | Q56: 129.907377 | R56: 132.6743169 | S56: 135.4743169 | T56: 138.2743169 | U56: 141.1412568 | V56: 144.1081967 | W56: 147.1751366 | X56: 150.2751366 | Y56: 153.4420765 | Z56: 156.6420765 | AA56: 159.9090164 | AB56: 163.2759563 | AC56: 166.7428962 | AD56: 170.2428962 | AE56: 173.8098361 | AF56: 177.476776 | AG56: 181.176776 | AH56: 184.9437158 | AI56: 188.8106557 | AJ56: 192.7775956 | AK56: 196.8445355 | AL56: 201.0114754 | AM56: 202.4 | AN56: 0 | AO56: 0 | AP56: 0 | AQ56: 0 | AR56: 0 | AS56: 0 | AT56: 0 | AU56: 0 | AV56: 0 | AW56: 0 | AX56: 0 | AY56: 0 | AZ56: 0 | BA56: 0
B57: TOD Adjustment Multiple | I57: TOD: | J57: =Scen!G52 -> 1.169609713 | N57: =$J$57 -> 1.169609713 | O57: 1.169609713 | P57: 1.169609713 | Q57: 1.169609713 | R57: 1.169609713 | S57: 1.169609713 | T57: 1.169609713 | U57: 1.169609713 | V57: 1.169609713 | W57: 1.169609713 | X57: 1.169609713 | Y57: 1.169609713 | Z57: 1.169609713 | AA57: 1.169609713 | AB57: 1.169609713 | AC57: 1.169609713 | AD57: 1.169609713 | AE57: 1.169609713 | AF57: 1.169609713 | AG57: 1.169609713 | AH57: 1.169609713 | AI57: 1.169609713 | AJ57: 1.169609713 | AK57: 1.169609713 | AL57: 1.169609713 | AM57: 1.169609713 | AN57: 1.169609713 | AO57: 1.169609713 | AP57: 1.169609713 | AQ57: 1.169609713 | AR57: 1.169609713 | AS57: 1.169609713 | AT57: =$J$57 -> 1.169609713 | AU57: 1.169609713 | AV57: 1.169609713 | AW57: 1.169609713 | AX57: 1.169609713 | AY57: 1.169609713 | AZ57: 1.169609713 | BA57: 1.169609713
B58: TOD Adjusted Effective Price - $/MWh | N58: =N56*N57 -> 143.7450337 | O58: 145.7806659 | P58: 148.8216511 | Q58: 151.9409299 | R58: 155.1771697 | S58: 158.4520769 | T58: 161.7269841 | U58: 165.0801848 | V58: 168.5503466 | W58: 172.1374692 | X58: 175.7632593 | Y58: 179.467343 | Z58: 183.2100941 | AA58: 187.0311387 | AB58: 190.9691443 | AC58: 195.0241109 | AD58: 199.1177449 | AE58: 203.2896724 | AF58: 207.5785609 | AG58: 211.9061169 | AH58: 216.3119663 | AI58: 220.8347768 | AJ58: 225.4745482 | AK58: 230.2312806 | AL58: 235.104974 | AM58: 236.7290058 | AN58: =AN56*AN57 -> 0 | AO58: =AO56*AO57 -> 0 | AP58: 0 | AQ58: 0 | AR58: 0 | AS58: 0 | AT58: =AT56*AT57 -> 0 | AU58: 0 | AV58: 0 | AW58: 0 | AX58: 0 | AY58: 0 | AZ58: 0 | BA58: 0
B59: Contract Generation - GWh | N59: =N40*N45 -> 27.17395244 | O59: =O40*O45 -> 40.42086622 | P59: 40.21510341 | Q59: 40.00048181 | R59: 39.78088758 | S59: 39.5573068 | T59: 39.32557582 | U59: 39.09517151 | V59: 38.86555532 | W59: 38.6377851 | X59: 38.4165151 | Y59: 38.19649045 | Z59: 37.97718527 | AA59: 37.75798987 | AB59: 37.54003552 | AC59: 37.36368667 | AD59: 37.1876552 | AE59: 37.01295596 | AF59: 36.83267734 | AG59: 36.65327639 | AH59: 36.47425045 | AI59: 36.28321327 | AJ59: 36.09317415 | AK59: 35.90412789 | AL59: 35.71558127 | AM59: 11.74886587 | AN59: 0 | AO59: 0 | AP59: 0 | AQ59: 0 | AR59: 0 | AS59: 0 | AT59: 0 | AU59: 0 | AV59: 0 | AW59: 0 | AX59: 0 | AY59: 0 | AZ59: 0 | BA59: 0
B60: Energy Revenues - $000s | N60: =N58*N59 -> 3906.120709 | O60: =O58*O59 -> 5892.580794 | P60: 5984.87809 | Q60: 6077.710403 | R60: 6173.085543 | S60: 6267.937419 | T60: 6360.006776 | U60: 6453.83814 | V60: 6550.802818 | W60: 6651.010543 | X60: 6752.211907 | Y60: 6855.022653 | Z60: 6957.803686 | AA60: 7061.919841 | AB60: 7168.98846 | AC60: 7286.819772 | AD60: 7404.722041 | AE60: 7524.351691 | AF60: 7645.674156 | AG60: 7767.053471 | AH60: 7889.816836 | AI60: 8012.595304 | AJ60: 8138.092135 | AK60: 8266.253343 | AL60: 8396.910806 | AM60: 2781.297338 | AN60: 0 | AO60: 0 | AP60: 0 | AQ60: 0 | AR60: 0 | AS60: 0 | AT60: 0 | AU60: 0 | AV60: 0 | AW60: 0 | AX60: 0 | AY60: 0 | AZ60: 0 | BA60: 0
B63: MERCHANT REVENUE
K64: Check
B65: Merchant Period | I65: Years : | J65: =Scen!G55 -> 0 | K65: =SUM(N65:BA65)-J65 -> 0 | M65: 0 | N65: =(N$3<=($J65+$J45))*N$1 + (N$3>($J65+$J45))* ($J65-SUM($M65:M65))-N45 -> 0 | O65: =(O$3<=($J65+$J45))*O$1 + (O$3>($J65+$J45))* ($J65-SUM($M65:N65))-O45 -> 0 | P65: =(P$3<=($J65+$J45))*P$1 + (P$3>($J65+$J45))* ($J65-SUM($M65:O65))-P45 -> 0 | Q65: =(Q$3<=($J65+$J45))*Q$1 + (Q$3>($J65+$J45))* ($J65-SUM($M65:P65))-Q45 -> 0 | R65: =(R$3<=($J65+$J45))*R$1 + (R$3>($J65+$J45))* ($J65-SUM($M65:Q65))-R45 -> 0 | S65: =(S$3<=($J65+$J45))*S$1 + (S$3>($J65+$J45))* ($J65-SUM($M65:R65))-S45 -> 0 | T65: =(T$3<=($J65+$J45))*T$1 + (T$3>($J65+$J45))* ($J65-SUM($M65:S65))-T45 -> 0 | U65: =(U$3<=($J65+$J45))*U$1 + (U$3>($J65+$J45))* ($J65-SUM($M65:T65))-U45 -> 0 | V65: =(V$3<=($J65+$J45))*V$1 + (V$3>($J65+$J45))* ($J65-SUM($M65:U65))-V45 -> 0 | W65: =(W$3<=($J65+$J45))*W$1 + (W$3>($J65+$J45))* ($J65-SUM($M65:V65))-W45 -> 0 | X65: =(X$3<=($J65+$J45))*X$1 + (X$3>($J65+$J45))* ($J65-SUM($M65:W65))-X45 -> 0 | Y65: =(Y$3<=($J65+$J45))*Y$1 + (Y$3>($J65+$J45))* ($J65-SUM($M65:X65))-Y45 -> 0 | Z65: =(Z$3<=($J65+$J45))*Z$1 + (Z$3>($J65+$J45))* ($J65-SUM($M65:Y65))-Z45 -> 0 | AA65: =(AA$3<=($J65+$J45))*AA$1 + (AA$3>($J65+$J45))* ($J65-SUM($M65:Z65))-AA45 -> 0 | AB65: =(AB$3<=($J65+$J45))*AB$1 + (AB$3>($J65+$J45))* ($J65-SUM($M65:AA65))-AB45 -> 0 | AC65: =(AC$3<=($J65+$J45))*AC$1 + (AC$3>($J65+$J45))* ($J65-SUM($M65:AB65))-AC45 -> 0 | AD65: =(AD$3<=($J65+$J45))*AD$1 + (AD$3>($J65+$J45))* ($J65-SUM($M65:AC65))-AD45 -> 0 | AE65: =(AE$3<=($J65+$J45))*AE$1 + (AE$3>($J65+$J45))* ($J65-SUM($M65:AD65))-AE45 -> 0 | AF65: =(AF$3<=($J65+$J45))*AF$1 + (AF$3>($J65+$J45))* ($J65-SUM($M65:AE65))-AF45 -> 0 | AG65: =(AG$3<=($J65+$J45))*AG$1 + (AG$3>($J65+$J45))* ($J65-SUM($M65:AF65))-AG45 -> 0 | AH65: =(AH$3<=($J65+$J45))*AH$1 + (AH$3>($J65+$J45))* ($J65-SUM($M65:AG65))-AH45 -> 0 | AI65: =(AI$3<=($J65+$J45))*AI$1 + (AI$3>($J65+$J45))* ($J65-SUM($M65:AH65))-AI45 -> 0 | AJ65: =(AJ$3<=($J65+$J45))*AJ$1 + (AJ$3>($J65+$J45))* ($J65-SUM($M65:AI65))-AJ45 -> 0 | AK65: =(AK$3<=($J65+$J45))*AK$1 + (AK$3>($J65+$J45))* ($J65-SUM($M65:AJ65))-AK45 -> 0 | AL65: =(AL$3<=($J65+$J45))*AL$1 + (AL$3>($J65+$J45))* ($J65-SUM($M65:AK65))-AL45 -> 0 | AM65: 0 | AN65: 0 | AO65: =(AO$3<=($J65+$J45))*AO$1 + (AO$3>($J65+$J45))* ($J65-SUM($M65:AN65))-AO45 -> 0 | AP65: =(AP$3<=($J65+$J45))*AP$1 + (AP$3>($J65+$J45))* ($J65-SUM($M65:AO65))-AP45 -> 0 | AQ65: =(AQ$3<=($J65+$J45))*AQ$1 + (AQ$3>($J65+$J45))* ($J65-SUM($M65:AP65))-AQ45 -> 0 | AR65: =(AR$3<=($J65+$J45))*AR$1 + (AR$3>($J65+$J45))* ($J65-SUM($M65:AQ65))-AR45 -> 0 | AS65: =(AS$3<=($J65+$J45))*AS$1 + (AS$3>($J65+$J45))* ($J65-SUM($M65:AR65))-AS45 -> 0 | AT65: =(AT$3<=($J65+$J45))*AT$1 + (AT$3>($J65+$J45))* ($J65-SUM($M65:AS65))-AT45 -> 0 | AU65: =(AU$3<=($J65+$J45))*AU$1 + (AU$3>($J65+$J45))* ($J65-SUM($M65:AT65))-AU45 -> 0 | AV65: =(AV$3<=($J65+$J45))*AV$1 + (AV$3>($J65+$J45))* ($J65-SUM($M65:AU65))-AV45 -> 0 | AW65: =(AW$3<=($J65+$J45))*AW$1 + (AW$3>($J65+$J45))* ($J65-SUM($M65:AV65))-AW45 -> 0 | AX65: =(AX$3<=($J65+$J45))*AX$1 + (AX$3>($J65+$J45))* ($J65-SUM($M65:AW65))-AX45 -> 0 | AY65: =(AY$3<=($J65+$J45))*AY$1 + (AY$3>($J65+$J45))* ($J65-SUM($M65:AX65))-AY45 -> 0 | AZ65: =(AZ$3<=($J65+$J45))*AZ$1 + (AZ$3>($J65+$J45))* ($J65-SUM($M65:AY65))-AZ45 -> 0 | BA65: =(BA$3<=($J65+$J45))*BA$1 + (BA$3>($J65+$J45))* ($J65-SUM($M65:AZ65))-BA45 -> 0
B67: Merchant - Capacity Revenue
B68: Contract Price - $/kWyr | N68: 0 | O68: 0 | P68: 0 | Q68: 0 | R68: 0 | S68: 0 | T68: 0 | U68: 0 | V68: 0 | W68: 0 | X68: 0 | Y68: 0 | Z68: 0 | AA68: 0 | AB68: 0 | AC68: 0 | AD68: 0 | AE68: 0 | AF68: 0 | AG68: 0 | AH68: 0 | AI68: 0 | AJ68: 0 | AK68: 0 | AL68: 0 | AM68: 0 | AN68: 0 | AO68: 0 | AP68: 0 | AQ68: 0 | AR68: 0 | AS68: 0 | AT68: 0 | AU68: 0 | AV68: 0 | AW68: 0 | AX68: 0 | AY68: 0 | AZ68: 0 | BA68: 0
B69: Available Output | I69: MW : | J69: =J48 -> 20 | N69: =$J69 -> 20 | O69: 20 | P69: 20 | Q69: 20 | R69: 20 | S69: 20 | T69: 20 | U69: 20 | V69: 20 | W69: 20 | X69: 20 | Y69: 20 | Z69: 20 | AA69: 20 | AB69: 20 | AC69: 20 | AD69: 20 | AE69: 20 | AF69: 20 | AG69: 20 | AH69: 20 | AI69: 20 | AJ69: 20 | AK69: 20 | AL69: 20 | AM69: 20 | AN69: 20 | AO69: 20 | AP69: 20 | AQ69: 20 | AR69: 20 | AS69: 20 | AT69: =$J69 -> 20 | AU69: 20 | AV69: 20 | AW69: 20 | AX69: 20 | AY69: 20 | AZ69: 20 | BA69: 20
B70: Solar Capacity Adjustment | I70: Sol Adj : | J70: 1 | N70: =$J$70 -> 1 | O70: 1 | P70: 1 | Q70: 1 | R70: 1 | S70: 1 | T70: 1 | U70: 1 | V70: 1 | W70: 1 | X70: 1 | Y70: 1 | Z70: 1 | AA70: 1 | AB70: 1 | AC70: 1 | AD70: 1 | AE70: 1 | AF70: 1 | AG70: 1 | AH70: 1 | AI70: 1 | AJ70: 1 | AK70: 1 | AL70: 1 | AM70: 1 | AN70: 1 | AO70: 1 | AP70: 1 | AQ70: 1 | AR70: 1 | AS70: 1 | AT70: =$J$70 -> 1 | AU70: 1 | AV70: 1 | AW70: 1 | AX70: 1 | AY70: 1 | AZ70: 1 | BA70: 1
B71: Adjusted Available Output - MW | N71: =N69*N70 -> 20 | O71: 20 | P71: 20 | Q71: 20 | R71: 20 | S71: 20 | T71: 20 | U71: 20 | V71: 20 | W71: 20 | X71: 20 | Y71: 20 | Z71: 20 | AA71: 20 | AB71: 20 | AC71: 20 | AD71: 20 | AE71: 20 | AF71: 20 | AG71: 20 | AH71: 20 | AI71: 20 | AJ71: 20 | AK71: 20 | AL71: 20 | AM71: 20 | AN71: 20 | AO71: 20 | AP71: 20 | AQ71: 20 | AR71: 20 | AS71: 20 | AT71: =AT69*AT70 -> 20 | AU71: 20 | AV71: 20 | AW71: 20 | AX71: 20 | AY71: 20 | AZ71: 20 | BA71: 20
B72: Adjusted Merchant Capacity Revenue - $000s | N72: =N68*N71*N65 -> 0 | O72: 0 | P72: 0 | Q72: 0 | R72: 0 | S72: 0 | T72: 0 | U72: 0 | V72: 0 | W72: 0 | X72: 0 | Y72: 0 | Z72: 0 | AA72: 0 | AB72: 0 | AC72: 0 | AD72: 0 | AE72: 0 | AF72: 0 | AG72: 0 | AH72: 0 | AI72: 0 | AJ72: 0 | AK72: 0 | AL72: 0 | AM72: 0 | AN72: 0 | AO72: 0 | AP72: 0 | AQ72: 0 | AR72: 0 | AS72: 0 | AT72: =AT68*AT71*AT65 -> 0 | AU72: 0 | AV72: 0 | AW72: 0 | AX72: 0 | AY72: 0 | AZ72: 0 | BA72: 0
B74: Merchant - Energy Revenue
B75: Merchant Energy Price - $/MWh | N75: =LOOKUP(N$4,Merch!$R$26:$R$66,Merch!$Q$26:$Q$66) -> 37.04486302 | O75: =LOOKUP(O$4,Merch!$R$26:$R$66,Merch!$Q$26:$Q$66) -> 40.34813902 | P75: =LOOKUP(P$4,Merch!$R$26:$R$66,Merch!$Q$26:$Q$66) -> 42.7465393 | Q75: =LOOKUP(Q$4,Merch!$R$26:$R$66,Merch!$Q$26:$Q$66) -> 45.68433454 | R75: =LOOKUP(R$4,Merch!$R$26:$R$66,Merch!$Q$26:$Q$66) -> 47.52725739 | S75: =LOOKUP(S$4,Merch!$R$26:$R$66,Merch!$Q$26:$Q$66) -> 49.80046418 | T75: =LOOKUP(T$4,Merch!$R$26:$R$66,Merch!$Q$26:$Q$66) -> 51.75176835 | U75: =LOOKUP(U$4,Merch!$R$26:$R$66,Merch!$Q$26:$Q$66) -> 54.27855608 | V75: =LOOKUP(V$4,Merch!$R$26:$R$66,Merch!$Q$26:$Q$66) -> 57.42318989 | W75: =LOOKUP(W$4,Merch!$R$26:$R$66,Merch!$Q$26:$Q$66) -> 60.69440323 | X75: =LOOKUP(X$4,Merch!$R$26:$R$66,Merch!$Q$26:$Q$66) -> 65.39022418 | Y75: =LOOKUP(Y$4,Merch!$R$26:$R$66,Merch!$Q$26:$Q$66) -> 67.45391906 | Z75: =LOOKUP(Z$4,Merch!$R$26:$R$66,Merch!$Q$26:$Q$66) -> 69.69772858 | AA75: =LOOKUP(AA$4,Merch!$R$26:$R$66,Merch!$Q$26:$Q$66) -> 72.59320477 | AB75: =LOOKUP(AB$4,Merch!$R$26:$R$66,Merch!$Q$26:$Q$66) -> 74.89463335 | AC75: =LOOKUP(AC$4,Merch!$R$26:$R$66,Merch!$Q$26:$Q$66) -> 77.42153811 | AD75: =LOOKUP(AD$4,Merch!$R$26:$R$66,Merch!$Q$26:$Q$66) -> 79.91975239 | AE75: =LOOKUP(AE$4,Merch!$R$26:$R$66,Merch!$Q$26:$Q$66) -> 82.42308573 | AF75: =LOOKUP(AF$4,Merch!$R$26:$R$66,Merch!$Q$26:$Q$66) -> 85.91094287 | AG75: =LOOKUP(AG$4,Merch!$R$26:$R$66,Merch!$Q$26:$Q$66) -> 89.5245143 | AH75: =LOOKUP(AH$4,Merch!$R$26:$R$66,Merch!$Q$26:$Q$66) -> 91.9795143 | AI75: =LOOKUP(AI$4,Merch!$R$26:$R$66,Merch!$Q$26:$Q$66) -> 95.43344287 | AJ75: =LOOKUP(AJ$4,Merch!$R$26:$R$66,Merch!$Q$26:$Q$66) -> 99.01106192 | AK75: =LOOKUP(AK$4,Merch!$R$26:$R$66,Merch!$Q$26:$Q$66) -> 102.4465381 | AL75: =LOOKUP(AL$4,Merch!$R$26:$R$66,Merch!$Q$26:$Q$66) -> 106.5199905 | AM75: =LOOKUP(AM$4,Merch!$R$26:$R$66,Merch!$Q$26:$Q$66) -> 110.7518953 | AN75: =LOOKUP(AN$4,Merch!$R$26:$R$66,Merch!$Q$26:$Q$66) -> 114.5590381 | AO75: =LOOKUP(AO$4,Merch!$R$26:$R$66,Merch!$Q$26:$Q$66) -> 117.7609429 | AP75: =LOOKUP(AP$4,Merch!$R$26:$R$66,Merch!$Q$26:$Q$66) -> 121.4568953 | AQ75: =LOOKUP(AQ$4,Merch!$R$26:$R$66,Merch!$Q$26:$Q$66) -> 127.0354667 | AR75: =LOOKUP(AR$4,Merch!$R$26:$R$66,Merch!$Q$26:$Q$66) -> 132.1128476 | AS75: =LOOKUP(AS$4,Merch!$R$26:$R$66,Merch!$Q$26:$Q$66) -> 136.8151095 | AT75: =LOOKUP(AT$4,Merch!$R$26:$R$66,Merch!$Q$26:$Q$66) -> 141.1982048 | AU75: =LOOKUP(AU$4,Merch!$R$26:$R$66,Merch!$Q$26:$Q$66) -> 146.2858238 | AV75: =LOOKUP(AV$4,Merch!$R$26:$R$66,Merch!$Q$26:$Q$66) -> 151.4629667 | AW75: =LOOKUP(AW$4,Merch!$R$26:$R$66,Merch!$Q$26:$Q$66) -> 156.8365381 | AX75: =LOOKUP(AX$4,Merch!$R$26:$R$66,Merch!$Q$26:$Q$66) -> 164.0579667 | AY75: =LOOKUP(AY$4,Merch!$R$26:$R$66,Merch!$Q$26:$Q$66) -> 169.8540381 | AZ75: =LOOKUP(AZ$4,Merch!$R$26:$R$66,Merch!$Q$26:$Q$66) -> 174.3964191 | BA75: =LOOKUP(BA$4,Merch!$R$26:$R$66,Merch!$Q$26:$Q$66) -> 174.3964191
B76: Net Generation Sold - GWh | N76: =N40*N65 -> 0 | O76: =O40*O65 -> 0 | P76: 0 | Q76: 0 | R76: 0 | S76: 0 | T76: 0 | U76: 0 | V76: 0 | W76: 0 | X76: 0 | Y76: 0 | Z76: 0 | AA76: 0 | AB76: 0 | AC76: 0 | AD76: 0 | AE76: 0 | AF76: 0 | AG76: 0 | AH76: 0 | AI76: 0 | AJ76: 0 | AK76: 0 | AL76: 0 | AM76: 0 | AN76: 0 | AO76: 0 | AP76: 0 | AQ76: 0 | AR76: 0 | AS76: 0 | AT76: 0 | AU76: 0 | AV76: 0 | AW76: 0 | AX76: 0 | AY76: 0 | AZ76: 0 | BA76: 0
B77: Adjusted Energy Revenue - $000s | N77: =N75*N76 -> 0 | O77: 0 | P77: 0 | Q77: 0 | R77: 0 | S77: 0 | T77: 0 | U77: 0 | V77: 0 | W77: 0 | X77: 0 | Y77: 0 | Z77: 0 | AA77: 0 | AB77: 0 | AC77: 0 | AD77: 0 | AE77: 0 | AF77: 0 | AG77: 0 | AH77: 0 | AI77: 0 | AJ77: 0 | AK77: 0 | AL77: 0 | AM77: 0 | AN77: 0 | AO77: 0 | AP77: 0 | AQ77: 0 | AR77: 0 | AS77: 0 | AT77: 0 | AU77: 0 | AV77: 0 | AW77: 0 | AX77: 0 | AY77: 0 | AZ77: 0 | BA77: 0
B79: Merchant - Renewable Energy Credit
B80: REC Revenue - $/MWh Low | N80: =LOOKUP(N$4,Merch!$R$26:$R$66,Merch!$H$26:$H$66) -> 0.85 | O80: =LOOKUP(O$4,Merch!$R$26:$R$66,Merch!$H$26:$H$66) -> 1.25 | P80: =LOOKUP(P$4,Merch!$R$26:$R$66,Merch!$H$26:$H$66) -> 1.65 | Q80: =LOOKUP(Q$4,Merch!$R$26:$R$66,Merch!$H$26:$H$66) -> 2.05 | R80: =LOOKUP(R$4,Merch!$R$26:$R$66,Merch!$H$26:$H$66) -> 2.05 | S80: =LOOKUP(S$4,Merch!$R$26:$R$66,Merch!$H$26:$H$66) -> 2.05 | T80: =LOOKUP(T$4,Merch!$R$26:$R$66,Merch!$H$26:$H$66) -> 2.05 | U80: =LOOKUP(U$4,Merch!$R$26:$R$66,Merch!$H$26:$H$66) -> 2.05 | V80: =LOOKUP(V$4,Merch!$R$26:$R$66,Merch!$H$26:$H$66) -> 2.05 | W80: =LOOKUP(W$4,Merch!$R$26:$R$66,Merch!$H$26:$H$66) -> 2.05 | X80: =LOOKUP(X$4,Merch!$R$26:$R$66,Merch!$H$26:$H$66) -> 2.05 | Y80: =LOOKUP(Y$4,Merch!$R$26:$R$66,Merch!$H$26:$H$66) -> 2.05 | Z80: =LOOKUP(Z$4,Merch!$R$26:$R$66,Merch!$H$26:$H$66) -> 2.05 | AA80: =LOOKUP(AA$4,Merch!$R$26:$R$66,Merch!$H$26:$H$66) -> 2.05 | AB80: =LOOKUP(AB$4,Merch!$R$26:$R$66,Merch!$H$26:$H$66) -> 2.05 | AC80: =LOOKUP(AC$4,Merch!$R$26:$R$66,Merch!$H$26:$H$66) -> 2.05 | AD80: =LOOKUP(AD$4,Merch!$R$26:$R$66,Merch!$H$26:$H$66) -> 2.05 | AE80: =LOOKUP(AE$4,Merch!$R$26:$R$66,Merch!$H$26:$H$66) -> 2.05 | AF80: =LOOKUP(AF$4,Merch!$R$26:$R$66,Merch!$H$26:$H$66) -> 2.05 | AG80: =LOOKUP(AG$4,Merch!$R$26:$R$66,Merch!$H$26:$H$66) -> 2.05 | AH80: =LOOKUP(AH$4,Merch!$R$26:$R$66,Merch!$H$26:$H$66) -> 2.05 | AI80: =LOOKUP(AI$4,Merch!$R$26:$R$66,Merch!$H$26:$H$66) -> 2.05 | AJ80: =LOOKUP(AJ$4,Merch!$R$26:$R$66,Merch!$H$26:$H$66) -> 2.05 | AK80: =LOOKUP(AK$4,Merch!$R$26:$R$66,Merch!$H$26:$H$66) -> 2.05 | AL80: =LOOKUP(AL$4,Merch!$R$26:$R$66,Merch!$H$26:$H$66) -> 2.05 | AM80: =LOOKUP(AM$4,Merch!$R$26:$R$66,Merch!$H$26:$H$66) -> 2.05 | AN80: =LOOKUP(AN$4,Merch!$R$26:$R$66,Merch!$H$26:$H$66) -> 2.05 | AO80: =LOOKUP(AO$4,Merch!$R$26:$R$66,Merch!$H$26:$H$66) -> 2.05 | AP80: =LOOKUP(AP$4,Merch!$R$26:$R$66,Merch!$H$26:$H$66) -> 2.05 | AQ80: =LOOKUP(AQ$4,Merch!$R$26:$R$66,Merch!$H$26:$H$66) -> 2.05 | AR80: =LOOKUP(AR$4,Merch!$R$26:$R$66,Merch!$H$26:$H$66) -> 2.05 | AS80: =LOOKUP(AS$4,Merch!$R$26:$R$66,Merch!$H$26:$H$66) -> 2.05 | AT80: =LOOKUP(AT$4,Merch!$R$26:$R$66,Merch!$H$26:$H$66) -> 2.05 | AU80: =LOOKUP(AU$4,Merch!$R$26:$R$66,Merch!$H$26:$H$66) -> 2.05 | AV80: =LOOKUP(AV$4,Merch!$R$26:$R$66,Merch!$H$26:$H$66) -> 2.05 | AW80: =LOOKUP(AW$4,Merch!$R$26:$R$66,Merch!$H$26:$H$66) -> 2.05 | AX80: =LOOKUP(AX$4,Merch!$R$26:$R$66,Merch!$H$26:$H$66) -> 2.05 | AY80: =LOOKUP(AY$4,Merch!$R$26:$R$66,Merch!$H$26:$H$66) -> 2.05 | AZ80: =LOOKUP(AZ$4,Merch!$R$26:$R$66,Merch!$H$26:$H$66) -> 2.05 | BA80: =LOOKUP(BA$4,Merch!$R$26:$R$66,Merch!$H$26:$H$66) -> 2.05
B81: Net Generation Sold - GWh | N81: =N40*N65 -> 0 | O81: =O40*O65 -> 0 | P81: 0 | Q81: 0 | R81: 0 | S81: 0 | T81: 0 | U81: 0 | V81: 0 | W81: 0 | X81: 0 | Y81: 0 | Z81: 0 | AA81: 0 | AB81: 0 | AC81: 0 | AD81: 0 | AE81: 0 | AF81: 0 | AG81: 0 | AH81: 0 | AI81: 0 | AJ81: 0 | AK81: 0 | AL81: 0 | AM81: 0 | AN81: 0 | AO81: 0 | AP81: 0 | AQ81: 0 | AR81: 0 | AS81: 0 | AT81: 0 | AU81: 0 | AV81: 0 | AW81: 0 | AX81: 0 | AY81: 0 | AZ81: 0 | BA81: 0
B82: Adjusted REC Energy Revenue - $000s | N82: =N80*N81 -> 0 | O82: =O80*O81 -> 0 | P82: 0 | Q82: 0 | R82: 0 | S82: 0 | T82: 0 | U82: 0 | V82: 0 | W82: 0 | X82: 0 | Y82: 0 | Z82: 0 | AA82: 0 | AB82: 0 | AC82: 0 | AD82: 0 | AE82: 0 | AF82: 0 | AG82: 0 | AH82: 0 | AI82: 0 | AJ82: 0 | AK82: 0 | AL82: 0 | AM82: 0 | AN82: 0 | AO82: 0 | AP82: 0 | AQ82: 0 | AR82: 0 | AS82: 0 | AT82: 0 | AU82: 0 | AV82: 0 | AW82: 0 | AX82: 0 | AY82: 0 | AZ82: 0 | BA82: 0
B84: Merchant - Other Revenue | N84: 0 | O84: 0 | P84: 0 | Q84: 0 | R84: 0 | S84: 0 | T84: 0 | U84: 0 | V84: 0 | W84: 0 | X84: 0 | Y84: 0 | Z84: 0 | AA84: 0 | AB84: 0 | AC84: 0 | AD84: 0 | AE84: 0 | AF84: 0 | AG84: 0 | AH84: 0 | AI84: 0 | AJ84: 0 | AK84: 0 | AL84: 0 | AM84: 0 | AN84: 0 | AO84: 0 | AP84: 0 | AQ84: 0 | AR84: 0 | AS84: 0 | AT84: 0 | AU84: 0 | AV84: 0 | AW84: 0 | AX84: 0 | AY84: 0 | AZ84: 0 | BA84: 0
B85: Merchant Revenue $000s | N85: =N84*N65 -> 0 | O85: 0 | P85: 0 | Q85: 0 | R85: 0 | S85: 0 | T85: 0 | U85: 0 | V85: 0 | W85: 0 | X85: 0 | Y85: 0 | Z85: 0 | AA85: 0 | AB85: 0 | AC85: 0 | AD85: 0 | AE85: 0 | AF85: 0 | AG85: 0 | AH85: 0 | AI85: 0 | AJ85: 0 | AK85: 0 | AL85: 0 | AM85: 0 | AN85: 0 | AO85: 0 | AP85: 0 | AQ85: 0 | AR85: 0 | AS85: 0 | AT85: =AT84*AT65 -> 0 | AU85: 0 | AV85: 0 | AW85: 0 | AX85: 0 | AY85: 0 | AZ85: 0 | BA85: 0
B88: FUEL COST
B90: Contract Fuel Cost
B91: Fuel Consumption - mmbtu | J91: =Scen!G56 -> 0 | N91: =$J91*N$1 -> 0 | O91: 0 | P91: 0 | Q91: 0 | R91: 0 | S91: 0 | T91: 0 | U91: 0 | V91: 0 | W91: 0 | X91: 0 | Y91: =$J91*Y$1 -> 0 | Z91: 0 | AA91: 0 | AB91: 0 | AC91: 0 | AD91: 0 | AE91: 0 | AF91: 0 | AG91: 0 | AH91: 0 | AI91: 0 | AJ91: 0 | AK91: 0 | AL91: 0 | AM91: 0 | AN91: 0 | AO91: 0 | AP91: 0 | AQ91: 0 | AR91: 0 | AS91: 0 | AT91: =$J91*AT$1 -> 0 | AU91: 0 | AV91: 0 | AW91: 0 | AX91: 0 | AY91: 0 | AZ91: 0 | BA91: 0
B92: Fuel Price - $/MMBtu | N92: 0 | O92: 0 | P92: 0 | Q92: 0 | R92: 0 | S92: 0 | T92: 0 | U92: 0 | V92: 0 | W92: 0 | X92: 0 | Y92: 0 | Z92: 0 | AA92: 0 | AB92: 0 | AC92: 0 | AD92: 0 | AE92: 0 | AF92: 0 | AG92: 0 | AH92: 0 | AI92: 0 | AJ92: 0 | AK92: 0 | AL92: 0 | AM92: 0 | AN92: 0 | AO92: 0 | AP92: 0 | AQ92: 0 | AR92: 0 | AS92: =AR92*1.02 -> 0 | AT92: 0 | AU92: 0 | AV92: 0 | AW92: 0 | AX92: 0 | AY92: 0 | AZ92: 0 | BA92: 0
B93: Fuel Cost - $000s | N93: =N91*N92/1000 -> 0 | O93: 0 | P93: 0 | Q93: 0 | R93: 0 | S93: 0 | T93: 0 | U93: 0 | V93: 0 | W93: 0 | X93: 0 | Y93: 0 | Z93: 0 | AA93: 0 | AB93: 0 | AC93: 0 | AD93: 0 | AE93: 0 | AF93: 0 | AG93: 0 | AH93: 0 | AI93: 0 | AJ93: 0 | AK93: 0 | AL93: 0 | AM93: 0 | AN93: 0 | AO93: 0 | AP93: 0 | AQ93: 0 | AR93: 0 | AS93: 0 | AT93: =AT91*AT92/1000 -> 0 | AU93: 0 | AV93: 0 | AW93: 0 | AX93: 0 | AY93: 0 | AZ93: 0 | BA93: 0

Sheet GA
B1: G&A | L1: Par Yr : | M1: =FS!M1 -> 0 | N1: =FS!N1 -> 0.6693989071 | O1: =FS!O1 -> 1 | P1: =FS!P1 -> 1 | Q1: =FS!Q1 -> 1 | R1: =FS!R1 -> 1 | S1: =FS!S1 -> 1 | T1: =FS!T1 -> 1 | U1: =FS!U1 -> 1 | V1: =FS!V1 -> 1 | W1: =FS!W1 -> 1 | X1: =FS!X1 -> 1 | Y1: =FS!Y1 -> 1 | Z1: =FS!Z1 -> 1 | AA1: =FS!AA1 -> 1 | AB1: =FS!AB1 -> 1 | AC1: =FS!AC1 -> 1 | AD1: =FS!AD1 -> 1 | AE1: =FS!AE1 -> 1 | AF1: =FS!AF1 -> 1 | AG1: =FS!AG1 -> 1 | AH1: =FS!AH1 -> 1 | AI1: =FS!AI1 -> 1 | AJ1: =FS!AJ1 -> 1 | AK1: =FS!AK1 -> 1 | AL1: =FS!AL1 -> 1 | AM1: =FS!AM1 -> 0.3306010929 | AN1: =FS!AN1 -> 0 | AO1: =FS!AO1 -> 0 | AP1: =FS!AP1 -> 0 | AQ1: =FS!AQ1 -> 0 | AR1: =FS!AR1 -> 0 | AS1: =FS!AS1 -> 0 | AT1: =FS!AT1 -> 0 | AU1: =FS!AU1 -> 0 | AV1: =FS!AV1 -> 0 | AW1: =FS!AW1 -> 0 | AX1: =FS!AX1 -> 0 | AY1: =FS!AY1 -> 0 | AZ1: =FS!AZ1 -> 0 | BA1: =FS!BA1 -> 0
L2: Disc Date : | M2: =FS!M2 -> 2012-05-01 | N2: =FS!N2 -> 2012-09-01 | O2: =FS!O2 -> 2013-08-15 | P2: =FS!P2 -> 2014-08-15 | Q2: =FS!Q2 -> 2015-08-15 | R2: =FS!R2 -> 2016-08-15 | S2: =FS!S2 -> 2017-08-15 | T2: =FS!T2 -> 2018-08-15 | U2: =FS!U2 -> 2019-08-15 | V2: =FS!V2 -> 2020-08-15 | W2: =FS!W2 -> 2021-08-15 | X2: =FS!X2 -> 2022-08-15 | Y2: =FS!Y2 -> 2023-08-15 | Z2: =FS!Z2 -> 2024-08-15 | AA2: =FS!AA2 -> 2025-08-15 | AB2: =FS!AB2 -> 2026-08-15 | AC2: =FS!AC2 -> 2027-08-15 | AD2: =FS!AD2 -> 2028-08-15 | AE2: =FS!AE2 -> 2029-08-15 | AF2: =FS!AF2 -> 2030-08-15 | AG2: =FS!AG2 -> 2031-08-15 | AH2: =FS!AH2 -> 2032-08-15 | AI2: =FS!AI2 -> 2033-08-15 | AJ2: =FS!AJ2 -> 2034-08-15 | AK2: =FS!AK2 -> 2035-08-15 | AL2: =FS!AL2 -> 2036-08-15 | AM2: =FS!AM2 -> 2037-08-15 | AN2: =FS!AN2 -> 2038-08-15 | AO2: =FS!AO2 -> 2039-08-15 | AP2: =FS!AP2 -> 2040-08-15 | AQ2: =FS!AQ2 -> 2041-08-15 | AR2: =FS!AR2 -> 2042-08-15 | AS2: =FS!AS2 -> 2043-08-15 | AT2: =FS!AT2 -> 2044-08-15 | AU2: =FS!AU2 -> 2045-08-15 | AV2: =FS!AV2 -> 2046-08-15 | AW2: =FS!AW2 -> 2047-08-15 | AX2: =FS!AX2 -> 2048-08-15 | AY2: =FS!AY2 -> 2049-08-15 | AZ2: =FS!AZ2 -> 2050-08-15 | BA2: =FS!BA2 -> 2051-08-15
L3: Period : | M3: =FS!M3 -> 0 | N3: =FS!N3 -> 1 | O3: =FS!O3 -> 2 | P3: =FS!P3 -> 3 | Q3: =FS!Q3 -> 4 | R3: =FS!R3 -> 5 | S3: =FS!S3 -> 6 | T3: =FS!T3 -> 7 | U3: =FS!U3 -> 8 | V3: =FS!V3 -> 9 | W3: =FS!W3 -> 10 | X3: =FS!X3 -> 11 | Y3: =FS!Y3 -> 12 | Z3: =FS!Z3 -> 13 | AA3: =FS!AA3 -> 14 | AB3: =FS!AB3 -> 15 | AC3: =FS!AC3 -> 16 | AD3: =FS!AD3 -> 17 | AE3: =FS!AE3 -> 18 | AF3: =FS!AF3 -> 19 | AG3: =FS!AG3 -> 20 | AH3: =FS!AH3 -> 21 | AI3: =FS!AI3 -> 22 | AJ3: =FS!AJ3 -> 23 | AK3: =FS!AK3 -> 24 | AL3: =FS!AL3 -> 25 | AM3: =FS!AM3 -> 26 | AN3: =FS!AN3 -> 27 | AO3: =FS!AO3 -> 28 | AP3: =FS!AP3 -> 29 | AQ3: =FS!AQ3 -> 30 | AR3: =FS!AR3 -> 31 | AS3: =FS!AS3 -> 32 | AT3: =FS!AT3 -> 33 | AU3: =FS!AU3 -> 34 | AV3: =FS!AV3 -> 35 | AW3: =FS!AW3 -> 36 | AX3: =FS!AX3 -> 37 | AY3: =FS!AY3 -> 38 | AZ3: =FS!AZ3 -> 39 | BA3: =FS!BA3 -> 40
L4: Year : | M4: =FS!M4 -> 2012 | N4: =FS!N4 -> 2012 | O4: =FS!O4 -> 2013 | P4: =FS!P4 -> 2014 | Q4: =FS!Q4 -> 2015 | R4: =FS!R4 -> 2016 | S4: =FS!S4 -> 2017 | T4: =FS!T4 -> 2018 | U4: =FS!U4 -> 2019 | V4: =FS!V4 -> 2020 | W4: =FS!W4 -> 2021 | X4: =FS!X4 -> 2022 | Y4: =FS!Y4 -> 2023 | Z4: =FS!Z4 -> 2024 | AA4: =FS!AA4 -> 2025 | AB4: =FS!AB4 -> 2026 | AC4: =FS!AC4 -> 2027 | AD4: =FS!AD4 -> 2028 | AE4: =FS!AE4 -> 2029 | AF4: =FS!AF4 -> 2030 | AG4: =FS!AG4 -> 2031 | AH4: =FS!AH4 -> 2032 | AI4: =FS!AI4 -> 2033 | AJ4: =FS!AJ4 -> 2034 | AK4: =FS!AK4 -> 2035 | AL4: =FS!AL4 -> 2036 | AM4: =FS!AM4 -> 2037 | AN4: =FS!AN4 -> 2038 | AO4: =FS!AO4 -> 2039 | AP4: =FS!AP4 -> 2040 | AQ4: =FS!AQ4 -> 2041 | AR4: =FS!AR4 -> 2042 | AS4: =FS!AS4 -> 2043 | AT4: =FS!AT4 -> 2044 | AU4: =FS!AU4 -> 2045 | AV4: =FS!AV4 -> 2046 | AW4: =FS!AW4 -> 2047 | AX4: =FS!AX4 -> 2048 | AY4: =FS!AY4 -> 2049 | AZ4: =FS!AZ4 -> 2050 | BA4: =FS!BA4 -> 2051
B5: Property Taxes
B7: Personal Property Depreciation Factor | N7: 0.96 | O7: =MAX(N7-4%,0.3) -> 0.92 | P7: =MAX(O7-4%,0.3) -> 0.88 | Q7: 0.84 | R7: 0.8 | S7: 0.76 | T7: 0.72 | U7: 0.68 | V7: 0.64 | W7: 0.6 | X7: 0.56 | Y7: 0.52 | Z7: 0.48 | AA7: 0.44 | AB7: 0.4 | AC7: 0.36 | AD7: 0.32 | AE7: 0.3 | AF7: 0.3 | AG7: 0.3 | AH7: 0.3 | AI7: 0.3 | AJ7: 0.3 | AK7: 0.3 | AL7: 0.3 | AM7: 0.3 | AN7: 0.3 | AO7: 0.3 | AP7: 0.3 | AQ7: 0.3 | AR7: 0.3 | AS7: 0.3 | AT7: 0.3 | AU7: 0.3 | AV7: 0.3 | AW7: 0.3 | AX7: 0.3 | AY7: 0.3 | AZ7: 0.3 | BA7: 0.3
B8: Real & Personal Property | K8: =Alloc!AC42 -> 1319.017595 | N8: =$K8*N7 -> 1266.256891 | O8: 1213.496187 | P8: 1160.735484 | Q8: 1107.97478 | R8: 1055.214076 | S8: 1002.453372 | T8: 949.6926684 | U8: 896.9319646 | V8: 844.1712608 | W8: 791.410557 | X8: 738.6498532 | Y8: 685.8891494 | Z8: 633.1284456 | AA8: 580.3677418 | AB8: 527.607038 | AC8: 474.8463342 | AD8: 422.0856304 | AE8: 395.7052785 | AF8: 395.7052785 | AG8: 395.7052785 | AH8: 395.7052785 | AI8: 395.7052785 | AJ8: 395.7052785 | AK8: 395.7052785 | AL8: 395.7052785 | AM8: 395.7052785 | AN8: 395.7052785 | AO8: 395.7052785 | AP8: 395.7052785 | AQ8: 395.7052785 | AR8: 395.7052785 | AS8: 395.7052785 | AT8: =$K8*AT7 -> 395.7052785 | AU8: 395.7052785 | AV8: 395.7052785 | AW8: 395.7052785 | AX8: 395.7052785 | AY8: 395.7052785 | AZ8: 395.7052785 | BA8: 395.7052785
B9: Land | I9: Check : | J9: =K9-(CapEx!W175+CapEx!W167) -> -2100.345785 | K9: =Alloc!AC38 -> 0 | N9: =$K9 -> 0 | O9: =$K9 -> 0 | P9: 0 | Q9: 0 | R9: 0 | S9: 0 | T9: 0 | U9: 0 | V9: 0 | W9: 0 | X9: 0 | Y9: 0 | Z9: 0 | AA9: 0 | AB9: 0 | AC9: 0 | AD9: 0 | AE9: 0 | AF9: 0 | AG9: 0 | AH9: 0 | AI9: 0 | AJ9: 0 | AK9: 0 | AL9: 0 | AM9: 0 | AN9: 0 | AO9: 0 | AP9: 0 | AQ9: 0 | AR9: 0 | AS9: 0 | AT9: 0 | AU9: 0 | AV9: 0 | AW9: 0 | AX9: 0 | AY9: 0 | AZ9: 0 | BA9: 0
B10: Millage Rate Escalation | I10: 2012 | J10: 0 | N10: =(1+$J10)^(N$4-$I10) -> 1 | O10: 1 | P10: 1 | Q10: 1 | R10: 1 | S10: 1 | T10: 1 | U10: 1 | V10: 1 | W10: 1 | X10: 1 | Y10: 1 | Z10: 1 | AA10: 1 | AB10: 1 | AC10: 1 | AD10: 1 | AE10: 1 | AF10: 1 | AG10: 1 | AH10: 1 | AI10: 1 | AJ10: 1 | AK10: 1 | AL10: 1 | AM10: 1 | AN10: 1 | AO10: 1 | AP10: 1 | AQ10: 1 | AR10: 1 | AS10: 1 | AT10: =(1+$J10)^(AT$4-$I10) -> 1 | AU10: 1 | AV10: 1 | AW10: 1 | AX10: 1 | AY10: 1 | AZ10: 1 | BA10: 1
B11: Millage Rate | J11: 0.011 | N11: =$J11*N10 -> 0.011 | O11: =$J11*O10 -> 0.011 | P11: 0.011 | Q11: 0.011 | R11: 0.011 | S11: 0.011 | T11: 0.011 | U11: 0.011 | V11: 0.011 | W11: 0.011 | X11: 0.011 | Y11: 0.011 | Z11: 0.011 | AA11: 0.011 | AB11: 0.011 | AC11: 0.011 | AD11: 0.011 | AE11: 0.011 | AF11: 0.011 | AG11: 0.011 | AH11: 0.011 | AI11: 0.011 | AJ11: 0.011 | AK11: 0.011 | AL11: 0.011 | AM11: 0.011 | AN11: 0.011 | AO11: 0.011 | AP11: 0.011 | AQ11: 0.011 | AR11: 0.011 | AS11: 0.011 | AT11: 0.011 | AU11: 0.011 | AV11: 0.011 | AW11: 0.011 | AX11: 0.011 | AY11: 0.011 | AZ11: 0.011 | BA11: 0.011
B12: Total Real & Personal Property Taxes | N12: =N11*(N8+N9)*N1 -> 9.32394077 | O12: 13.34845806 | P12: 12.76809032 | Q12: 12.18772258 | R12: 11.60735484 | S12: 11.02698709 | T12: 10.44661935 | U12: 9.866251611 | V12: 9.285883869 | W12: 8.705516127 | X12: 8.125148386 | Y12: 7.544780644 | Z12: 6.964412902 | AA12: 6.38404516 | AB12: 5.803677418 | AC12: 5.223309676 | AD12: 4.642941935 | AE12: 4.352758064 | AF12: 4.352758064 | AG12: 4.352758064 | AH12: 4.352758064 | AI12: 4.352758064 | AJ12: 4.352758064 | AK12: 4.352758064 | AL12: 4.352758064 | AM12: 1.439026573 | AN12: 0 | AO12: 0 | AP12: 0 | AQ12: 0 | AR12: 0 | AS12: 0 | AT12: =AT11*(AT8+AT9)*AT1 -> 0 | AU12: 0 | AV12: 0 | AW12: 0 | AX12: 0 | AY12: 0 | AZ12: 0 | BA12: 0
B15: Project Insurance
B17: Insurance | I17: $000's : | J17: 35.97832368 | N17: =$J17*N$7*N$1 -> 23.12049653 | O17: =$J17*O$7*O$1 -> 33.10005778 | P17: 31.66092484 | Q17: 30.22179189 | R17: 28.78265894 | S17: 27.34352599 | T17: 25.90439305 | U17: 24.4652601 | V17: 23.02612715 | W17: 21.58699421 | X17: 20.14786126 | Y17: 18.70872831 | Z17: 17.26959536 | AA17: 15.83046242 | AB17: 14.39132947 | AC17: 12.95219652 | AD17: 11.51306358 | AE17: 10.7934971 | AF17: 10.7934971 | AG17: 10.7934971 | AH17: 10.7934971 | AI17: 10.7934971 | AJ17: 10.7934971 | AK17: 10.7934971 | AL17: 10.7934971 | AM17: 3.568341938 | AN17: 0 | AO17: 0 | AP17: 0 | AQ17: 0 | AR17: 0 | AS17: 0 | AT17: 0 | AU17: 0 | AV17: 0 | AW17: 0 | AX17: 0 | AY17: 0 | AZ17: 0 | BA17: 0
B18: Other | I18: $000's : | J18: 0 | N18: =$J18*N$7*N$1 -> 0 | O18: 0 | P18: 0 | Q18: 0 | R18: 0 | S18: 0 | T18: 0 | U18: 0 | V18: 0 | W18: 0 | X18: 0 | Y18: 0 | Z18: 0 | AA18: 0 | AB18: 0 | AC18: 0 | AD18: 0 | AE18: 0 | AF18: 0 | AG18: 0 | AH18: 0 | AI18: 0 | AJ18: 0 | AK18: 0 | AL18: 0 | AM18: 0 | AN18: 0 | AO18: 0 | AP18: 0 | AQ18: 0 | AR18: 0 | AS18: 0 | AT18: 0 | AU18: 0 | AV18: 0 | AW18: 0 | AX18: 0 | AY18: 0 | AZ18: 0 | BA18: 0
B19: Insurance | N19: 0 | O19: 0 | P19: 0 | Q19: 0 | R19: 0 | S19: 0 | T19: 0 | U19: 0 | V19: 0 | W19: 0 | X19: 0 | Y19: 0 | Z19: 0 | AA19: 0 | AB19: 0 | AC19: 0 | AD19: 0 | AE19: 0 | AF19: 0 | AG19: 0 | AH19: 0 | AI19: 0 | AJ19: 0 | AK19: 0 | AL19: 0 | AM19: 0 | AN19: 0 | AO19: 0 | AP19: 0 | AQ19: 0 | AR19: 0 | AS19: 0 | AT19: 0 | AU19: 0 | AV19: 0 | AW19: 0 | AX19: 0 | AY19: 0 | AZ19: 0 | BA19: 0
B20: Total Real $'s | N20: =SUM(N17:N19)*N$1 -> 15.47683511 | O20: =SUM(O17:O19)*O$1 -> 33.10005778 | P20: 31.66092484 | Q20: 30.22179189 | R20: 28.78265894 | S20: 27.34352599 | T20: 25.90439305 | U20: 24.4652601 | V20: 23.02612715 | W20: 21.58699421 | X20: 20.14786126 | Y20: 18.70872831 | Z20: 17.26959536 | AA20: 15.83046242 | AB20: 14.39132947 | AC20: 12.95219652 | AD20: 11.51306358 | AE20: 10.7934971 | AF20: 10.7934971 | AG20: 10.7934971 | AH20: 10.7934971 | AI20: 10.7934971 | AJ20: 10.7934971 | AK20: 10.7934971 | AL20: 10.7934971 | AM20: 1.179697745 | AN20: 0 | AO20: 0 | AP20: 0 | AQ20: 0 | AR20: 0 | AS20: 0 | AT20: 0 | AU20: 0 | AV20: 0 | AW20: 0 | AX20: 0 | AY20: 0 | AZ20: 0 | BA20: 0
B21: Total Nominal $'s | I21: 2011 | J21: 0.02 | N21: =N20*(1+$J21)^(N$4-$I21) -> 15.78637181 | O21: =O20*(1+$J21)^(O$4-$I21) -> 34.43730012 | P21: 33.59882672 | Q21: 32.71303947 | R21: 31.7783812 | S21: 30.79325139 | T21: 29.75600502 | U21: 28.66495151 | V21: 27.51835344 | W21: 26.31442548 | X21: 25.05133306 | Y21: 23.72719117 | Z21: 22.34006307 | AA21: 20.88795897 | AB21: 19.36883468 | AC21: 17.78059024 | AD21: 16.12106848 | AE21: 15.41577174 | AF21: 15.72408717 | AG21: 16.03856891 | AH21: 16.35934029 | AI21: 16.6865271 | AJ21: 17.02025764 | AK21: 17.36066279 | AL21: 17.70787605 | AM21: 1.974127575 | AN21: 0 | AO21: 0 | AP21: 0 | AQ21: 0 | AR21: 0 | AS21: 0 | AT21: =AT20*(1+$J21)^(AT$4-$I21) -> 0 | AU21: 0 | AV21: 0 | AW21: 0 | AX21: 0 | AY21: 0 | AZ21: 0 | BA21: 0
B24: Prof, Bus Mgmt, and Proj Admin Fees
B26: Management Fees & Costs | I26: $000's : | J26: 0 | N26: =$J26*N$1 -> 0 | O26: 0 | P26: 0 | Q26: 0 | R26: 0 | S26: 0 | T26: 0 | U26: 0 | V26: 0 | W26: 0 | X26: 0 | Y26: 0 | Z26: 0 | AA26: 0 | AB26: 0 | AC26: 0 | AD26: 0 | AE26: 0 | AF26: 0 | AG26: 0 | AH26: 0 | AI26: 0 | AJ26: 0 | AK26: 0 | AL26: 0 | AM26: 0 | AN26: 0 | AO26: 0 | AP26: 0 | AQ26: 0 | AR26: 0 | AS26: 0 | AT26: 0 | AU26: 0 | AV26: 0 | AW26: 0 | AX26: 0 | AY26: 0 | AZ26: 0 | BA26: 0
B27: Professional/Consulting Fees | I27: $000's : | J27: 0 | N27: =$J27*N$7 -> 0 | O27: =$J27*O$7 -> 0 | P27: 0 | Q27: 0 | R27: 0 | S27: 0 | T27: 0 | U27: 0 | V27: 0 | W27: 0 | X27: 0 | Y27: 0 | Z27: 0 | AA27: 0 | AB27: 0 | AC27: 0 | AD27: 0 | AE27: 0 | AF27: 0 | AG27: 0 | AH27: 0 | AI27: 0 | AJ27: 0 | AK27: 0 | AL27: 0 | AM27: 0 | AN27: 0 | AO27: 0 | AP27: 0 | AQ27: 0 | AR27: 0 | AS27: 0 | AT27: 0 | AU27: 0 | AV27: 0 | AW27: 0 | AX27: 0 | AY27: 0 | AZ27: 0 | BA27: 0
B28: Other Fees | I28: $000's : | J28: 0 | N28: =$J28*N$7 -> 0 | O28: 0 | P28: 0 | Q28: 0 | R28: 0 | S28: 0 | T28: 0 | U28: 0 | V28: 0 | W28: 0 | X28: 0 | Y28: 0 | Z28: 0 | AA28: 0 | AB28: 0 | AC28: 0 | AD28: 0 | AE28: 0 | AF28: 0 | AG28: 0 | AH28: 0 | AI28: 0 | AJ28: 0 | AK28: 0 | AL28: 0 | AM28: 0 | AN28: 0 | AO28: 0 | AP28: 0 | AQ28: 0 | AR28: 0 | AS28: 0 | AT28: 0 | AU28: 0 | AV28: 0 | AW28: 0 | AX28: 0 | AY28: 0 | AZ28: 0 | BA28: 0
B29: Mgmt, Prof, Consulting Fees | N29: 0 | O29: 0 | P29: 0 | Q29: 0 | R29: 0 | S29: 0 | T29: 0 | U29: 0 | V29: 0 | W29: 0 | X29: 0 | Y29: 0 | Z29: 0 | AA29: 0 | AB29: 0 | AC29: 0 | AD29: 0 | AE29: 0 | AF29: 0 | AG29: 0 | AH29: 0 | AI29: 0 | AJ29: 0 | AK29: 0 | AL29: 0 | AM29: 0 | AN29: 0 | AO29: 0 | AP29: 0 | AQ29: 0 | AR29: 0 | AS29: 0 | AT29: 0 | AU29: 0 | AV29: 0 | AW29: 0 | AX29: 0 | AY29: 0 | AZ29: 0 | BA29: 0
B30: Other Fees - PGD | N30: 0 | O30: 0 | P30: 0 | Q30: 0 | R30: 0 | S30: 0 | T30: 0 | U30: 0 | V30: 0 | W30: 0 | X30: 0 | Y30: 0 | Z30: 0 | AA30: 0 | AB30: 0 | AC30: 0 | AD30: 0 | AE30: 0 | AF30: 0 | AG30: 0 | AH30: 0 | AI30: 0 | AJ30: 0 | AK30: 0 | AL30: 0 | AM30: 0 | AN30: 0 | AO30: 0 | AP30: 0 | AQ30: 0 | AR30: 0 | AS30: 0 | AT30: 0 | AU30: 0 | AV30: 0 | AW30: 0 | AX30: 0 | AY30: 0 | AZ30: 0 | BA30: 0
B31: Total Real $'s | N31: =SUM(N26:N30)*N$1 -> 0 | O31: =SUM(O26:O30)*O$1 -> 0 | P31: 0 | Q31: 0 | R31: 0 | S31: 0 | T31: 0 | U31: 0 | V31: 0 | W31: 0 | X31: 0 | Y31: 0 | Z31: 0 | AA31: 0 | AB31: 0 | AC31: 0 | AD31: 0 | AE31: 0 | AF31: 0 | AG31: 0 | AH31: 0 | AI31: 0 | AJ31: 0 | AK31: 0 | AL31: 0 | AM31: 0 | AN31: 0 | AO31: 0 | AP31: 0 | AQ31: 0 | AR31: 0 | AS31: 0 | AT31: 0 | AU31: 0 | AV31: 0 | AW31: 0 | AX31: 0 | AY31: 0 | AZ31: 0 | BA31: 0
B32: Total Nominal $'s | I32: 2011 | J32: 0.02 | N32: =N31*(1+$J32)^(N$4-$I32) -> 0 | O32: =O31*(1+$J32)^(O$4-$I32) -> 0 | P32: =P31*(1+$J32)^(P$4-$I32) -> 0 | Q32: 0 | R32: 0 | S32: =S31*(1+$J32)^(S$4-$I32) -> 0 | T32: 0 | U32: 0 | V32: 0 | W32: 0 | X32: 0 | Y32: 0 | Z32: 0 | AA32: 0 | AB32: 0 | AC32: 0 | AD32: 0 | AE32: 0 | AF32: 0 | AG32: 0 | AH32: 0 | AI32: 0 | AJ32: 0 | AK32: 0 | AL32: 0 | AM32: 0 | AN32: 0 | AO32: 0 | AP32: 0 | AQ32: 0 | AR32: 0 | AS32: 0 | AT32: =AT31*(1+$J32)^(AT$4-$I32) -> 0 | AU32: 0 | AV32: 0 | AW32: 0 | AX32: 0 | AY32: 0 | AZ32: 0 | BA32: 0
B35: Land Royalty
B37: Gross Revenues | N37: =RF!N$18 -> 3906.120709 | O37: =RF!O$18 -> 5892.580794 | P37: =RF!P$18 -> 5984.87809 | Q37: =RF!Q$18 -> 6077.710403 | R37: =RF!R$18 -> 6173.085543 | S37: =RF!S$18 -> 6267.937419 | T37: =RF!T$18 -> 6360.006776 | U37: =RF!U$18 -> 6453.83814 | V37: =RF!V$18 -> 6550.802818 | W37: =RF!W$18 -> 6651.010543 | X37: =RF!X$18 -> 6752.211907 | Y37: =RF!Y$18 -> 6855.022653 | Z37: =RF!Z$18 -> 6957.803686 | AA37: =RF!AA$18 -> 7061.919841 | AB37: =RF!AB$18 -> 7168.98846 | AC37: =RF!AC$18 -> 7286.819772 | AD37: =RF!AD$18 -> 7404.722041 | AE37: =RF!AE$18 -> 7524.351691 | AF37: =RF!AF$18 -> 7645.674156 | AG37: =RF!AG$18 -> 7767.053471 | AH37: =RF!AH$18 -> 7889.816836 | AI37: =RF!AI$18 -> 8012.595304 | AJ37: =RF!AJ$18 -> 8138.092135 | AK37: =RF!AK$18 -> 8266.253343 | AL37: =RF!AL$18 -> 8396.910806 | AM37: =RF!AM$18 -> 2781.297338 | AN37: =RF!AN$18 -> 0 | AO37: =RF!AO$18 -> 0 | AP37: =RF!AP$18 -> 0 | AQ37: =RF!AQ$18 -> 0 | AR37: =RF!AR$18 -> 0 | AS37: =RF!AS$18 -> 0 | AT37: =RF!AT$18 -> 0 | AU37: =RF!AU$18 -> 0 | AV37: =RF!AV$18 -> 0 | AW37: =RF!AW$18 -> 0 | AX37: =RF!AX$18 -> 0 | AY37: =RF!AY$18 -> 0 | AZ37: =RF!AZ$18 -> 0 | BA37: =RF!BA$18 -> 0
B38: Royalty % | J38: 0 | N38: =$J38 -> 0 | O38: 0 | P38: 0 | Q38: 0 | R38: 0 | S38: 0 | T38: 0 | U38: 0 | V38: 0 | W38: 0 | X38: 0 | Y38: 0 | Z38: 0 | AA38: 0 | AB38: 0 | AC38: 0 | AD38: 0 | AE38: 0 | AF38: 0 | AG38: 0 | AH38: 0 | AI38: 0 | AJ38: 0 | AK38: 0 | AL38: 0 | AM38: 0 | AN38: 0 | AO38: 0 | AP38: 0 | AQ38: 0 | AR38: 0 | AS38: 0 | AT38: =$J38 -> 0 | AU38: 0 | AV38: 0 | AW38: 0 | AX38: 0 | AY38: 0 | AZ38: 0 | BA38: 0
B39: Total Nominal $'s | N39: =N37*N38 -> 0 | O39: 0 | P39: 0 | Q39: 0 | R39: 0 | S39: 0 | T39: 0 | U39: 0 | V39: 0 | W39: 0 | X39: 0 | Y39: 0 | Z39: 0 | AA39: 0 | AB39: 0 | AC39: 0 | AD39: 0 | AE39: 0 | AF39: 0 | AG39: 0 | AH39: 0 | AI39: 0 | AJ39: 0 | AK39: 0 | AL39: 0 | AM39: 0 | AN39: 0 | AO39: 0 | AP39: 0 | AQ39: 0 | AR39: 0 | AS39: 0 | AT39: =AT37*AT38 -> 0 | AU39: 0 | AV39: 0 | AW39: 0 | AX39: 0 | AY39: 0 | AZ39: 0 | BA39: 0
B42: Performance Bond
B44: Gross Contract Revenues | N44: =RF!N$18 -> 3906.120709 | O44: =RF!O$18 -> 5892.580794 | P44: =RF!P$18 -> 5984.87809 | Q44: =RF!Q$18 -> 6077.710403 | R44: =RF!R$18 -> 6173.085543 | S44: =RF!S$18 -> 6267.937419 | T44: =RF!T$18 -> 6360.006776 | U44: =RF!U$18 -> 6453.83814 | V44: =RF!V$18 -> 6550.802818 | W44: =RF!W$18 -> 6651.010543 | X44: =RF!X$18 -> 6752.211907 | Y44: =RF!Y$18 -> 6855.022653 | Z44: =RF!Z$18 -> 6957.803686 | AA44: =RF!AA$18 -> 7061.919841 | AB44: =RF!AB$18 -> 7168.98846 | AC44: =RF!AC$18 -> 7286.819772 | AD44: =RF!AD$18 -> 7404.722041 | AE44: =RF!AE$18 -> 7524.351691 | AF44: =RF!AF$18 -> 7645.674156 | AG44: =RF!AG$18 -> 7767.053471 | AH44: =RF!AH$18 -> 7889.816836 | AI44: =RF!AI$18 -> 8012.595304 | AJ44: =RF!AJ$18 -> 8138.092135 | AK44: =RF!AK$18 -> 8266.253343 | AL44: =RF!AL$18 -> 8396.910806 | AM44: =RF!AM$18 -> 2781.297338 | AN44: =RF!AN$18 -> 0 | AO44: =RF!AO$18 -> 0 | AP44: =RF!AP$18 -> 0 | AQ44: =RF!AQ$18 -> 0 | AR44: =RF!AR$18 -> 0 | AS44: =RF!AS$18 -> 0 | AT44: =RF!AT$18 -> 0 | AU44: =RF!AU$18 -> 0 | AV44: =RF!AV$18 -> 0 | AW44: =RF!AW$18 -> 0 | AX44: =RF!AX$18 -> 0 | AY44: =RF!AY$18 -> 0 | AZ44: =RF!AZ$18 -> 0 | BA44: =RF!BA$18 -> 0
B45: Annual Bond Req - Months | I45: 0 | N45: =$I45 -> 0 | O45: 0 | P45: 0 | Q45: 0 | R45: 0 | S45: 0 | T45: 0 | U45: 0 | V45: 0 | W45: 0 | X45: 0 | Y45: 0 | Z45: 0 | AA45: 0 | AB45: 0 | AC45: 0 | AD45: 0 | AE45: 0 | AF45: 0 | AG45: 0 | AH45: 0 | AI45: 0 | AJ45: 0 | AK45: 0 | AL45: 0 | AM45: 0 | AN45: 0 | AO45: 0 | AP45: 0 | AQ45: 0 | AR45: 0 | AS45: 0 | AT45: =$I45 -> 0 | AU45: 0 | AV45: 0 | AW45: 0 | AX45: 0 | AY45: 0 | AZ45: 0 | BA45: 0
B46: Annual Bond Req - $000s | N46: =N44*N45/12 -> 0 | O46: =O44*O45/12 -> 0 | P46: 0 | Q46: 0 | R46: 0 | S46: 0 | T46: 0 | U46: 0 | V46: 0 | W46: 0 | X46: 0 | Y46: 0 | Z46: 0 | AA46: 0 | AB46: 0 | AC46: 0 | AD46: 0 | AE46: 0 | AF46: 0 | AG46: 0 | AH46: 0 | AI46: 0 | AJ46: 0 | AK46: 0 | AL46: 0 | AM46: 0 | AN46: 0 | AO46: 0 | AP46: 0 | AQ46: 0 | AR46: 0 | AS46: 0 | AT46: =AT44*AT45/12 -> 0 | AU46: 0 | AV46: 0 | AW46: 0 | AX46: 0 | AY46: 0 | AZ46: 0 | BA46: 0
B47: Guarantee Fee - bps | J47: 0 | N47: =$J47 -> 0 | O47: =$J47 -> 0 | P47: 0 | Q47: 0 | R47: 0 | S47: 0 | T47: 0 | U47: 0 | V47: 0 | W47: 0 | X47: 0 | Y47: 0 | Z47: 0 | AA47: 0 | AB47: 0 | AC47: 0 | AD47: 0 | AE47: 0 | AF47: 0 | AG47: 0 | AH47: 0 | AI47: 0 | AJ47: 0 | AK47: 0 | AL47: 0 | AM47: 0 | AN47: 0 | AO47: 0 | AP47: 0 | AQ47: 0 | AR47: 0 | AS47: 0 | AT47: =$J47 -> 0 | AU47: 0 | AV47: 0 | AW47: 0 | AX47: 0 | AY47: 0 | AZ47: 0 | BA47: 0
B48: Other Bond - PPA Incremental Security | H48: bbps | I48: 200 | J48: 5000 | K48: $$ Posted | N48: =$J48*($I48/10000) -> 100 | O48: 100 | P48: 100 | Q48: 100 | R48: 100 | S48: 100 | T48: 100 | U48: 100 | V48: 100 | W48: 100 | X48: 100 | Y48: 100 | Z48: 100 | AA48: 100 | AB48: 100 | AC48: 100 | AD48: 100 | AE48: 100 | AF48: 100 | AG48: 100 | AH48: 100 | AI48: 100 | AJ48: 100 | AK48: 100 | AL48: 100 | AM48: 100 | AN48: 100 | AO48: 100 | AP48: 100 | AQ48: 100 | AR48: 100 | AS48: 100 | AT48: 100 | AU48: 100 | AV48: 100 | AW48: 100 | AX48: 100 | AY48: 100 | AZ48: 100 | BA48: 100
B49: Total Real $'s (Annual Bond & PPA Incremental Security) | N49: =SUM(N46:N48)*N$1 -> 66.93989071 | O49: 100 | P49: 100 | Q49: 100 | R49: 100 | S49: 100 | T49: 100 | U49: 100 | V49: 100 | W49: 100 | X49: 100 | Y49: 100 | Z49: 100 | AA49: 100 | AB49: 100 | AC49: 100 | AD49: 100 | AE49: 100 | AF49: 100 | AG49: 100 | AH49: 100 | AI49: 100 | AJ49: 100 | AK49: 100 | AL49: 100 | AM49: 33.06010929 | AN49: 0 | AO49: 0 | AP49: 0 | AQ49: 0 | AR49: 0 | AS49: 0 | AT49: 0 | AU49: 0 | AV49: 0 | AW49: 0 | AX49: 0 | AY49: 0 | AZ49: 0 | BA49: 0
I50: 2011 | J50: 0.02 | N50: =N49*(1+$J50)^(N$4-$I50) -> 68.27868852 | O50: 104.04 | P50: 106.1208 | Q50: 108.243216 | R50: 110.4080803 | S50: 112.6162419 | T50: 114.8685668 | U50: 117.1659381 | V50: 119.5092569 | W50: 121.899442 | X50: 124.3374308 | Y50: 126.8241795 | Z50: 129.360663 | AA50: 131.9478763 | AB50: 134.5868338 | AC50: 137.2785705 | AD50: 140.0241419 | AE50: 142.8246248 | AF50: 145.6811173 | AG50: 148.5947396 | AH50: 151.5666344 | AI50: 154.5979671 | AJ50: 157.6899264 | AK50: 160.8437249 | AL50: 164.0605994 | AM50: 55.32338575 | AN50: 0 | AO50: 0 | AP50: 0 | AQ50: 0 | AR50: 0 | AS50: 0 | AT50: 0 | AU50: 0 | AV50: 0 | AW50: 0 | AX50: 0 | AY50: 0 | AZ50: 0 | BA50: 0
B51: Total Nominal $'s | N51: =(N46*N47)+N50 -> 68.27868852 | O51: =(O46*O47)+O50 -> 104.04 | P51: =(P46*P47)+P50 -> 106.1208 | Q51: 108.243216 | R51: 110.4080803 | S51: 112.6162419 | T51: 114.8685668 | U51: 117.1659381 | V51: 119.5092569 | W51: 121.899442 | X51: 124.3374308 | Y51: 126.8241795 | Z51: 129.360663 | AA51: 131.9478763 | AB51: 134.5868338 | AC51: 137.2785705 | AD51: 140.0241419 | AE51: 142.8246248 | AF51: 145.6811173 | AG51: 148.5947396 | AH51: 151.5666344 | AI51: 154.5979671 | AJ51: 157.6899264 | AK51: 160.8437249 | AL51: 164.0605994 | AM51: 55.32338575 | AN51: 0 | AO51: 0 | AP51: 0 | AQ51: 0 | AR51: 0 | AS51: 0 | AT51: 0 | AU51: 0 | AV51: 0 | AW51: 0 | AX51: 0 | AY51: 0 | AZ51: 0 | BA51: 0

Sheet OM
L1: Par Yr : | M1: =FS!M1 -> 0 | N1: =FS!N1 -> 0.6693989071 | O1: =FS!O1 -> 1 | P1: =FS!P1 -> 1 | Q1: =FS!Q1 -> 1 | R1: =FS!R1 -> 1 | S1: =FS!S1 -> 1 | T1: =FS!T1 -> 1 | U1: =FS!U1 -> 1 | V1: =FS!V1 -> 1 | W1: =FS!W1 -> 1 | X1: =FS!X1 -> 1 | Y1: =FS!Y1 -> 1 | Z1: =FS!Z1 -> 1 | AA1: =FS!AA1 -> 1 | AB1: =FS!AB1 -> 1 | AC1: =FS!AC1 -> 1 | AD1: =FS!AD1 -> 1 | AE1: =FS!AE1 -> 1 | AF1: =FS!AF1 -> 1 | AG1: =FS!AG1 -> 1 | AH1: =FS!AH1 -> 1 | AI1: =FS!AI1 -> 1 | AJ1: =FS!AJ1 -> 1 | AK1: =FS!AK1 -> 1 | AL1: =FS!AL1 -> 1 | AM1: =FS!AM1 -> 0.3306010929 | AN1: =FS!AN1 -> 0 | AO1: =FS!AO1 -> 0 | AP1: =FS!AP1 -> 0 | AQ1: =FS!AQ1 -> 0 | AR1: =FS!AR1 -> 0 | AS1: =FS!AS1 -> 0 | AT1: =FS!AT1 -> 0 | AU1: =FS!AU1 -> 0 | AV1: =FS!AV1 -> 0 | AW1: =FS!AW1 -> 0 | AX1: =FS!AX1 -> 0 | AY1: =FS!AY1 -> 0 | AZ1: =FS!AZ1 -> 0 | BA1: =FS!BA1 -> 0
L2: Disc Date : | M2: =FS!M2 -> 2012-05-01 | N2: =FS!N2 -> 2012-09-01 | O2: =FS!O2 -> 2013-08-15 | P2: =FS!P2 -> 2014-08-15 | Q2: =FS!Q2 -> 2015-08-15 | R2: =FS!R2 -> 2016-08-15 | S2: =FS!S2 -> 2017-08-15 | T2: =FS!T2 -> 2018-08-15 | U2: =FS!U2 -> 2019-08-15 | V2: =FS!V2 -> 2020-08-15 | W2: =FS!W2 -> 2021-08-15 | X2: =FS!X2 -> 2022-08-15 | Y2: =FS!Y2 -> 2023-08-15 | Z2: =FS!Z2 -> 2024-08-15 | AA2: =FS!AA2 -> 2025-08-15 | AB2: =FS!AB2 -> 2026-08-15 | AC2: =FS!AC2 -> 2027-08-15 | AD2: =FS!AD2 -> 2028-08-15 | AE2: =FS!AE2 -> 2029-08-15 | AF2: =FS!AF2 -> 2030-08-15 | AG2: =FS!AG2 -> 2031-08-15 | AH2: =FS!AH2 -> 2032-08-15 | AI2: =FS!AI2 -> 2033-08-15 | AJ2: =FS!AJ2 -> 2034-08-15 | AK2: =FS!AK2 -> 2035-08-15 | AL2: =FS!AL2 -> 2036-08-15 | AM2: =FS!AM2 -> 2037-08-15 | AN2: =FS!AN2 -> 2038-08-15 | AO2: =FS!AO2 -> 2039-08-15 | AP2: =FS!AP2 -> 2040-08-15 | AQ2: =FS!AQ2 -> 2041-08-15 | AR2: =FS!AR2 -> 2042-08-15 | AS2: =FS!AS2 -> 2043-08-15 | AT2: =FS!AT2 -> 2044-08-15 | AU2: =FS!AU2 -> 2045-08-15 | AV2: =FS!AV2 -> 2046-08-15 | AW2: =FS!AW2 -> 2047-08-15 | AX2: =FS!AX2 -> 2048-08-15 | AY2: =FS!AY2 -> 2049-08-15 | AZ2: =FS!AZ2 -> 2050-08-15 | BA2: =FS!BA2 -> 2051-08-15
B3: O&M | L3: Period : | M3: =FS!M3 -> 0 | N3: =FS!N3 -> 1 | O3: =FS!O3 -> 2 | P3: =FS!P3 -> 3 | Q3: =FS!Q3 -> 4 | R3: =FS!R3 -> 5 | S3: =FS!S3 -> 6 | T3: =FS!T3 -> 7 | U3: =FS!U3 -> 8 | V3: =FS!V3 -> 9 | W3: =FS!W3 -> 10 | X3: =FS!X3 -> 11 | Y3: =FS!Y3 -> 12 | Z3: =FS!Z3 -> 13 | AA3: =FS!AA3 -> 14 | AB3: =FS!AB3 -> 15 | AC3: =FS!AC3 -> 16 | AD3: =FS!AD3 -> 17 | AE3: =FS!AE3 -> 18 | AF3: =FS!AF3 -> 19 | AG3: =FS!AG3 -> 20 | AH3: =FS!AH3 -> 21 | AI3: =FS!AI3 -> 22 | AJ3: =FS!AJ3 -> 23 | AK3: =FS!AK3 -> 24 | AL3: =FS!AL3 -> 25 | AM3: =FS!AM3 -> 26 | AN3: =FS!AN3 -> 27 | AO3: =FS!AO3 -> 28 | AP3: =FS!AP3 -> 29 | AQ3: =FS!AQ3 -> 30 | AR3: =FS!AR3 -> 31 | AS3: =FS!AS3 -> 32 | AT3: =FS!AT3 -> 33 | AU3: =FS!AU3 -> 34 | AV3: =FS!AV3 -> 35 | AW3: =FS!AW3 -> 36 | AX3: =FS!AX3 -> 37 | AY3: =FS!AY3 -> 38 | AZ3: =FS!AZ3 -> 39 | BA3: =FS!BA3 -> 40
L4: Year : | M4: =FS!M4 -> 2012 | N4: =FS!N4 -> 2012 | O4: =FS!O4 -> 2013 | P4: =FS!P4 -> 2014 | Q4: =FS!Q4 -> 2015 | R4: =FS!R4 -> 2016 | S4: =FS!S4 -> 2017 | T4: =FS!T4 -> 2018 | U4: =FS!U4 -> 2019 | V4: =FS!V4 -> 2020 | W4: =FS!W4 -> 2021 | X4: =FS!X4 -> 2022 | Y4: =FS!Y4 -> 2023 | Z4: =FS!Z4 -> 2024 | AA4: =FS!AA4 -> 2025 | AB4: =FS!AB4 -> 2026 | AC4: =FS!AC4 -> 2027 | AD4: =FS!AD4 -> 2028 | AE4: =FS!AE4 -> 2029 | AF4: =FS!AF4 -> 2030 | AG4: =FS!AG4 -> 2031 | AH4: =FS!AH4 -> 2032 | AI4: =FS!AI4 -> 2033 | AJ4: =FS!AJ4 -> 2034 | AK4: =FS!AK4 -> 2035 | AL4: =FS!AL4 -> 2036 | AM4: =FS!AM4 -> 2037 | AN4: =FS!AN4 -> 2038 | AO4: =FS!AO4 -> 2039 | AP4: =FS!AP4 -> 2040 | AQ4: =FS!AQ4 -> 2041 | AR4: =FS!AR4 -> 2042 | AS4: =FS!AS4 -> 2043 | AT4: =FS!AT4 -> 2044 | AU4: =FS!AU4 -> 2045 | AV4: =FS!AV4 -> 2046 | AW4: =FS!AW4 -> 2047 | AX4: =FS!AX4 -> 2048 | AY4: =FS!AY4 -> 2049 | AZ4: =FS!AZ4 -> 2050 | BA4: =FS!BA4 -> 2051
B5: VARIABLE OPERATING COSTS
B7: MW's | H7: MW : | I7: =Scen!G45 -> 20 | N7: =$I7 -> 20 | O7: 20 | P7: 20 | Q7: 20 | R7: 20 | S7: 20 | T7: 20 | U7: 20 | V7: 20 | W7: 20 | X7: 20 | Y7: 20 | Z7: 20 | AA7: 20 | AB7: 20 | AC7: 20 | AD7: 20 | AE7: 20 | AF7: 20 | AG7: 20 | AH7: 20 | AI7: 20 | AJ7: 20 | AK7: 20 | AL7: 20 | AM7: 20 | AN7: 20 | AO7: 20 | AP7: 20 | AQ7: 20 | AR7: 20 | AS7: 20 | AT7: 20 | AU7: 20 | AV7: 20 | AW7: 20 | AX7: 20 | AY7: 20 | AZ7: 20 | BA7: 20
B8: Forecasted New & Clean Generation - GWh | N8: =RF!N31*N1 -> 27.17395244 | O8: =RF!O31*O1 -> 40.61353508 | P8: =RF!P31*P1 -> 40.60882544 | Q8: =RF!Q31*Q1 -> 40.59406312 | R8: =RF!R31*R1 -> 40.57362072 | S8: =RF!S31*S1 -> 40.54731246 | T8: =RF!T31*T1 -> 40.51133083 | U8: =RF!U31*U1 -> 40.47534921 | V8: =RF!V31*V1 -> 40.43936758 | W8: =RF!W31*W1 -> 40.40338596 | X8: =RF!X31*X1 -> 40.37286479 | Y8: =RF!Y31*Y1 -> 40.34234362 | Z8: =RF!Z31*Z1 -> 40.31182245 | AA8: =RF!AA31*AA1 -> 40.27954783 | AB8: =RF!AB31*AB1 -> 40.24727322 | AC8: =RF!AC31*AC1 -> 40.25849783 | AD8: =RF!AD31*AD1 -> 40.26972245 | AE8: =RF!AE31*AE1 -> 40.28094706 | AF8: =RF!AF31*AF1 -> 40.28517483 | AG8: =RF!AG31*AG1 -> 40.28940259 | AH8: =RF!AH31*AH1 -> 40.29363036 | AI8: =RF!AI31*AI1 -> 40.28300177 | AJ8: =RF!AJ31*AJ1 -> 40.27237319 | AK8: =RF!AK31*AK1 -> 40.2617446 | AL8: =RF!AL31*AL1 -> 40.25111601 | AM8: =RF!AM31*AM1 -> 13.30706294 | AN8: =RF!AN31*AN1 -> 0 | AO8: =RF!AO31*AO1 -> 0 | AP8: =RF!AP31*AP1 -> 0 | AQ8: =RF!AQ31*AQ1 -> 0 | AR8: =RF!AR31*AR1 -> 0 | AS8: =RF!AS31*AS1 -> 0 | AT8: =RF!AT31*AT1 -> 0 | AU8: =RF!AU31*AU1 -> 0 | AV8: =RF!AV31*AV1 -> 0 | AW8: =RF!AW31*AW1 -> 0 | AX8: =RF!AX31*AX1 -> 0 | AY8: =RF!AY31*AY1 -> 0 | AZ8: =RF!AZ31*AZ1 -> 0 | BA8: =RF!BA31*BA1 -> 0
B10: Variable Operating Costs | I10: GWh | J10: $000s | K10: $/MWh
B11: VOM Production | I11: =O8 -> 40.61353508 | J11: 0 | K11: =J11/I11 -> 0 | N11: =$K11*N$8 -> 0 | O11: 0 | P11: 0 | Q11: 0 | R11: 0 | S11: 0 | T11: 0 | U11: 0 | V11: 0 | W11: 0 | X11: =$K11*X$8 -> 0 | Y11: 0 | Z11: 0 | AA11: 0 | AB11: 0 | AC11: 0 | AD11: 0 | AE11: 0 | AF11: 0 | AG11: 0 | AH11: =$K11*AH$8 -> 0 | AI11: 0 | AJ11: 0 | AK11: 0 | AL11: 0 | AM11: 0 | AN11: 0 | AO11: 0 | AP11: 0 | AQ11: 0 | AR11: =$K11*AR$8 -> 0 | AS11: 0 | AT11: 0 | AU11: 0 | AV11: 0 | AW11: 0 | AX11: 0 | AY11: 0 | AZ11: 0 | BA11: 0
B12: Open | I12: =I11 -> 40.61353508 | J12: 0 | K12: =J12/I12 -> 0 | N12: 0 | O12: 0 | P12: 0 | Q12: 0 | R12: 0 | S12: 0 | T12: 0 | U12: 0 | V12: 0 | W12: 0 | X12: 0 | Y12: 0 | Z12: 0 | AA12: 0 | AB12: 0 | AC12: 0 | AD12: 0 | AE12: 0 | AF12: 0 | AG12: 0 | AH12: 0 | AI12: 0 | AJ12: 0 | AK12: 0 | AL12: 0 | AM12: 0 | AN12: 0 | AO12: 0 | AP12: 0 | AQ12: 0 | AR12: 0 | AS12: 0 | AT12: 0 | AU12: 0 | AV12: 0 | AW12: 0 | AX12: 0 | AY12: 0 | AZ12: 0 | BA12: 0
B13: Total Real $'s | J13: =SUM(J11:J12) -> 0 | K13: =SUM(K11:K12) -> 0 | N13: =SUM(N11:N12) -> 0 | O13: 0 | P13: 0 | Q13: 0 | R13: 0 | S13: 0 | T13: 0 | U13: 0 | V13: 0 | W13: 0 | X13: 0 | Y13: 0 | Z13: 0 | AA13: 0 | AB13: 0 | AC13: 0 | AD13: 0 | AE13: 0 | AF13: 0 | AG13: 0 | AH13: 0 | AI13: 0 | AJ13: 0 | AK13: 0 | AL13: 0 | AM13: 0 | AN13: 0 | AO13: 0 | AP13: 0 | AQ13: 0 | AR13: 0 | AS13: 0 | AT13: 0 | AU13: 0 | AV13: 0 | AW13: 0 | AX13: 0 | AY13: 0 | AZ13: 0 | BA13: 0
B14: Total Nominal $'s | H14: 2012 | I14: 0.025 | N14: =N13*(1+$I14)^(N$4-$H14) -> 0 | O14: 0 | P14: 0 | Q14: 0 | R14: 0 | S14: 0 | T14: 0 | U14: 0 | V14: 0 | W14: 0 | X14: 0 | Y14: 0 | Z14: 0 | AA14: 0 | AB14: 0 | AC14: 0 | AD14: 0 | AE14: 0 | AF14: 0 | AG14: 0 | AH14: 0 | AI14: 0 | AJ14: 0 | AK14: 0 | AL14: 0 | AM14: 0 | AN14: 0 | AO14: 0 | AP14: 0 | AQ14: 0 | AR14: 0 | AS14: 0 | AT14: 0 | AU14: 0 | AV14: 0 | AW14: 0 | AX14: 0 | AY14: 0 | AZ14: 0 | BA14: 0
B17: FIXED OPERATING COSTS
B19: Salaries and Benefits
B20: Production Payroll | H20: $/kW : | I20: 0 | N20: =$I20*N$7 -> 0 | O20: 0 | P20: 0 | Q20: 0 | R20: 0 | S20: 0 | T20: 0 | U20: 0 | V20: 0 | W20: 0 | X20: 0 | Y20: 0 | Z20: 0 | AA20: 0 | AB20: 0 | AC20: 0 | AD20: 0 | AE20: 0 | AF20: 0 | AG20: 0 | AH20: 0 | AI20: 0 | AJ20: 0 | AK20: 0 | AL20: 0 | AM20: 0 | AN20: 0 | AO20: 0 | AP20: 0 | AQ20: 0 | AR20: 0 | AS20: 0 | AT20: 0 | AU20: 0 | AV20: 0 | AW20: 0 | AX20: 0 | AY20: 0 | AZ20: 0 | BA20: 0
B21: Other | M21: 39.39154478 | N21: 130.0469231 | O21: =N21 -> 130.0469231 | P21: =O21 -> 130.0469231 | Q21: 130.0469231 | R21: 130.0469231 | S21: 130.0469231 | T21: 130.0469231 | U21: 130.0469231 | V21: 130.0469231 | W21: 130.0469231 | X21: 130.0469231 | Y21: 130.0469231 | Z21: 130.0469231 | AA21: 130.0469231 | AB21: 130.0469231 | AC21: 130.0469231 | AD21: 130.0469231 | AE21: 130.0469231 | AF21: 130.0469231 | AG21: 130.0469231 | AH21: 130.0469231 | AI21: 130.0469231 | AJ21: 130.0469231 | AK21: 130.0469231 | AL21: 130.0469231 | AM21: 130.0469231 | AN21: 130.0469231 | AO21: 130.0469231 | AP21: 130.0469231 | AQ21: 130.0469231 | AR21: 130.0469231 | AS21: 130.0469231 | AT21: 130.0469231 | AU21: 130.0469231 | AV21: 130.0469231 | AW21: 130.0469231 | AX21: 130.0469231 | AY21: 130.0469231 | AZ21: 130.0469231 | BA21: 130.0469231
B22: Total Real $'s | M22: 39.39154478 | N22: =SUM(N20:N21)*N$1 -> 87.05326818 | O22: =SUM(O20:O21)*O$1 -> 130.0469231 | P22: 130.0469231 | Q22: 130.0469231 | R22: 130.0469231 | S22: 130.0469231 | T22: 130.0469231 | U22: 130.0469231 | V22: 130.0469231 | W22: 130.0469231 | X22: 130.0469231 | Y22: 130.0469231 | Z22: 130.0469231 | AA22: 130.0469231 | AB22: 130.0469231 | AC22: 130.0469231 | AD22: 130.0469231 | AE22: 130.0469231 | AF22: 130.0469231 | AG22: 130.0469231 | AH22: 130.0469231 | AI22: 130.0469231 | AJ22: 130.0469231 | AK22: 130.0469231 | AL22: 130.0469231 | AM22: 42.9936549 | AN22: 0 | AO22: 0 | AP22: 0 | AQ22: 0 | AR22: 0 | AS22: 0 | AT22: 0 | AU22: 0 | AV22: 0 | AW22: 0 | AX22: 0 | AY22: 0 | AZ22: 0 | BA22: 0
B23: Total Nominal $'s | H23: 2012 | I23: 0.035 | M23: =M22*(1+$I23)^(M$4-$H23) -> 39.39154478 | N23: 87.05326818 | O23: 134.5985654 | P23: 139.3095152 | Q23: 144.1853482 | R23: 149.2318354 | S23: 154.4549496 | T23: 159.8608729 | U23: 165.4560034 | V23: 171.2469635 | W23: 177.2406073 | X23: 183.4440285 | Y23: 189.8645695 | Z23: 196.5098294 | AA23: 203.3876735 | AB23: 210.506242 | AC23: 217.8739605 | AD23: 225.4995491 | AE23: 233.3920334 | AF23: 241.5607545 | AG23: 250.0153809 | AH23: 258.7659193 | AI23: 267.8227264 | AJ23: 277.1965219 | AK23: 286.8984001 | AL23: 296.9398441 | AM23: 101.6045393 | AN23: 0 | AO23: 0 | AP23: 0 | AQ23: 0 | AR23: 0 | AS23: 0 | AT23: 0 | AU23: 0 | AV23: 0 | AW23: 0 | AX23: 0 | AY23: 0 | AZ23: 0 | BA23: 0
B25: Fixed Operating Costs
B26: Production Costs | H26: $/kW : | I26: 0
B27: Other | N27: 62.88259962 | O27: =N27 -> 62.88259962 | P27: =O27 -> 62.88259962 | Q27: 62.88259962 | R27: 62.88259962 | S27: 62.88259962 | T27: 62.88259962 | U27: 62.88259962 | V27: 62.88259962 | W27: 62.88259962 | X27: 62.88259962 | Y27: 62.88259962 | Z27: 62.88259962 | AA27: 62.88259962 | AB27: 62.88259962 | AC27: 62.88259962 | AD27: 62.88259962 | AE27: 62.88259962 | AF27: 62.88259962 | AG27: 62.88259962 | AH27: 62.88259962 | AI27: 62.88259962 | AJ27: 62.88259962 | AK27: 62.88259962 | AL27: 62.88259962 | AM27: 62.88259962 | AN27: 0 | AO27: 0 | AP27: 0 | AQ27: 0 | AR27: 0 | AS27: 0 | AT27: 0 | AU27: 0 | AV27: 0 | AW27: 0 | AX27: 0 | AY27: 0 | AZ27: 0 | BA27: 0
B28: Total Real $'s | N28: =SUM(N26:N27)*N$1 -> 42.09354346 | O28: =SUM(O26:O27)*O$1 -> 62.88259962 | P28: 62.88259962 | Q28: 62.88259962 | R28: 62.88259962 | S28: 62.88259962 | T28: 62.88259962 | U28: 62.88259962 | V28: 62.88259962 | W28: 62.88259962 | X28: 62.88259962 | Y28: 62.88259962 | Z28: 62.88259962 | AA28: 62.88259962 | AB28: 62.88259962 | AC28: 62.88259962 | AD28: 62.88259962 | AE28: 62.88259962 | AF28: 62.88259962 | AG28: 62.88259962 | AH28: 62.88259962 | AI28: 62.88259962 | AJ28: 62.88259962 | AK28: 62.88259962 | AL28: 62.88259962 | AM28: 20.78905616 | AN28: 0 | AO28: 0 | AP28: 0 | AQ28: 0 | AR28: 0 | AS28: 0 | AT28: 0 | AU28: 0 | AV28: 0 | AW28: 0 | AX28: 0 | AY28: 0 | AZ28: 0 | BA28: 0
B29: Total Nominal $'s | H29: 2012 | I29: 0.02 | N29: =N28*(1+$I29)^(N$4-$H29) -> 42.09354346 | O29: =O28*(1+$I29)^(O$4-$H29) -> 64.14025161 | P29: 65.42305664 | Q29: 66.73151777 | R29: 68.06614813 | S29: 69.42747109 | T29: 70.81602051 | U29: 72.23234092 | V29: 73.67698774 | W29: 75.1505275 | X29: 76.65353805 | Y29: 78.18660881 | Z29: 79.75034098 | AA29: 81.3453478 | AB29: 82.97225476 | AC29: 84.63169986 | AD29: 86.32433385 | AE29: 88.05082053 | AF29: 89.81183694 | AG29: 91.60807368 | AH29: 93.44023515 | AI29: 95.30903986 | AJ29: 97.21522065 | AK29: 99.15952507 | AL29: 101.1427156 | AM29: 34.10665015 | AN29: 0 | AO29: 0 | AP29: 0 | AQ29: 0 | AR29: 0 | AS29: 0 | AT29: 0 | AU29: 0 | AV29: 0 | AW29: 0 | AX29: 0 | AY29: 0 | AZ29: 0 | BA29: 0
B31: Major Maintenance Costs
B32: Major Maintenance | H32: $/kW : | I32: 0 | N32: 106.600161 | O32: 126.600161 | P32: 144.0591479 | Q32: 116.9845547 | R32: 122.6573273 | S32: 164.2974645 | T32: 137.6609855 | U32: 167.3432419 | V32: 173.1422025 | W32: 194.4999606 | X32: 180.7252733 | Y32: 200.9716041 | Z32: 219.6239532 | AA32: 231.2360304 | AB32: 220.46016 | AC32: 212.4055579 | AD32: 212.73874 | AE32: 272.0426468 | AF32: 211.4134225 | AG32: 211.6123677 | AH32: 223.3567528 | AI32: 241.9245982 | AJ32: 242.3207462 | AK32: 239.1571052 | AL32: 236.7779767 | AM32: 275.0926036 | AN32: 266.7333214 | AO32: 283.3521878 | AP32: 269.7542624 | AQ32: 217.7282708 | AR32: =$I32*AR$7 -> 0 | AS32: 0 | AT32: 0 | AU32: 0 | AV32: 0 | AW32: 0 | AX32: 0 | AY32: 0 | AZ32: 0 | BA32: 0
B33: Capital Replacement | M33: 150.4 | N33: 5 | O33: 34.3 | P33: 0 | Q33: 0 | R33: 0 | S33: 0 | T33: 0 | U33: 0 | V33: 0 | W33: 62.3 | X33: 0 | Y33: 0 | Z33: 0 | AA33: 0 | AB33: 0 | AC33: 0 | AD33: 0 | AE33: 0 | AF33: 0 | AG33: 62.3 | AH33: 0 | AI33: 0 | AJ33: 0 | AK33: 0 | AL33: 0 | AM33: 0 | AN33: 0 | AO33: 0 | AP33: 0 | AQ33: 0 | AR33: 0 | AS33: 0 | AT33: 0 | AU33: 0 | AV33: 0 | AW33: 0 | AX33: 0 | AY33: 0 | AZ33: 0 | BA33: 0
B34: Other
B35: Total Real $'s | M35: =M33 -> 150.4 | N35: =SUM(N32:N34)*N1 -> 74.70502582 | O35: 160.900161 | P35: 144.0591479 | Q35: 116.9845547 | R35: 122.6573273 | S35: 164.2974645 | T35: 137.6609855 | U35: 167.3432419 | V35: 173.1422025 | W35: 256.7999606 | X35: 180.7252733 | Y35: 200.9716041 | Z35: 219.6239532 | AA35: 231.2360304 | AB35: 220.46016 | AC35: 212.4055579 | AD35: 212.73874 | AE35: 272.0426468 | AF35: 211.4134225 | AG35: 273.9123677 | AH35: 223.3567528 | AI35: 241.9245982 | AJ35: 242.3207462 | AK35: 239.1571052 | AL35: 236.7779767 | AM35: 90.94591539 | AN35: 0 | AO35: 0 | AP35: 0 | AQ35: 0 | AR35: 0 | AS35: 0 | AT35: 0 | AU35: 0 | AV35: 0 | AW35: 0 | AX35: 0 | AY35: 0 | AZ35: 0 | BA35: 0
B36: Total Nominal $'s | H36: 2012 | I36: =I29*0.4+I23*0.6 -> 0.029 | M36: =M35*(1+$I36)^(M$4-$H36) -> 150.4 | N36: =N35*(1+$I36)^(N$4-$H36) -> 74.70502582 | O36: 165.5662657 | P36: 152.5357322 | Q36: 127.4602162 | R36: 137.5165589 | S36: 189.5429934 | T36: 163.4192161 | U36: 204.416431 | V36: 217.6335949 | W36: 332.1492878 | X36: 240.5318756 | Y36: 275.2351025 | Z36: 309.5025287 | AA36: 335.3168496 | AB36: 328.9617209 | AC36: 326.134316 | AD36: 336.1186255 | AE36: 442.2810811 | AF36: 353.6790233 | AG36: 471.5239562 | AH36: 395.6458207 | AI36: 440.9637594 | AJ36: 454.4947202 | AK36: 461.5692918 | AL36: 470.2299637 | AM36: 185.8521406 | AN36: 0 | AO36: 0 | AP36: 0 | AQ36: 0 | AR36: 0 | AS36: 0 | AT36: 0 | AU36: 0 | AV36: 0 | AW36: 0 | AX36: 0 | AY36: 0 | AZ36: 0 | BA36: 0
B38: Other Operating Costs | N38: 39.30307692 | O38: 39.30307692 | P38: 39.30307692 | Q38: 39.30307692 | R38: 47.80307692 | S38: 39.30307692 | T38: 39.30307692 | U38: 39.30307692 | V38: 39.30307692 | W38: 47.80307692 | X38: 39.30307692 | Y38: 39.30307692 | Z38: 39.30307692 | AA38: 39.30307692 | AB38: 47.80307692 | AC38: 39.30307692 | AD38: 39.30307692 | AE38: 39.30307692 | AF38: 39.30307692 | AG38: 47.80307692 | AH38: 39.30307692 | AI38: 39.30307692 | AJ38: 39.30307692 | AK38: 39.30307692 | AL38: 47.80307692 | AM38: 39.30307692 | AN38: 0 | AO38: 0 | AP38: 0 | AQ38: 0 | AR38: 0 | AS38: 0 | AT38: 0 | AU38: 0 | AV38: 0 | AW38: 0 | AX38: 0 | AY38: 0 | AZ38: 0 | BA38: 0
B40: Land Lease
B41: Year 1 - 5 | N41: 0.35 | O41: 0.35 | P41: 0.35 | Q41: 0.35 | R41: 0.35 | S41: 0 | T41: 0 | U41: 0 | V41: 0 | W41: 0 | X41: 0 | Y41: 0 | Z41: 0 | AA41: 0 | AB41: 0 | AC41: 0 | AD41: 0 | AE41: 0 | AF41: 0 | AG41: 0 | AH41: 0 | AI41: 0 | AJ41: 0 | AK41: 0 | AL41: 0 | AM41: 0 | AN41: 0 | AO41: 0 | AP41: 0 | AQ41: 0 | AR41: 0 | AS41: 0 | AT41: 0 | AU41: 0 | AV41: 0 | AW41: 0 | AX41: 0 | AY41: 0 | AZ41: 0 | BA41: 0
B42: Year 6 - 10 | N42: 0 | O42: 0 | P42: 0 | Q42: 0 | R42: 0 | S42: 0.5 | T42: 0.5 | U42: 0.5 | V42: 0.5 | W42: 0.5 | X42: 0 | Y42: 0 | Z42: 0 | AA42: 0 | AB42: 0 | AC42: 0 | AD42: 0 | AE42: 0 | AF42: 0 | AG42: 0 | AH42: 0 | AI42: 0 | AJ42: 0 | AK42: 0 | AL42: 0 | AM42: 0 | AN42: 0 | AO42: 0 | AP42: 0 | AQ42: 0 | AR42: 0 | AS42: 0 | AT42: 0 | AU42: 0 | AV42: 0 | AW42: 0 | AX42: 0 | AY42: 0 | AZ42: 0 | BA42: 0
B43: Year 10+ | H43: CPI : | I43: 0.0194 | N43: 0 | O43: 0 | P43: 0 | Q43: 0 | R43: 0 | S43: 0 | T43: 0 | U43: 0 | V43: 0 | W43: 0 | X43: 0.5 | Y43: =X43*(1+$I$43) -> 0.5097 | Z43: =Y43*(1+$I$43) -> 0.51958818 | AA43: 0.5296681907 | AB43: 0.5399437536 | AC43: 0.5504186624 | AD43: 0.5610967845 | AE43: 0.5719820621 | AF43: 0.5830785141 | AG43: 0.5943902373 | AH43: 0.6059214079 | AI43: 0.6176762832 | AJ43: 0.6296592031 | AK43: 0.6418745916 | AL43: 0.6543269587 | AM43: 0.6670209017 | AN43: 0 | AO43: 0 | AP43: 0 | AQ43: 0 | AR43: 0 | AS43: 0 | AT43: 0 | AU43: 0 | AV43: 0 | AW43: 0 | AX43: 0 | AY43: 0 | AZ43: 0 | BA43: 0
B44: Base Land Lease | N44: =SUM(N41:N43) -> 0.35 | O44: =SUM(O41:O43) -> 0.35 | P44: 0.35 | Q44: 0.35 | R44: 0.35 | S44: 0.5 | T44: 0.5 | U44: 0.5 | V44: 0.5 | W44: 0.5 | X44: 0.5 | Y44: 0.5097 | Z44: 0.51958818 | AA44: 0.5296681907 | AB44: 0.5399437536 | AC44: 0.5504186624 | AD44: 0.5610967845 | AE44: 0.5719820621 | AF44: 0.5830785141 | AG44: 0.5943902373 | AH44: 0.6059214079 | AI44: 0.6176762832 | AJ44: 0.6296592031 | AK44: 0.6418745916 | AL44: 0.6543269587 | AM44: 0.6670209017 | AN44: 0 | AO44: 0 | AP44: 0 | AQ44: 0 | AR44: 0 | AS44: 0 | AT44: 0 | AU44: 0 | AV44: 0 | AW44: 0 | AX44: 0 | AY44: 0 | AZ44: 0 | BA44: 0
B45: Base * Acerage | H45: Average Acerage : | I45: 165 | N45: =N44*$I$45 -> 57.75 | O45: 57.75 | P45: 57.75 | Q45: 57.75 | R45: 57.75 | S45: 82.5 | T45: 82.5 | U45: 82.5 | V45: 82.5 | W45: 82.5 | X45: 82.5 | Y45: 84.1005 | Z45: 85.7320497 | AA45: 87.39525146 | AB45: 89.09071934 | AC45: 90.8190793 | AD45: 92.58096944 | AE45: 94.37704024 | AF45: 96.20795482 | AG45: 98.07438915 | AH45: 99.9770323 | AI45: 101.9165867 | AJ45: 103.8937685 | AK45: 105.9093076 | AL45: 107.9639482 | AM45: 110.0584488 | AN45: 0 | AO45: 0 | AP45: 0 | AQ45: 0 | AR45: 0 | AS45: 0 | AT45: 0 | AU45: 0 | AV45: 0 | AW45: 0 | AX45: 0 | AY45: 0 | AZ45: 0 | BA45: 0
B46: Total Real $'s | N46: =N45 -> 57.75 | O46: =O45 -> 57.75 | P46: 57.75 | Q46: 57.75 | R46: 57.75 | S46: 82.5 | T46: 82.5 | U46: 82.5 | V46: 82.5 | W46: 82.5 | X46: 82.5 | Y46: 84.1005 | Z46: 85.7320497 | AA46: 87.39525146 | AB46: 89.09071934 | AC46: 90.8190793 | AD46: 92.58096944 | AE46: 94.37704024 | AF46: 96.20795482 | AG46: 98.07438915 | AH46: 99.9770323 | AI46: 101.9165867 | AJ46: 103.8937685 | AK46: 105.9093076 | AL46: 107.9639482 | AM46: 110.0584488 | AN46: 0 | AO46: 0 | AP46: 0 | AQ46: 0 | AR46: 0 | AS46: 0 | AT46: 0 | AU46: 0 | AV46: 0 | AW46: 0 | AX46: 0 | AY46: 0 | AZ46: 0 | BA46: 0
B47: Total Nominal $'s | H47: 2012 | I47: 0.02 | N47: =N46*(1+$I47)^(N$4-$H47) -> 57.75 | O47: =O46*(1+$I47)^(O$4-$H47) -> 58.905 | P47: 60.0831 | Q47: 61.284762 | R47: 62.51045724 | S47: =S46*(1+$I47)^(S$4-$H47) -> 91.08666626 | T47: 92.90839959 | U47: 94.76656758 | V47: 96.66189893 | W47: 98.59513691 | X47: 100.5670396 | Y47: 104.568401 | Z47: 108.7289686 | AA47: 113.0550768 | AB47: 117.5533122 | AC47: 122.2305233 | AD47: 127.0938314 | AE47: 132.1506408 | AF47: 137.4086505 | AG47: 142.8758658 | AH47: 148.5606108 | AI47: 154.4715404 | AJ47: 160.617654 | AK47: 167.0083092 | AL47: 173.6532359 | AM47: 180.5625508 | AN47: 0 | AO47: 0 | AP47: 0 | AQ47: 0 | AR47: 0 | AS47: 0 | AT47: 0 | AU47: 0 | AV47: 0 | AW47: 0 | AX47: 0 | AY47: 0 | AZ47: 0 | BA47: 0

Sheet ToD
A1: =ROW() -> 1 | B1: TOD
A2: =ROW() -> 2 | B2: v1.1 | C2: Generation Profile
A3: =ROW() -> 3
A4: =ROW() -> 4 | G4: Hour End | H4: Jan | I4: Feb | J4: Mar | K4: Apr | L4: May | M4: Jun | N4: Jul | O4: Aug | P4: Sep | Q4: Oct | R4: Nov | S4: Dec | AC4: First Solar - Base Case - sps_acquisitions_california_Fixed25_FS80W_SMA500_1MWac_1p15MWdc_12x24_03072011.xls
A5: =ROW() -> 5 | D5: Generation Profile | G5: 01:00:00 | H5: =IF($E$14=0,AC5,AC34) -> 0 | I5: =IF($E$14=0,AD5,AD34) -> 0 | J5: 0 | K5: 0 | L5: 0 | M5: 0 | N5: 0 | O5: 0 | P5: 0 | Q5: 0 | R5: 0 | S5: 0 | T5: =SUM(H5:S5) -> 0 | AC5: 0 | AD5: 0 | AE5: 0 | AF5: 0 | AG5: 0 | AH5: 0 | AI5: 0 | AJ5: 0 | AK5: 0 | AL5: 0 | AM5: 0 | AN5: 0
A6: =ROW() -> 6 | D6: Total Hourly kWh | G6: 02:00:00 | H6: =IF($E$14=0,AC6,AC35) -> 0 | I6: 0 | J6: 0 | K6: 0 | L6: 0 | M6: 0 | N6: 0 | O6: 0 | P6: 0 | Q6: 0 | R6: 0 | S6: 0 | T6: =SUM(H6:S6) -> 0 | AC6: 0 | AD6: 0 | AE6: 0 | AF6: 0 | AG6: 0 | AH6: 0 | AI6: 0 | AJ6: 0 | AK6: 0 | AL6: 0 | AM6: 0 | AN6: 0
A7: =ROW() -> 7 | G7: 03:00:00 | H7: =IF($E$14=0,AC7,AC36) -> 0 | I7: 0 | J7: 0 | K7: 0 | L7: 0 | M7: 0 | N7: 0 | O7: 0 | P7: 0 | Q7: 0 | R7: 0 | S7: 0 | T7: 0 | AC7: 0 | AD7: 0 | AE7: 0 | AF7: 0 | AG7: 0 | AH7: 0 | AI7: 0 | AJ7: 0 | AK7: 0 | AL7: 0 | AM7: 0 | AN7: 0
A8: =ROW() -> 8 | D8: MWac : | E8: 1 | G8: 04:00:00 | H8: =IF($E$14=0,AC8,AC37) -> 0 | I8: 0 | J8: 0 | K8: 0 | L8: 0 | M8: 0 | N8: 0 | O8: 0 | P8: 0 | Q8: 0 | R8: 0 | S8: 0 | T8: 0 | AC8: 0 | AD8: 0 | AE8: 0 | AF8: 0 | AG8: 0 | AH8: 0 | AI8: 0 | AJ8: 0 | AK8: 0 | AL8: 0 | AM8: 0 | AN8: 0
A9: =ROW() -> 9 | D9: GCF : | E9: =E37 -> 0.2347559225 | G9: 05:00:00 | H9: =IF($E$14=0,AC9,AC38) -> 0 | I9: 0 | J9: 0 | K9: 0 | L9: 0 | M9: 0 | N9: 0 | O9: 0 | P9: 0 | Q9: 0 | R9: 0 | S9: 0 | T9: 0 | AC9: 0 | AD9: 0 | AE9: 0 | AF9: 0 | AG9: 0 | AH9: 0 | AI9: 0 | AJ9: 0 | AK9: 0 | AL9: 0 | AM9: 0 | AN9: 0
A10: =ROW() -> 10 | D10: ToD : | E10: =D237 -> 1.169609713 | G10: 06:00:00 | H10: =IF($E$14=0,AC10,AC39) -> 0 | I10: 0 | J10: 0 | K10: 0.036117826 | L10: 0.785795164 | M10: 1.039510031 | N10: 0.688200212 | O10: 0.047255575 | P10: 0 | Q10: 0 | R10: 0 | S10: 0 | T10: 2.596878808 | AC10: 0 | AD10: 0 | AE10: 0 | AF10: 0.036117826 | AG10: 0.785795164 | AH10: 1.039510031 | AI10: 0.688200212 | AJ10: 0.047255575 | AK10: 0 | AL10: 0 | AM10: 0 | AN10: 0
A11: =ROW() -> 11 | G11: 07:00:00 | H11: =IF($E$14=0,AC11,AC40) -> 0 | I11: 0 | J11: 0.715774203 | K11: 3.285896504 | L11: 5.114831515 | M11: 5.069268456 | N11: 4.404221008 | O11: 3.606805869 | P11: 2.670449889 | Q11: 1.024878611 | R11: 0 | S11: 0 | T11: 25.89212605 | AC11: 0 | AD11: 0 | AE11: 0.715774203 | AF11: 3.285896504 | AG11: 5.114831515 | AH11: 5.069268456 | AI11: 4.404221008 | AJ11: 3.606805869 | AK11: 2.670449889 | AL11: 1.024878611 | AM11: 0 | AN11: 0
A12: =ROW() -> 12 | G12: 08:00:00 | H12: =IF($E$14=0,AC12,AC41) -> 0.61970239 | I12: 2.379479846 | J12: 6.847580608 | K12: 9.872088958 | L12: 11.90021685 | M12: 11.46048613 | N12: 10.86879364 | O12: 10.4282482 | P12: 9.779828429 | Q12: 8.177369417 | R12: 4.110088244 | S12: 1.159945176 | T12: 87.60382789 | AC12: 0.61970239 | AD12: 2.379479846 | AE12: 6.847580608 | AF12: 9.872088958 | AG12: 11.90021685 | AH12: 11.46048613 | AI12: 10.86879364 | AJ12: 10.4282482 | AK12: 9.779828429 | AL12: 8.177369417 | AM12: 4.110088244 | AN12: 1.159945176
A13: =ROW() -> 13 | D13: Tech Sensitivity | G13: 09:00:00 | H13: =IF($E$14=0,AC13,AC42) -> 5.515845692 | I13: 7.650574079 | J13: 13.77176372 | K13: 16.39875483 | L13: 18.38198172 | M13: 17.69093657 | N13: 17.31228485 | O13: 17.24618225 | P13: 16.48335262 | Q13: 15.03684961 | R13: 10.67038457 | S13: 6.477130494 | T13: 162.636041 | AC13: 5.515845692 | AD13: 7.650574079 | AE13: 13.77176372 | AF13: 16.39875483 | AG13: 18.38198172 | AH13: 17.69093657 | AI13: 17.31228485 | AJ13: 17.24618225 | AK13: 16.48335262 | AL13: 15.03684961 | AM13: 10.67038457 | AN13: 6.477130494
A14: =ROW() -> 14 | D14: Yingli (on/off) : | E14: =Scen!G97 -> 0 | G14: 10:00:00 | H14: =IF($E$14=0,AC14,AC43) -> 9.48185734 | I14: 12.36420852 | J14: 19.93112424 | K14: 21.38707512 | L14: 23.62691815 | M14: 22.629726 | N14: 22.51621702 | O14: 22.68926626 | P14: 22.04378492 | Q14: 20.70313193 | R14: 15.36849022 | S14: 10.80494097 | T14: 223.5467407 | AC14: 9.48185734 | AD14: 12.36420852 | AE14: 19.93112424 | AF14: 21.38707512 | AG14: 23.62691815 | AH14: 22.629726 | AI14: 22.51621702 | AJ14: 22.68926626 | AK14: 22.04378492 | AL14: 20.70313193 | AM14: 15.36849022 | AN14: 10.80494097
A15: =ROW() -> 15 | G15: 11:00:00 | H15: =IF($E$14=0,AC15,AC44) -> 11.83707913 | I15: 15.79774598 | J15: 23.68616971 | K15: 24.15675773 | L15: 26.80537367 | M15: 25.90967377 | N15: 26.11604412 | O15: 26.40177779 | P15: 25.64569113 | Q15: 24.07054033 | R15: 18.36431335 | S15: 13.81215656 | T15: 262.6033233 | AC15: 11.83707913 | AD15: 15.79774598 | AE15: 23.68616971 | AF15: 24.15675773 | AG15: 26.80537367 | AH15: 25.90967377 | AI15: 26.11604412 | AJ15: 26.40177779 | AK15: 25.64569113 | AL15: 24.07054033 | AM15: 18.36431335 | AN15: 13.81215656
A16: =ROW() -> 16 | G16: 12:00:00 | H16: =IF($E$14=0,AC16,AC45) -> 13.55632868 | I16: 17.43423653 | J16: 25.61827938 | K16: 25.43174798 | L16: 28.47724102 | M16: 27.58580365 | N16: 28.03117846 | O16: 28.29122354 | P16: 27.29364594 | Q16: 25.4909761 | R16: 19.87390419 | S16: 15.6051654 | T16: 282.6897309 | U16: DST | AC16: 13.55632868 | AD16: 17.43423653 | AE16: 25.61827938 | AF16: 25.43174798 | AG16: 28.47724102 | AH16: 27.58580365 | AI16: 28.03117846 | AJ16: 28.29122354 | AK16: 27.29364594 | AL16: 25.4909761 | AM16: 19.87390419 | AN16: 15.6051654
A17: =ROW() -> 17 | G17: 13:00:00 | H17: =IF($E$14=0,AC17,AC46) -> 13.95644575 | I17: 17.38983886 | J17: 25.17076575 | K17: 25.42672967 | L17: 28.1877814 | M17: 27.3762364 | N17: 27.87896654 | O17: 28.34031075 | P17: 26.39880762 | Q17: 24.87436817 | R17: 19.29723262 | S17: 15.7572496 | T17: 280.0547331 | AC17: 13.95644575 | AD17: 17.38983886 | AE17: 25.17076575 | AF17: 25.42672967 | AG17: 28.1877814 | AH17: 27.3762364 | AI17: 27.87896654 | AJ17: 28.34031075 | AK17: 26.39880762 | AL17: 24.87436817 | AM17: 19.29723262 | AN17: 15.7572496
A18: =ROW() -> 18 | G18: 14:00:00 | H18: =IF($E$14=0,AC18,AC47) -> 13.00337012 | I18: 16.34492064 | J18: 23.71340838 | K18: 24.15571477 | L18: 25.84333235 | M18: 25.41797787 | N18: 26.26642708 | O18: 26.458725 | P18: 24.6943515 | Q18: 22.25031171 | R18: 17.10826494 | S18: 14.33581621 | T18: 259.5926206 | AC18: 13.00337012 | AD18: 16.34492064 | AE18: 23.71340838 | AF18: 24.15571477 | AG18: 25.84333235 | AH18: 25.41797787 | AI18: 26.26642708 | AJ18: 26.458725 | AK18: 24.6943515 | AL18: 22.25031171 | AM18: 17.10826494 | AN18: 14.33581621
A19: =ROW() -> 19 | G19: 15:00:00 | H19: =IF($E$14=0,AC19,AC48) -> 11.20126408 | I19: 13.84451255 | J19: 20.25907669 | K19: 20.28476302 | L19: 22.06134219 | M19: 21.90205627 | N19: 22.78343435 | O19: 22.5274931 | P19: 20.33713178 | Q19: 17.57723109 | R19: 12.88213264 | S19: 11.09670417 | T19: 216.7571419 | AC19: 11.20126408 | AD19: 13.84451255 | AE19: 20.25907669 | AF19: 20.28476302 | AG19: 22.06134219 | AH19: 21.90205627 | AI19: 22.78343435 | AJ19: 22.5274931 | AK19: 20.33713178 | AL19: 17.57723109 | AM19: 12.88213264 | AN19: 11.09670417
A20: =ROW() -> 20 | G20: 16:00:00 | H20: =IF($E$14=0,AC20,AC49) -> 7.420049348 | I20: 10.01935966 | J20: 15.02709943 | K20: 15.60870693 | L20: 16.54881962 | M20: 17.02337694 | N20: 17.63984959 | O20: 17.09441169 | P20: 14.63838011 | Q20: 11.11027627 | R20: 6.903719902 | S20: 6.027957946 | T20: 155.0620074 | AC20: 7.420049348 | AD20: 10.01935966 | AE20: 15.02709943 | AF20: 15.60870693 | AG20: 16.54881962 | AH20: 17.02337694 | AI20: 17.63984959 | AJ20: 17.09441169 | AK20: 14.63838011 | AL20: 11.11027627 | AM20: 6.903719902 | AN20: 6.027957946
A21: =ROW() -> 21 | G21: 17:00:00 | H21: =IF($E$14=0,AC21,AC50) -> 0.981344897 | I21: 4.761318719 | J21: 8.039570769 | K21: 9.066330883 | L21: 10.23184191 | M21: 10.78860728 | N21: 11.26445773 | O21: 10.33655979 | P21: 7.31540554 | Q21: 2.891388065 | R21: 0.005295675 | S21: 0 | T21: 75.68212126 | AC21: 0.981344897 | AD21: 4.761318719 | AE21: 8.039570769 | AF21: 9.066330883 | AG21: 10.23184191 | AH21: 10.78860728 | AI21: 11.26445773 | AJ21: 10.33655979 | AK21: 7.31540554 | AL21: 2.891388065 | AM21: 0.005295675 | AN21: 0
A22: =ROW() -> 22 | G22: 18:00:00 | H22: =IF($E$14=0,AC22,AC51) -> 0 | I22: 0.001236438 | J22: 0.553185515 | K22: 2.778938597 | L22: 3.754354696 | M22: 4.468914098 | N22: 4.69176626 | O22: 3.569000025 | P22: 0.63023349 | Q22: 0 | R22: 0 | S22: 0 | T22: 20.44762912 | AC22: 0 | AD22: 0.001236438 | AE22: 0.553185515 | AF22: 2.778938597 | AG22: 3.754354696 | AH22: 4.468914098 | AI22: 4.69176626 | AJ22: 3.569000025 | AK22: 0.63023349 | AL22: 0 | AM22: 0 | AN22: 0
A23: =ROW() -> 23 | G23: 19:00:00 | H23: =IF($E$14=0,AC23,AC52) -> 0 | I23: 0 | J23: 0 | K23: 0 | L23: 0.009874654 | M23: 0.678161783 | N23: 0.608922219 | O23: 0 | P23: 0 | Q23: 0 | R23: 0 | S23: 0 | T23: 1.296958656 | AC23: 0 | AD23: 0 | AE23: 0 | AF23: 0 | AG23: 0.009874654 | AH23: 0.678161783 | AI23: 0.608922219 | AJ23: 0 | AK23: 0 | AL23: 0 | AM23: 0 | AN23: 0
A24: =ROW() -> 24 | G24: 20:00:00 | H24: =IF($E$14=0,AC24,AC53) -> 0 | I24: 0 | J24: 0 | K24: 0 | L24: 0 | M24: 0 | N24: 0 | O24: 0 | P24: 0 | Q24: 0 | R24: 0 | S24: 0 | T24: 0 | AC24: 0 | AD24: 0 | AE24: 0 | AF24: 0 | AG24: 0 | AH24: 0 | AI24: 0 | AJ24: 0 | AK24: 0 | AL24: 0 | AM24: 0 | AN24: 0
A25: =ROW() -> 25 | G25: 21:00:00 | H25: =IF($E$14=0,AC25,AC54) -> 0 | I25: 0 | J25: 0 | K25: 0 | L25: 0 | M25: 0 | N25: 0 | O25: 0 | P25: 0 | Q25: 0 | R25: 0 | S25: 0 | T25: 0 | AC25: 0 | AD25: 0 | AE25: 0 | AF25: 0 | AG25: 0 | AH25: 0 | AI25: 0 | AJ25: 0 | AK25: 0 | AL25: 0 | AM25: 0 | AN25: 0
A26: =ROW() -> 26 | G26: 22:00:00 | H26: =IF($E$14=0,AC26,AC55) -> 0 | I26: 0 | J26: 0 | K26: 0 | L26: 0 | M26: 0 | N26: 0 | O26: 0 | P26: 0 | Q26: 0 | R26: 0 | S26: 0 | T26: 0 | AC26: 0 | AD26: 0 | AE26: 0 | AF26: 0 | AG26: 0 | AH26: 0 | AI26: 0 | AJ26: 0 | AK26: 0 | AL26: 0 | AM26: 0 | AN26: 0
A27: =ROW() -> 27 | G27: 23:00:00 | H27: =IF($E$14=0,AC27,AC56) -> 0 | I27: 0 | J27: 0 | K27: 0 | L27: 0 | M27: 0 | N27: 0 | O27: 0 | P27: 0 | Q27: 0 | R27: 0 | S27: 0 | T27: 0 | AC27: 0 | AD27: 0 | AE27: 0 | AF27: 0 | AG27: 0 | AH27: 0 | AI27: 0 | AJ27: 0 | AK27: 0 | AL27: 0 | AM27: 0 | AN27: 0
A28: =ROW() -> 28 | G28: 12:00:00 | H28: =IF($E$14=0,AC28,AC57) -> 0 | I28: 0 | J28: 0 | K28: 0 | L28: 0 | M28: 0 | N28: 0 | O28: 0 | P28: 0 | Q28: 0 | R28: 0 | S28: 0 | T28: 0 | AC28: 0 | AD28: 0 | AE28: 0 | AF28: 0 | AG28: 0 | AH28: 0 | AI28: 0 | AJ28: 0 | AK28: 0 | AL28: 0 | AM28: 0 | AN28: 0
A29: =ROW() -> 29 | G29: Total kWh : | H29: =SUM(H5:H28) -> 87.57328743 | I29: 117.9874318 | J29: 183.3337984 | K29: 197.8896228 | L29: 221.7297049 | M29: 219.0407352 | N29: 221.0707631 | O29: 217.0372598 | P29: 197.931063 | Q29: 173.2073213 | R29: 124.5838264 | S29: 95.07706653
A30: =ROW() -> 30
A31: =ROW() -> 31 | G31: Hour End | H31: Jan | I31: Feb | J31: Mar | K31: Apr | L31: May | M31: Jun | N31: Jul | O31: Aug | P31: Sep | Q31: Oct | R31: Nov | S31: Dec
A32: =ROW() -> 32 | D32: Generation Profile - Grossup | G32: 01:00:00 | H32: =H5/$E$8*$E$35 -> 0 | I32: 0 | J32: 0 | K32: 0 | L32: 0 | M32: 0 | N32: 0 | O32: 0 | P32: 0 | Q32: 0 | R32: 0 | S32: 0 | T32: =SUM(H32:S32) -> 0
A33: =ROW() -> 33 | D33: Total Hourly kWh | G33: 02:00:00 | H33: 0 | I33: 0 | J33: 0 | K33: 0 | L33: 0 | M33: 0 | N33: 0 | O33: 0 | P33: 0 | Q33: 0 | R33: 0 | S33: 0 | T33: =SUM(H33:S33) -> 0 | AC33: Yingli Sensitivity for 50 MW - sps_acquisitions_california_Fixed25_Yingli280W_SMA500_1MWac_1p15MWdc_12x24_0307201
A34: =ROW() -> 34 | G34: 03:00:00 | H34: 0 | I34: 0 | J34: 0 | K34: 0 | L34: 0 | M34: 0 | N34: 0 | O34: 0 | P34: 0 | Q34: 0 | R34: 0 | S34: 0 | T34: 0 | AC34: 0 | AD34: 0 | AE34: 0 | AF34: 0 | AG34: 0 | AH34: 0 | AI34: 0 | AJ34: 0 | AK34: 0 | AL34: 0 | AM34: 0 | AN34: 0
A35: =ROW() -> 35 | D35: MWac : | E35: =Scen!G45 -> 20 | G35: 04:00:00 | H35: 0 | I35: 0 | J35: 0 | K35: 0 | L35: 0 | M35: 0 | N35: 0 | O35: 0 | P35: 0 | Q35: 0 | R35: 0 | S35: 0 | T35: 0 | AC35: 0 | AD35: 0 | AE35: 0 | AF35: 0 | AG35: 0 | AH35: 0 | AI35: 0 | AJ35: 0 | AK35: 0 | AL35: 0 | AM35: 0 | AN35: 0
A36: =ROW() -> 36 | D36: Annual Hours : | E36: 8760 | G36: 05:00:00 | H36: 0 | I36: 0 | J36: 0 | K36: 0 | L36: 0 | M36: 0 | N36: 0 | O36: 0 | P36: 0 | Q36: 0 | R36: 0 | S36: 0 | T36: 0 | AC36: 0 | AD36: 0 | AE36: 0 | AF36: 0 | AG36: 0 | AH36: 0 | AI36: 0 | AJ36: 0 | AK36: 0 | AL36: 0 | AM36: 0 | AN36: 0
A37: =ROW() -> 37 | D37: GCF : | E37: =E38/(E36*E35) -> 0.2347559225 | G37: 06:00:00 | H37: 0 | I37: 0 | J37: 0 | K37: 0.72235652 | L37: 15.71590328 | M37: 20.79020062 | N37: 13.76400424 | O37: 0.9451115 | P37: 0 | Q37: 0 | R37: 0 | S37: 0 | T37: 51.93757616 | AC37: 0 | AD37: 0 | AE37: 0 | AF37: 0 | AG37: 0 | AH37: 0 | AI37: 0 | AJ37: 0 | AK37: 0 | AL37: 0 | AM37: 0 | AN37: 0
A38: =ROW() -> 38 | D38: Generation MWh : | E38: =SUM(H64:S64) -> 41129.23761 | G38: 07:00:00 | H38: 0 | I38: 0 | J38: 14.31548406 | K38: 65.71793008 | L38: 102.2966303 | M38: 101.3853691 | N38: 88.08442016 | O38: 72.13611738 | P38: 53.40899778 | Q38: 20.49757222 | R38: 0 | S38: 0 | T38: 517.8425211 | AC38: 0 | AD38: 0 | AE38: 0 | AF38: 0 | AG38: 0 | AH38: 0 | AI38: 0 | AJ38: 0 | AK38: 0 | AL38: 0 | AM38: 0 | AN38: 0
A39: =ROW() -> 39 | G39: 08:00:00 | H39: 12.3940478 | I39: 47.58959692 | J39: 136.9516122 | K39: 197.4417792 | L39: 238.004337 | M39: 229.2097226 | N39: 217.3758728 | O39: 208.564964 | P39: 195.5965686 | Q39: 163.5473883 | R39: 82.20176488 | S39: 23.19890352 | T39: 1752.076558 | AC39: 0 | AD39: 0 | AE39: 0 | AF39: 0.061276258 | AG39: 0.850769196 | AH39: 1.108071889 | AI39: 0.745304548 | AJ39: 0.091425631 | AK39: 0 | AL39: 0 | AM39: 0 | AN39: 0
A40: =ROW() -> 40 | G40: 09:00:00 | H40: 110.3169138 | I40: 153.0114816 | J40: 275.4352744 | K40: 327.9750966 | L40: 367.6396344 | M40: 353.8187314 | N40: 346.245697 | O40: 344.923645 | P40: 329.6670524 | Q40: 300.7369922 | R40: 213.4076914 | S40: 129.5426099 | T40: 3252.72082 | AC40: 0 | AD40: 0 | AE40: 0.700862747 | AF40: 3.009584175 | AG40: 4.631242748 | AH40: 4.521016073 | AI40: 3.894671567 | AJ40: 3.220220838 | AK40: 2.419801366 | AL40: 0.994440398 | AM40: 0 | AN40: 0
A41: =ROW() -> 41 | G41: 10:00:00 | H41: 189.6371468 | I41: 247.2841704 | J41: 398.6224848 | K41: 427.7415024 | L41: 472.538363 | M41: 452.59452 | N41: 450.3243404 | O41: 453.7853252 | P41: 440.8756984 | Q41: 414.0626386 | R41: 307.3698044 | S41: 216.0988194 | T41: 4470.934814 | AC41: 0.657002965 | AD41: 2.364653717 | AE41: 6.703252113 | AF41: 9.735817719 | AG41: 11.68628503 | AH41: 11.13869622 | AI41: 10.46565273 | AJ41: 10.06352001 | AK41: 9.529185877 | AL41: 8.072915308 | AM41: 4.120038929 | AN41: 1.213966646
A42: =ROW() -> 42 | D42: Monthly | E42: Monthly | G42: 11:00:00 | H42: 236.7415826 | I42: 315.9549196 | J42: 473.7233942 | K42: 483.1351546 | L42: 536.1074734 | M42: 518.1934754 | N42: 522.3208824 | O42: 528.0355558 | P42: 512.9138226 | Q42: 481.4108066 | R42: 367.286267 | S42: 276.2431312 | T42: 5252.066465 | AC42: 5.658836475 | AD42: 7.783826775 | AE42: 13.90369231 | AF42: 16.45021289 | AG42: 18.23770235 | AH42: 17.41448374 | AI42: 16.95324231 | AJ42: 16.93865521 | AK42: 16.29898801 | AL42: 15.07362761 | AM42: 10.85721526 | AN42: 6.650219031
A43: =ROW() -> 43 | D43: ToD | E43: Gen/MW | G43: 12:00:00 | H43: 271.1265736 | I43: 348.6847306 | J43: 512.3655876 | K43: 508.6349596 | L43: 569.5448204 | M43: 551.716073 | N43: 560.6235692 | O43: 565.8244708 | P43: 545.8729188 | Q43: 509.819522 | R43: 397.4780838 | S43: 312.103308 | T43: 5653.794617 | U43: DST | AC43: 9.731875627 | AD43: 12.54553419 | AE43: 19.85463737 | AF43: 21.02972475 | AG43: 22.94197206 | AH43: 21.80621717 | AI43: 21.5644466 | AJ43: 21.77500013 | AK43: 21.2913388 | AL43: 20.34560093 | AM43: 15.477191 | AN43: 11.06923649
A44: =ROW() -> 44 | C44: 1 | D44: =OFFSET($H$236,0,$C44-1) -> 1.008289762 | E44: =OFFSET($H$74,0,$C44-1) -> 87.57328743 | G44: 13:00:00 | H44: 279.128915 | I44: 347.7967772 | J44: 503.415315 | K44: 508.5345934 | L44: 563.755628 | M44: 547.524728 | N44: 557.5793308 | O44: 566.806215 | P44: 527.9761524 | Q44: 497.4873634 | R44: 385.9446524 | S44: 315.144992 | T44: 5601.094663 | AC44: 11.98681213 | AD44: 15.77891221 | AE44: 23.18911313 | AF44: 23.3169394 | AG44: 25.52408031 | AH44: 24.47710563 | AI44: 24.48003046 | AJ44: 24.77140973 | AK44: 24.23661231 | AL44: 23.25624584 | AM44: 18.2272478 | AN44: 13.96109222
A45: =ROW() -> 45 | C45: 2 | D45: =OFFSET($H$236,0,$C45-1) -> 1.008003101 | E45: =OFFSET($H$74,0,$C45-1) -> 117.9874318 | G45: 14:00:00 | H45: 260.0674024 | I45: 326.8984128 | J45: 474.2681676 | K45: 483.1142954 | L45: 516.866647 | M45: 508.3595574 | N45: 525.3285416 | O45: 529.1745 | P45: 493.88703 | Q45: 445.0062342 | R45: 342.1652988 | S45: 286.7163242 | T45: 5191.852411 | AC45: 13.61959034 | AD45: 17.23573071 | AE45: 24.95101829 | AF45: 24.74148127 | AG45: 26.95146387 | AH45: 25.72333887 | AI45: 25.880622 | AJ45: 26.14932819 | AK45: 25.44712033 | AL45: 24.35407396 | AM45: 19.57979357 | AN45: 15.66865379
A46: =ROW() -> 46 | C46: 3 | D46: 0.9554429442 | E46: 183.3337984 | G46: 15:00:00 | H46: 224.0252816 | I46: 276.890251 | J46: 405.1815338 | K46: 405.6952604 | L46: 441.2268438 | M46: 438.0411254 | N46: 455.668687 | O46: 450.549862 | P46: 406.7426356 | Q46: 351.5446218 | R46: 257.6426528 | S46: 221.9340834 | T46: 4335.142839 | AC46: 13.9969308 | AD46: 17.13977221 | AE46: 24.49999033 | AF46: 24.64545323 | AG46: 26.54976496 | AH46: 25.45018875 | AI46: 25.64530569 | AJ46: 26.099916 | AK46: 24.59153665 | AL46: 23.77040094 | AM46: 19.01815803 | AN46: 15.80694974
A47: =ROW() -> 47 | C47: 4 | D47: 0.9527254339 | E47: 197.8896228 | G47: 16:00:00 | H47: 148.400987 | I47: 200.3871932 | J47: 300.5419886 | K47: 312.1741386 | L47: 330.9763924 | M47: 340.4675388 | N47: 352.7969918 | O47: 341.8882338 | P47: 292.7676022 | Q47: 222.2055254 | R47: 138.074398 | S47: 120.5591589 | T47: 3101.240149 | AC47: 13.08429864 | AD47: 16.18824968 | AE47: 23.02459275 | AF47: 23.18163404 | AG47: 24.48358258 | AH47: 23.82278331 | AI47: 24.32877837 | AJ47: 24.5552295 | AK47: 23.21212177 | AL47: 21.49720581 | AM47: 16.99014199 | AN47: 14.45780643
A48: =ROW() -> 48 | C48: 5 | D48: 0.9499035357 | E48: 221.7297049 | G48: 17:00:00 | H48: =H21/$E$8*$E$35 -> 19.62689794 | I48: 95.22637438 | J48: 160.7914154 | K48: 181.3266177 | L48: 204.6368382 | M48: 215.7721456 | N48: 225.2891546 | O48: 206.7311958 | P48: 146.3081108 | Q48: 57.8277613 | R48: 0.1059135 | S48: 0 | T48: 1513.642425 | AC48: 11.39358846 | AD48: 13.86740405 | AE48: 19.9602342 | AF48: 19.78472342 | AG48: 21.2442574 | AH48: 20.85808956 | AI48: 21.46994521 | AJ48: 21.29419108 | AK48: 19.47786298 | AL48: 17.29399372 | AM48: 12.98660867 | AN48: 11.32021687
A49: =ROW() -> 49 | C49: 6 | D49: 1.436735676 | E49: 219.0407352 | G49: 18:00:00 | H49: 0 | I49: 0.02472876 | J49: 11.0637103 | K49: 55.57877194 | L49: 75.08709392 | M49: 89.37828196 | N49: 93.8353252 | O49: 71.3800005 | P49: 12.6046698 | Q49: 0 | R49: 0 | S49: 0 | T49: 408.9525824 | AC49: 7.572835656 | AD49: 10.15488042 | AE49: 15.04952311 | AF49: 15.49314226 | AG49: 16.22032679 | AH49: 16.53072121 | AI49: 16.98720734 | AJ49: 16.52325421 | AK49: 14.28969539 | AL49: 11.00219749 | AM49: 6.945097512 | AN49: 6.138431758
A50: =ROW() -> 50 | C50: 7 | D50: 1.444241983 | E50: 221.0707631 | G50: 19:00:00 | H50: 0 | I50: 0 | J50: 0 | K50: 0 | L50: 0.19749308 | M50: 13.56323566 | N50: 12.17844438 | O50: 0 | P50: 0 | Q50: 0 | R50: 0 | S50: 0 | T50: 25.93917312 | AC50: 1.013867522 | AD50: 4.7507019 | AE50: 7.92665809 | AF50: 8.833985504 | AG50: 9.846010385 | AH50: 10.32404123 | AI50: 10.75517734 | AJ50: 9.886955694 | AK50: 6.966839481 | AL50: 2.793556005 | AM50: 0.005208762 | AN50: 0
A51: =ROW() -> 51 | C51: 8 | D51: 1.443274608 | E51: 217.0372598 | G51: 20:00:00 | H51: 0 | I51: 0 | J51: 0 | K51: 0 | L51: 0 | M51: 0 | N51: 0 | O51: 0 | P51: 0 | Q51: 0 | R51: 0 | S51: 0 | T51: 0 | AC51: 0 | AD51: 0.001158594 | AE51: 0.563764093 | AF51: 2.567915131 | AG51: 3.385569542 | AH51: 3.963621906 | AI51: 4.16543194 | AJ51: 3.201266902 | AK51: 0.6270151 | AL51: 0.000517324 | AM51: 0 | AN51: 0
A52: =ROW() -> 52 | C52: 9 | D52: 1.428699861 | E52: 197.931063 | G52: 21:00:00 | H52: 0 | I52: 0 | J52: 0 | K52: 0 | L52: 0 | M52: 0 | N52: 0 | O52: 0 | P52: 0 | Q52: 0 | R52: 0 | S52: 0 | T52: 0 | AC52: 0 | AD52: 0 | AE52: 0 | AF52: 0 | AG52: 0.010864409 | AH52: 0.716638296 | AI52: 0.643986351 | AJ52: 0 | AK52: 0 | AL52: 0 | AM52: 0 | AN52: 0
A53: =ROW() -> 53 | C53: 10 | D53: 1.001268519 | E53: 173.2073213 | G53: 22:00:00 | H53: 0 | I53: 0 | J53: 0 | K53: 0 | L53: 0 | M53: 0 | N53: 0 | O53: 0 | P53: 0 | Q53: 0 | R53: 0 | S53: 0 | T53: 0 | AC53: 0 | AD53: 0 | AE53: 0 | AF53: 0 | AG53: 0 | AH53: 0 | AI53: 0 | AJ53: 0 | AK53: 0 | AL53: 0 | AM53: 0 | AN53: 0
A54: =ROW() -> 54 | C54: 11 | D54: 1.000967494 | E54: 124.5838264 | G54: 23:00:00 | H54: 0 | I54: 0 | J54: 0 | K54: 0 | L54: 0 | M54: 0 | N54: 0 | O54: 0 | P54: 0 | Q54: 0 | R54: 0 | S54: 0 | T54: 0 | AC54: 0 | AD54: 0 | AE54: 0 | AF54: 0 | AG54: 0 | AH54: 0 | AI54: 0 | AJ54: 0 | AK54: 0 | AL54: 0 | AM54: 0 | AN54: 0
A55: =ROW() -> 55 | C55: 12 | D55: 1.005104511 | E55: 95.07706653 | G55: 12:00:00 | H55: 0 | I55: 0 | J55: 0 | K55: 0 | L55: 0 | M55: 0 | N55: 0 | O55: 0 | P55: 0 | Q55: 0 | R55: 0 | S55: 0 | T55: 0 | AC55: 0 | AD55: 0 | AE55: 0 | AF55: 0 | AG55: 0 | AH55: 0 | AI55: 0 | AJ55: 0 | AK55: 0 | AL55: 0 | AM55: 0 | AN55: 0
A56: =ROW() -> 56 | G56: Total kWh : | H56: =SUM(H32:H55) -> 1751.465749 | I56: =SUM(I32:I55) -> 2359.748636 | J56: 3666.675968 | K56: 3957.792456 | L56: 4434.594098 | M56: 4380.814705 | N56: 4421.415262 | O56: 4340.745197 | P56: 3958.621259 | Q56: 3464.146426 | R56: 2491.676527 | S56: 1901.541331 | AC56: 0 | AD56: 0 | AE56: 0 | AF56: 0 | AG56: 0 | AH56: 0 | AI56: 0 | AJ56: 0 | AK56: 0 | AL56: 0 | AM56: 0 | AN56: 0
A57: =ROW() -> 57 | H57: =H29 -> 87.57328743 | I57: =I29 -> 117.9874318 | J57: 183.3337984 | K57: 197.8896228 | L57: 221.7297049 | M57: 219.0407352 | N57: 221.0707631 | O57: 217.0372598 | P57: 197.931063 | Q57: 173.2073213 | R57: 124.5838264 | S57: 95.07706653 | AC57: 0 | AD57: 0 | AE57: 0 | AF57: 0 | AG57: 0 | AH57: 0 | AI57: 0 | AJ57: 0 | AK57: 0 | AL57: 0 | AM57: 0 | AN57: 0
A58: =ROW() -> 58 | E58: Data Format
A59: =ROW() -> 59 | D59: Case : | E59: 1 | F59: Multiplier : | G59: Daily | H59: 31 | I59: 28 | J59: 31 | K59: 30 | L59: 31 | M59: 30 | N59: 31 | O59: 31 | P59: 30 | Q59: 31 | R59: 30 | S59: 31
A60: =ROW() -> 60 | D60: Case : | E60: 2 | F60: Multiplier : | G60: Monthly | H60: 1 | I60: 1 | J60: 1 | K60: 1 | L60: 1 | M60: 1 | N60: 1 | O60: 1 | P60: 1 | Q60: 1 | R60: 1 | S60: 1
A61: =ROW() -> 61 | D61: Case : | E61: 3 | F61: Multiplier : | G61: Custom | H61: =H59/1000 -> 0.031 | I61: =I59/1000 -> 0.028 | J61: 0.031 | K61: 0.03 | L61: 0.031 | M61: 0.03 | N61: 0.031 | O61: 0.031 | P61: 0.03 | Q61: 0.031 | R61: 0.03 | S61: 0.031
A62: =ROW() -> 62 | D62: Active : | E62: 2 | F62: Active : | G62: =CHOOSE($E62,G59,G60,G61) -> Monthly | H62: =CHOOSE($E62,H59,H60,H61) -> 1 | I62: =CHOOSE($E62,I59,I60,I61) -> 1 | J62: 1 | K62: 1 | L62: 1 | M62: 1 | N62: 1 | O62: 1 | P62: 1 | Q62: 1 | R62: 1 | S62: 1
A63: =ROW() -> 63
A64: =ROW() -> 64 | G64: Total Monthly MWh : | H64: =H56*H62 -> 1751.465749 | I64: =I56*I62 -> 2359.748636 | J64: 3666.675968 | K64: 3957.792456 | L64: 4434.594098 | M64: 4380.814705 | N64: 4421.415262 | O64: 4340.745197 | P64: 3958.621259 | Q64: 3464.146426 | R64: 2491.676527 | S64: 1901.541331
A65: =ROW() -> 65 | G65: Annual % : | H65: =H64/SUM($H64:$S64) -> 0.04258444479 | I65: 0.05737399411 | J65: 0.08915010782 | K65: 0.09622819887 | L65: 0.1078209652 | M65: 0.1065133943 | N65: 0.1075005402 | O65: 0.1055391602 | P65: 0.09624835006 | Q65: 0.08422588472 | R65: 0.06058163661 | S65: 0.04623332308
A66: =ROW() -> 66 | E66: Active
A67: =ROW() -> 67 | D67: Case : | E67: 1 | G67: Case : | H67: 1 | I67: 2 | J67: 3 | K67: 4
A68: =ROW() -> 68 | D68: Description : | E68: =OFFSET(H68,0,E$67-1) -> NextEra | G68: Description : | H68: NextEra | I68: 0.01 | J68: 0.0015 | K68: Case 4
A69: =ROW() -> 69 | D69: Generation MWh : | E69: =OFFSET(H69,0,E$67-1) -> 41129.23761 | G69: Generation MWh : | H69: =E38 -> 41129.23761 | I69: =H69+(E36*E35)*I68 -> 42881.23761 | J69: =H69+(E36*E35)*J68 -> 41392.03761 | K69: 0
A70: =ROW() -> 70 | D70: Check : | E70: =E69-E72 -> 0
A71: =ROW() -> 71
A72: =ROW() -> 72 | D72: Total MWh : | E72: =SUM(H72:S72) -> 41129.23761 | G72: Total Gen MWh : | H72: =$E$69*H65 -> 1751.465749 | I72: =$E$69*I65 -> 2359.748636 | J72: 3666.675968 | K72: 3957.792456 | L72: 4434.594098 | M72: 4380.814705 | N72: 4421.415262 | O72: 4340.745197 | P72: 3958.621259 | Q72: 3464.146426 | R72: 2491.676527 | S72: 1901.541331
A73: =ROW() -> 73 | D73: Annual GCF : | E73: =E72/(E36*E35) -> 0.2347559225 | G73: Monthly GCF : | H73: =(H62*H56*12/($E$36*$E$35)) -> 0.1199634074 | I73: =(I62*I56*12/($E$36*$E$35)) -> 0.1616266189 | J73: 0.2511421896 | K73: 0.2710816751 | L73: 0.3037393218 | M73: 0.3000558017 | N73: 0.3028366618 | O73: 0.2973113148 | P73: 0.2711384424 | Q73: 0.2372703032 | R73: 0.1706627758 | S73: 0.1302425569
A74: =ROW() -> 74 | G74: Total Gen / MW : | H74: =H72/$E$35 -> 87.57328743 | I74: 117.9874318 | J74: 183.3337984 | K74: 197.8896228 | L74: 221.7297049 | M74: 219.0407352 | N74: 221.0707631 | O74: 217.0372598 | P74: 197.931063 | Q74: 173.2073213 | R74: 124.5838264 | S74: 95.07706653
A75: =ROW() -> 75
A76: =ROW() -> 76
A77: =ROW() -> 77 | C77: TOD Multipliers
A78: =ROW() -> 78
A79: =ROW() -> 79 | D79: Days | E79: Wt Factor | F79: Notes | G79: Hour End | H79: Jan | I79: Feb | J79: Mar | K79: Apr | L79: May | M79: Jun | N79: Jul | O79: Aug | P79: Sep | Q79: Oct | R79: Nov | S79: Dec
A80: =ROW() -> 80 | C80: Weekday | D80: =365-D106-D132 -> 255 | E80: =D80/365 -> 0.698630137 | G80: 01:00:00 | H80: 0.78 | I80: 0.78 | J80: 0.63 | K80: 0.63 | L80: 0.63 | M80: 0.72 | N80: 0.72 | O80: 0.72 | P80: 0.72 | Q80: 0.78 | R80: 0.78 | S80: 0.78
A81: =ROW() -> 81 | D81: =D80 -> 255 | E81: 0.698630137 | G81: 02:00:00 | H81: 0.78 | I81: 0.78 | J81: 0.63 | K81: 0.63 | L81: 0.63 | M81: 0.72 | N81: 0.72 | O81: 0.72 | P81: 0.72 | Q81: 0.78 | R81: 0.78 | S81: 0.78
A82: =ROW() -> 82 | D82: 255 | E82: 0.698630137 | G82: 03:00:00 | H82: 0.78 | I82: 0.78 | J82: 0.63 | K82: 0.63 | L82: 0.63 | M82: 0.72 | N82: 0.72 | O82: 0.72 | P82: 0.72 | Q82: 0.78 | R82: 0.78 | S82: 0.78
A83: =ROW() -> 83 | D83: 255 | E83: 0.698630137 | G83: 04:00:00 | H83: 0.78 | I83: 0.78 | J83: 0.63 | K83: 0.63 | L83: 0.63 | M83: 0.72 | N83: 0.72 | O83: 0.72 | P83: 0.72 | Q83: 0.78 | R83: 0.78 | S83: 0.78
A84: =ROW() -> 84 | D84: 255 | E84: 0.698630137 | G84: 05:00:00 | H84: 0.78 | I84: 0.78 | J84: 0.63 | K84: 0.63 | L84: 0.63 | M84: 0.72 | N84: 0.72 | O84: 0.72 | P84: 0.72 | Q84: 0.78 | R84: 0.78 | S84: 0.78
A85: =ROW() -> 85 | D85: 255 | E85: 0.698630137 | G85: 06:00:00 | H85: 0.78 | I85: 0.78 | J85: 0.63 | K85: 0.63 | L85: 0.63 | M85: 0.72 | N85: 0.72 | O85: 0.72 | P85: 0.72 | Q85: 0.78 | R85: 0.78 | S85: 0.78
A86: =ROW() -> 86 | D86: 255 | E86: 0.698630137 | G86: 07:00:00 | H86: 0.96 | I86: 0.96 | J86: 0.86 | K86: 0.86 | L86: 0.86 | M86: 1.14 | N86: 1.14 | O86: 1.14 | P86: 1.14 | Q86: 0.96 | R86: 0.96 | S86: 0.96
A87: =ROW() -> 87 | D87: 255 | E87: 0.698630137 | G87: 08:00:00 | H87: 0.96 | I87: 0.96 | J87: 0.86 | K87: 0.86 | L87: 0.86 | M87: 1.14 | N87: 1.14 | O87: 1.14 | P87: 1.14 | Q87: 0.96 | R87: 0.96 | S87: 0.96
A88: =ROW() -> 88 | D88: 255 | E88: 0.698630137 | G88: 09:00:00 | H88: 0.96 | I88: 0.96 | J88: 0.86 | K88: 0.86 | L88: 0.86 | M88: 1.14 | N88: 1.14 | O88: 1.14 | P88: 1.14 | Q88: 0.96 | R88: 0.96 | S88: 0.96
A89: =ROW() -> 89 | D89: 255 | E89: 0.698630137 | G89: 10:00:00 | H89: 0.96 | I89: 0.96 | J89: 0.86 | K89: 0.86 | L89: 0.86 | M89: 1.14 | N89: 1.14 | O89: 1.14 | P89: 1.14 | Q89: 0.96 | R89: 0.96 | S89: 0.96
A90: =ROW() -> 90 | D90: 255 | E90: 0.698630137 | G90: 11:00:00 | H90: 0.96 | I90: 0.96 | J90: 0.86 | K90: 0.86 | L90: 0.86 | M90: 1.14 | N90: 1.14 | O90: 1.14 | P90: 1.14 | Q90: 0.96 | R90: 0.96 | S90: 0.96
A91: =ROW() -> 91 | D91: 255 | E91: 0.698630137 | G91: 12:00:00 | H91: 0.96 | I91: 0.96 | J91: 0.86 | K91: 0.86 | L91: 0.86 | M91: 1.14 | N91: 1.14 | O91: 1.14 | P91: 1.14 | Q91: 0.96 | R91: 0.96 | S91: 0.96
A92: =ROW() -> 92 | D92: 255 | E92: 0.698630137 | G92: 13:00:00 | H92: 1.09 | I92: 1.09 | J92: 1.13 | K92: 1.13 | L92: 1.13 | M92: 2.01 | N92: 2.01 | O92: 2.01 | P92: 2.01 | Q92: 1.09 | R92: 1.09 | S92: 1.09
A93: =ROW() -> 93 | D93: 255 | E93: 0.698630137 | G93: 14:00:00 | H93: 1.09 | I93: 1.09 | J93: 1.13 | K93: 1.13 | L93: 1.13 | M93: 2.01 | N93: 2.01 | O93: 2.01 | P93: 2.01 | Q93: 1.09 | R93: 1.09 | S93: 1.09
A94: =ROW() -> 94 | D94: 255 | E94: 0.698630137 | G94: 15:00:00 | H94: 1.09 | I94: 1.09 | J94: 1.13 | K94: 1.13 | L94: 1.13 | M94: 2.01 | N94: 2.01 | O94: 2.01 | P94: 2.01 | Q94: 1.09 | R94: 1.09 | S94: 1.09
